Workbook

Sheet START
C4: Future Mobility Calculator
C11: Mass electrification within the transport sector presents an opportunity to simultaneously reduce tailpipe emissions by switching propulsion technologies and improve the electrical grid. Fully realizing the potential that EVs offer requires a robust roadmap for infrastructure development and investment to ensure deployment is cost effective and resource efficient. To help quantify this infrastructure and investment needed for EV adoption and the associated benefits, Siemens and World Resources Institute (WRI) developed the Future Mobility Calculator (FMC). The FMC is an Excel-based tool that, for a given range of city-specific inputs and a projected rate of transport electrification identifies the quantity and cost of infrastructure required for adoption through 2050. The tool also estimates the potential social and health benefits associated with a reduction in emissions that result from this investment in electric transportation and a shifting modal split. The FMC does not provide a direct comparative cost-benefit analysis against other propulsion technologies but is rather designed to forecast the estimated impacts of a designated EV adoption scenario given a set of assumptions. The FMC is intended to be used by WRI staff to support city planners, transit agencies, city policy makers, utilities, and charge point operators. The FMC aims to help cities make informed decisions and plan accordingly for the future of their mobility and energy systems. This technical note details the structure, methodology and assumptions of the FMC.
K39: NO | U39: YES

Sheet Overview
A1: Overview
B4: WELCOME!
B6: Mass electrification within the transport sector presents an opportunity to simultaneously reduce tailpipe emissions by switching propulsion technologies and improve the electrical grid. Fully realizing the potential that EVs offer requires a robust roadmap for infrastructure development and investment to ensure deployment is cost effective and resource efficient. To help quantify this infrastructure and investment needed for EV adoption and associated benefits, Siemens and World Resources Institute (WRI) developed the Future Mobility Calculator (FMC). The FMC is an Excel-based tool that, for a given range of city-specific inputs and a projected rate of transport electrification identifies the quantity and cost of infrastructure required for adoption through 2050. The tool also estimates the potential social benefits associated with a reduction in emissions that result from this investment in electric transportation and a shifting modal split. The FMC does not provide a direct comparative cost-benefit analysis against other propulsion technologies but is rather designed to forecast the estimated impacts of a designated EV adoption scenario given a set of assumptions. The FMC is intended to be used by WRI staff to support city planners, transit agencies, city policy makers, utilities, and charge point operators. The FMC aims to help cities make informed decisions and plan accordingly for the future of their mobility and energy systems.
B10: Description of Tabs
B11: Data entry tabs. These tabs are created for the user to enter their city data. It also shows the default information uploaded to the tool depending on the selected city type.
B12: Default information tabs. These tabs have all the uploaded information of all the variables used to fill in gaps in data
B13: Calculation tabs. These tabs are where all calculations are done.
B14: Result tabs. Output tabs where the results are show. The general results, as well as cost and benefits results.
B19: Key:
B20: You should input your own data in yellow cells. | G20: If you enter your own data in the yellow cells, that data will be used in the model's calculations. If you choose not to enter your own data, the model will use data that fits the urban typology and other city characteristics that you selected in "User Typology Selection".
B22: Grey cells can't be edited.
B29: This model was built by Leah Lazer, Julia Thayne, Sarah Barnes, and Dr. Noorie Rajvanshi for Siemens Cities Center of Competence. This tool was adapted and enhanced by WRI
B30: © 2020

Sheet Cover (hidden)
C3: Future Mobility Calculator
C10: Technicians input
S34: Not technician?

Sheet Glossary
A1: Glossary
A2: List of relevant terms in the model and their definitions
B4: Urban typology
B5: Emerging economy | E5: Cities with lower than 13,221 USD per capita
B6: Developed economy | E6: Cities with higher than 13,221 USD per capita
B7: High density | E7: Above 13,500 inhabitants per km2
B8: Low density | E8: Lower than 13,500 inhabitants per km2
B11: Mode
B12: Private cars | D12: Owned and used by private residents or households.
B13: Private two-wheelers | D13: Owned and used by private residents or households, does not include human-powered bicycles.
B14: Public buses | D14: Part of the city public transit system.
B15: Shared fleets | D15: Owned by businesses and used for taxi services, on-demand rides, ride-sharing, or car rentals. In the FMC, shared fleets are classified as cars. Generally the same size as private cars, but with higher occupancy and utilization rates.
B16: Rail | D16: Includes subway, light rail, tram, cable-car, regional train, etc.
B18: Modal split | D18: The breakdown of travel between different modes including private cars, public buses, shared fleets, and rail. Can be measured as vehicle distance traveled, passenger distance traveled, or number of trips.
B21: Technologies
B22: Shared fleets | D22: Vehicles that are used by multiple passengers who coordinate with a central entity rather than directly with each other, leading to higher average occupancy and utilization rates. They can be owned by a third-party business (like with ZipCar) or by a private individual (like with Uber).
B23: Electric vehicles | D23: Powered by electricity stored in its rechargeable battery, instead of by fuel. Includes only fully electric vehicles. Excludes hybrid vehicles and fuel cell vehicles.
B24: ICE | D24: Internal combustion engine, the conventional way of powering cars and buses
B26: Charging Levels
B27: Light duty vehicles | C27: Level 1 | D27: Most commonly found in home charging settings and facilitated by a wall outlet, either 120V or 240V depending on geography. Charging power is less than 3.7 kW.
C28: Level 2 | D28: Most commonly found in public, private, and work charging settings. Charging power can ranges between 3.7 kW and 22 kW
C29: Level 3 | D29: Almost exclusively found in public or depot charging settings. Charging power is above 50 kW, but no greater than 400 kW
B30: Heavy duty vehicles | C30: Slow chargers | D30: Most commonly found in depot settings. Charging power capabilities can range between 22 kW and 60 kW
C31: Fast chargers | D31: Most commonly found in depot settings. Charging power capabilities range between 125 kW and 400 kW.
B33: Charging Locations
B34: Home | D34: Residential charging setting
B35: Work | D35: Charging located at a place of employment
B36: Public | D36: Charging locations accessible for public use
B37: Depot | D37: Charging locations for fleets, most commonly not accessible to the public

Sheet Calculation Tabs (hidden)
B4: Calculation sheets
B21: Cost and benefit calculations

Sheet Information Tabs (hidden)
B4: Information for each city type

Sheet Initial Data Input
B2: Initial Data Input - City Configuration
D3: General city information | Q3: Information Box
C5: 1 | D5: City location (country) | F5: China | H5: =LOOKUP(F5,Tabla1[Country],Tabla1[[Region ]]) -> Asia | Q5: These are the input cells
C6: 2 | D6: The country is an island state | F6: No | G6: =IF(F6='User Typology Selection'!B19,1,2) -> 2 | Q6: These are tool configurations
C7: 3 | D7: City population | F7: 21540000
C8: 4 | D8: City population growth rate | F8: 0.02 | G8: %
J9: Based on the information provided your city is | L9: =IF('User Typology Selection'!S10='User Typology Selection'!C5,'User Typology Selection'!B5,IF('User Typology Selection'!S10='User Typology Selection'!C6,'User Typology Selection'!B6,IF('User Typology Selection'!S10='User Typology Selection'!C7,'User Typology Selection'!B7,IF('User Typology Selection'!S10='User Typology Selection'!B8,)))) -> Developed Economy - High Density | Q9: Low-carbon electricity is stated as wind, solar, nuclear and hydro energy generation
C11: 5 | D11: City population density | F11: 14300 | G11: people/km2 | J11: If you don't agree, please choose a typology based on your city's characteristics: | L11: I agree with the suggested category | N11: =IF(L11='User Typology Selection'!$B$5,'User Typology Selection'!$C$5,IF(L11='User Typology Selection'!$B$6,'User Typology Selection'!$C$6,IF(L11='User Typology Selection'!$B$7,'User Typology Selection'!$C$7,IF(L11='User Typology Selection'!$B$8,'User Typology Selection'!$C$8,IF(L11='User Typology Selection'!$B$9,'User Typology Selection'!$C$9))))) -> 0 | Q11: Electricity consumption is the sum up of all electricity demand of your city
C12: 6 | D12: City income per capita | F12: 23800 | G12: GDP per capita USD
Q13: Hot is considered above 35C (95F) Cold is considered below -6C (20F)
C14: 7 | D14: Is your city considered hot or cold? | F14: Yes
D17: City electricity information
C19: 8 | D19: What % of your electricity generation is low-carbon? | F19: 0.08 | H19: Based on the information provided your energy generation today is: | L19: Moderate | N19: =L19 -> Moderate
D22: What % of your electricity generation is expected to be low-carbon by 2035? | F22: 0.2 | H22: Based on the information provided your electricity generation in 2035 will be: | L22: Dirty | N22: =L22 -> Dirty
D25: What % of your electricity generation is expected to be low-carbon by 2050? | F25: 0.6 | H25: Based on the information provided your electricity generation in 2050 will be: | L25: Moderate | N25: =L25 -> Moderate
C28: 9 | D28: What is your city total electricity consumption in one day ? | F28: 312980
G29: MWh
D33: Tool information
C35: 13 | D35: Which units would you like to use? | H35: this is reversed

Sheet User Typology Selection (hidden)
B1: Drop Down Lists // DO NOT MODIFY // Values link to Initial Data Input Sheet
B4: Urban types | E4: Population expected growth rate | H4: Carbon-Intensity of Electricity kmx: | K4: Is your city very hot or cold? | M4: In which region is your city located? | R4: Population density intervals (per km2) | S4: 1 - low density | T4: Income intervals (per capita) | U4: 1 - low income
B5: Emerging Economy - High Density | C5: 1 | D5: Bogotá, Mexico City, Mumbai, Delhi | E5: 0.023 | H5: Clean | I5: C | K5: Yes | M5: North America | R5: 13500 | S5: 2 - high density | T5: 13221 | U5: 2 - high income
B6: Developed Economy - Low Density | C6: 2 | D6: Los Angeles, Las Vegas, Atlanta, Phoenix | E6: 0.005 | H6: Moderate | I6: M | K6: No | M6: Europe | R6: =IF('Initial Data Input'!$F$11<'User Typology Selection'!R5,1,2) -> 2 | T6: =IF('Initial Data Input'!$F$12<'User Typology Selection'!T5,1,2) -> 2
B7: Developed Economy - High Density | C7: 3 | D7: New York, London, Singapore | E7: 0.005 | H7: Dirty | I7: D | M7: Asia
B8: Emerging Economy - Low density | C8: 4 | D8: Harare, Accra, Chandigarh | E8: 0.023 | M8: Latin America
B9: I agree with the suggested category | C9: 0 | M9: Africa | S9: Calculated Typology
M10: Oceania | S10: =IF(AND(R6=1,T6=1),$C$8,IF(AND(R6=2,T6=2),$C$7,IF(AND(R6=1,T6=2),$C$6,IF(AND(R6=2,T6=1),$C$5)))) -> 3
B18: The city is located in island state? | D18: Metric (km) | K18: Region | L18: Country | O18: Region | P18: Tier | R18: Typology | S18: Population density | T18: Income interval
B19: Yes | D19: people/km2 | K19: Asia | L19: Afghanistan | O19: Africa | P19: Tier 3 | R19: Emerging Economy - High Density | S19: 2 | T19: 1
B20: No | K20: Europe | L20: Albania | O20: Asia | P20: Tier 2 | R20: Developed Economy - Low Density | S20: 1 | T20: 2
K21: Africa | L21: Algeria | O21: Europe | P21: Tier 1 | R21: Developed Economy - High Density | S21: 2 | T21: 2
K22: Africa | L22: Angola | O22: Latin America | P22: Tier 2 | R22: Emerging Economy - Low density | S22: 1 | T22: 1
K23: Latin America | L23: Antigua and Barbuda | O23: North America | P23: Tier 1
K24: Latin America | L24: Argentina | O24: Oceania | P24: Tier 1
K25: Europe | L25: Armenia
K26: Oceania | L26: Australia
K27: Europe | L27: Austria
K28: Europe | L28: Azerbaijan
K29: Asia | L29: Bahamas
K30: Africa | L30: Bahrain
K31: Asia | L31: Bangladesh
K32: Latin America | L32: Barbados
K33: Europe | L33: Belarus
K34: Europe | L34: Belgium
K35: Latin America | L35: Belize
K36: Africa | L36: Benin
K37: Asia | L37: Bhutan
K38: Latin America | L38: Bolivia
K39: Europe | L39: Bosnia and Herzegovina
K40: Africa | L40: Botswana
K41: Latin America | L41: Brazil
K42: Asia | L42: Brunei Darussalam
K43: Europe | L43: Bulgaria
K44: Africa | L44: Burkina Faso
K45: Africa | L45: Burundi
K46: Africa | L46: Cabo Verde
K47: Asia | L47: Cambodia
K48: Africa | L48: Cameroon
K49: North America | L49: Canada
K50: Africa | L50: Central African Republic
K51: Africa | L51: Chad
K52: Latin America | L52: Chile
K53: Asia | L53: China
K54: Latin America | L54: Colombia
K55: Africa | L55: Comoros
K56: Africa | L56: Congo, Dem. Rep.
K57: Africa | L57: Congo, Rep.
K58: Latin America | L58: Costa Rica
K59: Africa | L59: Cote d'Ivoire
K60: Europe | L60: Croatia
K61: Latin America | L61: Cuba
K62: Europe | L62: Cyprus
K63: Europe | L63: Czech Republic
K64: Europe | L64: Denmark
K65: Africa | L65: Djibouti
K66: Latin America | L66: Dominican Republic
K67: Latin America | L67: Ecuador
K68: Africa | L68: Egypt
K69: Latin America | L69: El Salvador
K70: Africa | L70: Equatorial Guinea
K71: Europe | L71: Estonia
K72: Africa | L72: Ethiopia
K73: Asia | L73: Fiji
K74: Europe | L74: Finland
K75: Europe | L75: France
K76: Africa | L76: Gabon
K77: Africa | L77: Gambia
K78: Europe | L78: Georgia
K79: Europe | L79: Germany
K80: Africa | L80: Ghana
K81: Europe | L81: Greece
K82: Latin America | L82: Grenada
K83: Latin America | L83: Guatemala
K84: Africa | L84: Guinea
K85: Africa | L85: Guinea-Bissau
K86: Latin America | L86: Guyana
K87: Latin America | L87: Haiti
K88: Latin America | L88: Honduras
K89: Europe | L89: Hungary
K90: Europe | L90: Iceland
K91: Asia | L91: India
K92: Asia | L92: Indonesia
K93: Asia | L93: Iran
K94: Africa | L94: Iraq
K95: Europe | L95: Ireland
K96: Africa | L96: Israel
K97: Europe | L97: Italy
K98: Latin America | L98: Jamaica
K99: Asia | L99: Japan
K100: Africa | L100: Jordan
K101: Asia | L101: Kazakhstan
K102: Africa | L102: Kenya
K103: Asia | L103: Kiribati
K104: Asia | L104: Korea, Dem. People’s Rep.
K105: Asia | L105: Korea, Rep.
K106: Africa | L106: Kuwait
K107: Asia | L107: Kyrgyz Republic
K108: Asia | L108: Lao PDR
K109: Europe | L109: Latvia
K110: Africa | L110: Lebanon
K111: Africa | L111: Lesotho
K112: Africa | L112: Liberia
K113: Africa | L113: Libya
K114: Europe | L114: Lithuania
K115: Europe | L115: Luxembourg
K116: Asia | L116: Macedonia
K117: Africa | L117: Madagascar
K118: Africa | L118: Malawi
K119: Asia | L119: Malaysia
K120: Asia | L120: Maldives
K121: Africa | L121: Mali
K122: Europe | L122: Malta
K123: Africa | L123: Mauritania
K124: Africa | L124: Mauritius
K125: Latin America | L125: Mexico
K126: Latin America | L126: micronesia
K127: Europe | L127: Moldova
K128: Asia | L128: Mongolia
K129: Europe | L129: Montenegro
K130: Africa | L130: Morocco
K131: Africa | L131: Mozambique
K132: Asia | L132: Myanmar
K133: Africa | L133: Namibia
K134: Asia | L134: Nepal
K135: Europe | L135: Netherlands
K136: Oceania | L136: New Zealand
K137: Latin America | L137: Nicaragua
K138: Africa | L138: Niger
K139: Africa | L139: Nigeria
K140: Europe | L140: Norway
K141: Africa | L141: Oman
K142: Asia | L142: Pakistan
K143: Latin America | L143: Panama
K144: Asia | L144: Papua New Guinea
K145: Latin America | L145: Paraguay
K146: Latin America | L146: Peru
K147: Asia | L147: Philippines
K148: Europe | L148: Poland
K149: Europe | L149: Portugal
K150: Africa | L150: Qatar
K151: Europe | L151: Romania
K152: Europe | L152: Russian Federation
K153: Africa | L153: Rwanda
K154: Latin America | L154: Saint Lucia
K155: Latin America | L155: Saint Vincent and the Grenadines
K156: Asia | L156: Samoa
K157: Africa | L157: Sao Tome and Principe
K158: Africa | L158: Saudi Arabia
K159: Africa | L159: Senegal
K160: Europe | L160: Serbia
K161: Africa | L161: Seychelles
K162: Africa | L162: Sierra Leone
K163: Asia | L163: Singapore
K164: Europe | L164: Slovakia
K165: Europe | L165: Slovenia
K166: Asia | L166: Solomon Islands
K167: Africa | L167: Somalia
K168: Africa | L168: South Africa
K169: Africa | L169: South Sudan
K170: Europe | L170: Spain
K171: Asia | L171: Sri Lanka
K172: Africa | L172: Sudan
K173: Latin America | L173: Suriname
K174: Africa | L174: Swaziland
K175: Europe | L175: Sweden
K176: Europe | L176: Switzerland
K177: Africa | L177: Syrian
K178: Asia | L178: Tajikistan
K179: Africa | L179: Tanzania
K180: Asia | L180: Thailand
K181: Asia | L181: Timor-Leste
K182: Africa | L182: Togo
K183: Asia | L183: Tonga
K184: Latin America | L184: Trinidad and Tobago
K185: Africa | L185: Tunisia
K186: Asia | L186: Turkey
K187: Asia | L187: Turmienistan
K188: Africa | L188: Uganda
K189: europe | L189: Ukraine
K190: Africa | L190: United Arab Emirates
K191: Europe | L191: United Kingdom
K192: North America | L192: United States
K193: Latin America | L193: Uruguay
K194: Asia | L194: Uzbekistan
K195: Asia | L195: Vanuatu
K196: Latin America | L196: Venezuela
K197: Asia | L197: Vietnam
K198: Africa | L198: Yemen
K199: Africa | L199: Zambia
K200: Africa | L200: Zimbabwe

Sheet City Data
C1: City Data
E4: Manual Input | H4: Default Input
B5: Category | C5: Data point | D5: Unit | E5: 2020 (Baseline) | F5: 2035 | G5: 2050 | H5: 2020 (Baseline) | I5: 2035 | J5: 2050
B6: Overview | C6: Description | E6: =IF('Initial Data Input'!$N$11=0,LOOKUP('User Typology Selection'!$S$10,'User Typology Selection'!$C$5:$C$9,'User Typology Selection'!$B$5:$B$9),LOOKUP('Initial Data Input'!N11,'User Typology Selection'!$C$5:$C$9,'User Typology Selection'!$B$5:$B$9)) -> Developed Economy - High Density | H6: =IF('Initial Data Input'!$N$11=0,LOOKUP('User Typology Selection'!$S$10,'User Typology Selection'!$C$5:$C$9,'User Typology Selection'!$B$5:$B$9),LOOKUP('Initial Data Input'!N11,'User Typology Selection'!$C$5:$C$9,'User Typology Selection'!$B$5:$B$9)) -> Developed Economy - High Density | K6: =IF('Initial Data Input'!N11=0,'User Typology Selection'!S10,'Initial Data Input'!N11) -> 3
C7: Example cities | E7: =LOOKUP(H6,'User Typology Selection'!$B$5:$B$8:'User Typology Selection'!$D$5:$D$8) ->  | H7: =LOOKUP(H6,'User Typology Selection'!$B$5:$B$8,'User Typology Selection'!$D$5:$D$8) ->  | K7: ='Initial Data Input'!H5 -> Asia | M7: Information box
B8: Population and Land Use | C8: Population | D8: Number of people | E8: ='Initial Data Input'!F7 -> 21540000 | F8: =(E8*((1+E9)^15)) -> 22529922.32 | G8: =(F8*((1+F9)^15)) -> 23565338.88 | H8: ='Initial Data Input'!F7 -> 21540000 | I8: =(H8*((1+H9)^15)) -> 23213286.17 | J8: =(I8*((1+I9)^15)) -> 25016557.79 | M8: Number of people living in the selected city in that given year
C9: Average annual population growth rate, today-2050 | D9: % | E9: 0.003 | F9: 0.003 | G9: 0.003 | H9: =IF($K$6='City Default'!$E$8,'City Default'!E13,IF($K$6='City Default'!$H$8,'City Default'!H13,IF($K$6='City Default'!$K$8,'City Default'!K13,IF($K$6='City Default'!$N$8,'City Default'!N13,0)))) -> 0.005 | I9: =IF($K$6='City Default'!$E$8,'City Default'!F13,IF($K$6='City Default'!$H$8,'City Default'!I13,IF($K$6='City Default'!$K$8,'City Default'!L13,IF($K$6='City Default'!$N$8,'City Default'!O13,0)))) -> 0.005 | J9: =IF($K$6='City Default'!$E$8,'City Default'!G13,IF($K$6='City Default'!$H$8,'City Default'!J13,IF($K$6='City Default'!$K$8,'City Default'!M13,IF($K$6='City Default'!$N$8,'City Default'!P13,0)))) -> 0.005 | M9: Average annual population growth rate, today-2050
C10: Population density | D10: Residents per km2 | E10: ='Initial Data Input'!$F$11 -> 14300 | F10: ='Initial Data Input'!$F$11 -> 14300 | G10: ='Initial Data Input'!$F$11 -> 14300 | H10: =IF('City Data'!$K$6='City Default'!$E$8,'City Default'!E16,IF('City Data'!$K$6='City Default'!$H$8,'City Default'!H16,IF('City Data'!$K$6='City Default'!$K$8,'City Default'!K16,IF('City Data'!$K$6='City Default'!$N$8,'City Default'!N16)))) -> 18934.25 | I10: =IF('City Data'!$K$6='City Default'!$E$8,'City Default'!F16,IF('City Data'!$K$6='City Default'!$H$8,'City Default'!I16,IF('City Data'!$K$6='City Default'!$K$8,'City Default'!L16,IF('City Data'!$K$6='City Default'!$N$8,'City Default'!O16)))) -> 18934.25 | J10: =IF('City Data'!$K$6='City Default'!$E$8,'City Default'!G16,IF('City Data'!$K$6='City Default'!$H$8,'City Default'!J16,IF('City Data'!$K$6='City Default'!$K$8,'City Default'!M16,IF('City Data'!$K$6='City Default'!$N$8,'City Default'!P16)))) -> 18934.25 | M10: The density is calculated based on the number of residents within the defined municipal area of the city
B11: Emissions per capita | C11: Regional median per capita emissions, BASIC + Scope 3 | D11: mtCO2/year | E11: 7 | F11: 7 | G11: 7 | H11: =IF('Initial Data Input'!$H$5='City Default'!E19,'City Default'!E21,IF('Initial Data Input'!$H$5='City Default'!F19,'City Default'!F21,IF('Initial Data Input'!$H$5='City Default'!G19,'City Default'!G21,IF('Initial Data Input'!$H$5='City Default'!H19,'City Default'!H21,IF('Initial Data Input'!$H$5='City Default'!I19,'City Default'!I21,IF('Initial Data Input'!$H$5='City Default'!J19,'City Default'!J21)))))) -> 4.97 | I11: =H11 -> 4.97 | J11: =H11 -> 4.97 | M11: Regional median per capita emissions, BASIC
B13: Electricity Mix | C13: Solar | D13: % of electricity from that source | E13: 0.05 | F13: 0.1 | G13: 0.18 | H13: =IF('Initial Data Input'!$N$19='City Default'!E$25,'City Default'!E26,IF('Initial Data Input'!$N$19='City Default'!H$25,'City Default'!H26,IF('Initial Data Input'!$N$19='City Default'!K$25,'City Default'!K26))) -> 0.05 | I13: =IF('Initial Data Input'!$N$19='City Default'!F$25,'City Default'!F26,IF('Initial Data Input'!$N$19='City Default'!I$25,'City Default'!I26,IF('Initial Data Input'!$N$19='City Default'!L$25,'City Default'!L26))) -> 0.15 | J13: =IF('Initial Data Input'!$N$19='City Default'!G$25,'City Default'!G26,IF('Initial Data Input'!$N$19='City Default'!J$25,'City Default'!J26,IF('Initial Data Input'!$N$19='City Default'!M$25,'City Default'!M26))) -> 0.2 | M13: The electricity mix currently available in your city, and expected or desired mix in the future. Note: when entering information by hand, please add it to 100%
C14: Wind | D14: % of electricity from that source | E14: 0.058 | F14: 0.15 | G14: 0.25 | H14: =IF('Initial Data Input'!$N$19='City Default'!E$25,'City Default'!E27,IF('Initial Data Input'!$N$19='City Default'!H$25,'City Default'!H27,IF('Initial Data Input'!$N$19='City Default'!K$25,'City Default'!K27))) -> 0.1 | I14: =IF('Initial Data Input'!$N$19='City Default'!F$25,'City Default'!F27,IF('Initial Data Input'!$N$19='City Default'!I$25,'City Default'!I27,IF('Initial Data Input'!$N$19='City Default'!L$25,'City Default'!L27))) -> 0.25 | J14: =IF('Initial Data Input'!$N$19='City Default'!G$25,'City Default'!G27,IF('Initial Data Input'!$N$19='City Default'!J$25,'City Default'!J27,IF('Initial Data Input'!$N$19='City Default'!M$25,'City Default'!M27))) -> 0.4
C15: Coal | D15: % of electricity from that source | E15: 0.65 | F15: 0.45 | G15: 0.25 | H15: =IF('Initial Data Input'!$N$19='City Default'!E$25,'City Default'!E28,IF('Initial Data Input'!$N$19='City Default'!H$25,'City Default'!H28,IF('Initial Data Input'!$N$19='City Default'!K$25,'City Default'!K28))) -> 0.3 | I15: =IF('Initial Data Input'!$N$19='City Default'!F$25,'City Default'!F28,IF('Initial Data Input'!$N$19='City Default'!I$25,'City Default'!I28,IF('Initial Data Input'!$N$19='City Default'!L$25,'City Default'!L28))) -> 0.15 | J15: =IF('Initial Data Input'!$N$19='City Default'!G$25,'City Default'!G28,IF('Initial Data Input'!$N$19='City Default'!J$25,'City Default'!J28,IF('Initial Data Input'!$N$19='City Default'!M$25,'City Default'!M28))) -> 0.05
C16: Natural Gas | D16: % of electricity from that source | E16: 0.05 | F16: 0.05 | G16: 0.05 | H16: =IF('Initial Data Input'!$N$19='City Default'!E$25,'City Default'!E29,IF('Initial Data Input'!$N$19='City Default'!H$25,'City Default'!H29,IF('Initial Data Input'!$N$19='City Default'!K$25,'City Default'!K29))) -> 0.45 | I16: =IF('Initial Data Input'!$N$19='City Default'!F$25,'City Default'!F29,IF('Initial Data Input'!$N$19='City Default'!I$25,'City Default'!I29,IF('Initial Data Input'!$N$19='City Default'!L$25,'City Default'!L29))) -> 0.3 | J16: =IF('Initial Data Input'!$N$19='City Default'!G$25,'City Default'!G29,IF('Initial Data Input'!$N$19='City Default'!J$25,'City Default'!J29,IF('Initial Data Input'!$N$19='City Default'!M$25,'City Default'!M29))) -> 0.1
C17: Oil | D17: % of electricity from that source | E17: 0.1 | F17: 0.09 | G17: 0.01 | H17: =IF('Initial Data Input'!$N$19='City Default'!E$25,'City Default'!E30,IF('Initial Data Input'!$N$19='City Default'!H$25,'City Default'!H30,IF('Initial Data Input'!$N$19='City Default'!K$25,'City Default'!K30))) -> 0 | I17: =IF('Initial Data Input'!$N$19='City Default'!F$25,'City Default'!F30,IF('Initial Data Input'!$N$19='City Default'!I$25,'City Default'!I30,IF('Initial Data Input'!$N$19='City Default'!L$25,'City Default'!L30))) -> 0 | J17: =IF('Initial Data Input'!$N$19='City Default'!G$25,'City Default'!G30,IF('Initial Data Input'!$N$19='City Default'!J$25,'City Default'!J30,IF('Initial Data Input'!$N$19='City Default'!M$25,'City Default'!M30))) -> 0
C18: Hydro | D18: % of electricity from that source | E18: 0.05 | F18: 0.1 | G18: 0.2 | H18: =IF('Initial Data Input'!$N$19='City Default'!E$25,'City Default'!E31,IF('Initial Data Input'!$N$19='City Default'!H$25,'City Default'!H31,IF('Initial Data Input'!$N$19='City Default'!K$25,'City Default'!K31))) -> 0.05 | I18: =IF('Initial Data Input'!$N$19='City Default'!F$25,'City Default'!F31,IF('Initial Data Input'!$N$19='City Default'!I$25,'City Default'!I31,IF('Initial Data Input'!$N$19='City Default'!L$25,'City Default'!L31))) -> 0.1 | J18: =IF('Initial Data Input'!$N$19='City Default'!G$25,'City Default'!G31,IF('Initial Data Input'!$N$19='City Default'!J$25,'City Default'!J31,IF('Initial Data Input'!$N$19='City Default'!M$25,'City Default'!M31))) -> 0.2
C19: Nuclear | D19: % of electricity from that source | E19: 0.042 | F19: 0.06 | G19: 0.06 | H19: =IF('Initial Data Input'!$N$19='City Default'!E$25,'City Default'!E32,IF('Initial Data Input'!$N$19='City Default'!H$25,'City Default'!H32,IF('Initial Data Input'!$N$19='City Default'!K$25,'City Default'!K32))) -> 0.05 | I19: =IF('Initial Data Input'!$N$19='City Default'!F$25,'City Default'!F32,IF('Initial Data Input'!$N$19='City Default'!I$25,'City Default'!I32,IF('Initial Data Input'!$N$19='City Default'!L$25,'City Default'!L32))) -> 0.05 | J19: =IF('Initial Data Input'!$N$19='City Default'!G$25,'City Default'!G32,IF('Initial Data Input'!$N$19='City Default'!J$25,'City Default'!J32,IF('Initial Data Input'!$N$19='City Default'!M$25,'City Default'!M32))) -> 0.05
H20: =SUM(H13:H19) -> 1 | I20: 1 | J20: 1
B22: Electricity generation pollutant emissions | M22: Energy generation - CO2, PM10 and NOx emissions per Mwh (only for in site generation not life cycle value)
B23: Electricity generation emission | E23: All time periods all territories | H23: All time periods all territories
C24: Solar | D24: kg CO2 / MWh | H24: ='City Default'!F38 -> 0
D25: kg PM10 / MWh | H25: ='City Default'!F39 -> 0
D26: kg PM2.5 / MWh | H26: ='City Default'!F40 -> 0
D27: kg NOx / MWh | H27: ='City Default'!F41 -> 0
C28: Wind | D28: kg CO2 / MWh | H28: ='City Default'!F42 -> 0
D29: kg PM10 / MWh | H29: ='City Default'!F43 -> 0
D30: kg PM2.5 / MWh | H30: ='City Default'!F44 -> 0
D31: kg NOx / MWh | H31: ='City Default'!F45 -> 0
C32: Coal | D32: kg CO2 / MWh | E32: 1000 | H32: ='City Default'!F46 -> 342.26
D33: kg PM10 / MWh | H33: ='City Default'!F47 -> 0.0684
D34: kg PM2.5 / MWh | H34: ='City Default'!F48 -> 0.01224
D35: kg NOx / MWh | E35: 1.8 | H35: ='City Default'!F49 -> 0.29
C36: Natural Gas | D36: kg CO2 / MWh | H36: ='City Default'!F50 -> 202.16
D37: kg PM10 / MWh | H37: ='City Default'!F51 -> 0.1918
D38: kg PM2.5 / MWh | H38: ='City Default'!F52 -> 0.003204
D39: kg NOx / MWh | H39: ='City Default'!F53 -> 0.18
C40: Oil | D40: kg CO2 / MWh | H40: ='City Default'!F54 -> 267.67
D41: kg PM10 / MWh | H41: ='City Default'!F55 -> 0.036
D42: kg PM2.5 / MWh | H42: ='City Default'!F56 -> 0.06948
D43: kg NOx / MWh | H43: ='City Default'!F57 -> 0.468
C44: Hydro | D44: kg CO2 / MWh | H44: ='City Default'!F58 -> 0
D45: kg PM10 / MWh | H45: ='City Default'!F59 -> 0
D46: kg PM2.5 / MWh | H46: ='City Default'!F60 -> 0
D47: kg NOx / MWh | H47: ='City Default'!F61 -> 0
C48: Nuclear | D48: kg CO2 / MWh | H48: ='City Default'!F62 -> 0
D49: kg PM10 / MWh | H49: ='City Default'!F63 -> 0
D50: kg PM2.5 / MWh | H50: ='City Default'!F64 -> 0
D51: kg NOx / MWh | H51: ='City Default'!F65 -> 0
C53: All time periods
B54: ICE Car Emissions Factors (Private Car or Shared Fleet Vehicle) | C54: CO2 | D54: kg/km | H54: =IF('City Default'!$I$68='City Default'!$F$68,'City Default'!F69,IF('City Default'!$I$68='City Default'!$G$68,'City Default'!$G$69,'City Default'!H69)) -> 0.2289137 | I54: =H54 -> 0.2289137 | J54: =I54 -> 0.2289137 | M54: List of emission factors for ICE combustion engine pollutants - CO2 PM10, and NOx emissions based on vehicle mode.
C55: PM10 | D55: kg/km | H55: =IF('City Default'!$I$68='City Default'!$F$68,'City Default'!F70,IF('City Default'!$I$68='City Default'!$G$68,'City Default'!G70,'City Default'!H70)) -> 2.734e-06 | I55: =H55 -> 2.734e-06 | J55: 2.734e-06
C56: PM2.5 | D56: kg/km | H56: ='City Default'!G71 -> 6.598294e-06 | I56: ='City Default'!G71 -> 6.598294e-06 | J56: ='City Default'!H71 -> 6.598294e-06
C57: NOx | D57: kg/km | H57: =IF('City Default'!$I$68='City Default'!$F$68,'City Default'!F72,IF('City Default'!$I$68='City Default'!$G$68,'City Default'!G72,'City Default'!H72)) -> 0.0004306 | I57: 0.0004306 | J57: 0.0004306
B58: ICE Two-Wheeler Emissions Factor | C58: CO2 | D58: kg/km | H58: =IF('City Default'!$I$68='City Default'!$F$68,'City Default'!F73,IF('City Default'!$I$68='City Default'!$G$68,'City Default'!G73,'City Default'!H73)) -> 0.06 | I58: =H58 -> 0.06 | J58: =I58 -> 0.06
C59: PM10 | D59: kg/km | H59: =IF('City Default'!$I$68='City Default'!$F$68,'City Default'!F74,IF('City Default'!$I$68='City Default'!$G$68,'City Default'!G74,'City Default'!H74)) -> 0.0003 | I59: =H59 -> 0.0003 | J59: =I59 -> 0.0003
C60: PM2.5 | D60: kg/km | H60: ='City Default'!F75 -> 0.00017 | I60: ='City Default'!G75 -> 0.00017 | J60: ='City Default'!H75 -> 0.00017
C61: NOx | D61: kg/km | H61: =IF('City Default'!$I$68='City Default'!$F$68,'City Default'!F76,IF('City Default'!$I$68='City Default'!$G$68,'City Default'!G76,'City Default'!H76)) -> 0.00015 | I61: 0.00015 | J61: 0.00015
B62: ICE Bus Emissions Factors | C62: CO2 | D62: kg/km | H62: =IF('City Default'!$I$68='City Default'!$F$68,'City Default'!F77,IF('City Default'!$I$68='City Default'!$G$68,'City Default'!G77,'City Default'!H77)) -> 1.25 | I62: 1.25 | J62: 1.25
C63: PM10 | D63: kg/km | H63: =IF('City Default'!$I$68='City Default'!$F$68,'City Default'!F78,IF('City Default'!$I$68='City Default'!$G$68,'City Default'!G78,'City Default'!H78)) -> 0.000478 | I63: 0.000478 | J63: 0.000478
C64: PM2.5 | D64: kg/km | H64: ='City Default'!F79 -> 4.4095916e-05 | I64: ='City Default'!G79 -> 4.4095916e-05 | J64: ='City Default'!H79 -> 4.4095916e-05
C65: NOx | D65: kg/km | H65: =IF('City Default'!$I$68='City Default'!$F$68,'City Default'!F80,IF('City Default'!$I$68='City Default'!$G$68,'City Default'!G80,'City Default'!H80)) -> 0.008 | I65: 0.008 | J65: 0.008

Sheet City Default (hidden)
A1: City Default Inputs
E6: Urban Typology 1: Emerging Economy - High Density | H6: Urban Typology 2: Developed Economy - Low Density | K6: Urban Typology 3: Developed Economy - High Density | N6: Urban Typology 4: Emerging Economy - Low Density
E7: 2020 (Baseline) | F7: 2035 | G7: 2050 | H7: 2020 (Baseline) | I7: 2035 | J7: 2050 | K7: 2020 (Baseline) | L7: 2035 | M7: 2050 | N7: 2020 (Baseline) | O7: 2035 | P7: 2050
B8: Category | C8: Data point | D8: Unit | E8: 1 | F8: 1 | G8: 1 | H8: 2 | I8: 2 | J8: 2 | K8: 3 | L8: 3 | M8: 3 | N8: 4 | O8: 4 | P8: 4
B9: Overview | C9: Description | E9: Emerging Economy - High Density | H9: Developed Economy - Low Density | K9: Developed Economy - High Density | N9: Emerging economy - Low density
C10: Example cities
B12: Population and Land Use | C12: Population | D12: Number of people | E12: ='Initial Data Input'!F7 -> 21540000 | F12: =(E12*((1+F13)^15)) -> 30295645.1 | G12: =(F12*((1+G13)^15)) -> 42610311.62 | H12: ='Initial Data Input'!F7 -> 21540000 | I12: =(H12*((1+I13)^15)) -> 23213286.17 | J12: =(I12*((1+J13)^15)) -> 25016557.79 | K12: ='Initial Data Input'!F7 -> 21540000 | L12: =(K12*((1+L13)^15)) -> 23213286.17 | M12: =(L12*((1+M13)^15)) -> 25016557.79 | N12: ='Initial Data Input'!F7 -> 21540000 | O12: =(N12*((1+O13)^15)) -> 30295645.1 | P12: =(O12*((1+P13)^15)) -> 42610311.62
C13: Average annual population growth rate, today-2050 | D13: % | E13: 0.023 | F13: 0.023 | G13: 0.023 | H13: 0.005 | I13: 0.005 | J13: 0.005 | K13: 0.005 | L13: 0.005 | M13: 0.005 | N13: 0.023 | O13: 0.023 | P13: 0.023
C14: Population density | D14: Residents/km | E14: 34937.25 | F14: 34937.25 | G14: 34937.25 | H14: =AVERAGE(3000,9000) -> 6000 | I14: =AVERAGE(3000,9000) -> 6000 | J14: =AVERAGE(3000,9000) -> 6000 | K14: 18934.25 | L14: 18934.25 | M14: 18934.25 | N14: 18934.25 | O14: 18934.25 | P14: 18934.25
D15: Metric (km) | E15: =E14*0.3861 -> 13489.27223 | F15: =F14*0.3861 -> 13489.27223 | G15: 13489.27223 | H15: 2316.6 | I15: 2316.6 | J15: 2316.6 | K15: 7310.513925 | L15: 7310.513925 | M15: 7310.513925 | N15: 7310.513925 | O15: 7310.513925 | P15: 7310.513925
D16: Selected (calculation) | E16: =IF('Initial Data Input'!$F$35='City Default'!$D$15,'City Default'!E15,'City Default'!E14) -> 34937.25 | F16: =IF('Initial Data Input'!$F$35='City Default'!$D$15,'City Default'!F15,'City Default'!F14) -> 34937.25 | G16: =IF('Initial Data Input'!$F$35='City Default'!$D$15,'City Default'!G15,'City Default'!G14) -> 34937.25 | H16: =IF('Initial Data Input'!$F$35='City Default'!$D$15,'City Default'!H15,'City Default'!H14) -> 6000 | I16: =IF('Initial Data Input'!$F$35='City Default'!$D$15,'City Default'!I15,'City Default'!I14) -> 6000 | J16: =IF('Initial Data Input'!$F$35='City Default'!$D$15,'City Default'!J15,'City Default'!J14) -> 6000 | K16: =IF('Initial Data Input'!$F$35='City Default'!$D$15,'City Default'!K15,'City Default'!K14) -> 18934.25 | L16: =IF('Initial Data Input'!$F$35='City Default'!$D$15,'City Default'!L15,'City Default'!L14) -> 18934.25 | M16: =IF('Initial Data Input'!$F$35='City Default'!$D$15,'City Default'!M15,'City Default'!M14) -> 18934.25 | N16: =IF('Initial Data Input'!$F$35='City Default'!$D$15,'City Default'!N15,'City Default'!N14) -> 18934.25 | O16: =IF('Initial Data Input'!$F$35='City Default'!$D$15,'City Default'!O15,'City Default'!O14) -> 18934.25 | P16: =IF('Initial Data Input'!$F$35='City Default'!$D$15,'City Default'!P15,'City Default'!P14) -> 18934.25
B19: Emissions per capita | C19: Regional median per capita emissions, BASIC | D19: mtCO2/year | E19: North America | F19: Europe | G19: Asia | H19: Latin America | I19: Africa | J19: Australia/Oceania
E20: Today | F20: Today | G20: Today | H20: Today | I20: Today | J20: Today
E21: 9.52 | F21: 4.69 | G21: 4.97 | H21: 2.42 | I21: 5.61 | J21: 22.03
B23: Electricity Mix | E23: "Dirty" Electricity Mix | H23: "Moderate" Electricity Mix | K23: "Low-carbon" Electricity Mix
E24: 2020 | F24: 2035 | G24: 2050 | H24: 2020 | I24: 2035 | J24: 2050 | K24: 2020 | L24: 2035 | M24: 2050
C25: Data point | D25: Unit | E25: Dirty | F25: Dirty | G25: Dirty | H25: Moderate | I25: Moderate | J25: Moderate | K25: Low-carbon | L25: Low-carbon | M25: Low-carbon
C26: Solar | D26: % of electricity from that source | E26: 0 | F26: 0.05 | G26: 0.15 | H26: 0.05 | I26: 0.15 | J26: 0.2 | K26: 0.15 | L26: 0.2 | M26: 0.2
C27: Wind | D27: % of electricity from that source | E27: 0.02 | F27: 0.09 | G27: 0.25 | H27: 0.1 | I27: 0.25 | J27: 0.4 | K27: 0.2 | L27: 0.45 | M27: 0.45
C28: Coal | D28: % of electricity from that source | E28: 0.5 | F28: 0.25 | G28: 0.2 | H28: 0.3 | I28: 0.15 | J28: 0.05 | K28: 0 | L28: 0 | M28: 0
C29: Natural Gas | D29: % of electricity from that source | E29: 0.35 | F29: 0.45 | G29: 0.25 | H29: 0.45 | I29: 0.3 | J29: 0.1 | K29: 0.35 | L29: 0.05 | M29: 0
C30: Oil | D30: % of electricity from that source | E30: 0.03 | F30: 0.01 | G30: 0 | H30: 0 | I30: 0 | J30: 0 | K30: 0 | L30: 0 | M30: 0
C31: Hydro | D31: % of electricity from that source | E31: 0.05 | F31: 0.1 | G31: 0.1 | H31: 0.05 | I31: 0.1 | J31: 0.2 | K31: 0.25 | L31: 0.25 | M31: 0.3
C32: Nuclear | D32: % of electricity from that source | E32: 0.05 | F32: 0.05 | G32: 0.05 | H32: 0.05 | I32: 0.05 | J32: 0.05 | K32: 0.05 | L32: 0.05 | M32: 0.05
E33: =SUM(E26:E32) -> 1 | F33: =SUM(F26:F32) -> 1 | G33: 1 | H33: 1 | I33: 1 | J33: 1 | K33: 1 | L33: 1 | M33: 1
C35: Low-carbon electricity % | E35: =E26+E27+E31+E32 -> 0.12 | F35: 0.29 | G35: 0.55 | H35: 0.25 | I35: 0.55 | J35: 0.85 | K35: 0.65 | L35: 0.95 | M35: 1
B37: Pollutant emission factor | C37: Data point | E37: Unit | F37: All time periods all territories
C38: Generation type | D38: Solar | E38: kg CO2 / MWh | F38: 0
E39: Kg PM10 / MWh | F39: 0
E40: kg PM2.5 / MWh | F40: 0
E41: kg NOx / MWh | F41: 0
D42: Wind | E42: kg CO2 / MWh | F42: 0
E43: Kg PM10 / MWh | F43: 0
E44: kg PM2.5 / MWh | F44: 0
E45: kg NOx / MWh | F45: 0
D46: Coal | E46: kg CO2 / MWh | F46: 342.26
E47: Kg PM10 / MWh | F47: 0.0684 | H47: g/GJ | I47: g/GJ to G/MWh | J47: g/MWh | K47: g to kg | L47: kg/MWh
E48: kg PM2.5 / MWh | F48: 0.01224 | H48: 3.4 | I48: 3.6 | J48: =I48*H48 -> 12.24 | K48: 0.001 | L48: =K48*J48 -> 0.01224
E49: kg NOx / MWh | F49: 0.29
D50: Natural Gas | E50: kg CO2 / MWh | F50: 202.16
E51: Kg PM10 / MWh | F51: 0.1918 | H51: g/GJ | I51: g/GJ to G/MWh | J51: g/MWh | K51: g to kg | L51: kg/MWh
E52: kg PM2.5 / MWh | F52: 0.003204 | H52: 0.89 | I52: 3.6 | J52: =I52*H52 -> 3.204 | K52: 0.001 | L52: =K52*J52 -> 0.003204
E53: kg NOx / MWh | F53: 0.18
D54: Oil | E54: kg CO2 / MWh | F54: 267.67
E55: Kg PM10 / MWh | F55: 0.036 | H55: g/GJ | I55: g/GJ to G/MWh | J55: g/MWh | K55: g to kg | L55: kg/MWh
E56: kg PM2.5 / MWh | F56: 0.06948 | H56: 19.3 | I56: 3.6 | J56: =I56*H56 -> 69.48 | K56: 0.001 | L56: =K56*J56 -> 0.06948
E57: kg NOx / MWh | F57: 0.468
D58: Hydro | E58: kg CO2 / MWh | F58: 0
E59: Kg PM10 / MWh | F59: 0
E60: kg PM2.5 / MWh | F60: 0
E61: kg NOx / MWh | F61: 0
D62: Nuclear | E62: kg CO2 / MWh | F62: 0
E63: Kg PM10 / MWh | F63: 0
E64: kg PM2.5 / MWh | F64: 0
E65: kg NOx / MWh | F65: 0
B68: ICE Emissions | C68: All time periods | F68: Tier 1 | G68: Tier 2 | H68: Tier 3 | I68: =LOOKUP('Initial Data Input'!H5,'User Typology Selection'!O19:O24,'User Typology Selection'!P19:P24) -> Tier 2
C69: Car Emissions Factors (Private Car or Shared Fleet Vehicle) | D69: CO2 | E69: kg/km | F69: 0.2289137 | G69: =F69 -> 0.2289137 | H69: =F69 -> 0.2289137
D70: PM10 | E70: kg/km | F70: 2.734e-06 | G70: 2.734e-06 | H70: 2.734e-06 | I70: 0.00018 | K70: Grams/mi | L70: km/mi | M70: g/km | N70: kg/g | O70: kg/km
D71: PM 2.5 | E71: kg/km | F71: 6.598294e-06 | G71: 6.598294e-06 | H71: 6.598294e-06 | I71: 3e-06 | K71: 0.0041 | L71: 1.60934 | M71: =L71*K71 -> 0.006598294 | N71: 0.001 | O71: =N71*M71 -> 6.598294e-06
D72: NOx | E72: kg/km | F72: 0.0004306 | G72: 0.0004306 | H72: 0.0004306 | I72: 0.00132
C73: two-wheeler Emissions Factor | D73: CO2 | E73: kg/km | F73: 0.06 | G73: 0.06 | H73: 0.06 | I73: 0.06
D74: PM10 | E74: kg/km | F74: 0.0003 | G74: 0.0003 | H74: 0.0003 | I74: 0.0003 | M74: g/km | N74: kg/g | O74: kg/km
D75: PM 2.5 | E75: kg/km | F75: 0.00017 | G75: 0.00017 | H75: 0.00017 | I75: 0.00027 | M75: 0.17 | N75: 0.001 | O75: =N75*M75 -> 0.00017
D76: NOx | E76: kg/km | F76: 0.00015 | G76: 0.00015 | H76: 0.00015 | I76: 0.0011
C77: Bus Emissions Factor | D77: CO2 | E77: kg/km | F77: 1.25 | G77: 1.25 | H77: 1.25 | I77: 1.25
D78: PM10 | E78: kg/km | F78: 0.000478 | G78: 0.000478 | H78: 0.000478 | I78: 0.000478 | K78: Grams/mi | L78: km/mi | M78: g/km | N78: kg/g | O78: kg/km
D79: PM 2.5 | E79: kg/km | F79: 4.4095916e-05 | G79: 4.4095916e-05 | H79: 4.4095916e-05 | I79: 0.0004 | K79: 0.0274 | L79: 1.60934 | M79: =L79*K79 -> 0.044095916 | N79: 0.001 | O79: =N79*M79 -> 4.4095916e-05
D80: NOx | E80: kg/km | F80: 0.008 | G80: 0.008 | H80: 0.008 | I80: 0.008
B86: Region | C86: Country | D86: Average GDP increase rate (2000-2017) | F86: World bank data
B87: Asia | C87: Afghanistan | D87: 0.0721457586 | E87: =LOOKUP('Initial Data Input'!F5,'City Default'!C87:C263,'City Default'!D87:D263) -> 0.09282999362 | F87: If country information | G87: Row Labels | H87: Average GDP increase rate (2000-2017)
B88: Europe | C88: Albania | D88: 0.04385307991 | E88: =LOOKUP('Initial Data Input'!H5,'City Default'!G88:G93,'City Default'!H88:H93) -> 0.05118718562 | F88: If area information | G88: Africa | H88: 0.04439539441
B89: Africa | C89: Algeria | D89: 0.0355663523 | G89: Asia | H89: 0.05118718562
B90: Africa | C90: Angola | D90: 0.06241518002 | G90: Europe | H90: 0.03013473728
B91: Latin America | C91: Antigua and Barbuda | D91: 0.02347144632 | G91: Latin America | H91: 0.03170490742
B92: Latin America | C92: Argentina | D92: 0.02476565701 | G92: North America | H92: 0.02081876677
B93: Europe | C93: Armenia | D93: 0.06589694835 | G93: Oceania | H93: 0.0290593066
B94: Oceania | C94: Australia | D94: 0.02943242712 | G94: Total general | H94: 0.039989082
B95: Europe | C95: Austria | D95: 0.01609167685
B96: Europe | C96: Azerbaijan | D96: 0.09563834088
B97: Asia | C97: Bahamas | D97: 0.008572041869
B98: Africa | C98: Bahrain | D98: 0.04694693708
B99: Asia | C99: Bangladesh | D99: 0.05949488216
B100: Latin America | C100: Barbados | D100: 0.01063658052
B101: Europe | C101: Belarus | D101: 0.04784631279
B102: Europe | C102: Belgium | D102: 0.0155858772
B103: Latin America | C103: Belize | D103: 0.03700297301
B104: Africa | C104: Benin | D104: 0.04327906741
B105: Asia | C105: Bhutan | D105: 0.07479217009
B106: Latin America | C106: Bolivia | D106: 0.04270895513
B107: Europe | C107: Bosnia and Herzegovina | D107: 0.03426196705
B108: Africa | C108: Botswana | D108: 0.04164908273
B109: Latin America | C109: Brazil | D109: 0.0247609356
B110: Asia | C110: Brunei Darussalam | D110: 0.008437313432
B111: Europe | C111: Bulgaria | D111: 0.03703539422
B112: Africa | C112: Burkina Faso | D112: 0.05588735602
B113: Africa | C113: Burundi | D113: 0.02581328871
B114: Africa | C114: Cabo Verde | D114: 0.04958069716
B115: Asia | C115: Cambodia | D115: 0.07802236669
B116: Africa | C116: Cameroon | D116: 0.0426706771
B117: North America | C117: Canada | D117: 0.02197408804
B118: Africa | C118: Central African Republic | D118: 0.004817097907
B119: Africa | C119: Chad | D119: 0.06934294162
B120: Latin America | C120: Chile | D120: 0.0389525917
B121: Asia | C121: China | D121: 0.09282999362
B122: Latin America | C122: Colombia | D122: 0.03931733004
B123: Africa | C123: Comoros | D123: 0.03150535984
B124: Africa | C124: Congo, Dem. Rep. | D124: 0.04727090925
B125: Africa | C125: Congo, Rep. | D125: 0.03813354664
B126: Latin America | C126: Costa Rica | D126: 0.0406452391
B127: Africa | C127: Cote d'Ivoire | D127: 0.03199504196
B128: Europe | C128: Croatia | D128: 0.01952514309
B129: Latin America | C129: Cuba | D129: 0.04162434071
B130: Europe | C130: Cyprus | D130: 0.02241258989
B131: Europe | C131: Czech Republic | D131: 0.02882299806
B132: Europe | C132: Denmark | D132: 0.01201821872
B133: Africa | C133: Djibouti | D133: 0.07854226608
B134: Latin America | C134: Dominican Republic | D134: 0.04884115942
B135: Latin America | C135: Ecuador | D135: 0.03664349104
B136: Africa | C136: Egypt | D136: 0.04275197095
B137: Latin America | C137: El Salvador | D137: 0.01964410332
B138: Africa | C138: Equatorial Guinea | D138: 0.1064015028
B139: Europe | C139: Estonia | D139: 0.03973144089
B140: Africa | C140: Ethiopia | D140: 0.09023204311
B141: Asia | C141: Fiji | D141: 0.02032325615
B142: Europe | C142: Finland | D142: 0.01552195078
B143: Europe | C143: France | D143: 0.01332114303
B144: Africa | C144: Gabon | D144: 0.02305099008
B145: Africa | C145: Gambia | D145: 0.03359943689
B146: Europe | C146: Georgia | D146: 0.05428991593
B147: Europe | C147: Germany | D147: 0.01378294534
B148: Africa | C148: Ghana | D148: 0.06047780912
B149: Europe | C149: Greece | D149: 0.002289796212
B150: Latin America | C150: Grenada | D150: 0.0271600191
B151: Latin America | C151: Guatemala | D151: 0.034504457
B152: Africa | C152: Guinea | D152: 0.04322441427
B153: Africa | C153: Guinea-Bissau | D153: 0.03327287851
B154: Latin America | C154: Guyana | D154: 0.0286490628
B155: Latin America | C155: Haiti | D155: 0.01196238019
B156: Latin America | C156: Honduras | D156: 0.04170943795
B157: Europe | C157: Hungary | D157: 0.02275257268
B158: Europe | C158: Iceland | D158: 0.03173434152
B159: Asia | C159: India | D159: 0.07059582785
B160: Asia | C160: Indonesia | D160: 0.05278904226
B161: Asia | C161: Iran | D161: 0.03658566465
B162: Africa | C162: Iraq | D162: 0.05279248942
B163: Europe | C163: Ireland | D163: 0.05163315556
B164: Africa | C164: Israel | D164: 0.03499481032
B165: Europe | C165: Italy | D165: 0.003613289654
B166: Latin America | C166: Jamaica | D166: 0.00744247213
B167: Asia | C167: Japan | D167: 0.009563761075
B168: Africa | C168: Jordan | D168: 0.04721734078
B169: Asia | C169: Kazakhstan | D169: 0.06772222222
B170: Africa | C170: Kenya | D170: 0.04583719865
B171: Asia | C171: Kiribati | D171: 0.02186498713
B172: Asia | C172: Korea, Rep. | D172: 0.04128112645
B173: Africa | C173: Kuwait | D173: 0.04017148749
B174: Asia | C174: Kyrgyz Republic | D174: 0.0448208789
B175: Asia | C175: Lao PDR | D175: 0.07219962758
B176: Europe | C176: Latvia | D176: 0.03935929298
B177: Africa | C177: Lebanon | D177: 0.03950505263
B178: Africa | C178: Lesotho | D178: 0.03524022583
B179: Africa | C179: Liberia | D179: 0.0276666212
B180: Africa | C180: Libya | D180: 0.04918845062
B181: Europe | C181: Lithuania | D181: 0.04166375206
B182: Europe | C182: Luxembourg | D182: 0.03090012582
B183: Asia | C183: Macedonia | D183: 0.0278121543
B184: Africa | C184: Madagascar | D184: 0.02995011362
B185: Africa | C185: Malawi | D185: 0.042645453
B186: Asia | C186: Malaysia | D186: 0.05109893124
B187: Asia | C187: Maldives | D187: 0.05552918886
B188: Africa | C188: Mali | D188: 0.04865045397
B189: Europe | C189: Malta | D189: 0.03633888121
B190: Africa | C190: Mauritania | D190: 0.04361442226
B191: Africa | C191: Mauritius | D191: 0.04310568244
B192: Latin America | C192: Mexico | D192: 0.02201475854
B193: Latin America | C193: Micronesia | D193: 0.006036591592
B194: Europe | C194: Moldova | D194: 0.04617095316
B195: Asia | C195: Mongolia | D195: 0.06917293101
B196: Europe | C196: Montenegro | D196: 0.02972222079
B197: Africa | C197: Morocco | D197: 0.04261307119
B198: Africa | C198: Mozambique | D198: 0.07023014859
B199: Asia | C199: Myanmar | D199: 0.1014196398
B200: Africa | C200: Namibia | D200: 0.04323847377
B201: Asia | C201: Nepal | D201: 0.04199742963
B202: Europe | C202: Netherlands | D202: 0.01497875147
B203: Oceania | C203: New Zealand | D203: 0.02868618607
B204: Latin America | C204: Nicaragua | D204: 0.03918171431
B205: Africa | C205: Niger | D205: 0.04770360397
B206: Africa | C206: Nigeria | D206: 0.06062078192
B207: Europe | C207: Norway | D207: 0.01710381014
B208: Africa | C208: Oman | D208: 0.03557583904
B209: Asia | C209: Pakistan | D209: 0.0432135661
B210: Latin America | C210: Panama | D210: 0.06171311112
B211: Asia | C211: Papua New Guinea | D211: 0.0405152638
B212: Latin America | C212: Paraguay | D212: 0.03578248659
B213: Latin America | C213: Peru | D213: 0.04955699025
B214: Asia | C214: Philippines | D214: 0.05298301329
B215: Europe | C215: Poland | D215: 0.03720835612
B216: Europe | C216: Portugal | D216: 0.006298835296
B217: Africa | C217: Qatar | D217: 0.0992356389
... 46 more rows

Sheet Emission Calc (hidden)
A1: Emissions calculations
B5: Input | C5: 2020 | D5: 2035 | E5: 2050 | F5: Unit
B6: ICE Emissions Factors
B7: Co2/distance traveled, cars (private or fleet) | C7: =IF(ISBLANK('City Data'!E54),'City Data'!H54,'City Data'!E54) -> 0.2289137 | D7: =IF(ISBLANK('City Data'!F54),'City Data'!I54,'City Data'!F54) -> 0.2289137 | E7: =IF(ISBLANK('City Data'!G54),'City Data'!J54,'City Data'!G54) -> 0.2289137 | F7: kg of CO2/km
B8: Co2/distance traveled, two-wheeler | C8: =IF(ISBLANK('City Data'!E58),'City Data'!H58,'City Data'!E58) -> 0.06 | D8: =IF(ISBLANK('City Data'!F58),'City Data'!I58,'City Data'!F58) -> 0.06 | E8: =IF(ISBLANK('City Data'!G58),'City Data'!J58,'City Data'!G58) -> 0.06 | F8: kg of CO2/km
B9: Co2/distance traveled, buses | C9: =IF(ISBLANK('City Data'!E62),'City Data'!H62,'City Data'!E62) -> 1.25 | D9: =IF(ISBLANK('City Data'!F62),'City Data'!I62,'City Data'!F62) -> 1.25 | E9: =IF(ISBLANK('City Data'!G62),'City Data'!J62,'City Data'!G62) -> 1.25 | F9: kg of CO2/km
B10: PM10/vehicle distance travelled, cars (private or fleet) | C10: =IF(ISBLANK('City Data'!E55),'City Data'!H55,'City Data'!E55) -> 2.734e-06 | D10: =IF(ISBLANK('City Data'!F55),'City Data'!I55,'City Data'!F55) -> 2.734e-06 | E10: =IF(ISBLANK('City Data'!G55),'City Data'!J55,'City Data'!G55) -> 2.734e-06 | F10: kg of PM10/km
B11: PM10/distance traveled, two-wheeler | C11: =IF(ISBLANK('City Data'!E59),'City Data'!H59,'City Data'!E59) -> 0.0003 | D11: =IF(ISBLANK('City Data'!F59),'City Data'!I59,'City Data'!F59) -> 0.0003 | E11: =IF(ISBLANK('City Data'!G59),'City Data'!J59,'City Data'!G59) -> 0.0003 | F11: kg of PM10/km
B12: PM10/vehicle distance travelled, buses | C12: =IF(ISBLANK('City Data'!E63),'City Data'!H63,'City Data'!E63) -> 0.000478 | D12: =IF(ISBLANK('City Data'!F63),'City Data'!I63,'City Data'!F63) -> 0.000478 | E12: =IF(ISBLANK('City Data'!G63),'City Data'!J63,'City Data'!G63) -> 0.000478 | F12: kg of PM10/km
B13: PM2.5/vehicle distance travelled, cars (private or fleet) | C13: =IF(ISBLANK('City Data'!E56),'City Data'!H56,'City Data'!E56) -> 6.598294e-06 | D13: =IF(ISBLANK('City Data'!F56),'City Data'!I56,'City Data'!F56) -> 6.598294e-06 | E13: =IF(ISBLANK('City Data'!G56),'City Data'!J56,'City Data'!G56) -> 6.598294e-06 | F13: kg of PM2.5/km
B14: PM2.5/distance traveled, two-wheeler | C14: =IF(ISBLANK('City Data'!E60),'City Data'!H60,'City Data'!E60) -> 0.00017 | D14: =IF(ISBLANK('City Data'!F60),'City Data'!I60,'City Data'!F60) -> 0.00017 | E14: =IF(ISBLANK('City Data'!G60),'City Data'!J60,'City Data'!G60) -> 0.00017 | F14: kg of PM2.5/km
B15: PM2.5/vehicle distance travelled, buses | C15: =IF(ISBLANK('City Data'!E64),'City Data'!H64,'City Data'!E64) -> 4.4095916e-05 | D15: =IF(ISBLANK('City Data'!F64),'City Data'!I64,'City Data'!F64) -> 4.4095916e-05 | E15: =IF(ISBLANK('City Data'!G64),'City Data'!J64,'City Data'!G64) -> 4.4095916e-05 | F15: kg of PM2.5/km
B16: NOx/vehicle distance travelled, cars (private or fleet) | C16: =IF(ISBLANK('City Data'!E57),'City Data'!H57,'City Data'!E57) -> 0.0004306 | D16: =IF(ISBLANK('City Data'!F57),'City Data'!I57,'City Data'!F57) -> 0.0004306 | E16: =IF(ISBLANK('City Data'!G57),'City Data'!J57,'City Data'!G57) -> 0.0004306 | F16: kg of NOx/km
B17: NOx/distance traveled, two-wheeler | C17: =IF(ISBLANK('City Data'!E61),'City Data'!H61,'City Data'!E61) -> 0.00015 | D17: =IF(ISBLANK('City Data'!F61),'City Data'!I61,'City Data'!F61) -> 0.00015 | E17: =IF(ISBLANK('City Data'!G61),'City Data'!J61,'City Data'!G61) -> 0.00015 | F17: kg of NOx/km
B18: NOx/vehicle distance travelled, buses | C18: =IF(ISBLANK('City Data'!E65),'City Data'!H65,'City Data'!E65) -> 0.008 | D18: =IF(ISBLANK('City Data'!F65),'City Data'!I65,'City Data'!F65) -> 0.008 | E18: =IF(ISBLANK('City Data'!G65),'City Data'!J65,'City Data'!G65) -> 0.008 | F18: kg of NOx/km
B19: Electric Vehicle Emissions Factors
B20: CO2/km, cars (private or fleet) | C20: =C110 -> 0.0781944 | D20: =D110 -> 0.0421296 | E20: =E110 -> 0.0210648 | F20: kg of CO2/km
B21: CO2/km, two-wheeler | C21: =C148 -> 0.03630454286 | D21: =D148 -> 0.02031248571 | E21: 0.006687238095 | F21: kg of CO2/km
B22: CO2/km, buses | C22: =C186 -> 0.4300692 | D22: =D186 -> 0.1685184 | E22: =E186 -> 0.0772376 | F22: kg of CO2/km
B23: PM10/km, cars (private or fleet) | C23: =C111 -> 2.1366e-05 | D23: =D111 -> 1.356e-05 | E23: =E111 -> 6.78e-06 | F23: kg of PM10/km
B24: PM10/km, two-wheeler | C24: =C149 -> 9.919928571e-06 | D24: =D149 -> 6.537857143e-06 | E24: 2.152380952e-06 | F24: kg of PM10/km
B25: PM10/km, buses | C25: =C187 -> 0.000117513 | D25: =D187 -> 5.424e-05 | E25: =E187 -> 1.937142857e-05 | F25: kg of PM10/km
B26: PM2.5/km, cars (private or fleet) | C26: =C112 -> 1.02276e-06 | D26: =D112 -> 5.5944e-07 | E26: 1.53414e-06 | F26: kg of PM2.5/km
B27: PM2.5/km, two-wheeler | C27: =C150 -> 4.748528571e-07 | D27: =D150 -> 2.6973e-07 | E27: 8.88e-08 | F27: kg of PM2.5/km
B28: PM2.5/km, buses | C28: =C188 -> 5.62518e-06 | D28: =D188 -> 2.23776e-06 | E28: 7.992e-07 | F28: kg of PM2.5/km
B29: NOx/km, cars (private or fleet) | C29: =C113 -> 0.0001242 | D29: =D113 -> 6.48e-05 | E29: =E113 -> 3.24e-05 | F29: kg of NOx/km
B30: NOx/km, two-wheeler | C30: =C151 -> 5.766428571e-05 | D30: =D151 -> 3.124285714e-05 | E30: 1.028571429e-05 | F30: kg of NOx/km
B31: NOx/km, buses | C31: =C189 -> 0.0006831 | D31: =D189 -> 0.0002592 | E31: =E189 -> 9.257142857e-05 | F31: kg of NOx/km
B33: Emissions Factors - Electricity
B34: CO2
B35: Solar | C35: =IF(ISBLANK('City Data'!E24),'City Data'!H24,'City Data'!E24)/1000 -> 0 | F35: kg CO2 /kwh
B36: Wind | C36: =IF(ISBLANK('City Data'!E28),'City Data'!H28,'City Data'!E28)/1000 -> 0 | F36: kg CO2 /kwh
B37: Coal | C37: =IF(ISBLANK('City Data'!E32),'City Data'!H32,'City Data'!E32)/1000 -> 1 | F37: kg CO2 /kwh
B38: Natural Gas | C38: =IF(ISBLANK('City Data'!E36),'City Data'!H36,'City Data'!E36)/1000 -> 0.20216 | F38: kg CO2 /kwh
B39: Oil | C39: =IF(ISBLANK('City Data'!E40),'City Data'!H40,'City Data'!E40)/1000 -> 0.26767 | F39: kg CO2 /kwh
B40: Hydro | C40: =IF(ISBLANK('City Data'!E44),'City Data'!H44,'City Data'!E44)/1000 -> 0 | F40: kg CO2 /kwh
B41: Nuclear | C41: =IF(ISBLANK('City Data'!E48),'City Data'!H48,'City Data'!E48)/1000 -> 0 | F41: kg CO2 /kwh
B42: PM 10
B43: Solar | C43: =IF(ISBLANK('City Data'!E25),'City Data'!H25,'City Data'!E25)/1000 -> 0 | F43: kg PM10 /kwh
B44: Wind | C44: =IF(ISBLANK('City Data'!E29),'City Data'!H29,'City Data'!E29)/1000 -> 0 | F44: kg PM10 /kwh
B45: Coal | C45: =IF(ISBLANK('City Data'!E33),'City Data'!H33,'City Data'!E33)/1000 -> 6.84e-05 | F45: kg PM10 /kwh
B46: Natural Gas | C46: =IF(ISBLANK('City Data'!E37),'City Data'!H37,'City Data'!E37)/1000 -> 0.0001918 | F46: kg PM10 /kwh
B47: Oil | C47: =IF(ISBLANK('City Data'!E41),'City Data'!H41,'City Data'!E41)/1000 -> 3.6e-05 | F47: kg PM10 /kwh
B48: Hydro | C48: =IF(ISBLANK('City Data'!E45),'City Data'!H45,'City Data'!E45)/1000 -> 0 | F48: kg PM10 /kwh
B49: Nuclear | C49: =IF(ISBLANK('City Data'!E49),'City Data'!H49,'City Data'!E49)/1000 -> 0 | F49: kg PM10 /kwh
B50: PM 2.5
B51: Solar | C51: =IF(ISBLANK('City Data'!E26),'City Data'!H26,'City Data'!E26)/1000 -> 0 | F51: kg PM2.5 /kwh
B52: Wind | C52: =IF(ISBLANK('City Data'!E30),'City Data'!H30,'City Data'!E30)/1000 -> 0 | F52: kg PM2.5 /kwh
B53: Coal | C53: =IF(ISBLANK('City Data'!E34),'City Data'!H34,'City Data'!E34)/1000 -> 1.224e-05 | F53: kg PM2.5 /kwh
B54: Natural Gas | C54: =IF(ISBLANK('City Data'!E38),'City Data'!H38,'City Data'!E38)/1000 -> 3.204e-06 | F54: kg PM2.5 /kwh
B55: Oil | C55: =IF(ISBLANK('City Data'!E42),'City Data'!H42,'City Data'!E42)/1000 -> 6.948e-05 | F55: kg PM2.5 /kwh
B56: Hydro | C56: =IF(ISBLANK('City Data'!E46),'City Data'!H46,'City Data'!E46)/1000 -> 0 | F56: kg PM2.5 /kwh
B57: Nuclear | C57: =IF(ISBLANK('City Data'!E50),'City Data'!H50,'City Data'!E50)/1000 -> 0 | F57: kg PM2.5 /kwh
B58: NOx
B59: Solar | C59: =IF(ISBLANK('City Data'!E27),'City Data'!H27,'City Data'!E27)/1000 -> 0 | F59: kg NOx/kwh
B60: Wind | C60: =IF(ISBLANK('City Data'!E31),'City Data'!H31,'City Data'!E31)/1000 -> 0 | F60: kg NOx/kwh
B61: Coal | C61: =IF(ISBLANK('City Data'!E35),'City Data'!H35,'City Data'!E35)/1000 -> 0.0018 | F61: kg NOx/kwh
B62: Natural Gas | C62: =IF(ISBLANK('City Data'!E39),'City Data'!H39,'City Data'!E39)/1000 -> 0.00018 | F62: kg NOx/kwh
B63: Oil | C63: =IF(ISBLANK('City Data'!E43),'City Data'!H43,'City Data'!E43)/1000 -> 0.000468 | F63: kg NOx/kwh
B64: Hydro | C64: =IF(ISBLANK('City Data'!E47),'City Data'!H47,'City Data'!E47)/1000 -> 0 | F64: kg NOx/kwh
B65: Nuclear | C65: =IF(ISBLANK('City Data'!E51),'City Data'!H51,'City Data'!E51)/1000 -> 0 | F65: kg NOx/kwh
B68: Electricity Mix
B69: % from solar | C69: =IF('City Data'!$E$20=1,'City Data'!E13,'City Data'!H13) -> 0.05 | D69: =IF('City Data'!$F$20=1,'City Data'!F13,'City Data'!I13) -> 0.15 | E69: =IF('City Data'!$G$20=1,'City Data'!G13,'City Data'!J13) -> 0.2 | F69: %
B70: % from wind | C70: =IF('City Data'!$E$20=1,'City Data'!E14,'City Data'!H14) -> 0.1 | D70: =IF('City Data'!$F$20=1,'City Data'!F14,'City Data'!I14) -> 0.25 | E70: =IF('City Data'!$G$20=1,'City Data'!G14,'City Data'!J14) -> 0.4 | F70: %
B71: % from coal | C71: =IF('City Data'!$E$20=1,'City Data'!E15,'City Data'!H15) -> 0.3 | D71: =IF('City Data'!$F$20=1,'City Data'!F15,'City Data'!I15) -> 0.15 | E71: =IF('City Data'!$G$20=1,'City Data'!G15,'City Data'!J15) -> 0.05 | F71: %
B72: % from natural gas | C72: =IF('City Data'!$E$20=1,'City Data'!E16,'City Data'!H16) -> 0.45 | D72: =IF('City Data'!$F$20=1,'City Data'!F16,'City Data'!I16) -> 0.3 | E72: =IF('City Data'!$G$20=1,'City Data'!G16,'City Data'!J16) -> 0.1 | F72: %
B73: % from oil | C73: =IF('City Data'!$E$20=1,'City Data'!E17,'City Data'!H17) -> 0 | D73: =IF('City Data'!$F$20=1,'City Data'!F17,'City Data'!I17) -> 0 | E73: =IF('City Data'!$G$20=1,'City Data'!G17,'City Data'!J17) -> 0 | F73: %
B74: % from hydro | C74: =IF('City Data'!$E$20=1,'City Data'!E18,'City Data'!H18) -> 0.05 | D74: =IF('City Data'!$F$20=1,'City Data'!F18,'City Data'!I18) -> 0.1 | E74: =IF('City Data'!$G$20=1,'City Data'!G18,'City Data'!J18) -> 0.2 | F74: %
B75: % from nuclear | C75: =IF('City Data'!$E$20=1,'City Data'!E19,'City Data'!H19) -> 0.05 | D75: =IF('City Data'!$F$20=1,'City Data'!F19,'City Data'!I19) -> 0.05 | E75: =IF('City Data'!$G$20=1,'City Data'!G19,'City Data'!J19) -> 0.05 | F75: %
B77: Emissions Factors - Electric cars
B78: CO2
B79: Solar | C79: =$C35*'Charging Calc'!C$16 -> 0 | D79: =$C35*'Charging Calc'!D$16 -> 0 | E79: =$C35*'Charging Calc'!E$16 -> 0 | F79: kg CO2 /km
B80: Wind | C80: =$C36*'Charging Calc'!C$16 -> 0 | D80: =$C36*'Charging Calc'!D$16 -> 0 | E80: =$C36*'Charging Calc'!E$16 -> 0 | F80: kg CO2 /km
B81: Coal | C81: =$C37*'Charging Calc'!C$16 -> 0.2 | D81: =$C37*'Charging Calc'!D$16 -> 0.2 | E81: =$C37*'Charging Calc'!E$16 -> 0.3 | F81: kg CO2 /km
B82: Natural Gas | C82: =$C38*'Charging Calc'!C$16 -> 0.040432 | D82: =$C38*'Charging Calc'!D$16 -> 0.040432 | E82: =$C38*'Charging Calc'!E$16 -> 0.060648 | F82: kg CO2 /km
B83: Oil | C83: =$C39*'Charging Calc'!C$16 -> 0.053534 | D83: =$C39*'Charging Calc'!D$16 -> 0.053534 | E83: =$C39*'Charging Calc'!E$16 -> 0.080301 | F83: kg CO2 /km
B84: Hydro | C84: =$C40*'Charging Calc'!C$16 -> 0 | D84: =$C40*'Charging Calc'!D$16 -> 0 | E84: =$C40*'Charging Calc'!E$16 -> 0 | F84: kg CO2 /km
B85: Nuclear | C85: =$C41*'Charging Calc'!C$16 -> 0 | D85: =$C41*'Charging Calc'!D$16 -> 0 | E85: =$C41*'Charging Calc'!E$16 -> 0 | F85: kg CO2 /km
B86: PM 10
B87: Solar | C87: =$C43*'Charging Calc'!C$16 -> 0 | D87: =$C43*'Charging Calc'!D$16 -> 0 | E87: =$C43*'Charging Calc'!E$16 -> 0 | F87: kg PM10 /km
B88: Wind | C88: =$C44*'Charging Calc'!C$16 -> 0 | D88: =$C44*'Charging Calc'!D$16 -> 0 | E88: =$C44*'Charging Calc'!E$16 -> 0 | F88: kg PM10 /km
B89: Coal | C89: =$C45*'Charging Calc'!C$16 -> 1.368e-05 | D89: =$C45*'Charging Calc'!D$16 -> 1.368e-05 | E89: =$C45*'Charging Calc'!E$16 -> 2.052e-05 | F89: kg PM10 /km
B90: Natural Gas | C90: =$C46*'Charging Calc'!C$16 -> 3.836e-05 | D90: =$C46*'Charging Calc'!D$16 -> 3.836e-05 | E90: =$C46*'Charging Calc'!E$16 -> 5.754e-05 | F90: kg PM10 /km
B91: Oil | C91: =$C47*'Charging Calc'!C$16 -> 7.2e-06 | D91: =$C47*'Charging Calc'!D$16 -> 7.2e-06 | E91: =$C47*'Charging Calc'!E$16 -> 1.08e-05 | F91: kg PM10 /km
B92: Hydro | C92: =$C48*'Charging Calc'!C$16 -> 0 | D92: =$C48*'Charging Calc'!D$16 -> 0 | E92: =$C48*'Charging Calc'!E$16 -> 0 | F92: kg PM10 /km
B93: Nuclear | C93: =$C49*'Charging Calc'!C$16 -> 0 | D93: =$C49*'Charging Calc'!D$16 -> 0 | E93: =$C49*'Charging Calc'!E$16 -> 0 | F93: kg PM10 /km
B94: PM 2.5
B95: Solar | C95: =$C51*'Charging Calc'!C$16 -> 0 | D95: =$C51*'Charging Calc'!D$16 -> 0 | E95: =$C51*'Charging Calc'!E$16 -> 0 | F95: kg PM2.5 /km
B96: Wind | C96: =$C52*'Charging Calc'!C$16 -> 0 | D96: =$C52*'Charging Calc'!D$16 -> 0 | E96: =$C52*'Charging Calc'!E$16 -> 0 | F96: kg PM2.5 /km
B97: Coal | C97: =$C53*'Charging Calc'!C$16 -> 2.448e-06 | D97: =$C53*'Charging Calc'!D$16 -> 2.448e-06 | E97: =$C53*'Charging Calc'!E$16 -> 3.672e-06 | F97: kg PM2.5 /km
B98: Natural Gas | C98: =$C54*'Charging Calc'!C$16 -> 6.408e-07 | D98: =$C54*'Charging Calc'!D$16 -> 6.408e-07 | E98: =$C54*'Charging Calc'!E$16 -> 9.612e-07 | F98: kg PM2.5 /km
B99: Oil | C99: =$C55*'Charging Calc'!C$16 -> 1.3896e-05 | D99: =$C55*'Charging Calc'!D$16 -> 1.3896e-05 | E99: =$C55*'Charging Calc'!E$16 -> 2.0844e-05 | F99: kg PM2.5 /km
B100: Hydro | C100: =$C56*'Charging Calc'!C$16 -> 0 | D100: =$C56*'Charging Calc'!D$16 -> 0 | E100: =$C56*'Charging Calc'!E$16 -> 0 | F100: kg PM2.5 /km
B101: Nuclear | C101: =$C57*'Charging Calc'!C$16 -> 0 | D101: =$C57*'Charging Calc'!D$16 -> 0 | E101: =$C57*'Charging Calc'!E$16 -> 0 | F101: kg PM2.5 /km
B102: NOx
B103: Solar | C103: =$C59*'Charging Calc'!C$16 -> 0 | D103: =$C59*'Charging Calc'!D$16 -> 0 | E103: =$C59*'Charging Calc'!E$16 -> 0 | F103: kg NOx/km
B104: Wind | C104: =$C60*'Charging Calc'!C$16 -> 0 | D104: =$C60*'Charging Calc'!D$16 -> 0 | E104: =$C60*'Charging Calc'!E$16 -> 0 | F104: kg NOx/km
B105: Coal | C105: =$C61*'Charging Calc'!C$16 -> 0.00036 | D105: =$C61*'Charging Calc'!D$16 -> 0.00036 | E105: =$C61*'Charging Calc'!E$16 -> 0.00054 | F105: kg NOx/km
B106: Natural Gas | C106: =$C62*'Charging Calc'!C$16 -> 3.6e-05 | D106: =$C62*'Charging Calc'!D$16 -> 3.6e-05 | E106: =$C62*'Charging Calc'!E$16 -> 5.4e-05 | F106: kg NOx/km
B107: Oil | C107: =$C63*'Charging Calc'!C$16 -> 9.36e-05 | D107: =$C63*'Charging Calc'!D$16 -> 9.36e-05 | E107: =$C63*'Charging Calc'!E$16 -> 0.0001404 | F107: kg NOx/km
B108: Hydro | C108: =$C64*'Charging Calc'!C$16 -> 0 | D108: =$C64*'Charging Calc'!D$16 -> 0 | E108: =$C64*'Charging Calc'!E$16 -> 0 | F108: kg NOx/km
B109: Nuclear | C109: =$C65*'Charging Calc'!C$16 -> 0 | D109: =$C65*'Charging Calc'!D$16 -> 0 | E109: =$C65*'Charging Calc'!E$16 -> 0 | F109: kg NOx/km
B110: Electric car CO2 per km | C110: =SUMPRODUCT($C$69:$C$75, C79:C85) -> 0.0781944 | D110: =SUMPRODUCT($D$69:$D$75, D79:D85) -> 0.0421296 | E110: =SUMPRODUCT($E$69:$E$75, E79:E85) -> 0.0210648 | F110: kg CO2 /km
B111: Electric car PM 10 per km | C111: =SUMPRODUCT($C$69:$C$75, C87:C93) -> 2.1366e-05 | D111: =SUMPRODUCT($D$69:$D$75, D87:D93) -> 1.356e-05 | E111: =SUMPRODUCT($E$69:$E$75, E87:E93) -> 6.78e-06 | F111: kg PM10 /km
B112: Electric car PM 2.5 per km | C112: =SUMPRODUCT($C$69:$C$75, C95:C101) -> 1.02276e-06 | D112: =SUMPRODUCT($D$69:$D$75, D95:D101) -> 5.5944e-07 | E112: =SUMPRODUCT($C$69:$C$75, E95:E101) -> 1.53414e-06 | F112: kg PM2.5 /km
B113: Electric car NOx per km | C113: =SUMPRODUCT($C$69:$C$75, C103:C109) -> 0.0001242 | D113: =SUMPRODUCT($D$69:$D$75, D103:D109) -> 6.48e-05 | E113: =SUMPRODUCT($E$69:$E$75, E103:E109) -> 3.24e-05 | F113: kg NOx/km
B115: Emissions Factors - Two-wheelers
B116: CO2
B117: Solar | C117: =$C35*'Charging Calc'!C$17 -> 0 | D117: =$C35*'Charging Calc'!D$17 -> 0 | E117: =$C35*'Charging Calc'!E$17 -> 0 | F117: kg CO2 /km
B118: Wind | C118: =$C36*'Charging Calc'!C$17 -> 0 | D118: =$C36*'Charging Calc'!D$17 -> 0 | E118: =$C36*'Charging Calc'!E$17 -> 0 | F118: kg CO2 /km
B119: Coal | C119: =$C37*'Charging Calc'!C$17 -> 0.09285714286 | D119: =$C37*'Charging Calc'!D$17 -> 0.09642857143 | E119: =$C37*'Charging Calc'!E$17 -> 0.09523809524 | F119: kg CO2 /km
B120: Natural Gas | C120: =$C38*'Charging Calc'!C$17 -> 0.018772 | D120: =$C38*'Charging Calc'!D$17 -> 0.019494 | E120: =$C38*'Charging Calc'!E$17 -> 0.01925333333 | F120: kg CO2 /km
B121: Oil | C121: =$C39*'Charging Calc'!C$17 -> 0.02485507143 | D121: =$C39*'Charging Calc'!D$17 -> 0.02581103571 | E121: =$C39*'Charging Calc'!E$17 -> 0.02549238095 | F121: kg CO2 /km
B122: Hydro | C122: =$C40*'Charging Calc'!C$17 -> 0 | D122: =$C40*'Charging Calc'!D$17 -> 0 | E122: =$C40*'Charging Calc'!E$17 -> 0 | F122: kg CO2 /km
B123: Nuclear | C123: =$C41*'Charging Calc'!C$17 -> 0 | D123: =$C41*'Charging Calc'!D$17 -> 0 | E123: =$C41*'Charging Calc'!E$17 -> 0 | F123: kg CO2 /km
B124: PM10
B125: Solar | C125: =$C43*'Charging Calc'!C$17 -> 0 | D125: =$C43*'Charging Calc'!D$17 -> 0 | E125: =$C43*'Charging Calc'!E$17 -> 0 | F125: kg PM10 /km
B126: Wind | C126: =$C44*'Charging Calc'!C$17 -> 0 | D126: =$C44*'Charging Calc'!D$17 -> 0 | E126: =$C44*'Charging Calc'!E$17 -> 0 | F126: kg PM10 /km
B127: Coal | C127: =$C45*'Charging Calc'!C$17 -> 6.351428571e-06 | D127: =$C45*'Charging Calc'!D$17 -> 6.595714286e-06 | E127: =$C45*'Charging Calc'!E$17 -> 6.514285714e-06 | F127: kg PM10 /km
B128: Natural Gas | C128: =$C46*'Charging Calc'!C$17 -> 1.781e-05 | D128: =$C46*'Charging Calc'!D$17 -> 1.8495e-05 | E128: =$C46*'Charging Calc'!E$17 -> 1.826666667e-05 | F128: kg PM10 /km
B129: Oil | C129: =$C47*'Charging Calc'!C$17 -> 3.342857143e-06 | D129: =$C47*'Charging Calc'!D$17 -> 3.471428571e-06 | E129: =$C47*'Charging Calc'!E$17 -> 3.428571429e-06 | F129: kg PM10 /km
B130: Hydro | C130: =$C48*'Charging Calc'!C$17 -> 0 | D130: =$C48*'Charging Calc'!D$17 -> 0 | E130: =$C48*'Charging Calc'!E$17 -> 0 | F130: kg PM10 /km
B131: Nuclear | C131: =$C49*'Charging Calc'!C$17 -> 0 | D131: =$C49*'Charging Calc'!D$17 -> 0 | E131: =$C49*'Charging Calc'!E$17 -> 0 | F131: kg PM10 /km
B132: PM2.5
B133: Solar | C133: =$C51*'Charging Calc'!C$17 -> 0 | D133: =$C51*'Charging Calc'!D$17 -> 0 | E133: =$C51*'Charging Calc'!E$17 -> 0 | F133: kg PM2.5 /km
B134: Wind | C134: =$C52*'Charging Calc'!C$17 -> 0 | D134: =$C52*'Charging Calc'!D$17 -> 0 | E134: =$C52*'Charging Calc'!E$17 -> 0 | F134: kg PM2.5 /km
B135: Coal | C135: =$C53*'Charging Calc'!C$17 -> 1.136571429e-06 | D135: =$C53*'Charging Calc'!D$17 -> 1.180285714e-06 | E135: =$C53*'Charging Calc'!E$17 -> 1.165714286e-06 | F135: kg PM2.5 /km
B136: Natural Gas | C136: =$C54*'Charging Calc'!C$17 -> 2.975142857e-07 | D136: =$C54*'Charging Calc'!D$17 -> 3.089571429e-07 | E136: =$C54*'Charging Calc'!E$17 -> 3.051428571e-07 | F136: kg PM2.5 /km
B137: Oil | C137: =$C55*'Charging Calc'!C$17 -> 6.451714286e-06 | D137: =$C55*'Charging Calc'!D$17 -> 6.699857143e-06 | E137: =$C55*'Charging Calc'!E$17 -> 6.617142857e-06 | F137: kg PM2.5 /km
B138: Hydro | C138: =$C56*'Charging Calc'!C$17 -> 0 | D138: =$C56*'Charging Calc'!D$17 -> 0 | E138: =$C56*'Charging Calc'!E$17 -> 0 | F138: kg PM2.5 /km
B139: Nuclear | C139: =$C57*'Charging Calc'!C$17 -> 0 | D139: =$C57*'Charging Calc'!D$17 -> 0 | E139: =$C57*'Charging Calc'!E$17 -> 0 | F139: kg PM2.5 /km
B140: NOx
B141: Solar | C141: =$C59*'Charging Calc'!C$17 -> 0 | D141: =$C59*'Charging Calc'!D$17 -> 0 | E141: =$C59*'Charging Calc'!E$17 -> 0 | F141: kg NOx/km
B142: Wind | C142: =$C60*'Charging Calc'!C$17 -> 0 | D142: =$C60*'Charging Calc'!D$17 -> 0 | E142: =$C60*'Charging Calc'!E$17 -> 0 | F142: kg NOx/km
B143: Coal | C143: =$C61*'Charging Calc'!C$17 -> 0.0001671428571 | D143: =$C61*'Charging Calc'!D$17 -> 0.0001735714286 | E143: =$C61*'Charging Calc'!E$17 -> 0.0001714285714 | F143: kg NOx/km
B144: Natural Gas | C144: =$C62*'Charging Calc'!C$17 -> 1.671428571e-05 | D144: =$C62*'Charging Calc'!D$17 -> 1.735714286e-05 | E144: =$C62*'Charging Calc'!E$17 -> 1.714285714e-05 | F144: kg NOx/km
B145: Oil | C145: =$C63*'Charging Calc'!C$17 -> 4.345714286e-05 | D145: =$C63*'Charging Calc'!D$17 -> 4.512857143e-05 | E145: =$C63*'Charging Calc'!E$17 -> 4.457142857e-05 | F145: kg NOx/km
B146: Hydro | C146: =$C64*'Charging Calc'!C$17 -> 0 | D146: =$C64*'Charging Calc'!D$17 -> 0 | E146: =$C64*'Charging Calc'!E$17 -> 0 | F146: kg NOx/km
B147: Nuclear | C147: =$C65*'Charging Calc'!C$17 -> 0 | D147: =$C65*'Charging Calc'!D$17 -> 0 | E147: =$C65*'Charging Calc'!E$17 -> 0 | F147: kg NOx/km
B148: Electric two-wheeler CO2 per km | C148: =SUMPRODUCT($C$69:$C$75, C117:C123) -> 0.03630454286 | D148: =SUMPRODUCT($D$69:$D$75, D117:D123) -> 0.02031248571 | E148: =SUMPRODUCT($E$69:$E$75, E117:E123) -> 0.006687238095 | F148: kg CO2 /km
B149: Electric two-wheeler PM10 per km | C149: =SUMPRODUCT($C$69:$C$75, C125:C131) -> 9.919928571e-06 | D149: =SUMPRODUCT($D$69:$D$75, D125:D131) -> 6.537857143e-06 | E149: =SUMPRODUCT($E$69:$E$75, E125:E131) -> 2.152380952e-06 | F149: kg PM10 /km
B150: Electric two-wheeler PM10 per km | C150: =SUMPRODUCT($C$69:$C$75, C133:C139) -> 4.748528571e-07 | D150: =SUMPRODUCT($D$69:$D$75, D133:D139) -> 2.6973e-07 | E150: =SUMPRODUCT($E$69:$E$75, E133:E139) -> 8.88e-08 | F150: kg PM2.5 /km
B151: Electric two-wheeler NOx per km | C151: =SUMPRODUCT($C$69:$C$75, C141:C147) -> 5.766428571e-05 | D151: =SUMPRODUCT($D$69:$D$75, D141:D147) -> 3.124285714e-05 | E151: =SUMPRODUCT($E$69:$E$75, E141:E147) -> 1.028571429e-05 | F151: kg NOx/km
B153: Emissions Factors - Bus
B154: CO2
B155: Solar | C155: =C35*'Charging Calc'!C$18 -> 0 | D155: =C35*'Charging Calc'!D$18 -> 0 | E155: =C35*'Charging Calc'!C$18 -> 0 | F155: kg CO2 /km
B156: Wind | C156: =C36*'Charging Calc'!C$18 -> 0 | D156: =C36*'Charging Calc'!D$18 -> 0 | E156: =C36*'Charging Calc'!C$18 -> 0 | F156: kg CO2 /km
B157: Coal | C157: =C37*'Charging Calc'!C$18 -> 1.1 | D157: =C37*'Charging Calc'!D$18 -> 0.8 | E157: =C37*'Charging Calc'!C$18 -> 1.1 | F157: kg CO2 /km
B158: Natural Gas | C158: =C38*'Charging Calc'!C$18 -> 0.222376 | D158: =C38*'Charging Calc'!D$18 -> 0.161728 | E158: =C38*'Charging Calc'!C$18 -> 0.222376 | F158: kg CO2 /km
B159: Oil | C159: =C39*'Charging Calc'!C$18 -> 0.294437 | D159: =C39*'Charging Calc'!D$18 -> 0.214136 | E159: =C39*'Charging Calc'!C$18 -> 0.294437 | F159: kg CO2 /km
B160: Hydro | C160: =C40*'Charging Calc'!C$18 -> 0 | D160: =C40*'Charging Calc'!D$18 -> 0 | E160: =C40*'Charging Calc'!C$18 -> 0 | F160: kg CO2 /km
B161: Nuclear | C161: =C41*'Charging Calc'!C$18 -> 0 | D161: =C41*'Charging Calc'!D$18 -> 0 | E161: =C41*'Charging Calc'!C$18 -> 0 | F161: kg CO2 /km
B162: PM10
B163: Solar | C163: =C43*'Charging Calc'!C$18 -> 0 | D163: =C43*'Charging Calc'!D$18 -> 0 | E163: =C43*'Charging Calc'!E$18 -> 0 | F163: kg PM10 /km
B164: Wind | C164: =C44*'Charging Calc'!C$18 -> 0 | D164: =C44*'Charging Calc'!D$18 -> 0 | E164: =C44*'Charging Calc'!E$18 -> 0 | F164: kg PM10 /km
B165: Coal | C165: =C45*'Charging Calc'!C$18 -> 7.524e-05 | D165: =C45*'Charging Calc'!D$18 -> 5.472e-05 | E165: =C45*'Charging Calc'!E$18 -> 5.862857143e-05 | F165: kg PM10 /km
B166: Natural Gas | C166: =C46*'Charging Calc'!C$18 -> 0.00021098 | D166: =C46*'Charging Calc'!D$18 -> 0.00015344 | E166: =C46*'Charging Calc'!E$18 -> 0.0001644 | F166: kg PM10 /km
B167: Oil | C167: =C47*'Charging Calc'!C$18 -> 3.96e-05 | D167: =C47*'Charging Calc'!D$18 -> 2.88e-05 | E167: =C47*'Charging Calc'!E$18 -> 3.085714286e-05 | F167: kg PM10 /km
B168: Hydro | C168: =C48*'Charging Calc'!C$18 -> 0 | D168: =C48*'Charging Calc'!D$18 -> 0 | E168: =C48*'Charging Calc'!E$18 -> 0 | F168: kg PM10 /km
B169: Nuclear | C169: =C49*'Charging Calc'!C$18 -> 0 | D169: =C49*'Charging Calc'!D$18 -> 0 | E169: =C49*'Charging Calc'!E$18 -> 0 | F169: kg PM10 /km
B170: PM2.5
B171: Solar | C171: =C51*'Charging Calc'!C$18 -> 0 | D171: =C51*'Charging Calc'!D$18 -> 0 | E171: =C51*'Charging Calc'!E$18 -> 0 | F171: kg PM2.5 /km
B172: Wind | C172: =C52*'Charging Calc'!C$18 -> 0 | D172: =C52*'Charging Calc'!D$18 -> 0 | E172: =C52*'Charging Calc'!E$18 -> 0 | F172: kg PM2.5 /km
B173: Coal | C173: =C53*'Charging Calc'!C$18 -> 1.3464e-05 | D173: =C53*'Charging Calc'!D$18 -> 9.792e-06 | E173: =C53*'Charging Calc'!E$18 -> 1.049142857e-05 | F173: kg PM2.5 /km
B174: Natural Gas | C174: =C54*'Charging Calc'!C$18 -> 3.5244e-06 | D174: =C54*'Charging Calc'!D$18 -> 2.5632e-06 | E174: =C54*'Charging Calc'!E$18 -> 2.746285714e-06 | F174: kg PM2.5 /km
B175: Oil | C175: =C55*'Charging Calc'!C$18 -> 7.6428e-05 | D175: =C55*'Charging Calc'!D$18 -> 5.5584e-05 | E175: =C55*'Charging Calc'!E$18 -> 5.955428571e-05 | F175: kg PM2.5 /km
B176: Hydro | C176: =C56*'Charging Calc'!C$18 -> 0 | D176: =C56*'Charging Calc'!D$18 -> 0 | E176: =C56*'Charging Calc'!E$18 -> 0 | F176: kg PM2.5 /km
B177: Nuclear | C177: =C57*'Charging Calc'!C$18 -> 0 | D177: =C57*'Charging Calc'!D$18 -> 0 | E177: =C57*'Charging Calc'!E$18 -> 0 | F177: kg PM2.5 /km
B178: NOx
B179: Solar | C179: =C59*'Charging Calc'!C$18 -> 0 | D179: =C59*'Charging Calc'!D$18 -> 0 | E179: =C59*'Charging Calc'!E$18 -> 0 | F179: kg NOx/km
B180: Wind | C180: =C60*'Charging Calc'!C$18 -> 0 | D180: =C60*'Charging Calc'!D$18 -> 0 | E180: =C60*'Charging Calc'!E$18 -> 0 | F180: kg NOx/km
B181: Coal | C181: =C61*'Charging Calc'!C$18 -> 0.00198 | D181: =C61*'Charging Calc'!D$18 -> 0.00144 | E181: =C61*'Charging Calc'!E$18 -> 0.001542857143 | F181: kg NOx/km
B182: Natural Gas | C182: =C62*'Charging Calc'!C$18 -> 0.000198 | D182: =C62*'Charging Calc'!D$18 -> 0.000144 | E182: =C62*'Charging Calc'!E$18 -> 0.0001542857143 | F182: kg NOx/km
B183: Oil | C183: =C63*'Charging Calc'!C$18 -> 0.0005148 | D183: =C63*'Charging Calc'!D$18 -> 0.0003744 | E183: =C63*'Charging Calc'!E$18 -> 0.0004011428571 | F183: kg NOx/km
B184: Hydro | C184: =C64*'Charging Calc'!C$18 -> 0 | D184: =C64*'Charging Calc'!D$18 -> 0 | E184: =C64*'Charging Calc'!E$18 -> 0 | F184: kg NOx/km
B185: Nuclear | C185: =C65*'Charging Calc'!C$18 -> 0 | D185: =C65*'Charging Calc'!D$18 -> 0 | E185: =C65*'Charging Calc'!E$18 -> 0 | F185: kg NOx/km
B186: Electric bus CO2 per km | C186: =SUMPRODUCT($C$69:$C$75, C155:C161) -> 0.4300692 | D186: =SUMPRODUCT($D$69:$D$75, D155:D161) -> 0.1685184 | E186: =SUMPRODUCT($E$69:$E$75, E155:E161) -> 0.0772376 | F186: kg CO2 /km
B187: Electric bus PM10 per km | C187: =SUMPRODUCT($C$69:$C$75, C163:C169) -> 0.000117513 | D187: =SUMPRODUCT($D$69:$D$75, D163:D169) -> 5.424e-05 | E187: =SUMPRODUCT($E$69:$E$75, E163:E169) -> 1.937142857e-05 | F187: kg PM10 /km
B188: Electric bus PM2.5 per km | C188: =SUMPRODUCT($C$69:$C$75, C171:C177) -> 5.62518e-06 | D188: =SUMPRODUCT($D$69:$D$75, D171:D177) -> 2.23776e-06 | E188: =SUMPRODUCT($E$69:$E$75, E171:E177) -> 7.992e-07 | F188: kg PM2.5 /km
B189: Electric bus NOx per km | C189: =SUMPRODUCT($C$69:$C$75, C179:C185) -> 0.0006831 | D189: =SUMPRODUCT($D$69:$D$75, D179:D185) -> 0.0002592 | E189: =SUMPRODUCT($E$69:$E$75, E179:E185) -> 9.257142857e-05 | F189: kg NOx/km

Sheet Benefit Calc 1-Emissions (hidden)
A1: SOCIAL BENEFITS ANNUALIZATION
B4: KM by private cars per day | F4: CO2/ KM by private car | Q4: PM10/ KM by private car | AC4: PM2.5/ KM by private car | AO4: NOX/ KM by private car | AZ4: Private Car benefits | BB4: Total Benefits
A5: YEAR | B5: ICE Baseline (2020) | C5: ICE Projected | D5: EV Projected | F5: ICE | G5: EV | I5: ICE Baseline (2020) | J5: ICE Projected | K5: EV Projected | L5: Reduction | M5: Annual CO2 kg reduction | N5: USD 2020 | Q5: ICE | R5: EV | T5: Baseline ICE | U5: Scenario ICE | V5: Scenario EV | W5: Reduction | X5: Annual PM10 kg reduction | Y5: USD 2020 | AC5: ICE | AD5: EV | AF5: Baseline ICE | AG5: Scenario ICE | AH5: Scenario EV | AI5: Reduction | AJ5: Annual PM2.5 kg reduction | AK5: USD 2020 | AO5: ICE | AP5: EV | AR5: Baseline ICE | AS5: Scenario ICE | AT5: Scenario EV | AU5: Reduction | AV5: Annual NOx kg reduction | AW5: USD 2020 | AZ5: USD 2020 | BB5: YEAR | BC5: USD million 2020 | BE5: YEAR | BF5: NOx Reductions Annual | BH5: YEAR | BI5: CO2 Reductions Annual | BK5: YEAR | BL5: PM10 Reductions Annual | BN5: YEAR | BO5: PM2.5 Reductions Annual
A6: ='Cost Calc 1-Vehicle Uptake'!H4 -> 2021 | B6: =(C6+D6)-((C6+D6)*'Mobility Data'!$E$24) -> 186602938.8 | C6: ='Cost Calc 3-Vehicle Maintenance'!C43 -> 186602938.8 | D6: ='Cost Calc 3-Vehicle Maintenance'!C5 -> 1293750 | F6: ='Emission Calc'!$C$7 -> 0.2289137 | G6: ='Emission Calc'!C20 -> 0.0781944 | I6: =B6*F6 -> 42715969.14 | J6: =C6*F6 -> 42715969.14 | K6: =G6*D6 -> 101164.005 | L6: =I6-(K6+J6) -> -101164.005 | M6: =L6*365 -> -36924861.83 | N6: =M6*'Benefit Default'!$D$13 -> -14400696.11 | O6: =N6 -> -14400696.11 | Q6: ='Emission Calc'!C10 -> 2.734e-06 | R6: ='Emission Calc'!C23 -> 2.1366e-05 | T6: =B6*Q6 -> 510.1724345 | U6: =C6*Q6 -> 510.1724345 | V6: =D6*R6 -> 27.6422625 | W6: =T6-(V6+U6) -> -27.6422625 | X6: =W6*365 -> -10089.42581 | Y6: =X6*'Benefit Default'!$D$14 -> -5758741.571 | Z6: =Y6 -> -5758741.571 | AC6: ='Emission Calc'!C13 -> 6.598294e-06 | AD6: ='Emission Calc'!C26 -> 1.02276e-06 | AF6: =B6*AC6 -> 1231.261051 | AG6: =C6*AC6 -> 1231.261051 | AH6: =D6*AD6 -> 1.32319575 | AI6: =AF6-(AH6+AG6) -> -1.32319575 | AJ6: =AI6*365 -> -482.9664487 | AK6: =AJ6*'Benefit Default'!$D$15 -> -158871.8133 | AL6: =AK6 -> -158871.8133 | AO6: ='Emission Calc'!C16 -> 0.0004306 | AP6: ='Emission Calc'!C29 -> 0.0001242 | AR6: =B6*AO6 -> 80351.22543 | AS6: =AO6*C6 -> 80351.22543 | AT6: =AP6*D6 -> 160.68375 | AU6: =AR6-(AT6+AS6) -> -160.68375 | AV6: =AU6*365 -> -58649.56875 | AW6: =AV6*'Benefit Default'!$D$16 -> -757752.4282 | AX6: =AW6 -> -757752.4282 | AZ6: =N6+Y6+AW6 -> -20917190.11 | BB6: ='Cost Calc 1-Vehicle Uptake'!H4 -> 2021 | BC6: =(AZ6+AZ43+AZ80+AZ117)/1000000 -> -24.88670993 | BE6: 2020 | BF6: =(AV6+AV43+AV80+AV117) -> -69779.6787 | BH6: 2020 | BI6: =(M6+M43+M80+M117) -> -43932206.99 | BK6: 2020 | BL6: =(X6+X43+X80+X117) -> -12004.12734 | BN6: 2020 | BO6: =AJ6+AJ43+AJ80+AJ117 -> -522.1997262
A7: ='Cost Calc 1-Vehicle Uptake'!H5 -> 2022 | B7: =(C7+D7)-((C7+D7)*'Mobility Data'!$E$24) -> 186399505.4 | C7: ='Cost Calc 3-Vehicle Maintenance'!C44 -> 184370443.8 | D7: ='Cost Calc 3-Vehicle Maintenance'!C6 -> 3321401.25 | F7: ='Emission Calc'!$D$7 -> 0.2289137 | G7: ='Emission Calc'!$D$20 -> 0.0421296 | I7: 42669400.47 | J7: 42204920.45 | K7: 139929.3061 | L7: =I7-(K7+J7) -> 324550.7124 | M7: =L7*365 -> 118461010 | N7: =M7*'Benefit Default'!$D$13 -> 46199793.91 | Q7: ='Emission Calc'!$D$10 -> 2.734e-06 | R7: ='Emission Calc'!$D$23 -> 1.356e-05 | T7: =B7*Q7 -> 509.6162479 | U7: 504.0687932 | V7: 45.03820095 | W7: =T7-(V7+U7) -> -39.4907463 | X7: =W7*365 -> -14414.1224 | Y7: =X7*'Benefit Default'!$D$14 -> -8227148.641 | AC7: ='Emission Calc'!$D$13 -> 6.598294e-06 | AD7: ='Emission Calc'!$D$26 -> 5.5944e-07 | AF7: =B7*AC7 -> 1229.918738 | AG7: =C7*AC7 -> 1216.530393 | AH7: =D7*AD7 -> 1.858124715 | AI7: =AF7-(AH7+AG7) -> 11.53022085 | AJ7: =AI7*365 -> 4208.530609 | AK7: =AJ7*'Benefit Default'!$D$15 -> 1384396.144 | AO7: ='Emission Calc'!$D$16 -> 0.0004306 | AP7: ='Emission Calc'!$D$29 -> 6.48e-05 | AR7: 80263.62704 | AS7: 79389.91308 | AT7: 215.226801 | AU7: =AR7-(AT7+AS7) -> 658.4871618 | AV7: =AU7*365 -> 240347.8141 | AW7: =AV7*'Benefit Default'!$D$16 -> 3105293.758 | AZ7: 41077939.03 | BB7: ='Cost Calc 1-Vehicle Uptake'!H5 -> 2022 | BC7: =(AZ7+AZ44+AZ81+AZ118)/1000000 -> 51.94230955 | BE7: 2021 | BF7: =(AV7+AV44+AV81+AV118) -> 273831.4057 | BH7: 2021 | BI7: 124794153.3 | BK7: 2021 | BL7: -464.8316991 | BN7: 2021 | BO7: =AJ7+AJ44+AJ81+AJ118 -> 12588.40756
A8: ='Cost Calc 1-Vehicle Uptake'!H6 -> 2023 | B8: =(C8+D8)-((C8+D8)*'Mobility Data'!$E$24) -> 186094341.2 | C8: ='Cost Calc 3-Vehicle Maintenance'!C45 -> 181021701.2 | D8: ='Cost Calc 3-Vehicle Maintenance'!C7 -> 6362863.75 | F8: ='Emission Calc'!$D$7 -> 0.2289137 | G8: ='Emission Calc'!$D$20 -> 0.0421296 | I8: 42599544.19 | J8: 41438347.41 | K8: 268064.9046 | L8: =I8-(K8+J8) -> 893131.8736 | M8: 325993133.9 | N8: =M8*'Benefit Default'!$D$13 -> 127137322.2 | Q8: ='Emission Calc'!$D$10 -> 2.734e-06 | R8: ='Emission Calc'!$D$23 -> 1.356e-05 | T8: =B8*Q8 -> 508.7819288 | U8: 494.9133312 | V8: 86.28043245 | W8: -72.41183484 | X8: -26430.31972 | Y8: =X8*'Benefit Default'!$D$14 -> -15085633.59 | AC8: ='Emission Calc'!$D$13 -> 6.598294e-06 | AD8: ='Emission Calc'!$D$26 -> 5.5944e-07 | AF8: 1227.905175 | AG8: =C8*AC8 -> 1194.434405 | AH8: =D8*AD8 -> 3.559640496 | AI8: 29.91112921 | AJ8: 10917.56216 | AK8: =AJ8*'Benefit Default'!$D$15 -> 3591332.073 | AO8: ='Emission Calc'!$D$16 -> 0.0004306 | AP8: ='Emission Calc'!$D$29 -> 6.48e-05 | AR8: 80132.22332 | AS8: 77947.94456 | AT8: 412.313571 | AU8: 1771.965189 | AV8: 646767.2939 | AW8: =AV8*'Benefit Default'!$D$16 -> 8356233.437 | AZ8: 120407922.1 | BB8: ='Cost Calc 1-Vehicle Uptake'!H6 -> 2023 | BC8: =(AZ8+AZ45+AZ82+AZ119)/1000000 -> 150.8640867 | BE8: 2022 | BF8: 739379.5132 | BH8: 2022 | BI8: 347364658.7 | BK8: 2022 | BL8: 10230.19162 | BN8: 2022 | BO8: 31942.5772
A9: ='Cost Calc 1-Vehicle Uptake'!H7 -> 2024 | B9: =(C9+D9)-((C9+D9)*'Mobility Data'!$E$24) -> 185687474.6 | C9: ='Cost Calc 3-Vehicle Maintenance'!C46 -> 176556711.2 | D9: ='Cost Calc 3-Vehicle Maintenance'!C8 -> 10418166.25 | F9: ='Emission Calc'!$D$7 -> 0.2289137 | G9: ='Emission Calc'!$D$20 -> 0.0421296 | I9: 42506406.85 | J9: 40416250.03 | K9: 438913.1768 | L9: =I9-(K9+J9) -> 1651243.638 | M9: =L9*365 -> 602703928 | N9: =M9*'Benefit Default'!$D$13 -> 235054531.9 | Q9: ='Emission Calc'!$D$10 -> 2.734e-06 | R9: ='Emission Calc'!$D$23 -> 1.356e-05 | T9: =B9*Q9 -> 507.6695555 | U9: 482.7060486 | V9: 141.2703344 | W9: -116.3068274 | X9: -42451.99201 | Y9: =X9*'Benefit Default'!$D$14 -> -24230323.48 | AC9: ='Emission Calc'!$D$13 -> 6.598294e-06 | AD9: ='Emission Calc'!$D$26 -> 5.5944e-07 | AF9: 1225.220549 | AG9: 1164.973089 | AH9: 5.828338927 | AI9: 54.4191219 | AJ9: 19862.97949 | AK9: =AJ9*'Benefit Default'!$D$15 -> 6533927.104 | AO9: ='Emission Calc'!$D$16 -> 0.0004306 | AP9: ='Emission Calc'!$D$29 -> 6.48e-05 | AR9: 79957.02655 | AS9: 76025.31986 | AT9: 675.097173 | AU9: 3256.609512 | AV9: 1188662.472 | AW9: =AV9*'Benefit Default'!$D$16 -> 15357519.14 | AZ9: 226181727.6 | BB9: ='Cost Calc 1-Vehicle Uptake'!H7 -> 2024 | BC9: 282.7439516 | BE9: 2023 | BF9: 1359948.491 | BH9: 2023 | BI9: 644103191.2 | BK9: 2023 | BL9: 24481.26658 | BN9: 2023 | BO9: 57747.23824
A10: ='Cost Calc 1-Vehicle Uptake'!H8 -> 2025 | B10: =(C10+D10)-((C10+D10)*'Mobility Data'!$E$24) -> 185178877 | C10: ='Cost Calc 3-Vehicle Maintenance'!C47 -> 170975473.8 | D10: ='Cost Calc 3-Vehicle Maintenance'!C9 -> 15487280 | F10: ='Emission Calc'!$D$7 -> 0.2289137 | G10: ='Emission Calc'!$D$20 -> 0.0421296 | I10: 42389981.9 | J10: 39138628.31 | K10: 652472.9115 | L10: =I10-(K10+J10) -> 2598880.682 | M10: =L10*365 -> 948591448.9 | N10: =M10*'Benefit Default'!$D$13 -> 369950665.1 | Q10: ='Emission Calc'!$D$10 -> 2.734e-06 | R10: ='Emission Calc'!$D$23 -> 1.356e-05 | T10: 506.2790498 | U10: 467.4469452 | V10: 210.0075168 | W10: -171.1754123 | X10: -62479.02548 | Y10: =X10*'Benefit Default'!$D$14 -> -35661153.37 | AC10: ='Emission Calc'!$D$13 -> 6.598294e-06 | AD10: ='Emission Calc'!$D$26 -> 5.5944e-07 | AF10: 1221.864673 | AG10: 1128.146443 | AH10: 8.664203923 | AI10: 85.05402661 | AJ10: 31044.71971 | AK10: =AJ10*'Benefit Default'!$D$15 -> 10212160.55 | AO10: ='Emission Calc'!$D$16 -> 0.0004306 | AP10: ='Emission Calc'!$D$29 -> 6.48e-05 | AR10: 79738.02444 | AS10: 73622.039 | AT10: 1003.575744 | AU10: 5112.409701 | AV10: 1866029.541 | AW10: =AV10*'Benefit Default'!$D$16 -> 24109101.67 | AZ10: 358398613.4 | BB10: ='Cost Calc 1-Vehicle Uptake'!H8 -> 2025 | BC10: 447.6308543 | BE10: 2024 | BF10: 2136037.021 | BH10: 2024 | BI10: 1015078708 | BK10: 2024 | BL10: 42315.74889 | BN10: 2024 | BO10: 90005.07064
A11: ='Cost Calc 1-Vehicle Uptake'!H9 -> 2026 | B11: =(C11+D11)-((C11+D11)*'Mobility Data'!$E$24) -> 184568577.1 | C11: ='Cost Calc 3-Vehicle Maintenance'!C48 -> 164277988.8 | D11: ='Cost Calc 3-Vehicle Maintenance'!C10 -> 21570233.75 | F11: ='Emission Calc'!$D$7 -> 0.2289137 | G11: ='Emission Calc'!$D$20 -> 0.0421296 | I11: 42250275.88 | J11: 37605482.23 | K11: 908745.3198 | L11: =I11-(K11+J11) -> 3736048.329 | M11: =L11*365 -> 1363657640 | N11: =M11*'Benefit Default'!$D$13 -> 531826479.7 | Q11: ='Emission Calc'!$D$10 -> 2.734e-06 | R11: ='Emission Calc'!$D$23 -> 1.356e-05 | T11: 504.6104897 | U11: 449.1360212 | V11: 292.4923697 | W11: -237.0179012 | X11: -86511.53393 | Y11: =X11*'Benefit Default'!$D$14 -> -49378188.22 | AC11: ='Emission Calc'!$D$13 -> 6.598294e-06 | AD11: ='Emission Calc'!$D$26 -> 5.5944e-07 | AF11: 1217.837735 | AG11: 1083.954468 | AH11: 12.06725157 | AI11: 121.8160156 | AJ11: 44462.84571 | AK11: =AJ11*'Benefit Default'!$D$15 -> 14626053.1 | AO11: ='Emission Calc'!$D$16 -> 0.0004306 | AP11: ='Emission Calc'!$D$29 -> 6.48e-05 | AR11: 79475.22929 | AS11: 70738.10196 | AT11: 1397.751147 | AU11: =AR11-(AT11+AS11) -> 7339.376186 | AV11: 2678872.308 | AW11: =AV11*'Benefit Default'!$D$16 -> 34611030.22 | AZ11: 517059321.7 | BB11: ='Cost Calc 1-Vehicle Uptake'!H9 -> 2026 | BC11: 645.4750907 | BE11: 2025 | BF11: 3067136.997 | BH11: 2025 | BI11: 1460221644 | BK11: 2025 | BL11: 63705.59001 | BN11: 2025 | BO11: 128713.4209
A12: ='Cost Calc 1-Vehicle Uptake'!H10 -> 2027 | B12: =(C12+D12)-((C12+D12)*'Mobility Data'!$E$24) -> 183856546.2 | C12: ='Cost Calc 3-Vehicle Maintenance'!C49 -> 156464256.2 | D12: ='Cost Calc 3-Vehicle Maintenance'!C11 -> 28666998.75 | F12: ='Emission Calc'!$D$7 -> 0.2289137 | G12: ='Emission Calc'!$D$20 -> 0.0421296 | I12: 42087282.26 | J12: 35816811.82 | K12: 1207729.191 | L12: 5062741.255 | M12: =L12*365 -> 1847900558 | N12: =M12*'Benefit Default'!$D$13 -> 720681217.7 | Q12: ='Emission Calc'!$D$10 -> 2.734e-06 | R12: ='Emission Calc'!$D$23 -> 1.356e-05 | T12: 502.6637973 | U12: 427.7732766 | V12: 388.724503 | W12: -313.8339823 | X12: -114549.4035 | Y12: =X12*'Benefit Default'!$D$14 -> -65381363.06 | AC12: ='Emission Calc'!$D$13 -> 6.598294e-06 | AD12: ='Emission Calc'!$D$26 -> 5.5944e-07 | AF12: 1213.139546 | AG12: 1032.397163 | AH12: 16.03746578 | AI12: 164.7049167 | AJ12: 60117.29459 | AK12: =AJ12*'Benefit Default'!$D$15 -> 19775584.06 | AO12: ='Emission Calc'!$D$16 -> 0.0004306 | AP12: ='Emission Calc'!$D$29 -> 6.48e-05 | AR12: 79168.6288 | AS12: 67373.50874 | AT12: 1857.621519 | AU12: 9937.498537 | AV12: 3627186.966 | AW12: =AV12*'Benefit Default'!$D$16 -> 46863255.6 | AZ12: 702163110.2 | BB12: ='Cost Calc 1-Vehicle Uptake'!H10 -> 2027 | BC12: 876.2766534 | BE12: 2026 | BF12: 4153253.951 | BH12: 2026 | BI12: 1979530618 | BK12: 2026 | BL12: 88651.59604 | BN12: 2026 | BO12: 173872.1983
A13: ='Cost Calc 1-Vehicle Uptake'!H11 -> 2028 | B13: =(C13+D13)-((C13+D13)*'Mobility Data'!$E$24) -> 183042813 | C13: ='Cost Calc 3-Vehicle Maintenance'!C50 -> 147534276.2 | D13: ='Cost Calc 3-Vehicle Maintenance'!C12 -> 36777603.75 | F13: ='Emission Calc'!$D$7 -> 0.2289137 | G13: ='Emission Calc'!$D$20 -> 0.0421296 | I13: 41901007.57 | J13: 33772617.05 | K13: 1549425.735 | L13: 6578964.785 | M13: =L13*365 -> 2401322146 | N13: =M13*'Benefit Default'!$D$13 -> 936515637.1 | Q13: ='Emission Calc'!$D$10 -> 2.734e-06 | R13: ='Emission Calc'!$D$23 -> 1.356e-05 | T13: 500.4390506 | U13: 403.3587113 | V13: 498.7043069 | W13: -401.6239675 | X13: -146592.7481 | Y13: =X13*'Benefit Default'!$D$14 -> -83670742.85 | AC13: ='Emission Calc'!$D$13 -> 6.598294e-06 | AD13: ='Emission Calc'!$D$26 -> 5.5944e-07 | AF13: 1207.770294 | AG13: 973.4745298 | AH13: 20.57486264 | AI13: 213.7209021 | AJ13: 78008.12926 | AK13: =AJ13*'Benefit Default'!$D$15 -> 25660774.12 | AO13: ='Emission Calc'!$D$16 -> 0.0004306 | AP13: ='Emission Calc'!$D$29 -> 6.48e-05 | AR13: 78818.23526 | AS13: 63528.25935 | AT13: 2383.188723 | AU13: 12906.78718 | AV13: 4710977.322 | AW13: =AV13*'Benefit Default'!$D$16 -> 60865827 | AZ13: 913710721.3 | BB13: ='Cost Calc 1-Vehicle Uptake'!H11 -> 2028 | BC13: 1140.084713 | BE13: 2027 | BF13: 5394882.381 | BH13: 2027 | BI13: 2573076663 | BK13: 2027 | BL13: 117180.1856 | BN13: 2027 | BO13: 225484.1444
A14: ='Cost Calc 1-Vehicle Uptake'!H12 -> 2029 | B14: =(C14+D14)-((C14+D14)*'Mobility Data'!$E$24) -> 182127348.8 | C14: ='Cost Calc 3-Vehicle Maintenance'!C51 -> 137488048.8 | D14: ='Cost Calc 3-Vehicle Maintenance'!C13 -> 45902020 | F14: ='Emission Calc'!$D$7 -> 0.2289137 | G14: ='Emission Calc'!$D$20 -> 0.0421296 | I14: 41691445.28 | J14: 31472897.95 | K14: 1933833.742 | L14: 8284713.593 | M14: 3023920462 | N14: =M14*'Benefit Default'!$D$13 -> 1179328980 | Q14: ='Emission Calc'!$D$10 -> 2.734e-06 | R14: ='Emission Calc'!$D$23 -> 1.356e-05 | T14: 497.9361716 | U14: 375.8923253 | V14: 622.4313912 | W14: -500.3875449 | X14: -182641.4539 | Y14: =X14*'Benefit Default'!$D$14 -> -104246262.6 | AC14: ='Emission Calc'!$D$13 -> 6.598294e-06 | AD14: ='Emission Calc'!$D$26 -> 5.5944e-07 | AF14: 1201.729793 | AG14: 907.1865671 | AH14: 25.67942607 | AI14: 268.8637995 | AJ14: 98135.28681 | AK14: =AJ14*'Benefit Default'!$D$15 -> 32281602.6 | AO14: ='Emission Calc'!$D$16 -> 0.0004306 | AP14: ='Emission Calc'!$D$29 -> 6.48e-05 | AR14: 78424.03638 | AS14: 59202.35379 | AT14: 2974.450896 | AU14: 16247.2317 | AV14: 5930239.569 | AW14: =AV14*'Benefit Default'!$D$16 -> 76618695.23 | AZ14: 1151701413 | BB14: ='Cost Calc 1-Vehicle Uptake'!H12 -> 2029 | BC14: 1436.850648 | BE14: 2028 | BF14: 6791530.333 | BH14: 2028 | BI14: 3240790040 | BK14: 2028 | BL14: 149264.9578 | BN14: 2028 | BO14: 283546.611
A15: ='Cost Calc 1-Vehicle Uptake'!H13 -> 2030 | B15: =(C15+D15)-((C15+D15)*'Mobility Data'!$E$24) -> 181110182.2 | C15: ='Cost Calc 3-Vehicle Maintenance'!C52 -> 126325573.7 | D15: ='Cost Calc 3-Vehicle Maintenance'!C14 -> 56040276.25 | F15: ='Emission Calc'!$D$7 -> 0.2289137 | G15: ='Emission Calc'!$D$20 -> 0.0421296 | I15: 41458601.92 | J15: 28917654.49 | K15: =G15*D15 -> 2360954.422 | L15: 10179993.01 | M15: 3715697447 | N15: =M15*'Benefit Default'!$D$13 -> 1449122004 | Q15: ='Emission Calc'!$D$10 -> 2.734e-06 | R15: ='Emission Calc'!$D$23 -> 1.356e-05 | T15: 495.1552382 | U15: 345.3741186 | V15: 759.9061459 | W15: -610.1250264 | X15: -222695.6346 | Y15: =X15*'Benefit Default'!$D$14 -> -127107987.4 | AC15: ='Emission Calc'!$D$13 -> 6.598294e-06 | AD15: ='Emission Calc'!$D$26 -> 5.5944e-07 | AF15: 1195.018229 | AG15: 833.5332753 | AH15: 31.35117215 | AI15: 330.1337812 | AJ15: 120498.8301 | AK15: =AJ15*'Benefit Default'!$D$15 -> 39638090.17 | AO15: ='Emission Calc'!$D$16 -> 0.0004306 | AP15: ='Emission Calc'!$D$29 -> 6.48e-05 | AR15: 77986.04446 | AS15: 54395.79206 | AT15: 3631.409901 | AU15: 19958.84251 | AV15: 7284977.514 | AW15: =AV15*'Benefit Default'!$D$16 -> 94121909.49 | AZ15: 1416135926 | BB15: ='Cost Calc 1-Vehicle Uptake'!H13 -> 2030 | BC15: 1766.623893 | BE15: 2029 | BF15: 8343699.231 | BH15: 2029 | BI15: 3982741115 | BK15: 2029 | BL15: 184933.098 | BN15: 2029 | BO15: 348062.2718
A16: ='Cost Calc 1-Vehicle Uptake'!H14 -> 2031 | B16: =(C16+D16)-((C16+D16)*'Mobility Data'!$E$24) -> 179991313.3 | C16: ='Cost Calc 3-Vehicle Maintenance'!C53 -> 114046851.2 | D16: ='Cost Calc 3-Vehicle Maintenance'!C15 -> 67192372.5 | F16: ='Emission Calc'!$D$7 -> 0.2289137 | G16: ='Emission Calc'!$D$20 -> 0.0421296 | I16: 41202477.49 | J16: 26106886.69 | K16: 2830787.776 | L16: =I16-(K16+J16) -> 12264803.02 | M16: 4476653103 | N16: =M16*'Benefit Default'!$D$13 -> 1745894710 | Q16: ='Emission Calc'!$D$10 -> 2.734e-06 | R16: ='Emission Calc'!$D$23 -> 1.356e-05 | T16: 492.0962505 | U16: 311.8040913 | V16: 911.1285711 | W16: -730.8364119 | X16: -266755.2904 | Y16: =X16*'Benefit Default'!$D$14 -> -152255917.1 | AC16: ='Emission Calc'!$D$13 -> 6.598294e-06 | AD16: ='Emission Calc'!$D$26 -> 5.5944e-07 | AF16: 1187.635602 | AG16: 752.5146543 | AH16: 37.59010087 | AI16: 397.5308473 | AJ16: 145098.7592 | AK16: =AJ16*'Benefit Default'!$D$15 -> 47730236.85 | AO16: ='Emission Calc'!$D$16 -> 0.0004306 | AP16: ='Emission Calc'!$D$29 -> 6.48e-05 | AR16: 77504.2595 | AS16: 49108.57415 | AT16: 4354.065738 | AU16: 24041.61961 | AV16: 8775191.158 | AW16: =AV16*'Benefit Default'!$D$16 -> 113375469.8 | AZ16: 1707014263 | BB16: ='Cost Calc 1-Vehicle Uptake'!H14 -> 2031 | BC16: 2129.354412 | BE16: 2030 | BF16: 10050879.53 | BH16: 2030 | BI16: 4798859590 | BK16: 2030 | BL16: 224156.5054 | BN16: 2030 | BO16: 419028.3986
A17: ='Cost Calc 1-Vehicle Uptake'!H15 -> 2032 | B17: =(C17+D17)-((C17+D17)*'Mobility Data'!$E$24) -> 178770713.4 | C17: ='Cost Calc 3-Vehicle Maintenance'!C54 -> 100651881.2 | D17: ='Cost Calc 3-Vehicle Maintenance'!C16 -> 79358280 | F17: ='Emission Calc'!$D$7 -> 0.2289137 | G17: ='Emission Calc'!$D$20 -> 0.0421296 | I17: 40923065.46 | J17: 23040594.55 | K17: 3343332.593 | L17: 14539138.31 | M17: 5306785485 | N17: =M17*'Benefit Default'!$D$13 -> 2069646339 | Q17: ='Emission Calc'!$D$10 -> 2.734e-06 | R17: ='Emission Calc'!$D$23 -> 1.356e-05 | T17: 488.7591304 | U17: 275.1822433 | V17: 1076.098277 | W17: -862.5213897 | X17: -314820.3072 | Y17: =X17*'Benefit Default'!$D$14 -> -179689986.8 | AC17: ='Emission Calc'!$D$13 -> 6.598294e-06 | AD17: ='Emission Calc'!$D$26 -> 5.5944e-07 | AF17: 1179.581726 | AG17: 664.1307041 | AH17: 44.39619616 | AI17: 471.0548253 | AJ17: 171935.0112 | AK17: =AJ17*'Benefit Default'!$D$15 -> 56558021.95 | AO17: ='Emission Calc'!$D$16 -> 0.0004306 | AP17: ='Emission Calc'!$D$29 -> 6.48e-05 | AR17: 76978.66919 | AS17: 43340.70007 | AT17: 5142.416544 | AU17: 28495.55258 | AV17: 10400876.69 | AW17: =AV17*'Benefit Default'!$D$16 -> 134379326.9 | AZ17: 2024335679 | BB17: ='Cost Calc 1-Vehicle Uptake'!H15 -> 2032 | BC17: 2525.092029 | BE17: 2031 | BF17: 11913579.43 | BH17: 2031 | BI17: 5689215068 | BK17: 2031 | BL17: 266963.4118 | BN17: 2031 | BO17: 496447.7486
A18: ='Cost Calc 1-Vehicle Uptake'!H16 -> 2033 | B18: =(C18+D18)-((C18+D18)*'Mobility Data'!$E$24) -> 177448411.2 | C18: ='Cost Calc 3-Vehicle Maintenance'!C55 -> 86140663.75 | D18: ='Cost Calc 3-Vehicle Maintenance'!C17 -> 92538027.5 | F18: ='Emission Calc'!$D$7 -> 0.2289137 | G18: ='Emission Calc'!$D$20 -> 0.0421296 | I18: 40620372.36 | J18: 19718778.06 | K18: 3898590.083 | L18: 17003004.21 | M18: 6206096538 | N18: =M18*'Benefit Default'!$D$13 -> 2420377650 | Q18: ='Emission Calc'!$D$10 -> 2.734e-06 | R18: ='Emission Calc'!$D$23 -> 1.356e-05 | T18: 485.1439561 | U18: 235.5085747 | V18: 1254.815653 | W18: -1005.180272 | X18: -366890.7991 | Y18: =X18*'Benefit Default'!$D$14 -> -209410261.4 | AC18: ='Emission Calc'!$D$13 -> 6.598294e-06 | AD18: ='Emission Calc'!$D$26 -> 5.5944e-07 | AF18: 1170.856787 | AG18: 568.3814248 | AH18: 51.7694741 | AI18: 550.7058877 | AJ18: 201007.649 | AK18: =AJ18*'Benefit Default'!$D$15 -> 66121466.15 | AO18: ='Emission Calc'!$D$16 -> 0.0004306 | AP18: ='Emission Calc'!$D$29 -> 6.48e-05 | AR18: 76409.28584 | AS18: 37092.16981 | AT18: 5996.464182 | AU18: 33320.65185 | AV18: 12162037.92 | AW18: =AV18*'Benefit Default'!$D$16 -> 157133530 | AZ18: 2368100918 | BB18: ='Cost Calc 1-Vehicle Uptake'!H16 -> 2033 | BC18: 2953.788203 | BE18: 2032 | BF18: 13931302.61 | BH18: 2032 | BI18: 6653739804 | BK18: 2032 | BL18: 313326.2953 | BN18: 2032 | BO18: 580317.63
A19: ='Cost Calc 1-Vehicle Uptake'!H17 -> 2034 | B19: =(C19+D19)-((C19+D19)*'Mobility Data'!$E$24) -> 176024378 | C19: ='Cost Calc 3-Vehicle Maintenance'!C56 -> 70513198.75 | D19: ='Cost Calc 3-Vehicle Maintenance'!C18 -> 106731586.2 | F19: ='Emission Calc'!$D$7 -> 0.2289137 | G19: ='Emission Calc'!$D$20 -> 0.0421296 | I19: 40294391.65 | J19: 16141437.22 | K19: 4496559.036 | L19: 19656395.39 | M19: 7174584317 | N19: =M19*'Benefit Default'!$D$13 -> 2798087884 | Q19: ='Emission Calc'!$D$10 -> 2.734e-06 | R19: ='Emission Calc'!$D$23 -> 1.356e-05 | T19: 481.2506494 | U19: 192.7830854 | V19: 1447.28031 | W19: -1158.812746 | X19: -422966.6521 | Y19: =X19*'Benefit Default'!$D$14 -> -241416676 | AC19: ='Emission Calc'!$D$13 -> 6.598294e-06 | AD19: ='Emission Calc'!$D$26 -> 5.5944e-07 | AF19: 1161.460597 | AG19: 465.2668162 | AH19: 59.70991861 | AI19: 636.4838621 | AJ19: 232316.6097 | AK19: =AJ19*'Benefit Default'!$D$15 -> 76420548.75 | AO19: ='Emission Calc'!$D$16 -> 0.0004306 | AP19: ='Emission Calc'!$D$29 -> 6.48e-05 | AR19: 75796.09715 | AS19: 30362.98338 | AT19: 6916.206789 | AU19: 38516.90698 | AV19: 14058671.05 | AW19: =AV19*'Benefit Default'!$D$16 -> 181638029.9 | AZ19: 2738309238 | BB19: ='Cost Calc 1-Vehicle Uptake'!H17 -> 2034 | BC19: 3415.44048 | BE19: 2033 | BF19: 16104030.93 | BH19: 2033 | BI19: 7692428739 | BK19: 2033 | BL19: 363244.7254 | BN19: 2033 | BO19: 670637.925
A20: ='Cost Calc 1-Vehicle Uptake'!H18 -> 2035 | B20: =(C20+D20)-((C20+D20)*'Mobility Data'!$E$24) -> 172769942.6 | C20: ='Cost Calc 3-Vehicle Maintenance'!C57 -> 34793557.22 | D20: ='Cost Calc 3-Vehicle Maintenance'!C19 -> 139174228.9 | F20: ='Emission Calc'!$D$7 -> 0.2289137 | G20: ='Emission Calc'!$D$20 -> 0.0421296 | I20: 39549406.82 | J20: 7964721.92 | K20: 5863354.594 | L20: 25721330.31 | M20: 9388285561 | N20: =M20*'Benefit Default'!$D$13 -> 3661431369 | Q20: ='Emission Calc'!$D$10 -> 2.734e-06 | R20: ='Emission Calc'!$D$23 -> 1.356e-05 | T20: 472.3530232 | U20: 95.12558545 | V20: 1887.202544 | W20: -1509.975106 | X20: -551140.9137 | Y20: =X20*'Benefit Default'!$D$14 -> -314574699.3 | AC20: ='Emission Calc'!$D$13 -> 6.598294e-06 | AD20: ='Emission Calc'!$D$26 -> 5.5944e-07 | AF20: 1139.986876 | AG20: 229.5781199 | AH20: 77.85963061 | AI20: 832.5491254 | AJ20: 303880.4308 | AK20: =AJ20*'Benefit Default'!$D$15 -> 99961467.71 | AO20: ='Emission Calc'!$D$16 -> 0.0004306 | AP20: ='Emission Calc'!$D$29 -> 6.48e-05 | AR20: 74394.7373 | AS20: 14982.10574 | AT20: 9018.490033 | AU20: 50394.14153 | AV20: 18393861.66 | AW20: =AV20*'Benefit Default'!$D$16 -> 237648692.6 | AZ20: 3584505362 | BB20: ='Cost Calc 1-Vehicle Uptake'!H18 -> 2035 | BC20: 4471.093516 | BE20: 2034 | BF20: 21074915.89 | BH20: 2034 | BI20: 1.006717766e+10 | BK20: 2034 | BL20: 477611.5006 | BN20: 2034 | BO20: 877114.5951
A21: ='Cost Calc 1-Vehicle Uptake'!H19 -> 2036 | B21: =(C21+D21)-((C21+D21)*'Mobility Data'!$E$24) -> 172769942.6 | C21: ='Cost Calc 3-Vehicle Maintenance'!C58 -> 34793557.22 | D21: ='Cost Calc 3-Vehicle Maintenance'!C20 -> 139174228.9 | F21: ='Emission Calc'!$D$7 -> 0.2289137 | G21: ='Emission Calc'!$D$20 -> 0.0421296 | I21: 39549406.82 | J21: 7964721.92 | K21: 5863354.594 | L21: 25721330.31 | M21: 9388285561 | N21: =M21*'Benefit Default'!$D$13 -> 3661431369 | Q21: ='Emission Calc'!$D$10 -> 2.734e-06 | R21: ='Emission Calc'!$D$23 -> 1.356e-05 | T21: 472.3530232 | U21: 95.12558545 | V21: 1887.202544 | W21: -1509.975106 | X21: -551140.9137 | Y21: =X21*'Benefit Default'!$D$14 -> -314574699.3 | AC21: ='Emission Calc'!$D$13 -> 6.598294e-06 | AD21: ='Emission Calc'!$D$26 -> 5.5944e-07 | AF21: 1139.986876 | AG21: 229.5781199 | AH21: 77.85963061 | AI21: 832.5491254 | AJ21: 303880.4308 | AK21: =AJ21*'Benefit Default'!$D$15 -> 99961467.71 | AO21: ='Emission Calc'!$D$16 -> 0.0004306 | AP21: ='Emission Calc'!$D$29 -> 6.48e-05 | AR21: 74394.7373 | AS21: 14982.10574 | AT21: 9018.490033 | AU21: 50394.14153 | AV21: 18393861.66 | AW21: =AV21*'Benefit Default'!$D$16 -> 237648692.6 | AZ21: 3584505362 | BB21: ='Cost Calc 1-Vehicle Uptake'!H19 -> 2036 | BC21: =(AZ21+AZ58+AZ95+AZ132)/1000000 -> 4471.093516 | BE21: 2035 | BF21: =(AV21+AV58+AV95+AV132) -> 21074915.89 | BH21: 2035 | BI21: 1.006717766e+10 | BK21: 2035 | BL21: 477611.5006 | BN21: 2035 | BO21: 877114.5951
A22: ='Cost Calc 1-Vehicle Uptake'!H20 -> 2037 | B22: =(C22+D22)-((C22+D22)*'Mobility Data'!$E$24) -> 171600422.4 | C22: ='Cost Calc 3-Vehicle Maintenance'!C59 -> 33053865.97 | D22: ='Cost Calc 3-Vehicle Maintenance'!C21 -> 139736291.4 | F22: ='Emission Calc'!$E$7 -> 0.2289137 | G22: ='Emission Calc'!$E$20 -> 0.0210648 | I22: 39281687.61 | J22: 7566482.76 | K22: 2943517.031 | L22: 28771687.82 | M22: 1.050166605e+10 | N22: =M22*'Benefit Default'!$D$13 -> 4095649761 | O22: =SUM(N7:N21) -> 2.149403238e+10 | Q22: ='Emission Calc'!$E$10 -> 2.734e-06 | R22: ='Emission Calc'!$E$23 -> 6.78e-06 | T22: 469.1555548 | U22: 90.36926957 | V22: 947.4120557 | W22: -568.6257705 | X22: -207548.4062 | Y22: =X22*'Benefit Default'!$D$14 -> -118462403.8 | Z22: =SUM(Y7:Y21) -> -1886045640 | AC22: ='Emission Calc'!$E$13 -> 6.598294e-06 | AD22: ='Emission Calc'!$E$26 -> 1.53414e-06 | AF22: 1132.270037 | AG22: 218.0991255 | AH22: 214.3750341 | AI22: 699.7958777 | AJ22: 255425.4954 | AK22: =AJ22*'Benefit Default'!$D$15 -> 84022216.7 | AL22: =SUM(AK7:AK21) -> 587950951.6 | AO22: ='Emission Calc'!$E$16 -> 0.0004306 | AP22: ='Emission Calc'!$E$29 -> 3.24e-05 | AR22: 73891.14188 | AS22: 14232.99469 | AT22: 4527.455841 | AU22: 55130.69135 | AV22: 20122702.34 | AW22: =AV22*'Benefit Default'!$D$16 -> 259985314.2 | AX22: =SUM(AW7:AW21) -> 1396076790 | AZ22: 4237172671 | BB22: ='Cost Calc 1-Vehicle Uptake'!H20 -> 2037 | BC22: 5268.30088 | BD22: =SUM(BC6:BC21) -> 26178.47466 | BE22: 2036 | BF22: 23092425.14 | BH22: 2036 | BI22: 1.13197543e+10 | BK22: 2036 | BL22: 972795.6424 | BN22: 2036 | BO22: 893263.9298
A23: ='Cost Calc 1-Vehicle Uptake'!H21 -> 2038 | B23: =(C23+D23)-((C23+D23)*'Mobility Data'!$E$24) -> 170463737 | C23: ='Cost Calc 3-Vehicle Maintenance'!C60 -> 31314174.72 | D23: ='Cost Calc 3-Vehicle Maintenance'!C22 -> 140331416.4 | F23: ='Emission Calc'!$E$7 -> 0.2289137 | G23: ='Emission Calc'!$E$20 -> 0.0210648 | I23: 39021484.74 | J23: 7168243.599 | K23: 2956053.22 | L23: 28897187.92 | M23: 1.054747359e+10 | N23: =M23*'Benefit Default'!$D$13 -> 4113514701 | Q23: ='Emission Calc'!$E$10 -> 2.734e-06 | R23: ='Emission Calc'!$E$23 -> 6.78e-06 | T23: 466.0478569 | U23: 85.6129537 | V23: 951.4470032 | W23: -571.0121 | X23: -208419.4165 | Y23: =X23*'Benefit Default'!$D$14 -> -118959550.4 | AC23: ='Emission Calc'!$E$13 -> 6.598294e-06 | AD23: ='Emission Calc'!$E$26 -> 1.53414e-06 | AF23: 1124.769853 | AG23: 206.6201312 | AH23: 215.2880392 | AI23: 702.8616825 | AJ23: 256544.5141 | AK23: =AJ23*'Benefit Default'!$D$15 -> 84390317.91 | AO23: ='Emission Calc'!$E$16 -> 0.0004306 | AP23: ='Emission Calc'!$E$29 -> 3.24e-05 | AR23: 73401.68514 | AS23: 13483.88364 | AT23: 4546.737891 | AU23: 55371.06361 | AV23: 20210438.22 | AW23: =AV23*'Benefit Default'!$D$16 -> 261118861.8 | AZ23: 4255674012 | BB23: ='Cost Calc 1-Vehicle Uptake'!H21 -> 2038 | BC23: 5315.095228 | BE23: 2037 | BF23: 23267866.89 | BH23: 2037 | BI23: 1.138683751e+10 | BK23: 2037 | BL23: 1004971.81 | BN23: 2037 | BO23: 911825.3745
A24: ='Cost Calc 1-Vehicle Uptake'!H22 -> 2039 | B24: =(C24+D24)-((C24+D24)*'Mobility Data'!$E$24) -> 169263923 | C24: ='Cost Calc 3-Vehicle Maintenance'!C61 -> 29477825.97 | D24: ='Cost Calc 3-Vehicle Maintenance'!C23 -> 140959632.6 | F24: ='Emission Calc'!$E$7 -> 0.2289137 | G24: ='Emission Calc'!$E$20 -> 0.0210648 | I24: 38746830.88 | J24: 6747878.212 | K24: 2969286.47 | L24: 29029666.2 | M24: 1.059582816e+10 | N24: =M24*'Benefit Default'!$D$13 -> 4132372984 | Q24: ='Emission Calc'!$E$10 -> 2.734e-06 | R24: ='Emission Calc'!$E$23 -> 6.78e-06 | T24: 462.7675654 | U24: 80.59237621 | V24: 955.7063094 | W24: -573.5311202 | X24: -209338.8589 | Y24: =X24*'Benefit Default'!$D$14 -> -119484340.5 | AC24: ='Emission Calc'!$E$13 -> 6.598294e-06 | AD24: ='Emission Calc'!$E$26 -> 1.53414e-06 | AF24: 1116.853127 | AG24: 194.5033623 | AH24: 216.2518108 | AI24: 706.0979543 | AJ24: 257725.7533 | AK24: =AJ24*'Benefit Default'!$D$15 -> 84778886.55 | AO24: ='Emission Calc'!$E$16 -> 0.0004306 | AP24: ='Emission Calc'!$E$29 -> 3.24e-05 | AR24: 72885.04523 | AS24: 12693.15186 | AT24: 4567.092098 | AU24: 55624.80127 | AV24: 20303052.46 | AW24: =AV24*'Benefit Default'!$D$16 -> 262315437.8 | AZ24: 4275204081 | BB24: ='Cost Calc 1-Vehicle Uptake'!H22 -> 2039 | BC24: 5365.692624 | BE24: 2038 | BF24: 23454162.07 | BH24: 2038 | BI24: 1.145801121e+10 | BK24: 2038 | BL24: 1040770.325 | BN24: 2038 | BO24: 932458.0438
A25: ='Cost Calc 1-Vehicle Uptake'!H23 -> 2040 | B25: =(C25+D25)-((C25+D25)*'Mobility Data'!$E$24) -> 168000980.4 | C25: ='Cost Calc 3-Vehicle Maintenance'!C62 -> 27544848.47 | D25: ='Cost Calc 3-Vehicle Maintenance'!C24 -> 141620911.4 | F25: ='Emission Calc'!$E$7 -> 0.2289137 | G25: ='Emission Calc'!$E$20 -> 0.0210648 | I25: 38457726.03 | J25: 6305393.18 | K25: 2983216.174 | L25: 29169116.68 | M25: 1.064672759e+10 | N25: =M25*'Benefit Default'!$D$13 -> 4152223759 | Q25: ='Emission Calc'!$E$10 -> 2.734e-06 | R25: ='Emission Calc'!$E$23 -> 6.78e-06 | T25: 459.3146805 | U25: 75.30761573 | V25: 960.1897793 | W25: -576.1827145 | X25: -210306.6908 | Y25: =X25*'Benefit Default'!$D$14 -> -120036749.9 | AC25: ='Emission Calc'!$E$13 -> 6.598294e-06 | AD25: ='Emission Calc'!$E$26 -> 1.53414e-06 | AF25: 1108.519861 | AG25: 181.7490084 | AH25: 217.266305 | AI25: 709.5045477 | AJ25: 258969.1599 | AK25: =AJ25*'Benefit Default'!$D$15 -> 85187905.15 | AO25: ='Emission Calc'!$E$16 -> 0.0004306 | AP25: ='Emission Calc'!$E$29 -> 3.24e-05 | AR25: 72341.22217 | AS25: 11860.81175 | AT25: 4588.517529 | AU25: 55891.89289 | AV25: 20400540.9 | AW25: =AV25*'Benefit Default'!$D$16 -> 263574988.5 | AZ25: 4295761998 | BB25: ='Cost Calc 1-Vehicle Uptake'!H23 -> 2040 | BC25: 5418.925857 | BE25: 2039 | BF25: 23649991.31 | BH25: 2039 | BI25: 1.153289155e+10 | BK25: 2039 | BL25: 1078438.363 | BN25: 2039 | BO25: 954175.8902
A26: ='Cost Calc 1-Vehicle Uptake'!H24 -> 2041 | B26: =(C26+D26)-((C26+D26)*'Mobility Data'!$E$24) -> 166674880.7 | C26: ='Cost Calc 3-Vehicle Maintenance'!C63 -> 25515213.47 | D26: ='Cost Calc 3-Vehicle Maintenance'!C25 -> 142315252.6 | F26: ='Emission Calc'!$E$7 -> 0.2289137 | G26: ='Emission Calc'!$E$20 -> 0.0210648 | I26: 38154163.65 | J26: 5840781.923 | K26: 2997842.334 | L26: 29315539.39 | M26: 1.070017188e+10 | N26: =M26*'Benefit Default'!$D$13 -> 4173067032 | Q26: ='Emission Calc'!$E$10 -> 2.734e-06 | R26: ='Emission Calc'!$E$23 -> 6.78e-06 | T26: 455.689124 | U26: 69.75859364 | V26: 964.897413 | W26: -578.9668826 | X26: -211322.9122 | Y26: =X26*'Benefit Default'!$D$14 -> -120616778.6 | AC26: ='Emission Calc'!$E$13 -> 6.598294e-06 | AD26: ='Emission Calc'!$E$26 -> 1.53414e-06 | AF26: 1099.769866 | AG26: 168.35688 | AH26: 218.3315217 | AI26: 713.0814639 | AJ26: 260274.7343 | AK26: =AJ26*'Benefit Default'!$D$15 -> 85617373.86 | AO26: ='Emission Calc'!$E$16 -> 0.0004306 | AP26: ='Emission Calc'!$E$29 -> 3.24e-05 | AR26: 71770.20365 | AS26: 10986.85092 | AT26: 4611.014186 | AU26: 56172.33854 | AV26: 20502903.57 | AW26: =AV26*'Benefit Default'!$D$16 -> 264897514.1 | AZ26: 4317347768 | BB26: ='Cost Calc 1-Vehicle Uptake'!H24 -> 2041 | BC26: 5474.848699 | BE26: 2040 | BF26: 23855874.98 | BH26: 2040 | BI26: 1.161155474e+10 | BK26: 2040 | BL26: 1118006.284 | BN26: 2040 | BO26: 976981.7442
A27: ='Cost Calc 1-Vehicle Uptake'!H25 -> 2042 | B27: =(C27+D27)-((C27+D27)*'Mobility Data'!$E$24) -> 165285624 | C27: ='Cost Calc 3-Vehicle Maintenance'!C64 -> 23388920.97 | D27: ='Cost Calc 3-Vehicle Maintenance'!C26 -> 143042656.4 | F27: ='Emission Calc'!$E$7 -> 0.2289137 | G27: ='Emission Calc'!$E$20 -> 0.0210648 | I27: 37836143.74 | J27: 5354044.439 | K27: 3013164.948 | L27: 29468934.35 | M27: 1.075616104e+10 | N27: =M27*'Benefit Default'!$D$13 -> 4194902804 | Q27: ='Emission Calc'!$E$10 -> 2.734e-06 | R27: ='Emission Calc'!$E$23 -> 6.78e-06 | T27: 451.8908959 | U27: 63.94530994 | V27: 969.8292104 | W27: -581.8836244 | X27: -212387.5229 | Y27: =X27*'Benefit Default'!$D$14 -> -121224426.5 | AC27: ='Emission Calc'!$E$13 -> 6.598294e-06 | AD27: ='Emission Calc'!$E$26 -> 1.53414e-06 | AF27: 1090.603141 | AG27: 154.3269769 | AH27: 219.4474609 | AI27: 716.828703 | AJ27: 261642.4766 | AK27: =AJ27*'Benefit Default'!$D$15 -> 86067292.67 | AO27: ='Emission Calc'!$E$16 -> 0.0004306 | AP27: ='Emission Calc'!$E$29 -> 3.24e-05 | AR27: 71171.98967 | AS27: 10071.26937 | AT27: 4634.582067 | AU27: 56466.13823 | AV27: 20610140.46 | AW27: =AV27*'Benefit Default'!$D$16 -> 266283014.7 | AZ27: 4339961393 | BB27: ='Cost Calc 1-Vehicle Uptake'!H25 -> 2042 | BC27: 5533.40487 | BE27: 2041 | BF27: 24071288.7 | BH27: 2041 | BI27: 1.169392266e+10 | BK27: 2041 | BL27: 1159440.723 | BN27: 2041 | BO27: 1000871.011
A28: ='Cost Calc 1-Vehicle Uptake'!H26 -> 2043 | B28: =(C28+D28)-((C28+D28)*'Mobility Data'!$E$24) -> 163833210 | C28: ='Cost Calc 3-Vehicle Maintenance'!C65 -> 21165970.97 | D28: ='Cost Calc 3-Vehicle Maintenance'!C27 -> 143803122.6 | F28: ='Emission Calc'!$E$7 -> 0.2289137 | G28: ='Emission Calc'!$E$20 -> 0.0210648 | I28: 37503666.29 | J28: 4845180.73 | K28: 3029184.018 | L28: 29629301.54 | M28: 1.081469506e+10 | N28: =M28*'Benefit Default'!$D$13 -> 4217731075 | Q28: ='Emission Calc'!$E$10 -> 2.734e-06 | R28: ='Emission Calc'!$E$23 -> 6.78e-06 | T28: 447.9199962 | U28: 57.86776464 | V28: 974.9851716 | W28: -584.93294 | X28: -213500.5231 | Y28: =X28*'Benefit Default'!$D$14 -> -121859693.6 | AC28: ='Emission Calc'!$E$13 -> 6.598294e-06 | AD28: ='Emission Calc'!$E$26 -> 1.53414e-06 | AF28: 1081.019687 | AG28: 139.6592993 | AH28: 220.6141226 | AI28: 720.7462649 | AJ28: 263072.3867 | AK28: =AJ28*'Benefit Default'!$D$15 -> 86537661.6 | AO28: ='Emission Calc'!$E$16 -> 0.0004306 | AP28: ='Emission Calc'!$E$29 -> 3.24e-05 | AR28: 70546.58024 | AS28: 9114.067102 | AT28: 4659.221174 | AU28: 56773.29197 | AV28: 20722251.57 | AW28: =AV28*'Benefit Default'!$D$16 -> 267731490.3 | AZ28: 4363602872 | BB28: ='Cost Calc 1-Vehicle Uptake'!H26 -> 2043 | BC28: 5594.649922 | BE28: 2042 | BF28: 24296747.61 | BH28: 2042 | BI28: 1.178007295e+10 | BK28: 2042 | BL28: 1202774.307 | BN28: 2042 | BO28: 1025848.254
A29: ='Cost Calc 1-Vehicle Uptake'!H27 -> 2044 | B29: =(C29+D29)-((C29+D29)*'Mobility Data'!$E$24) -> 162317667.5 | C29: ='Cost Calc 3-Vehicle Maintenance'!C66 -> 18846392.22 | D29: ='Cost Calc 3-Vehicle Maintenance'!C28 -> 144596651.4 | F29: ='Emission Calc'!$E$7 -> 0.2289137 | G29: ='Emission Calc'!$E$20 -> 0.0210648 | I29: 37156737.85 | J29: 4314197.376 | K29: 3045899.542 | L29: 29796640.94 | M29: 1.087577394e+10 | N29: =M29*'Benefit Default'!$D$13 -> 4241551837 | Q29: ='Emission Calc'!$E$10 -> 2.734e-06 | R29: ='Emission Calc'!$E$23 -> 6.78e-06 | T29: 443.7765031 | U29: 51.52603634 | V29: 980.3652965 | W29: -588.1148297 | X29: -214661.9129 | Y29: =X29*'Benefit Default'!$D$14 -> -122522580 | AC29: ='Emission Calc'!$E$13 -> 6.598294e-06 | AD29: ='Emission Calc'!$E$26 -> 1.53414e-06 | AF29: 1071.019692 | AG29: 124.3540367 | AH29: 221.8315068 | AI29: 724.8341484 | AJ29: 264564.4642 | AK29: =AJ29*'Benefit Default'!$D$15 -> 87028480.48 | AO29: ='Emission Calc'!$E$16 -> 0.0004306 | AP29: ='Emission Calc'!$E$29 -> 3.24e-05 | AR29: 69893.98765 | AS29: 8115.256492 | AT29: 4684.931505 | AU29: 57093.79965 | AV29: 20839236.87 | AW29: =AV29*'Benefit Default'!$D$16 -> 269242940.4 | AZ29: 4388272198 | BB29: ='Cost Calc 1-Vehicle Uptake'!H27 -> 2044 | BC29: 5658.531538 | BE29: 2043 | BF29: 24531749.82 | BH29: 2043 | BI29: 1.186993036e+10 | BK29: 2043 | BL29: 1247978.152 | BN29: 2043 | BO29: 1051910.706
A30: ='Cost Calc 1-Vehicle Uptake'!H28 -> 2045 | B30: =(C30+D30)-((C30+D30)*'Mobility Data'!$E$24) -> 160738967.9 | C30: ='Cost Calc 3-Vehicle Maintenance'!C67 -> 16430155.97 | D30: ='Cost Calc 3-Vehicle Maintenance'!C29 -> 145423242.6 | F30: ='Emission Calc'!$E$7 -> 0.2289137 | G30: ='Emission Calc'!$E$20 -> 0.0210648 | I30: 36795351.89 | J30: 3761087.796 | K30: 3063311.522 | L30: 29970952.57 | M30: 1.093939769e+10 | N30: =M30*'Benefit Default'!$D$13 -> 4266365098 | Q30: ='Emission Calc'!$E$10 -> 2.734e-06 | R30: ='Emission Calc'!$E$23 -> 6.78e-06 | T30: 439.4603384 | U30: 44.92004643 | V30: 985.9695852 | W30: -591.4292932 | X30: -215871.692 | Y30: =X30*'Benefit Default'!$D$14 -> -123213085.7 | AC30: ='Emission Calc'!$E$13 -> 6.598294e-06 | AD30: ='Emission Calc'!$E$26 -> 1.53414e-06 | AF30: 1060.602968 | AG30: 108.4109996 | AH30: 223.0996135 | AI30: 729.0923547 | AJ30: 266118.7095 | AK30: =AJ30*'Benefit Default'!$D$15 -> 87539749.48 | AO30: ='Emission Calc'!$E$16 -> 0.0004306 | AP30: ='Emission Calc'!$E$29 -> 3.24e-05 | AR30: 69214.1996 | AS30: 7074.825163 | AT30: 4711.713062 | AU30: 57427.66137 | AV30: 20961096.4 | AW30: =AV30*'Benefit Default'!$D$16 -> 270817365.5 | AZ30: 4413969378 | BB30: ='Cost Calc 1-Vehicle Uptake'!H28 -> 2045 | BC30: 5725.09952 | BE30: 2044 | BF30: 24776793.18 | BH30: 2044 | BI30: 1.196356822e+10 | BK30: 2044 | BL30: 1295078.137 | BN30: 2044 | BO30: 1079059.369
A31: ='Cost Calc 1-Vehicle Uptake'!H29 -> 2046 | B31: =(C31+D31)-((C31+D31)*'Mobility Data'!$E$24) -> 159097111.2 | C31: ='Cost Calc 3-Vehicle Maintenance'!C68 -> 13917262.22 | D31: ='Cost Calc 3-Vehicle Maintenance'!C30 -> 146282896.4 | F31: ='Emission Calc'!$E$7 -> 0.2289137 | G31: ='Emission Calc'!$E$20 -> 0.0210648 | I31: 36419508.39 | J31: 3185851.99 | K31: 3081419.956 | L31: 30152236.44 | M31: 1.10055663e+10 | N31: =M31*'Benefit Default'!$D$13 -> 4292170858 | Q31: ='Emission Calc'!$E$10 -> 2.734e-06 | R31: ='Emission Calc'!$E$23 -> 6.78e-06 | T31: 434.9715021 | U31: 38.04979492 | V31: 991.7980376 | W31: -594.8763304 | X31: -217129.8606 | Y31: =X31*'Benefit Default'!$D$14 -> -123931210.5 | AC31: ='Emission Calc'!$E$13 -> 6.598294e-06 | AD31: ='Emission Calc'!$E$26 -> 1.53414e-06 | AF31: 1049.769514 | AG31: 91.83018783 | AH31: 224.4184427 | AI31: 733.5208838 | AJ31: 267735.1226 | AK31: =AJ31*'Benefit Default'!$D$15 -> 88071468.58 | AO31: ='Emission Calc'!$E$16 -> 0.0004306 | AP31: ='Emission Calc'!$E$29 -> 3.24e-05 | AR31: 68507.21609 | AS31: 5992.773114 | AT31: 4739.565843 | AU31: 57774.87713 | AV31: 21087830.15 | AW31: =AV31*'Benefit Default'!$D$16 -> 272454765.6 | AZ31: 4440694413 | BB31: ='Cost Calc 1-Vehicle Uptake'!H29 -> 2046 | BC31: 5794.302792 | BE31: 2045 | BF31: 25031367.99 | BH31: 2045 | BI31: 1.206091135e+10 | BK31: 2045 | BL31: 1344047.673 | BN31: 2045 | BO31: 1107293.176
A32: ='Cost Calc 1-Vehicle Uptake'!H30 -> 2047 | B32: =(C32+D32)-((C32+D32)*'Mobility Data'!$E$24) -> 157392125.9 | C32: ='Cost Calc 3-Vehicle Maintenance'!C69 -> 11307739.72 | D32: ='Cost Calc 3-Vehicle Maintenance'!C31 -> 147175612.6 | F32: ='Emission Calc'!$E$7 -> 0.2289137 | G32: ='Emission Calc'!$E$20 -> 0.0210648 | I32: 36029213.9 | J32: 2588496.539 | K32: 3100224.845 | L32: 30340492.51 | M32: 1.107427977e+10 | N32: =M32*'Benefit Default'!$D$13 -> 4318969109 | Q32: ='Emission Calc'!$E$10 -> 2.734e-06 | R32: ='Emission Calc'!$E$23 -> 6.78e-06 | T32: 430.3100723 | U32: 30.91536041 | V32: 997.8506538 | W32: -598.4559419 | X32: -218436.4188 | Y32: =X32*'Benefit Default'!$D$14 -> -124676954.8 | AC32: ='Emission Calc'!$E$13 -> 6.598294e-06 | AD32: ='Emission Calc'!$E$26 -> 1.53414e-06 | AF32: 1038.51952 | AG32: 74.61179118 | AH32: 225.7879944 | AI32: 738.1197345 | AJ32: 269413.7031 | AK32: =AJ32*'Benefit Default'!$D$15 -> 88623637.64 | AO32: ='Emission Calc'!$E$16 -> 0.0004306 | AP32: ='Emission Calc'!$E$29 -> 3.24e-05 | AR32: 67773.04942 | AS32: 4869.112725 | AT32: 4768.48985 | AU32: 58135.44685 | AV32: 21219438.1 | AW32: =AV32*'Benefit Default'!$D$16 -> 274155140.2 | AZ32: 4468447294 | BB32: ='Cost Calc 1-Vehicle Uptake'!H30 -> 2047 | BC32: 5866.194319 | BE32: 2046 | BF32: 25295998.47 | BH32: 2046 | BI32: 1.216203817e+10 | BK32: 2046 | BL32: 1394914.123 | BN32: 2046 | BO32: 1136613.345
A33: ='Cost Calc 1-Vehicle Uptake'!H31 -> 2048 | B33: =(C33+D33)-((C33+D33)*'Mobility Data'!$E$24) -> 155623983.5 | C33: ='Cost Calc 3-Vehicle Maintenance'!C70 -> 8601559.724 | D33: ='Cost Calc 3-Vehicle Maintenance'!C32 -> 148101391.4 | F33: ='Emission Calc'!$E$7 -> 0.2289137 | G33: ='Emission Calc'!$E$20 -> 0.0210648 | I33: 35624461.87 | J33: 1969014.862 | K33: 3119726.19 | L33: 30535720.82 | M33: 1.11455381e+10 | N33: =M33*'Benefit Default'!$D$13 -> 4346759859 | Q33: ='Emission Calc'!$E$10 -> 2.734e-06 | R33: ='Emission Calc'!$E$23 -> 6.78e-06 | T33: 425.4759709 | U33: 23.51666429 | V33: 1004.127434 | W33: -602.1681271 | X33: -219791.3664 | Y33: =X33*'Benefit Default'!$D$14 -> -125450318.2 | AC33: ='Emission Calc'!$E$13 -> 6.598294e-06 | AD33: ='Emission Calc'!$E$26 -> 1.53414e-06 | AF33: 1026.852797 | AG33: 56.75561992 | AH33: 227.2082686 | AI33: 742.8889081 | AJ33: 271154.4514 | AK33: =AJ33*'Benefit Default'!$D$15 -> 89196256.8 | AO33: ='Emission Calc'!$E$16 -> 0.0004306 | AP33: ='Emission Calc'!$E$29 -> 3.24e-05 | AR33: 67011.6873 | AS33: 3703.831617 | AT33: 4798.485081 | AU33: 58509.3706 | AV33: 21355920.27 | AW33: =AV33*'Benefit Default'!$D$16 -> 275918489.9 | AZ33: 4497228030 | BB33: ='Cost Calc 1-Vehicle Uptake'!H31 -> 2048 | BC33: 5940.721135 | BE33: 2047 | BF33: 25570160.41 | BH33: 2047 | BI33: 1.226687026e+10 | BK33: 2047 | BL33: 1447650.123 | BN33: 2047 | BO33: 1167018.658
A34: ='Cost Calc 1-Vehicle Uptake'!H32 -> 2049 | B34: =(C34+D34)-((C34+D34)*'Mobility Data'!$E$24) -> 153792684 | C34: ='Cost Calc 3-Vehicle Maintenance'!C71 -> 5798722.224 | D34: ='Cost Calc 3-Vehicle Maintenance'!C33 -> 149060232.6 | F34: ='Emission Calc'!$E$7 -> 0.2289137 | G34: ='Emission Calc'!$E$20 -> 0.0210648 | I34: 35205252.32 | J34: 1327406.96 | K34: 3139923.989 | L34: 30737921.37 | M34: 1.12193413e+10 | N34: =M34*'Benefit Default'!$D$13 -> 4375543107 | Q34: ='Emission Calc'!$E$10 -> 2.734e-06 | R34: ='Emission Calc'!$E$23 -> 6.78e-06 | T34: 420.469198 | U34: 15.85370656 | V34: 1010.628377 | W34: -606.012886 | X34: -221194.7034 | Y34: =X34*'Benefit Default'!$D$14 -> -126251300.8 | AC34: ='Emission Calc'!$E$13 -> 6.598294e-06 | AD34: ='Emission Calc'!$E$26 -> 1.53414e-06 | AF34: 1014.769344 | AG34: 38.26167406 | AH34: 228.6792653 | AI34: 747.8284045 | AJ34: 272957.3676 | AK34: =AJ34*'Benefit Default'!$D$15 -> 89789326.08 | AO34: ='Emission Calc'!$E$16 -> 0.0004306 | AP34: ='Emission Calc'!$E$29 -> 3.24e-05 | AR34: 66223.12972 | AS34: 2496.92979 | AT34: 4829.551538 | AU34: 58896.64839 | AV34: 21497276.66 | AW34: =AV34*'Benefit Default'!$D$16 -> 277744814.5 | AZ34: 4527036621 | BB34: ='Cost Calc 1-Vehicle Uptake'!H32 -> 2049 | BC34: 6017.936278 | BE34: 2048 | BF34: 25854364.9 | BH34: 2048 | BI34: 1.237548335e+10 | BK34: 2048 | BL34: 1502285.297 | BN34: 2048 | BO34: 1198511.913
A35: ='Cost Calc 1-Vehicle Uptake'!H33 -> 2050 | B35: =(C35+D35)-((C35+D35)*'Mobility Data'!$E$24) -> 150037055.5 | C35: ='Cost Calc 3-Vehicle Maintenance'!C72 -> 0 | D35: ='Cost Calc 3-Vehicle Maintenance'!C34 -> 151077287.9 | F35: ='Emission Calc'!$E$7 -> 0.2289137 | G35: ='Emission Calc'!$E$20 -> 0.0210648 | I35: 34345537.5 | J35: 0 | K35: 3182412.855 | L35: 31163124.65 | M35: 1.13745405e+10 | N35: =M35*'Benefit Default'!$D$13 -> 4436070793 | Q35: ='Emission Calc'!$E$10 -> 2.734e-06 | R35: ='Emission Calc'!$E$23 -> 6.78e-06 | T35: 410.2013096 | U35: 0 | V35: 1024.304012 | W35: -614.1027027 | X35: -224147.4865 | Y35: =X35*'Benefit Default'!$D$14 -> -127936660.9 | AC35: ='Emission Calc'!$E$13 -> 6.598294e-06 | AD35: ='Emission Calc'!$E$26 -> 1.53414e-06 | AF35: 989.9886028 | AG35: 0 | AH35: 231.7737105 | AI35: 758.2148922 | AJ35: 276748.4357 | AK35: =AJ35*'Benefit Default'!$D$15 -> 91036397.91 | AO35: ='Emission Calc'!$E$16 -> 0.0004306 | AP35: ='Emission Calc'!$E$29 -> 3.24e-05 | AR35: 64605.95608 | AS35: 0 | AT35: 4894.90413 | AU35: 59711.05195 | AV35: 21794533.96 | AW35: =AV35*'Benefit Default'!$D$16 -> 281585378.8 | AZ35: 4589719511 | BB35: ='Cost Calc 1-Vehicle Uptake'!H33 -> 2050 | BC35: 6127.504252 | BE35: 2049 | BF35: 26417465.72 | BH35: 2049 | BI35: 1.258980113e+10 | BK35: 2049 | BL35: 1535063.427 | BN35: 2049 | BO35: 1217778.53
A36: ='Cost Calc 1-Vehicle Uptake'!H34 -> 2051 | B36: =(C36+D36)-((C36+D36)*'Mobility Data'!$E$24) -> 150037055.5 | C36: ='Cost Calc 3-Vehicle Maintenance'!C73 -> 0 | D36: ='Cost Calc 3-Vehicle Maintenance'!C35 -> 151077287.9 | F36: ='Emission Calc'!$E$7 -> 0.2289137 | G36: ='Emission Calc'!$E$20 -> 0.0210648 | I36: 34345537.5 | J36: 0 | K36: 3182412.855 | L36: =I36-(K36+J36) -> 31163124.65 | M36: 1.13745405e+10 | N36: =M36*'Benefit Default'!$D$13 -> 4436070793 | Q36: ='Emission Calc'!$E$10 -> 2.734e-06 | R36: ='Emission Calc'!$E$23 -> 6.78e-06 | T36: 410.2013096 | U36: 0 | V36: 1024.304012 | W36: -614.1027027 | X36: -224147.4865 | Y36: =X36*'Benefit Default'!$D$14 -> -127936660.9 | AC36: ='Emission Calc'!$E$13 -> 6.598294e-06 | AD36: ='Emission Calc'!$E$26 -> 1.53414e-06 | AF36: 989.9886028 | AG36: 0 | AH36: 231.7737105 | AI36: 758.2148922 | AJ36: 276748.4357 | AK36: =AJ36*'Benefit Default'!$D$15 -> 91036397.91 | AO36: ='Emission Calc'!$E$16 -> 0.0004306 | AP36: ='Emission Calc'!$E$29 -> 3.24e-05 | AR36: 64605.95608 | AS36: 0 | AT36: 4894.90413 | AU36: 59711.05195 | AV36: 21794533.96 | AW36: =AV36*'Benefit Default'!$D$16 -> 281585378.8 | AZ36: 4589719511 | BB36: ='Cost Calc 1-Vehicle Uptake'!H34 -> 2051 | BC36: 6127.504252 | BE36: 2050 | BF36: 26417465.72 | BH36: 2050 | BI36: 1.258980113e+10 | BK36: 2050 | BL36: 1535063.427 | BN36: 2050 | BO36: =AJ36+AJ73+AJ110+AJ147 -> 1217778.53
A37: 2050 | B37: =(C37+D37)-((C37+D37)*'Mobility Data'!$E$24) -> 151054964.4 | C37: ='Cost Calc 3-Vehicle Maintenance'!C74 -> 0 | D37: ='Cost Calc 3-Vehicle Maintenance'!C36 -> 152102254.2 | F37: ='Emission Calc'!$E$7 -> 0.2289137 | G37: ='Emission Calc'!$E$20 -> 0.0210648 | I37: 34578550.8 | J37: 0 | K37: 3204003.564 | L37: 31374547.23 | M37: 1.145170974e+10 | N37: =M37*'Benefit Default'!$D$13 -> 4466166799 | O37: =SUM(N22:N36) -> 6.376221163e+10 | Q37: ='Emission Calc'!$E$10 -> 2.734e-06 | R37: ='Emission Calc'!$E$23 -> 6.78e-06 | T37: 412.9842726 | U37: 0 | V37: 1031.253283 | W37: -618.2690109 | X37: -225668.189 | Y37: =X37*'Benefit Default'!$D$14 -> -128804632.2 | Z37: =SUM(Y22:Y36) -> -1841705957 | AC37: ='Emission Calc'!$E$13 -> 6.598294e-06 | AD37: ='Emission Calc'!$E$26 -> 1.53414e-06 | AF37: =B37*AC37 -> 996.7050651 | AG37: =C37*AC37 -> 0 | AH37: =D37*AD37 -> 233.3461523 | AI37: 763.3589128 | AJ37: 278626.0032 | AK37: =AJ37*'Benefit Default'!$D$15 -> 91654023.74 | AL37: =SUM(AK22:AK36) -> 1308289817 | AO37: ='Emission Calc'!$E$16 -> 0.0004306 | AP37: ='Emission Calc'!$E$29 -> 3.24e-05 | AR37: 65044.26766 | AS37: 0 | AT37: 4928.113036 | AU37: 60116.15462 | AV37: 21942396.44 | AW37: =AV37*'Benefit Default'!$D$16 -> 283495762 | AX37: =SUM(AW22:AW36) -> 4047459630 | AZ37: 4620857928 | BB37: ='Cost Calc 1-Vehicle Uptake'!H35 -> 2052 | BC37: 4971.813345 | BD37: =SUM(BC22:BC36) -> 85199.04698
BE38: Percent Change 2035 | BF38: =(BF21/((AR21+AR58+AR95+AR132)*365)) -> 0.6868118814 | BH38: Percent Change 2035 | BI38: =(BI21/((I21+I58+I95+I132)*365)) -> 0.6530497125 | BK38: Percent Change 2035 | BL38: =(BL21/((T21+T58+T95+T132)*365)) -> 0.3101454356 | BN38: Percent Change 2035 | BO38: =(BO21/((AF21+AF58+AF95+AF132)*365)) -> 0.7706747466
BE39: Percent Change 2050 | BF39: =(BF36/((AR36+AR73+AR110+AR147)*365)) -> 0.9309759118 | BH39: Percent Change 2050 | BI39: =(BI36/((I36+I73+I110+I147)*365)) -> 0.9077231546 | BK39: Percent Change 2050 | BL39: =(BL36/((T36+T73+T110+T147)*365)) -> 0.7892657972 | BN39: Percent Change 2050 | BO39: =(BO36/((AF36+AF73+AF110+AF147)*365)) -> 0.9317633213
BG40: =(BG21-BG6)/BG21 -> 
C41: KM by private two-wheelers | F41: CO2/ KM by private two-wheeler | Q41: PM10/ KM by private two-wheeler | AC41: PM2.5/ KM by private two-wheeler | AO41: NOX/ KM by private two-wheeler | AZ41: Two-wheeler benefits | BE41: Emissions Comparison
A42: YEAR | B42: BASELINE ICE | C42: ICE | D42: EV | F42: ICE | G42: EV | I42: Baseline ICE | J42: ICE Projected | K42: EV Projected | L42: Reduction | M42: Annual CO2 kg reduction | N42: USD 2020 | Q42: ICE | R42: EV | T42: Baseline ICE | U42: Scenario ICE | V42: Scenario EV | W42: Reduction | X42: Annual PM10 kg reduction | Y42: USD 2020 | AC42: ICE | AD42: EV | AF42: Baseline ICE | AG42: Scenario ICE | AH42: Scenario EV | AI42: Reduction | AJ42: Annual PM2.5 kg reduction | AK42: USD 2020 | AO42: ICE | AP42: EV | AR42: Baseline ICE | AS42: Scenario ICE | AT42: Scenario EV | AU42: Reduction | AV42: Annual NOx kg reduction | AW42: USD 2020 | AZ42: USD 2020 | BE42: Regional per capita emissions | BF42: =IF('City Data'!E11<>0,'City Data'!E11,'City Data'!H11) -> 7 | BG42: =IF('City Data'!F11<>0,'City Data'!F11,'City Data'!I11) -> 7 | BH42: =IF('City Data'!G11<>0,'City Data'!G11,'City Data'!J11) -> 7 | BI42: mtCO2/year
A43: ='Cost Calc 1-Vehicle Uptake'!H4 -> 2021 | B43: =(C43+D43)-((C43+D43)*'Mobility Data'!$E$26) -> 4682627.5 | C43: ='Cost Calc 3-Vehicle Maintenance'!D43 -> 4682627.5 | D43: ='Cost Calc 3-Vehicle Maintenance'!D5 -> 140501.25 | F43: ='Emission Calc'!C8 -> 0.06 | G43: ='Emission Calc'!C21 -> 0.03630454286 | I43: =B43*F43 -> 280957.65 | J43: =C43*F43 -> 280957.65 | K43: =G43*D43 -> 5100.833652 | L43: =I43-(K43+J43) -> -5100.833652 | M43: =L43*365 -> -1861804.283 | N43: =M43*'Benefit Default'!$D$13 -> -726103.6704 | O43: =N43 -> -726103.6704 | Q43: ='Emission Calc'!C11 -> 0.0003 | R43: ='Emission Calc'!C24 -> 9.919928571e-06 | T43: =B43*Q43 -> 1404.78825 | U43: =C43*Q43 -> 1404.78825 | V43: =D43*R43 -> 1.393762364 | W43: =T43-(V43+U43) -> -1.393762364 | X43: =W43*365 -> -508.7232629 | Y43: =X43*'Benefit Default'!$D$14 -> -290363.9768 | Z43: =Y43 -> -290363.9768 | AC43: ='Emission Calc'!C14 -> 0.00017 | AD43: ='Emission Calc'!C27 -> 4.748528571e-07 | AF43: =B43*AC43 -> 796.046675 | AG43: =C43*AC43 -> 796.046675 | AH43: =D43*AD43 -> 0.06671741999 | AI43: =AF43-(AH43+AG43) -> -0.06671741999 | AJ43: =AI43*365 -> -24.3518583 | AK43: =AJ43*'Benefit Default'!$D$15 -> -8010.543787 | AL43: =AK43 -> -8010.543787 | AO43: ='Emission Calc'!C17 -> 0.00015 | AP43: ='Emission Calc'!C30 -> 5.766428571e-05 | AR43: =B43*AO43 -> 702.394125 | AS43: =AO43*C43 -> 702.394125 | AT43: =AP43*D43 -> 8.101904223 | AU43: =AR43-(AT43+AS43) -> -8.101904223 | AV43: =AU43*365 -> -2957.195041 | AW43: =AV43*'Benefit Default'!$D$16 -> -38206.95994 | AX43: =AW43 -> -38206.95994 | AZ43: =N43+Y43+AW43 -> -1054674.607 | BE43: Population | BF43: =IF('City Data'!E8<>0,'City Data'!E8,'City Data'!H8) -> 21540000 | BG43: =IF('City Data'!F8<>0,'City Data'!F8,'City Data'!I8) -> 22529922.32 | BH43: =IF('City Data'!G8<>0,'City Data'!G8,'City Data'!J8) -> 23565338.88 | BI43: people
A44: ='Cost Calc 1-Vehicle Uptake'!H5 -> 2022 | B44: =(C44+D44)-((C44+D44)*'Mobility Data'!$E$26) -> 4779344.283 | C44: ='Cost Calc 3-Vehicle Maintenance'!D44 -> 4647868.75 | D44: ='Cost Calc 3-Vehicle Maintenance'!D6 -> 274878.75 | F44: ='Emission Calc'!$D$8 -> 0.06 | G44: ='Emission Calc'!$D$21 -> 0.02031248571 | I44: 286760.657 | J44: 278872.125 | K44: 5583.470683 | L44: =I44-(K44+J44) -> 2305.061317 | M44: =L44*365 -> 841347.3807 | N44: =M44*'Benefit Default'!$D$13 -> 328125.4785 | Q44: ='Emission Calc'!$D$11 -> 0.0003 | R44: ='Emission Calc'!$D$24 -> 6.537857143e-06 | T44: =B44*Q44 -> 1433.803285 | U44: =C44*Q44 -> 1394.360625 | V44: 1.797117999 | W44: =T44-(V44+U44) -> 37.645542 | X44: =W44*365 -> 13740.62283 | Y44: =X44*'Benefit Default'!$D$14 -> 7842735.292 | AC44: ='Emission Calc'!$D$14 -> 0.00017 | AD44: ='Emission Calc'!$D$27 -> 2.6973e-07 | AF44: =B44*AC44 -> 812.4885282 | AG44: =C44*AC44 -> 790.1376875 | AH44: =D44*AD44 -> 0.07414304524 | AI44: =AF44-(AH44+AG44) -> 22.27669762 | AJ44: =AI44*365 -> 8130.994631 | AK44: =AJ44*'Benefit Default'!$D$15 -> 2674690.684 | AO44: ='Emission Calc'!$D$17 -> 0.00015 | AP44: ='Emission Calc'!$D$30 -> 3.124285714e-05 | AR44: 716.9016425 | AS44: 697.1803125 | AT44: 8.587997518 | AU44: =AR44-(AT44+AS44) -> 11.13333248 | AV44: =AU44*365 -> 4063.666356 | AW44: =AV44*'Benefit Default'!$D$16 -> 52502.56931 | AZ44: 8223363.34 | BE44: Total City Emissions | BF44: =(BF42*BF43)*1000 -> 150780000000 | BG44: =(BG42*BG43)*1000 -> 1.577094562e+11 | BH44: 1.649573722e+11 | BI44: mtCO2/year
A45: ='Cost Calc 1-Vehicle Uptake'!H6 -> 2023 | B45: =(C45+D45)-((C45+D45)*'Mobility Data'!$E$26) -> 4924405.502 | C45: ='Cost Calc 3-Vehicle Maintenance'!D45 -> 4595716.25 | D45: ='Cost Calc 3-Vehicle Maintenance'!D7 -> 476445 | F45: ='Emission Calc'!$D$8 -> 0.06 | G45: ='Emission Calc'!$D$21 -> 0.02031248571 | I45: 295464.3301 | J45: 275742.975 | K45: 9677.782256 | L45: 10043.57287 | M45: 3665904.097 | N45: =M45*'Benefit Default'!$D$13 -> 1429702.598 | Q45: ='Emission Calc'!$D$11 -> 0.0003 | R45: ='Emission Calc'!$D$24 -> 6.537857143e-06 | T45: 1477.321651 | U45: 1378.714875 | V45: 3.114929346 | W45: 95.49184627 | X45: 34854.52389 | Y45: =X45*'Benefit Default'!$D$14 -> 19893916.6 | AC45: ='Emission Calc'!$D$14 -> 0.00017 | AD45: ='Emission Calc'!$D$27 -> 2.6973e-07 | AF45: 837.1489354 | AG45: =C45*AC45 -> 781.2717625 | AH45: =D45*AD45 -> 0.1285115098 | AI45: 55.74866134 | AJ45: 20348.26139 | AK45: =AJ45*'Benefit Default'!$D$15 -> 6693560.584 | AO45: ='Emission Calc'!$D$17 -> 0.00015 | AP45: ='Emission Calc'!$D$30 -> 3.124285714e-05 | AR45: 738.6608253 | AS45: 689.3574375 | AT45: 14.88550307 | AU45: 34.41788474 | AV45: 12562.52793 | AW45: =AV45*'Benefit Default'!$D$16 -> 162307.8609 | AZ45: 21485927.06 | BE45: Reductions from EVs | BG45: =BI21/BG44 -> 0.0638336971 | BH45: =BI36/BH44 -> 0.07632154275
A46: ='Cost Calc 1-Vehicle Uptake'!H7 -> 2024 | B46: =(C46+D46)-((C46+D46)*'Mobility Data'!$E$26) -> 5117839.069 | C46: ='Cost Calc 3-Vehicle Maintenance'!D46 -> 4526198.75 | D46: ='Cost Calc 3-Vehicle Maintenance'!D8 -> 745200 | F46: ='Emission Calc'!$D$8 -> 0.06 | G46: ='Emission Calc'!$D$21 -> 0.02031248571 | I46: 307070.3441 | J46: 271571.925 | K46: 15136.86435 | L46: 20361.55477 | M46: 7431967.491 | N46: =M46*'Benefit Default'!$D$13 -> 2898467.321 | Q46: ='Emission Calc'!$D$11 -> 0.0003 | R46: ='Emission Calc'!$D$24 -> 6.537857143e-06 | T46: 1535.351721 | U46: 1357.859625 | V46: 4.872011143 | W46: 172.6200845 | X46: 63006.33083 | Y46: =X46*'Benefit Default'!$D$14 -> 35962123.45 | AC46: ='Emission Calc'!$D$14 -> 0.00017 | AD46: ='Emission Calc'!$D$27 -> 2.6973e-07 | AF46: 870.0326417 | AG46: 769.4537875 | AH46: 0.201002796 | AI46: 100.3778514 | AJ46: 36637.91576 | AK46: =AJ46*'Benefit Default'!$D$15 -> 12052042.39 | AO46: ='Emission Calc'!$D$17 -> 0.00015 | AP46: ='Emission Calc'!$D$30 -> 3.124285714e-05 | AR46: 767.6758603 | AS46: 678.9298125 | AT46: 23.28217714 | AU46: 65.46387067 | AV46: 23894.31279 | AW46: =AV46*'Benefit Default'!$D$16 -> 308714.5213 | AZ46: 39169305.29
A47: ='Cost Calc 1-Vehicle Uptake'!H8 -> 2025 | B47: =(C47+D47)-((C47+D47)*'Mobility Data'!$E$26) -> 5359644.983 | C47: ='Cost Calc 3-Vehicle Maintenance'!D47 -> 4439316.25 | D47: ='Cost Calc 3-Vehicle Maintenance'!D9 -> 1081143.75 | F47: ='Emission Calc'!$D$8 -> 0.06 | G47: ='Emission Calc'!$D$21 -> 0.02031248571 | I47: 321578.699 | J47: 266358.975 | K47: 21960.71698 | L47: 33259.00702 | M47: 12139537.56 | N47: =M47*'Benefit Default'!$D$13 -> 4734419.649 | Q47: ='Emission Calc'!$D$11 -> 0.0003 | R47: ='Emission Calc'!$D$24 -> 6.537857143e-06 | T47: 1607.893495 | U47: 1331.794875 | V47: 7.068363388 | W47: 269.0302566 | X47: 98196.04366 | Y47: =X47*'Benefit Default'!$D$14 -> 56047355.84 | AC47: ='Emission Calc'!$D$14 -> 0.00017 | AD47: ='Emission Calc'!$D$27 -> 2.6973e-07 | AF47: 911.1396472 | AG47: 754.6837625 | AH47: 0.2916169037 | AI47: 156.1642678 | AJ47: 56999.95773 | AK47: =AJ47*'Benefit Default'!$D$15 -> 18750136.1 | AO47: ='Emission Calc'!$D$17 -> 0.00015 | AP47: ='Emission Calc'!$D$30 -> 3.124285714e-05 | AR47: 803.9467475 | AS47: 665.8974375 | AT47: 33.77801973 | AU47: 104.2712903 | AV47: 38059.02094 | AW47: =AV47*'Benefit Default'!$D$16 -> 491722.5506 | AZ47: 61273498.04
A48: ='Cost Calc 1-Vehicle Uptake'!H9 -> 2026 | B48: =(C48+D48)-((C48+D48)*'Mobility Data'!$E$26) -> 5649795.333 | C48: ='Cost Calc 3-Vehicle Maintenance'!D48 -> 4335040 | D48: ='Cost Calc 3-Vehicle Maintenance'!D10 -> 1484276.25 | F48: ='Emission Calc'!$D$8 -> 0.06 | G48: ='Emission Calc'!$D$21 -> 0.02031248571 | I48: 338987.72 | J48: 260102.4 | K48: 30149.34012 | L48: 48735.97987 | M48: 17788632.65 | N48: =M48*'Benefit Default'!$D$13 -> 6937566.735 | Q48: ='Emission Calc'!$D$11 -> 0.0003 | R48: ='Emission Calc'!$D$24 -> 6.537857143e-06 | T48: 1694.9386 | U48: 1300.512 | V48: 9.703986083 | W48: 384.7226139 | X48: 140423.7541 | Y48: =X48*'Benefit Default'!$D$14 -> 80149666.11 | AC48: ='Emission Calc'!$D$14 -> 0.00017 | AD48: ='Emission Calc'!$D$27 -> 2.6973e-07 | AF48: 960.4652067 | AG48: 736.9568 | AH48: 0.4003538329 | AI48: 223.1080528 | AJ48: 81434.43928 | AK48: =AJ48*'Benefit Default'!$D$15 -> 26787858.8 | AO48: ='Emission Calc'!$D$17 -> 0.00015 | AP48: ='Emission Calc'!$D$30 -> 3.124285714e-05 | AR48: 847.4693 | AS48: 650.256 | AT48: 46.37303084 | AU48: 150.8402691 | AV48: 55056.69824 | AW48: =AV48*'Benefit Default'!$D$16 -> 711332.5413 | AZ48: 87798565.39
A49: ='Cost Calc 1-Vehicle Uptake'!H10 -> 2027 | B49: =(C49+D49)-((C49+D49)*'Mobility Data'!$E$26) -> 5988318.031 | C49: ='Cost Calc 3-Vehicle Maintenance'!D49 -> 4213398.75 | D49: ='Cost Calc 3-Vehicle Maintenance'!D11 -> 1954597.5 | F49: ='Emission Calc'!$D$8 -> 0.06 | G49: ='Emission Calc'!$D$21 -> 0.02031248571 | I49: 359299.0819 | J49: 252803.925 | K49: 39702.7338 | L49: 66792.42307 | M49: 24379234.42 | N49: =M49*'Benefit Default'!$D$13 -> 9507901.424 | Q49: ='Emission Calc'!$D$11 -> 0.0003 | R49: ='Emission Calc'!$D$24 -> 6.537857143e-06 | T49: 1796.495409 | U49: 1264.019625 | V49: 12.77887923 | W49: 519.6969051 | X49: 189689.3704 | Y49: =X49*'Benefit Default'!$D$14 -> 108269001.9 | AC49: ='Emission Calc'!$D$14 -> 0.00017 | AD49: ='Emission Calc'!$D$27 -> 2.6973e-07 | AF49: 1018.014065 | AG49: 716.2777875 | AH49: 0.5272135837 | AI49: 301.2090642 | AJ49: 109941.3084 | AK49: =AJ49*'Benefit Default'!$D$15 -> 36165193.41 | AO49: ='Emission Calc'!$D$17 -> 0.00015 | AP49: ='Emission Calc'!$D$30 -> 3.124285714e-05 | AR49: 898.2477047 | AS49: 632.0098125 | AT49: 61.06721046 | AU49: 205.1706817 | AV49: 74887.29882 | AW49: =AV49*'Benefit Default'!$D$16 -> 967543.9008 | AZ49: 118744447.2
A50: ='Cost Calc 1-Vehicle Uptake'!H11 -> 2028 | B50: =(C50+D50)-((C50+D50)*'Mobility Data'!$E$26) -> 6375213.077 | C50: ='Cost Calc 3-Vehicle Maintenance'!D50 -> 4074392.5 | D50: ='Cost Calc 3-Vehicle Maintenance'!D12 -> 2492107.5 | F50: ='Emission Calc'!$D$8 -> 0.06 | G50: ='Emission Calc'!$D$21 -> 0.02031248571 | I50: 382512.7846 | J50: 244463.55 | K50: 50620.89799 | L50: 87428.33662 | M50: 31911342.87 | N50: =M50*'Benefit Default'!$D$13 -> 12445423.72 | Q50: ='Emission Calc'!$D$11 -> 0.0003 | R50: ='Emission Calc'!$D$24 -> 6.537857143e-06 | T50: 1912.563923 | U50: 1222.31775 | V50: 16.29304282 | W50: 673.9531303 | X50: 245992.8925 | Y50: =X50*'Benefit Default'!$D$14 -> 140405363.3 | AC50: ='Emission Calc'!$D$14 -> 0.00017 | AD50: ='Emission Calc'!$D$27 -> 2.6973e-07 | AF50: 1083.786223 | AG50: 692.646725 | AH50: 0.672196156 | AI50: 390.4673019 | AJ50: 142520.5652 | AK50: =AJ50*'Benefit Default'!$D$15 -> 46882139.92 | AO50: ='Emission Calc'!$D$17 -> 0.00015 | AP50: ='Emission Calc'!$D$30 -> 3.124285714e-05 | AR50: 956.2819615 | AS50: 611.158875 | AT50: 77.86055861 | AU50: 267.2625279 | AV50: 97550.8227 | AW50: =AV50*'Benefit Default'!$D$16 -> 1260356.629 | AZ50: 154111143.6
A51: ='Cost Calc 1-Vehicle Uptake'!H12 -> 2029 | B51: =(C51+D51)-((C51+D51)*'Mobility Data'!$E$26) -> 6810452.558 | C51: ='Cost Calc 3-Vehicle Maintenance'!D51 -> 3917992.5 | D51: ='Cost Calc 3-Vehicle Maintenance'!D13 -> 3096806.25 | F51: ='Emission Calc'!$D$8 -> 0.06 | G51: ='Emission Calc'!$D$21 -> 0.02031248571 | I51: 408627.1535 | J51: 235079.55 | K51: 62903.83271 | L51: 110643.7708 | M51: 40384976.33 | N51: =M51*'Benefit Default'!$D$13 -> 15750140.77 | Q51: ='Emission Calc'!$D$11 -> 0.0003 | R51: ='Emission Calc'!$D$24 -> 6.537857143e-06 | T51: 2043.135767 | U51: 1175.39775 | V51: 20.24647686 | W51: 847.4915406 | X51: 309334.4123 | Y51: =X51*'Benefit Default'!$D$14 -> 176558802.5 | AC51: ='Emission Calc'!$D$14 -> 0.00017 | AD51: ='Emission Calc'!$D$27 -> 2.6973e-07 | AF51: 1157.776935 | AG51: 666.058725 | AH51: 0.8353015498 | AI51: 490.8829083 | AJ51: 179172.2615 | AK51: =AJ51*'Benefit Default'!$D$15 -> 58938715.43 | AO51: ='Emission Calc'!$D$17 -> 0.00015 | AP51: ='Emission Calc'!$D$30 -> 3.124285714e-05 | AR51: 1021.567884 | AS51: 587.698875 | AT51: 96.75307527 | AU51: 337.1159335 | AV51: 123047.3157 | AW51: =AV51*'Benefit Default'!$D$16 -> 1589771.319 | AZ51: 193898714.6
A52: ='Cost Calc 1-Vehicle Uptake'!H13 -> 2030 | B52: =(C52+D52)-((C52+D52)*'Mobility Data'!$E$26) -> 7294064.387 | C52: ='Cost Calc 3-Vehicle Maintenance'!D52 -> 3744227.5 | D52: ='Cost Calc 3-Vehicle Maintenance'!D14 -> 3768693.75 | F52: ='Emission Calc'!$D$8 -> 0.06 | G52: ='Emission Calc'!$D$21 -> 0.02031248571 | I52: 437643.8632 | J52: 224653.65 | K52: 76551.53796 | L52: 136438.6753 | M52: 49800116.48 | N52: =M52*'Benefit Default'!$D$13 -> 19422045.43 | Q52: ='Emission Calc'!$D$11 -> 0.0003 | R52: ='Emission Calc'!$D$24 -> 6.537857143e-06 | T52: 2188.219316 | U52: 1123.26825 | V52: 24.63918135 | W52: 1040.311885 | X52: 379713.838 | Y52: =X52*'Benefit Default'!$D$14 -> 216729267.3 | AC52: ='Emission Calc'!$D$14 -> 0.00017 | AD52: ='Emission Calc'!$D$27 -> 2.6973e-07 | AF52: 1239.990946 | AG52: 636.518675 | AH52: 1.016529765 | AI52: 602.4557411 | AJ52: 219896.3455 | AK52: =AJ52*'Benefit Default'!$D$15 -> 72334902.85 | AO52: ='Emission Calc'!$D$17 -> 0.00015 | AP52: ='Emission Calc'!$D$30 -> 3.124285714e-05 | AR52: 1094.109658 | AS52: 561.634125 | AT52: 117.7447604 | AU52: 414.7307726 | AV52: 151376.732 | AW52: =AV52*'Benefit Default'!$D$16 -> 1955787.378 | AZ52: 238107100.1
A53: ='Cost Calc 1-Vehicle Uptake'!H14 -> 2031 | B53: =(C53+D53)-((C53+D53)*'Mobility Data'!$E$26) -> 7826048.564 | C53: ='Cost Calc 3-Vehicle Maintenance'!D53 -> 3553097.5 | D53: ='Cost Calc 3-Vehicle Maintenance'!D15 -> 4507770 | F53: ='Emission Calc'!$D$8 -> 0.06 | G53: ='Emission Calc'!$D$21 -> 0.02031248571 | I53: 469562.9139 | J53: 213185.85 | K53: 91564.01373 | L53: 164813.0501 | M53: 60156763.3 | N53: =M53*'Benefit Default'!$D$13 -> 23461137.69 | Q53: ='Emission Calc'!$D$11 -> 0.0003 | R53: ='Emission Calc'!$D$24 -> 6.537857143e-06 | T53: 2347.814569 | U53: 1065.92925 | V53: 29.47115629 | W53: 1252.414163 | X53: 457131.1695 | Y53: =X53*'Benefit Default'!$D$14 -> 260916757.6 | AC53: ='Emission Calc'!$D$14 -> 0.00017 | AD53: ='Emission Calc'!$D$27 -> 2.6973e-07 | AF53: 1330.428256 | AG53: 604.026575 | AH53: 1.215880802 | AI53: 725.1858001 | AJ53: 264692.817 | AK53: =AJ53*'Benefit Default'!$D$15 -> 87070702.17 | AO53: ='Emission Calc'!$D$17 -> 0.00015 | AP53: ='Emission Calc'!$D$30 -> 3.124285714e-05 | AR53: 1173.907285 | AS53: 532.964625 | AT53: 140.8356141 | AU53: 500.1070455 | AV53: 182539.0716 | AW53: =AV53*'Benefit Default'!$D$16 -> 2358404.805 | AZ53: 286736300.1
A54: ='Cost Calc 1-Vehicle Uptake'!H15 -> 2032 | B54: =(C54+D54)-((C54+D54)*'Mobility Data'!$E$26) -> 8406377.177 | C54: ='Cost Calc 3-Vehicle Maintenance'!D54 -> 3344573.75 | D54: ='Cost Calc 3-Vehicle Maintenance'!D16 -> 5314035 | F54: ='Emission Calc'!$D$8 -> 0.06 | G54: ='Emission Calc'!$D$21 -> 0.02031248571 | I54: 504382.6306 | J54: 200674.425 | K54: 107941.26 | L54: 195766.9456 | M54: 71454935.14 | N54: =M54*'Benefit Default'!$D$13 -> 27867424.7 | Q54: ='Emission Calc'!$D$11 -> 0.0003 | R54: ='Emission Calc'!$D$24 -> 6.537857143e-06 | T54: 2521.913153 | U54: 1003.372125 | V54: 34.74240168 | W54: 1483.798626 | X54: 541586.4986 | Y54: =X54*'Benefit Default'!$D$14 -> 309121325.8 | AC54: ='Emission Calc'!$D$14 -> 0.00017 | AD54: ='Emission Calc'!$D$27 -> 2.6973e-07 | AF54: 1429.08412 | AG54: 568.5775375 | AH54: 1.433354661 | AI54: 859.0732279 | AJ54: 313561.7282 | AK54: =AJ54*'Benefit Default'!$D$15 -> 103146130.5 | AO54: ='Emission Calc'!$D$17 -> 0.00015 | AP54: ='Emission Calc'!$D$30 -> 3.124285714e-05 | AR54: 1260.956577 | AS54: 501.6860625 | AT54: 166.0256364 | AU54: 593.2448777 | AV54: 216534.3803 | AW54: =AV54*'Benefit Default'!$D$16 -> 2797624.194 | AZ54: 339786374.7
A55: ='Cost Calc 1-Vehicle Uptake'!H16 -> 2033 | B55: =(C55+D55)-((C55+D55)*'Mobility Data'!$E$26) -> 9035078.137 | C55: ='Cost Calc 3-Vehicle Maintenance'!D55 -> 3118685 | D55: ='Cost Calc 3-Vehicle Maintenance'!D17 -> 6187488.75 | F55: ='Emission Calc'!$D$8 -> 0.06 | G55: ='Emission Calc'!$D$21 -> 0.02031248571 | I55: 542104.6882 | J55: 187121.1 | K55: 125683.2768 | L55: 229300.3114 | M55: 83694613.66 | N55: =M55*'Benefit Default'!$D$13 -> 32640899.33 | Q55: ='Emission Calc'!$D$11 -> 0.0003 | R55: ='Emission Calc'!$D$24 -> 6.537857143e-06 | T55: 2710.523441 | U55: 935.6055 | V55: 40.45291752 | W55: 1734.465024 | X55: 633079.7336 | Y55: =X55*'Benefit Default'!$D$14 -> 361342919.6 | AC55: ='Emission Calc'!$D$14 -> 0.00017 | AD55: ='Emission Calc'!$D$27 -> 2.6973e-07 | AF55: 1535.963283 | AG55: 530.17645 | AH55: 1.668951341 | AI55: 1004.117882 | AJ55: 366503.0269 | AK55: =AJ55*'Benefit Default'!$D$15 -> 120561170.7 | AO55: ='Emission Calc'!$D$17 -> 0.00015 | AP55: ='Emission Calc'!$D$30 -> 3.124285714e-05 | AR55: 1355.261721 | AS55: 467.80275 | AT55: 193.3148271 | AU55: 694.1441435 | AV55: 253362.6124 | AW55: =AV55*'Benefit Default'!$D$16 -> 3273444.952 | AZ55: 397257263.8
A56: ='Cost Calc 1-Vehicle Uptake'!H17 -> 2034 | B56: =(C56+D56)-((C56+D56)*'Mobility Data'!$E$26) -> 9712123.533 | C56: ='Cost Calc 3-Vehicle Maintenance'!D56 -> 2875402.5 | D56: ='Cost Calc 3-Vehicle Maintenance'!D18 -> 7128131.25 | F56: ='Emission Calc'!$D$8 -> 0.06 | G56: ='Emission Calc'!$D$21 -> 0.02031248571 | I56: 582727.412 | J56: 172524.15 | K56: 144790.0642 | L56: 265413.1978 | M56: 96875817.19 | N56: =M56*'Benefit Default'!$D$13 -> 37781568.7 | Q56: ='Emission Calc'!$D$11 -> 0.0003 | R56: ='Emission Calc'!$D$24 -> 6.537857143e-06 | T56: 2913.63706 | U56: 862.62075 | V56: 46.60270381 | W56: 2004.413606 | X56: 731610.9662 | Y56: =X56*'Benefit Default'!$D$14 -> 417581591.2 | AC56: ='Emission Calc'!$D$14 -> 0.00017 | AD56: ='Emission Calc'!$D$27 -> 2.6973e-07 | AF56: 1651.061001 | AG56: 488.818425 | AH56: 1.922670842 | AI56: 1160.319905 | AJ56: 423516.7652 | AK56: =AJ56*'Benefit Default'!$D$15 -> 139315839.9 | AO56: ='Emission Calc'!$D$17 -> 0.00015 | AP56: ='Emission Calc'!$D$30 -> 3.124285714e-05 | AR56: 1456.81853 | AS56: 431.310375 | AT56: 222.7031863 | AU56: 802.8049686 | AV56: 293023.8135 | AW56: =AV56*'Benefit Default'!$D$16 -> 3785867.671 | AZ56: 459149027.6
A57: ='Cost Calc 1-Vehicle Uptake'!H18 -> 2035 | B57: =(C57+D57)-((C57+D57)*'Mobility Data'!$E$26) -> 11259998.53 | C57: ='Cost Calc 3-Vehicle Maintenance'!D57 -> 2319570.482 | D57: ='Cost Calc 3-Vehicle Maintenance'!D19 -> 9278281.927 | F57: ='Emission Calc'!$D$8 -> 0.06 | G57: ='Emission Calc'!$D$21 -> 0.02031248571 | I57: 675599.9117 | J57: 139174.2289 | K57: 188464.9691 | L57: 347960.7137 | M57: 127005660.5 | N57: =M57*'Benefit Default'!$D$13 -> 49532207.6 | Q57: ='Emission Calc'!$D$11 -> 0.0003 | R57: ='Emission Calc'!$D$24 -> 6.537857143e-06 | T57: 3377.999559 | U57: 695.8711445 | V57: 60.66008177 | W57: 2621.468332 | X57: 956835.9413 | Y57: =X57*'Benefit Default'!$D$14 -> 546133250.2 | AC57: ='Emission Calc'!$D$14 -> 0.00017 | AD57: ='Emission Calc'!$D$27 -> 2.6973e-07 | AF57: 1914.19975 | AG57: 394.3269819 | AH57: 2.502630984 | AI57: 1517.370137 | AJ57: 553840.1 | AK57: =AJ57*'Benefit Default'!$D$15 -> 182185700.9 | AO57: ='Emission Calc'!$D$17 -> 0.00015 | AP57: ='Emission Calc'!$D$30 -> 3.124285714e-05 | AR57: 1688.999779 | AS57: 347.9355722 | AT57: 289.8800368 | AU57: 1051.18417 | AV57: 383682.2221 | AW57: =AV57*'Benefit Default'!$D$16 -> 4957174.31 | AZ57: 600622632.1
A58: ='Cost Calc 1-Vehicle Uptake'!H19 -> 2036 | B58: =(C58+D58)-((C58+D58)*'Mobility Data'!$E$26) -> 11259998.53 | C58: ='Cost Calc 3-Vehicle Maintenance'!D58 -> 2319570.482 | D58: ='Cost Calc 3-Vehicle Maintenance'!D20 -> 9278281.927 | F58: ='Emission Calc'!$D$8 -> 0.06 | G58: ='Emission Calc'!$D$21 -> 0.02031248571 | I58: 675599.9117 | J58: 139174.2289 | K58: 188464.9691 | L58: 347960.7137 | M58: 127005660.5 | N58: =M58*'Benefit Default'!$D$13 -> 49532207.6 | Q58: ='Emission Calc'!$D$11 -> 0.0003 | R58: ='Emission Calc'!$D$24 -> 6.537857143e-06 | T58: 3377.999559 | U58: 695.8711445 | V58: 60.66008177 | W58: 2621.468332 | X58: 956835.9413 | Y58: =X58*'Benefit Default'!$D$14 -> 546133250.2 | AC58: ='Emission Calc'!$D$14 -> 0.00017 | AD58: ='Emission Calc'!$D$27 -> 2.6973e-07 | AF58: 1914.19975 | AG58: 394.3269819 | AH58: 2.502630984 | AI58: 1517.370137 | AJ58: 553840.1 | AK58: =AJ58*'Benefit Default'!$D$15 -> 182185700.9 | AO58: ='Emission Calc'!$D$17 -> 0.00015 | AP58: ='Emission Calc'!$D$30 -> 3.124285714e-05 | AR58: 1688.999779 | AS58: 347.9355722 | AT58: 289.8800368 | AU58: 1051.18417 | AV58: 383682.2221 | AW58: =AV58*'Benefit Default'!$D$16 -> 4957174.31 | AZ58: 600622632.1
A59: ='Cost Calc 1-Vehicle Uptake'!H20 -> 2037 | B59: =(C59+D59)-((C59+D59)*'Mobility Data'!$E$26) -> 12197355.82 | C59: ='Cost Calc 3-Vehicle Maintenance'!D59 -> 2210032.982 | D59: ='Cost Calc 3-Vehicle Maintenance'!D21 -> 10353301.93 | F59: ='Emission Calc'!$E$8 -> 0.06 | G59: ='Emission Calc'!$E$21 -> 0.006687238095 | I59: 731841.3492 | J59: 132601.9789 | K59: 69234.99505 | L59: 530004.3753 | M59: 193451597 | N59: =M59*'Benefit Default'!$D$13 -> 75446122.82 | O59: =SUM(N44:N58) -> 288026456.8 | Q59: ='Emission Calc'!$E$11 -> 0.0003 | R59: ='Emission Calc'!$E$24 -> 2.152380952e-06 | T59: 3659.206746 | U59: 663.0098945 | V59: 22.28424986 | W59: 2973.912602 | X59: 1085478.1 | Y59: =X59*'Benefit Default'!$D$14 -> 619558335 | Z59: =SUM(Y44:Y58) -> 3214791365 | AC59: ='Emission Calc'!$E$14 -> 0.00017 | AD59: ='Emission Calc'!$E$27 -> 8.88e-08 | AF59: 2073.55049 | AG59: 375.7056069 | AH59: 0.9193732111 | AI59: 1696.925509 | AJ59: 619377.8109 | AK59: =AJ59*'Benefit Default'!$D$15 -> 203744330.9 | AL59: =SUM(AK44:AK58) -> 1072968905 | AO59: ='Emission Calc'!$E$17 -> 0.00015 | AP59: ='Emission Calc'!$E$30 -> 1.028571429e-05 | AR59: 1829.603373 | AS59: 331.5049472 | AT59: 106.4911055 | AU59: 1391.60732 | AV59: 507936.6719 | AW59: =AV59*'Benefit Default'!$D$16 -> 6562541.801 | AX59: =SUM(AW44:AW58) -> 29007446.96 | AZ59: 701566999.6
A60: ='Cost Calc 1-Vehicle Uptake'!H21 -> 2038 | B60: =(C60+D60)-((C60+D60)*'Mobility Data'!$E$26) -> 12354531.06 | C60: ='Cost Calc 3-Vehicle Maintenance'!D60 -> 2094026.732 | D60: ='Cost Calc 3-Vehicle Maintenance'!D22 -> 10631199.43 | F60: ='Emission Calc'!$E$8 -> 0.06 | G60: ='Emission Calc'!$E$21 -> 0.006687238095 | I60: 741271.8636 | J60: 125641.6039 | K60: 71093.3618 | L60: 544536.8979 | M60: 198755967.7 | N60: =M60*'Benefit Default'!$D$13 -> 77514827.42 | Q60: ='Emission Calc'!$E$11 -> 0.0003 | R60: ='Emission Calc'!$E$24 -> 2.152380952e-06 | T60: 3706.359318 | U60: 628.2080195 | V60: 22.88239115 | W60: 3055.268908 | X60: 1115173.151 | Y60: =X60*'Benefit Default'!$D$14 -> 636507379.6 | AC60: ='Emission Calc'!$E$14 -> 0.00017 | AD60: ='Emission Calc'!$E$27 -> 8.88e-08 | AF60: 2100.27028 | AG60: 355.9845444 | AH60: 0.9440505091 | AI60: 1743.341685 | AJ60: 636319.7152 | AK60: =AJ60*'Benefit Default'!$D$15 -> 209317370.3 | AO60: ='Emission Calc'!$E$17 -> 0.00015 | AP60: ='Emission Calc'!$E$30 -> 1.028571429e-05 | AR60: 1853.179659 | AS60: 314.1040097 | AT60: 109.3494798 | AU60: 1429.72617 | AV60: 521850.0519 | AW60: =AV60*'Benefit Default'!$D$16 -> 6742302.67 | AZ60: 720764509.6
A61: ='Cost Calc 1-Vehicle Uptake'!H22 -> 2039 | B61: =(C61+D61)-((C61+D61)*'Mobility Data'!$E$26) -> 12537190.41 | C61: ='Cost Calc 3-Vehicle Maintenance'!D61 -> 1971580.482 | D61: ='Cost Calc 3-Vehicle Maintenance'!D23 -> 10941785.68 | F61: ='Emission Calc'!$E$8 -> 0.06 | G61: ='Emission Calc'!$E$21 -> 0.006687238095 | I61: 752231.4243 | J61: 118294.8289 | K61: 73170.32601 | L61: 560766.2694 | M61: 204679688.3 | N61: =M61*'Benefit Default'!$D$13 -> 79825078.45 | Q61: ='Emission Calc'!$E$11 -> 0.0003 | R61: ='Emission Calc'!$E$24 -> 2.152380952e-06 | T61: 3761.157122 | U61: 591.4741445 | V61: 23.55089108 | W61: 3146.132086 | X61: 1148338.211 | Y61: =X61*'Benefit Default'!$D$14 -> 655437000.9 | AC61: ='Emission Calc'!$E$14 -> 0.00017 | AD61: ='Emission Calc'!$E$27 -> 8.88e-08 | AF61: 2131.322369 | AG61: 335.1686819 | AH61: 0.9716305681 | AI61: 1795.182057 | AJ61: 655241.4506 | AK61: =AJ61*'Benefit Default'!$D$15 -> 215541675.2 | AO61: ='Emission Calc'!$E$17 -> 0.00015 | AP61: ='Emission Calc'!$E$30 -> 1.028571429e-05 | AR61: 1880.578561 | AS61: 295.7370722 | AT61: 112.5440812 | AU61: 1472.297407 | AV61: 537388.5537 | AW61: =AV61*'Benefit Default'!$D$16 -> 6943060.114 | AZ61: 742205139.5
A62: ='Cost Calc 1-Vehicle Uptake'!H23 -> 2040 | B62: =(C62+D62)-((C62+D62)*'Mobility Data'!$E$26) -> 12729479.56 | C62: ='Cost Calc 3-Vehicle Maintenance'!D62 -> 1842694.232 | D62: ='Cost Calc 3-Vehicle Maintenance'!D24 -> 11268730.68 | F62: ='Emission Calc'!$E$8 -> 0.06 | G62: ='Emission Calc'!$E$21 -> 0.006687238095 | I62: 763768.7736 | J62: 110561.6539 | K62: 75356.68507 | L62: 577850.4346 | M62: 210915408.6 | N62: =M62*'Benefit Default'!$D$13 -> 82257009.37 | Q62: ='Emission Calc'!$E$11 -> 0.0003 | R62: ='Emission Calc'!$E$24 -> 2.152380952e-06 | T62: 3818.843868 | U62: 552.8082695 | V62: 24.25460127 | W62: 3241.780997 | X62: 1183250.064 | Y62: =X62*'Benefit Default'!$D$14 -> 675363639 | AC62: ='Emission Calc'!$E$14 -> 0.00017 | AD62: ='Emission Calc'!$E$27 -> 8.88e-08 | AF62: 2164.011525 | AG62: 313.2580194 | AH62: 1.000663284 | AI62: 1849.752843 | AJ62: 675159.7875 | AK62: =AJ62*'Benefit Default'!$D$15 -> 222093812.1 | AO62: ='Emission Calc'!$E$17 -> 0.00015 | AP62: ='Emission Calc'!$E$30 -> 1.028571429e-05 | AR62: 1909.421934 | AS62: 276.4041347 | AT62: 115.9069441 | AU62: 1517.110855 | AV62: 553745.4621 | AW62: =AV62*'Benefit Default'!$D$16 -> 7154391.371 | AZ62: 764775039.8
A63: ='Cost Calc 1-Vehicle Uptake'!H24 -> 2041 | B63: =(C63+D63)-((C63+D63)*'Mobility Data'!$E$26) -> 12931398.52 | C63: ='Cost Calc 3-Vehicle Maintenance'!D63 -> 1707367.982 | D63: ='Cost Calc 3-Vehicle Maintenance'!D25 -> 11612034.43 | F63: ='Emission Calc'!$E$8 -> 0.06 | G63: ='Emission Calc'!$E$21 -> 0.006687238095 | I63: 775883.9115 | J63: 102442.0789 | K63: 77652.43898 | L63: 595789.3936 | M63: 217463128.7 | N63: =M63*'Benefit Default'!$D$13 -> 84810620.18 | Q63: ='Emission Calc'!$E$11 -> 0.0003 | R63: ='Emission Calc'!$E$24 -> 2.152380952e-06 | T63: 3879.419557 | U63: 512.2103945 | V63: 24.99352172 | W63: 3342.215641 | X63: 1219908.709 | Y63: =X63*'Benefit Default'!$D$14 -> 696287293.8 | AC63: ='Emission Calc'!$E$14 -> 0.00017 | AD63: ='Emission Calc'!$E$27 -> 8.88e-08 | AF63: 2198.337749 | AG63: 290.2525569 | AH63: 1.031148657 | AI63: 1907.054044 | AJ63: 696074.7259 | AK63: =AJ63*'Benefit Default'!$D$15 -> 228973781.1 | AO63: ='Emission Calc'!$E$17 -> 0.00015 | AP63: ='Emission Calc'!$E$30 -> 1.028571429e-05 | AR63: 1939.709779 | AS63: 256.1051972 | AT63: 119.4380684 | AU63: 1564.166513 | AV63: 570920.7772 | AW63: =AV63*'Benefit Default'!$D$16 -> 7376296.442 | AZ63: 788474210.4
A64: ='Cost Calc 1-Vehicle Uptake'!H25 -> 2042 | B64: =(C64+D64)-((C64+D64)*'Mobility Data'!$E$26) -> 13142919.39 | C64: ='Cost Calc 3-Vehicle Maintenance'!D64 -> 1565601.732 | D64: ='Cost Calc 3-Vehicle Maintenance'!D26 -> 11971668.18 | F64: ='Emission Calc'!$E$8 -> 0.06 | G64: ='Emission Calc'!$E$21 -> 0.006687238095 | I64: 788575.1631 | J64: 93936.1039 | K64: 80057.39549 | L64: 614581.6637 | M64: 224322307.3 | N64: =M64*'Benefit Default'!$D$13 -> 87485699.83 | Q64: ='Emission Calc'!$E$11 -> 0.0003 | R64: ='Emission Calc'!$E$24 -> 2.152380952e-06 | T64: 3942.875816 | U64: 469.6805195 | V64: 25.76759055 | W64: 3447.427706 | X64: 1258311.113 | Y64: =X64*'Benefit Default'!$D$14 -> 718206233.7 | AC64: ='Emission Calc'!$E$14 -> 0.00017 | AD64: ='Emission Calc'!$E$27 -> 8.88e-08 | AF64: 2234.296296 | AG64: 266.1522944 | AH64: 1.063084134 | AI64: 1967.080917 | AJ64: 717984.5347 | AK64: =AJ64*'Benefit Default'!$D$15 -> 236181012.7 | AO64: ='Emission Calc'!$E$17 -> 0.00015 | AP64: ='Emission Calc'!$E$30 -> 1.028571429e-05 | AR64: 1971.437908 | AS64: 234.8402597 | AT64: 123.1371584 | AU64: 1613.46049 | AV64: 588913.0787 | AW64: =AV64*'Benefit Default'!$D$16 -> 7608756.977 | AZ64: 813300690.5
A65: ='Cost Calc 1-Vehicle Uptake'!H26 -> 2043 | B65: =(C65+D65)-((C65+D65)*'Mobility Data'!$E$26) -> 13364070.06 | C65: ='Cost Calc 3-Vehicle Maintenance'!D65 -> 1417395.482 | D65: ='Cost Calc 3-Vehicle Maintenance'!D27 -> 12347660.68 | F65: ='Emission Calc'!$E$8 -> 0.06 | G65: ='Emission Calc'!$E$21 -> 0.006687238095 | I65: 801844.2034 | J65: 85043.7289 | K65: 82571.74686 | L65: 634228.7276 | M65: 231493485.6 | N65: =M65*'Benefit Default'!$D$13 -> 90282459.38 | Q65: ='Emission Calc'!$E$11 -> 0.0003 | R65: ='Emission Calc'!$E$24 -> 2.152380952e-06 | T65: 4009.221017 | U65: 425.2186445 | V65: 26.57686965 | W65: 3557.425503 | X65: 1298460.308 | Y65: =X65*'Benefit Default'!$D$14 -> 741122190.3 | AC65: ='Emission Calc'!$E$14 -> 0.00017 | AD65: ='Emission Calc'!$E$27 -> 8.88e-08 | AF65: 2271.89191 | AG65: 240.9572319 | AH65: 1.096472268 | AI65: 2029.838205 | AJ65: 740890.945 | AK65: =AJ65*'Benefit Default'!$D$15 -> 243716076.3 | AO65: ='Emission Calc'!$E$17 -> 0.00015 | AP65: ='Emission Calc'!$E$30 -> 1.028571429e-05 | AR65: 2004.610508 | AS65: 212.6093222 | AT65: 127.0045098 | AU65: 1664.996676 | AV65: 607723.7869 | AW65: =AV65*'Benefit Default'!$D$16 -> 7851791.326 | AZ65: 839256441
A66: ='Cost Calc 1-Vehicle Uptake'!H27 -> 2044 | B66: =(C66+D66)-((C66+D66)*'Mobility Data'!$E$26) -> 13594850.54 | C66: ='Cost Calc 3-Vehicle Maintenance'!D66 -> 1262749.232 | D66: ='Cost Calc 3-Vehicle Maintenance'!D28 -> 12740011.93 | F66: ='Emission Calc'!$E$8 -> 0.06 | G66: ='Emission Calc'!$E$21 -> 0.006687238095 | I66: 815691.0322 | J66: 75764.9539 | K66: 85195.49309 | L66: 654730.5852 | M66: 238976663.6 | N66: =M66*'Benefit Default'!$D$13 -> 93200898.8 | Q66: ='Emission Calc'!$E$11 -> 0.0003 | R66: ='Emission Calc'!$E$24 -> 2.152380952e-06 | T66: 4078.455161 | U66: 378.8247695 | V66: 27.421359 | W66: 3672.209032 | X66: 1340356.297 | Y66: =X66*'Benefit Default'!$D$14 -> 765035163.6 | AC66: ='Emission Calc'!$E$14 -> 0.00017 | AD66: ='Emission Calc'!$E$27 -> 8.88e-08 | AF66: 2311.124591 | AG66: 214.6673694 | AH66: 1.131313059 | AI66: 2095.325909 | AJ66: 764793.9567 | AK66: =AJ66*'Benefit Default'!$D$15 -> 251578972.1 | AO66: ='Emission Calc'!$E$17 -> 0.00015 | AP66: ='Emission Calc'!$E$30 -> 1.028571429e-05 | AR66: 2039.22758 | AS66: 189.4123847 | AT66: 131.0401227 | AU66: 1718.775073 | AV66: 627352.9017 | AW66: =AV66*'Benefit Default'!$D$16 -> 8105399.49 | AZ66: 866341461.9
A67: ='Cost Calc 1-Vehicle Uptake'!H28 -> 2045 | B67: =(C67+D67)-((C67+D67)*'Mobility Data'!$E$26) -> 13835232.91 | C67: ='Cost Calc 3-Vehicle Maintenance'!D67 -> 1101662.982 | D67: ='Cost Calc 3-Vehicle Maintenance'!D29 -> 13148693.18 | F67: ='Emission Calc'!$E$8 -> 0.06 | G67: ='Emission Calc'!$E$21 -> 0.006687238095 | I67: 830113.9748 | J67: 66099.7789 | K67: 87928.44191 | L67: 676085.754 | M67: 246771300.2 | N67: =M67*'Benefit Default'!$D$13 -> 96240807.09 | Q67: ='Emission Calc'!$E$11 -> 0.0003 | R67: ='Emission Calc'!$E$24 -> 2.152380952e-06 | T67: 4150.569874 | U67: 330.4988945 | V67: 28.30099674 | W67: 3791.769983 | X67: 1383996.044 | Y67: =X67*'Benefit Default'!$D$14 -> 789943421.9 | AC67: ='Emission Calc'!$E$14 -> 0.00017 | AD67: ='Emission Calc'!$E$27 -> 8.88e-08 | AF67: 2351.989595 | AG67: 187.2827069 | AH67: 1.167603954 | AI67: 2163.539285 | AJ67: 789691.8389 | AK67: =AJ67*'Benefit Default'!$D$15 -> 259769130.4 | AO67: ='Emission Calc'!$E$17 -> 0.00015 | AP67: ='Emission Calc'!$E$30 -> 1.028571429e-05 | AR67: 2075.284937 | AS67: 165.2494472 | AT67: 135.2437012 | AU67: 1774.791789 | AV67: 647799.0028 | AW67: =AV67*'Benefit Default'!$D$16 -> 8369563.117 | AZ67: 894553792.1
A68: ='Cost Calc 1-Vehicle Uptake'!H29 -> 2046 | B68: =(C68+D68)-((C68+D68)*'Mobility Data'!$E$26) -> 14085245.1 | C68: ='Cost Calc 3-Vehicle Maintenance'!D68 -> 934136.7316 | D68: ='Cost Calc 3-Vehicle Maintenance'!D30 -> 13573733.18 | F68: ='Emission Calc'!$E$8 -> 0.06 | G68: ='Emission Calc'!$E$21 -> 0.006687238095 | I68: 845114.7061 | J68: 56048.2039 | K68: 90770.78559 | L68: 698295.7166 | M68: 254877936.6 | N68: =M68*'Benefit Default'!$D$13 -> 99402395.26 | Q68: ='Emission Calc'!$E$11 -> 0.0003 | R68: ='Emission Calc'!$E$24 -> 2.152380952e-06 | T68: 4225.57353 | U68: 280.2410195 | V68: 29.21584474 | W68: 3916.116666 | X68: 1429382.583 | Y68: =X68*'Benefit Default'!$D$14 -> 815848697 | AC68: ='Emission Calc'!$E$14 -> 0.00017 | AD68: ='Emission Calc'!$E$27 -> 8.88e-08 | AF68: 2394.491667 | AG68: 158.8032444 | AH68: 1.205347506 | AI68: 2234.483075 | AJ68: 815586.3225 | AK68: =AJ68*'Benefit Default'!$D$15 -> 268287120.8 | AO68: ='Emission Calc'!$E$17 -> 0.00015 | AP68: ='Emission Calc'!$E$30 -> 1.028571429e-05 | AR68: 2112.786765 | AS68: 140.1205097 | AT68: 139.6155412 | AU68: 1833.050714 | AV68: 669063.5107 | AW68: =AV68*'Benefit Default'!$D$16 -> 8644300.558 | AZ68: 923895392.8
A69: ='Cost Calc 1-Vehicle Uptake'!H30 -> 2047 | B69: =(C69+D69)-((C69+D69)*'Mobility Data'!$E$26) -> 14344831.27 | C69: ='Cost Calc 3-Vehicle Maintenance'!D69 -> 760141.7316 | D69: ='Cost Calc 3-Vehicle Maintenance'!D31 -> 14015103.18 | F69: ='Emission Calc'!$E$8 -> 0.06 | G69: ='Emission Calc'!$E$21 -> 0.006687238095 | I69: 860689.8764 | J69: 45608.5039 | K69: 93722.33187 | L69: 721359.0406 | M69: 263296049.8 | N69: =M69*'Benefit Default'!$D$13 -> 102685459.4 | Q69: ='Emission Calc'!$E$11 -> 0.0003 | R69: ='Emission Calc'!$E$24 -> 2.152380952e-06 | T69: 4303.449382 | U69: 228.0425195 | V69: 30.16584112 | W69: 4045.241021 | X69: 1476512.973 | Y69: =X69*'Benefit Default'!$D$14 -> 842749309.5 | AC69: ='Emission Calc'!$E$14 -> 0.00017 | AD69: ='Emission Calc'!$E$27 -> 8.88e-08 | AF69: 2438.621316 | AG69: 129.2240944 | AH69: 1.244541162 | AI69: 2308.152681 | AJ69: 842475.7285 | AK69: =AJ69*'Benefit Default'!$D$15 -> 277132390.9 | AO69: ='Emission Calc'!$E$17 -> 0.00015 | AP69: ='Emission Calc'!$E$30 -> 1.028571429e-05 | AR69: 2151.724691 | AS69: 114.0212597 | AT69: 144.155347 | AU69: 1893.548084 | AV69: 691145.0507 | AW69: =AV69*'Benefit Default'!$D$16 -> 8929594.056 | AZ69: 954364362.9
A70: ='Cost Calc 1-Vehicle Uptake'!H31 -> 2048 | B70: =(C70+D70)-((C70+D70)*'Mobility Data'!$E$26) -> 14614047.25 | C70: ='Cost Calc 3-Vehicle Maintenance'!D70 -> 579706.7316 | D70: ='Cost Calc 3-Vehicle Maintenance'!D32 -> 14472831.93 | F70: ='Emission Calc'!$E$8 -> 0.06 | G70: ='Emission Calc'!$E$21 -> 0.006687238095 | I70: 876842.8353 | J70: 34782.4039 | K70: 96783.27301 | L70: 745277.1583 | M70: 272026162.8 | N70: =M70*'Benefit Default'!$D$13 -> 106090203.5 | Q70: ='Emission Calc'!$E$11 -> 0.0003 | R70: ='Emission Calc'!$E$24 -> 2.152380952e-06 | T70: 4384.214176 | U70: 173.9120195 | V70: 31.15104777 | W70: 4179.151109 | X70: 1525390.155 | Y70: =X70*'Benefit Default'!$D$14 -> 870646938.6 | AC70: ='Emission Calc'!$E$14 -> 0.00017 | AD70: ='Emission Calc'!$E$27 -> 8.88e-08 | AF70: 2484.388033 | AG70: 98.55014438 | AH70: 1.285187475 | AI70: 2384.552701 | AJ70: 870361.736 | AK70: =AJ70*'Benefit Default'!$D$15 -> 286305493.1 | AO70: ='Emission Calc'!$E$17 -> 0.00015 | AP70: ='Emission Calc'!$E$30 -> 1.028571429e-05 | AR70: 2192.107088 | AS70: 86.95600974 | AT70: 148.8634141 | AU70: 1956.287664 | AV70: 714044.9975 | AW70: =AV70*'Benefit Default'!$D$16 -> 9225461.367 | AZ70: 985962603.5
A71: ='Cost Calc 1-Vehicle Uptake'!H32 -> 2049 | B71: =(C71+D71)-((C71+D71)*'Mobility Data'!$E$26) -> 14892893.05 | C71: ='Cost Calc 3-Vehicle Maintenance'!D71 -> 392831.7316 | D71: ='Cost Calc 3-Vehicle Maintenance'!D33 -> 14946919.43 | F71: ='Emission Calc'!$E$8 -> 0.06 | G71: ='Emission Calc'!$E$21 -> 0.006687238095 | I71: 893573.5827 | J71: 23569.9039 | K71: 99953.609 | L71: 770050.0698 | M71: 281068275.5 | N71: =M71*'Benefit Default'!$D$13 -> 109616627.4 | Q71: ='Emission Calc'!$E$11 -> 0.0003 | R71: ='Emission Calc'!$E$24 -> 2.152380952e-06 | T71: 4467.867914 | U71: 117.8495195 | V71: 32.17146467 | W71: 4317.846929 | X71: 1576014.129 | Y71: =X71*'Benefit Default'!$D$14 -> 899541584.5 | AC71: ='Emission Calc'!$E$14 -> 0.00017 | AD71: ='Emission Calc'!$E$27 -> 8.88e-08 | AF71: 2531.791818 | AG71: 66.78139438 | AH71: 1.327286445 | AI71: 2463.683137 | AJ71: 899244.3449 | AK71: =AJ71*'Benefit Default'!$D$15 -> 295806427.3 | AO71: ='Emission Calc'!$E$17 -> 0.00015 | AP71: ='Emission Calc'!$E$30 -> 1.028571429e-05 | AR71: 2233.933957 | AS71: 58.92475974 | AT71: 153.7397427 | AU71: 2021.269454 | AV71: 737763.3508 | AW71: =AV71*'Benefit Default'!$D$16 -> 9531902.493 | AZ71: 1018690114
A72: ='Cost Calc 1-Vehicle Uptake'!H33 -> 2050 | B72: =(C72+D72)-((C72+D72)*'Mobility Data'!$E$26) -> 14721848.43 | C72: ='Cost Calc 3-Vehicle Maintenance'!D72 -> 0 | D72: ='Cost Calc 3-Vehicle Maintenance'!D34 -> 15163574.38 | F72: ='Emission Calc'!$E$8 -> 0.06 | G72: ='Emission Calc'!$E$21 -> 0.006687238095 | I72: 883310.9057 | J72: 0 | K72: 101402.4323 | L72: 781908.4734 | M72: 285396592.8 | N72: =M72*'Benefit Default'!$D$13 -> 111304671.2 | Q72: ='Emission Calc'!$E$11 -> 0.0003 | R72: ='Emission Calc'!$E$24 -> 2.152380952e-06 | T72: 4416.554529 | U72: 0 | V72: 32.63778867 | W72: 4383.91674 | X72: 1600129.61 | Y72: =X72*'Benefit Default'!$D$14 -> 913305977.6 | AC72: ='Emission Calc'!$E$14 -> 0.00017 | AD72: ='Emission Calc'!$E$27 -> 8.88e-08 | AF72: 2502.714233 | AG72: 0 | AH72: 1.346525405 | AI72: 2501.367708 | AJ72: 912999.2132 | AK72: =AJ72*'Benefit Default'!$D$15 -> 300331091.2 | AO72: ='Emission Calc'!$E$17 -> 0.00015 | AP72: ='Emission Calc'!$E$30 -> 1.028571429e-05 | AR72: 2208.277264 | AS72: 0 | AT72: 155.9681937 | AU72: 2052.309071 | AV72: 749092.8108 | AW72: =AV72*'Benefit Default'!$D$16 -> 9678279.115 | AZ72: 1034288928
A73: ='Cost Calc 1-Vehicle Uptake'!H34 -> 2051 | B73: =(C73+D73)-((C73+D73)*'Mobility Data'!$E$26) -> 14721848.43 | C73: ='Cost Calc 3-Vehicle Maintenance'!D73 -> 0 | D73: ='Cost Calc 3-Vehicle Maintenance'!D35 -> 15163574.38 | F73: ='Emission Calc'!$E$8 -> 0.06 | G73: ='Emission Calc'!$E$21 -> 0.006687238095 | I73: 883310.9057 | J73: 0 | K73: 101402.4323 | L73: 781908.4734 | M73: 285396592.8 | N73: =M73*'Benefit Default'!$D$13 -> 111304671.2 | Q73: ='Emission Calc'!$E$11 -> 0.0003 | R73: ='Emission Calc'!$E$24 -> 2.152380952e-06 | T73: 4416.554529 | U73: 0 | V73: 32.63778867 | W73: 4383.91674 | X73: 1600129.61 | Y73: =X73*'Benefit Default'!$D$14 -> 913305977.6 | AC73: ='Emission Calc'!$E$14 -> 0.00017 | AD73: ='Emission Calc'!$E$27 -> 8.88e-08 | AF73: 2502.714233 | AG73: 0 | AH73: 1.346525405 | AI73: 2501.367708 | AJ73: 912999.2132 | AK73: =AJ73*'Benefit Default'!$D$15 -> 300331091.2 | AO73: ='Emission Calc'!$E$17 -> 0.00015 | AP73: ='Emission Calc'!$E$30 -> 1.028571429e-05 | AR73: 2208.277264 | AS73: 0 | AT73: 155.9681937 | AU73: 2052.309071 | AV73: 749092.8108 | AW73: =AV73*'Benefit Default'!$D$16 -> 9678279.115 | AZ73: 1034288928
A74: 2050 | B74: =C74+D74 -> 527428.6742 | C74: ='Cost Calc 3-Vehicle Maintenance'!D74 -> 0 | D74: ='Mobility Calc'!E88 -> 527428.6742 | F74: ='Emission Calc'!$E$8 -> 0.06 | G74: ='Emission Calc'!$E$21 -> 0.006687238095 | I74: 31645.72045 | J74: 0 | K74: 3527.041123 | L74: 28118.67933 | M74: 10263317.96 | N74: =M74*'Benefit Default'!$D$13 -> 4002694.003 | O74: =SUM(N59:N73) -> 1409427400 | Q74: ='Emission Calc'!$E$11 -> 0.0003 | R74: ='Emission Calc'!$E$24 -> 2.152380952e-06 | T74: =B74*Q74 -> 158.2286023 | U74: 0 | V74: 1.135227432 | W74: 157.0933748 | X74: 57339.08182 | Y74: =X74*'Benefit Default'!$D$14 -> 32727427.73 | Z74: =SUM(Y59:Y73) -> 1.156898468e+10 | AC74: ='Emission Calc'!$E$14 -> 0.00017 | AD74: ='Emission Calc'!$E$27 -> 8.88e-08 | AF74: =B74*AC74 -> 89.66287462 | AG74: 0 | AH74: =D74*AD74 -> 0.04683566627 | AI74: 89.61603895 | AJ74: 32709.85422 | AK74: =AJ74*'Benefit Default'!$D$15 -> 10759906.55 | AL74: =SUM(AK59:AK73) -> 3804413308 | AO74: ='Emission Calc'!$E$17 -> 0.00015 | AP74: ='Emission Calc'!$E$30 -> 1.028571429e-05 | AR74: 79.11430114 | AS74: 0 | AT74: 5.424980649 | AU74: 73.68932049 | AV74: 26896.60198 | AW74: =AV74*'Benefit Default'!$D$16 -> 347504.0975 | AX74: =SUM(AW59:AW73) -> 122572540 | AZ74: 37077625.83
C78: KM by shared fleet | F78: CO2/ KM by shared fleet | Q78: PM10/ KM by shared fleet | AC78: PM2.5/ KM by shared fleet | AO78: NOX/ KM by shared fleet | AZ78: Shared fleet benefits
A79: YEAR | B79: BASELINE ICE | C79: ICE | D79: EV | F79: ICE | G79: EV | I79: Baseline ICE | J79: Scenario ICE | K79: Scenario EV | L79: Reduction | M79: Annual CO2 kg reduction | N79: USD 2020 | Q79: ICE | R79: EV | T79: Baseline ICE | U79: Scenario ICE | V79: Scenario EV | W79: Reduction | X79: Annual PM10 kg reduction | Y79: USD 2020 | AC79: ICE | AD79: EV | AF79: Baseline ICE | AG79: Scenario ICE | AH79: Scenario EV | AI79: Reduction | AJ79: Annual PM2.5 kg reduction | AK79: USD 2020 | AO79: ICE | AP79: EV | AR79: Baseline ICE | AS79: Scenario ICE | AT79: Scenario EV | AU79: Reduction | AV79: Annual NOx kg reduction | AW79: USD 2020 | AZ79: USD 2020
A80: ='Cost Calc 1-Vehicle Uptake'!H4 -> 2021 | B80: =(C80+D80)-((C80+D80)*'Mobility Data'!$E$30) -> 4680750 | C80: ='Cost Calc 3-Vehicle Maintenance'!E43 -> 4680750 | D80: ='Cost Calc 3-Vehicle Maintenance'!E5 -> 140422.5 | F80: ='Emission Calc'!$C$7 -> 0.2289137 | G80: ='Emission Calc'!C20 -> 0.0781944 | I80: =B80*F80 -> 1071487.801 | J80: =C80*F80 -> 1071487.801 | K80: =G80*D80 -> 10980.25313 | L80: =I80-(K80+J80) -> -10980.25313 | M80: =L80*365 -> -4007792.394 | N80: =M80*'Benefit Default'!$D$13 -> -1563039.034 | O80: =N80 -> -1563039.034 | Q80: ='Emission Calc'!D10 -> 2.734e-06 | R80: ='Emission Calc'!$C$23 -> 2.1366e-05 | T80: =B80*Q80 -> 12.7971705 | U80: =C80*Q80 -> 12.7971705 | V80: =D80*R80 -> 3.000267135 | W80: =T80-(V80+U80) -> -3.000267135 | X80: =W80*365 -> -1095.097504 | Y80: =X80*'Benefit Default'!$D$14 -> -625048.8025 | Z80: =Y80 -> -625048.8025 | AC80: ='Emission Calc'!C87 -> 0 | AD80: ='Emission Calc'!C100 -> 0 | AF80: =B80*AC80 -> 0 | AG80: =C80*AC80 -> 0 | AH80: =D80*AD80 -> 0 | AI80: =AF80-(AH80+AG80) -> 0 | AJ80: =AI80*365 -> 0 | AK80: =AJ80*'Benefit Default'!$D$15 -> 0 | AL80: =AK80 -> 0 | AO80: ='Emission Calc'!C16 -> 0.0004306 | AP80: ='Emission Calc'!C29 -> 0.0001242 | AR80: =B80*AO80 -> 2015.53095 | AS80: =AO80*C80 -> 2015.53095 | AT80: =AP80*D80 -> 17.4404745 | AU80: =AR80-(AT80+AS80) -> -17.4404745 | AV80: =AU80*365 -> -6365.773192 | AW80: =AV80*'Benefit Default'!$D$16 -> -82245.78965 | AX80: =AW80 -> -82245.78965 | AZ80: =N80+Y80+AW80 -> -2270333.626
A81: ='Cost Calc 1-Vehicle Uptake'!H5 -> 2022 | B81: =(C81+D81)-((C81+D81)*'Mobility Data'!$E$30) -> 4680731.822 | C81: ='Cost Calc 3-Vehicle Maintenance'!E44 -> 4611400.008 | D81: ='Cost Calc 3-Vehicle Maintenance'!E6 -> 209753.769 | F81: ='Emission Calc'!$D$7 -> 0.2289137 | G81: ='Emission Calc'!$D$20 -> 0.0421296 | I81: 1071483.64 | J81: 1055612.638 | K81: 8836.842386 | L81: =I81-(K81+J81) -> 7034.15976 | M81: =L81*365 -> 2567468.312 | N81: =M81*'Benefit Default'!$D$13 -> 1001312.642 | Q81: ='Emission Calc'!$D$10 -> 2.734e-06 | R81: ='Emission Calc'!$D$23 -> 1.356e-05 | T81: 12.7971208 | U81: 12.60756762 | V81: 2.844261108 | W81: =T81-(V81+U81) -> -2.654707927 | X81: =W81*365 -> -968.9683935 | Y81: =X81*'Benefit Default'!$D$14 -> -553058.0899 | AC81: ='Emission Calc'!$D$13 -> 6.598294e-06 | AD81: ='Emission Calc'!$D$26 -> 5.5944e-07 | AF81: =B81*AC81 -> 30.8848447 | AG81: =C81*AC81 -> 30.427373 | AH81: =D81*AD81 -> 0.1173446485 | AI81: =AF81-(AH81+AG81) -> 0.340127046 | AJ81: =AI81*365 -> 124.1463718 | AK81: =AJ81*'Benefit Default'!$D$15 -> 40837.949 | AO81: ='Emission Calc'!$D$16 -> 0.0004306 | AP81: ='Emission Calc'!$D$29 -> 6.48e-05 | AR81: 2015.523123 | AS81: 1985.668843 | AT81: 13.59204423 | AU81: =AR81-(AT81+AS81) -> 16.26223502 | AV81: =AU81*365 -> 5935.715782 | AW81: =AV81*'Benefit Default'!$D$16 -> 76689.4479 | AZ81: 524943.9997
A82: ='Cost Calc 1-Vehicle Uptake'!H6 -> 2023 | B82: =(C82+D82)-((C82+D82)*'Mobility Data'!$E$30) -> 4680713.645 | C82: ='Cost Calc 3-Vehicle Maintenance'!E45 -> 4507375.02 | D82: ='Cost Calc 3-Vehicle Maintenance'!E7 -> 313760.034 | F82: ='Emission Calc'!$D$7 -> 0.2289137 | G82: ='Emission Calc'!$D$20 -> 0.0421296 | I82: 1071479.479 | J82: 1031799.893 | K82: 13218.58473 | L82: 26461.0012 | M82: 9658265.436 | N82: =M82*'Benefit Default'!$D$13 -> 3766723.52 | Q82: ='Emission Calc'!$D$10 -> 2.734e-06 | R82: ='Emission Calc'!$D$23 -> 1.356e-05 | T82: 12.7970711 | U82: 12.3231633 | V82: 4.254586061 | W82: -3.780678261 | X82: -1379.947565 | Y82: =X82*'Benefit Default'!$D$14 -> -787632.6719 | AC82: ='Emission Calc'!$D$13 -> 6.598294e-06 | AD82: ='Emission Calc'!$D$26 -> 5.5944e-07 | AF82: 30.88472476 | AG82: =C82*AC82 -> 29.74098555 | AH82: =D82*AD82 -> 0.1755299134 | AI82: 0.9682092936 | AJ82: 353.3963922 | AK82: =AJ82*'Benefit Default'!$D$15 -> 116249.7432 | AO82: ='Emission Calc'!$D$16 -> 0.0004306 | AP82: ='Emission Calc'!$D$29 -> 6.48e-05 | AR82: 2015.515295 | AS82: 1940.875684 | AT82: 20.3316502 | AU82: 54.30796158 | AV82: 19822.40598 | AW82: =AV82*'Benefit Default'!$D$16 -> 256105.4852 | AZ82: 3235196.334
A83: ='Cost Calc 1-Vehicle Uptake'!H7 -> 2024 | B83: =(C83+D83)-((C83+D83)*'Mobility Data'!$E$30) -> 4680677.289 | C83: ='Cost Calc 3-Vehicle Maintenance'!E46 -> 4368675.036 | D83: ='Cost Calc 3-Vehicle Maintenance'!E8 -> 452422.572 | F83: ='Emission Calc'!$D$7 -> 0.2289137 | G83: ='Emission Calc'!$D$20 -> 0.0421296 | I83: 1071471.157 | J83: 1000049.567 | K83: 19060.38199 | L83: 52361.20823 | M83: 19111841 | N83: =M83*'Benefit Default'!$D$13 -> 7453617.991 | Q83: ='Emission Calc'!$D$10 -> 2.734e-06 | R83: ='Emission Calc'!$D$23 -> 1.356e-05 | T83: 12.79697171 | U83: 11.94395755 | V83: 6.134850076 | W83: -5.281835916 | X83: -1927.870109 | Y83: =X83*'Benefit Default'!$D$14 -> -1100370.422 | AC83: ='Emission Calc'!$D$13 -> 6.598294e-06 | AD83: ='Emission Calc'!$D$26 -> 5.5944e-07 | AF83: 30.88448487 | AG83: 28.82580228 | AH83: 0.2531032837 | AI83: 1.805579312 | AJ83: 659.036449 | AK83: =AJ83*'Benefit Default'!$D$15 -> 216790.0399 | AO83: ='Emission Calc'!$D$16 -> 0.0004306 | AP83: ='Emission Calc'!$D$29 -> 6.48e-05 | AR83: 2015.499641 | AS83: 1881.151471 | AT83: 29.31698267 | AU83: 105.0311876 | AV83: 38336.38348 | AW83: =AV83*'Benefit Default'!$D$16 -> 495306.0746 | AZ83: 6848553.643
A84: ='Cost Calc 1-Vehicle Uptake'!H8 -> 2025 | B84: =(C84+D84)-((C84+D84)*'Mobility Data'!$E$30) -> 4680640.934 | C84: ='Cost Calc 3-Vehicle Maintenance'!E47 -> 4195300.056 | D84: ='Cost Calc 3-Vehicle Maintenance'!E9 -> 625760.106 | F84: ='Emission Calc'!$D$7 -> 0.2289137 | G84: ='Emission Calc'!$D$20 -> 0.0421296 | I84: 1071462.835 | J84: 960361.6584 | K84: 26363.02296 | L84: 84738.15318 | M84: 30929425.91 | N84: =M84*'Benefit Default'!$D$13 -> 12062476.1 | Q84: ='Emission Calc'!$D$10 -> 2.734e-06 | R84: ='Emission Calc'!$D$23 -> 1.356e-05 | T84: 12.79687231 | U84: 11.46995035 | V84: 8.485307037 | W84: -7.158385077 | X84: -2612.810553 | Y84: =X84*'Benefit Default'!$D$14 -> -1491313.879 | AC84: ='Emission Calc'!$D$13 -> 6.598294e-06 | AD84: ='Emission Calc'!$D$26 -> 5.5944e-07 | AF84: 30.88424499 | AG84: 27.68182319 | AH84: 0.3500752337 | AI84: 2.852346569 | AJ84: 1041.106498 | AK84: =AJ84*'Benefit Default'!$D$15 -> 342471.9825 | AO84: ='Emission Calc'!$D$16 -> 0.0004306 | AP84: ='Emission Calc'!$D$29 -> 6.48e-05 | AR84: 2015.483986 | AS84: 1806.496204 | AT84: 40.54925487 | AU84: 168.4385272 | AV84: 61480.06242 | AW84: =AV84*'Benefit Default'!$D$16 -> 794322.4065 | AZ84: 11365484.63
A85: ='Cost Calc 1-Vehicle Uptake'!H9 -> 2026 | B85: =(C85+D85)-((C85+D85)*'Mobility Data'!$E$30) -> 4680604.579 | C85: ='Cost Calc 3-Vehicle Maintenance'!E48 -> 3987250.08 | D85: ='Cost Calc 3-Vehicle Maintenance'!E10 -> 833772.636 | F85: ='Emission Calc'!$D$7 -> 0.2289137 | G85: ='Emission Calc'!$D$20 -> 0.0421296 | I85: 1071454.512 | J85: 912736.1686 | K85: 35126.50765 | L85: 123591.836 | M85: 45111020.16 | N85: =M85*'Benefit Default'!$D$13 -> 17593297.86 | Q85: ='Emission Calc'!$D$10 -> 2.734e-06 | R85: ='Emission Calc'!$D$23 -> 1.356e-05 | T85: 12.79677292 | U85: 10.90114172 | V85: 11.30595694 | W85: -9.410325745 | X85: -3434.768897 | Y85: =X85*'Benefit Default'!$D$14 -> -1960463.043 | AC85: ='Emission Calc'!$D$13 -> 6.598294e-06 | AD85: ='Emission Calc'!$D$26 -> 5.5944e-07 | AF85: 30.88400511 | AG85: 26.30904828 | AH85: 0.4664457635 | AI85: 4.108511065 | AJ85: 1499.606539 | AK85: =AJ85*'Benefit Default'!$D$15 -> 493295.5709 | AO85: ='Emission Calc'!$D$16 -> 0.0004306 | AP85: ='Emission Calc'!$D$29 -> 6.48e-05 | AR85: 2015.468332 | AS85: 1716.909884 | AT85: 54.02846681 | AU85: 244.5299803 | AV85: 89253.44281 | AW85: =AV85*'Benefit Default'!$D$16 -> 1153154.481 | AZ85: 16785989.3
A86: ='Cost Calc 1-Vehicle Uptake'!H10 -> 2027 | B86: =(C86+D86)-((C86+D86)*'Mobility Data'!$E$30) -> 4680568.223 | C86: ='Cost Calc 3-Vehicle Maintenance'!E49 -> 3744543.831 | D86: ='Cost Calc 3-Vehicle Maintenance'!E11 -> 1076441.439 | F86: ='Emission Calc'!$D$7 -> 0.2289137 | G86: ='Emission Calc'!$D$20 -> 0.0421296 | I86: 1071446.19 | J86: 857177.3832 | K86: 45350.04725 | L86: 168918.7597 | M86: 61655347.28 | N86: =M86*'Benefit Default'!$D$13 -> 24045585.44 | Q86: ='Emission Calc'!$D$10 -> 2.734e-06 | R86: ='Emission Calc'!$D$23 -> 1.356e-05 | T86: 12.79667352 | U86: 10.23758283 | V86: 14.59654591 | W86: =T86-(V86+U86) -> -12.03745522 | X86: -4393.671157 | Y86: =X86*'Benefit Default'!$D$14 -> -2507775.686 | AC86: ='Emission Calc'!$D$13 -> 6.598294e-06 | AD86: ='Emission Calc'!$D$26 -> 5.5944e-07 | AF86: 30.88376522 | AG86: 24.70760109 | AH86: 0.6022043986 | AI86: 5.573959733 | AJ86: 2034.495303 | AK86: =AJ86*'Benefit Default'!$D$15 -> 669247.2298 | AO86: ='Emission Calc'!$D$16 -> 0.0004306 | AP86: ='Emission Calc'!$D$29 -> 6.48e-05 | AR86: 2015.452677 | AS86: 1612.400574 | AT86: 69.75340525 | AU86: 333.2986981 | AV86: 121654.0248 | AW86: =AV86*'Benefit Default'!$D$16 -> 1571770 | AZ86: 23109579.76
A87: ='Cost Calc 1-Vehicle Uptake'!H11 -> 2028 | B87: =(C87+D87)-((C87+D87)*'Mobility Data'!$E$30) -> 4680531.868 | C87: ='Cost Calc 3-Vehicle Maintenance'!E50 -> 3467162.586 | D87: ='Cost Calc 3-Vehicle Maintenance'!E12 -> 1353785.238 | F87: ='Emission Calc'!$D$7 -> 0.2289137 | G87: ='Emission Calc'!$D$20 -> 0.0421296 | I87: 1071437.868 | J87: 793681.0161 | K87: 57034.43056 | L87: 220722.4212 | M87: 80563683.75 | N87: =M87*'Benefit Default'!$D$13 -> 31419836.66 | Q87: ='Emission Calc'!$D$10 -> 2.734e-06 | R87: ='Emission Calc'!$D$23 -> 1.356e-05 | T87: 12.79657413 | U87: 9.47922251 | V87: 18.35732783 | W87: -15.03997621 | X87: -5489.591317 | Y87: =X87*'Benefit Default'!$D$14 -> -3133294.036 | AC87: ='Emission Calc'!$D$13 -> 6.598294e-06 | AD87: ='Emission Calc'!$D$26 -> 5.5944e-07 | AF87: 30.88352534 | AG87: 22.87735809 | AH87: 0.7573616135 | AI87: 7.248805639 | AJ87: 2645.814058 | AK87: =AJ87*'Benefit Default'!$D$15 -> 870340.5345 | AO87: ='Emission Calc'!$D$16 -> 0.0004306 | AP87: ='Emission Calc'!$D$29 -> 6.48e-05 | AR87: 2015.437022 | AS87: 1492.96021 | AT87: 87.72528342 | AU87: 434.7515294 | AV87: 158684.3082 | AW87: =AV87*'Benefit Default'!$D$16 -> 2050201.262 | AZ87: 30336743.89
A88: ='Cost Calc 1-Vehicle Uptake'!H12 -> 2029 | B88: =(C88+D88)-((C88+D88)*'Mobility Data'!$E$30) -> 4680495.513 | C88: ='Cost Calc 3-Vehicle Maintenance'!E51 -> 3155106.345 | D88: ='Cost Calc 3-Vehicle Maintenance'!E13 -> 1665804.033 | F88: ='Emission Calc'!$D$7 -> 0.2289137 | G88: ='Emission Calc'!$D$20 -> 0.0421296 | I88: 1071429.546 | J88: 722247.0673 | K88: 70179.65759 | L88: 279002.8207 | M88: 101836029.6 | N88: =M88*'Benefit Default'!$D$13 -> 39716051.53 | Q88: ='Emission Calc'!$D$10 -> 2.734e-06 | R88: ='Emission Calc'!$D$23 -> 1.356e-05 | T88: 12.79647473 | U88: 8.626060747 | V88: 22.58830269 | W88: -18.4178887 | X88: -6722.529377 | Y88: =X88*'Benefit Default'!$D$14 -> -3837018.092 | AC88: ='Emission Calc'!$D$13 -> 6.598294e-06 | AD88: ='Emission Calc'!$D$26 -> 5.5944e-07 | AF88: 30.88328546 | AG88: 20.81831927 | AH88: 0.9319174082 | AI88: 9.133048784 | AJ88: 3333.562806 | AK88: =AJ88*'Benefit Default'!$D$15 -> 1096575.485 | AO88: ='Emission Calc'!$D$16 -> 0.0004306 | AP88: ='Emission Calc'!$D$29 -> 6.48e-05 | AR88: 2015.421368 | AS88: 1358.588792 | AT88: 107.9441013 | AU88: 548.8884742 | AV88: 200344.2931 | AW88: =AV88*'Benefit Default'!$D$16 -> 2588448.267 | AZ88: 38467481.7
A89: ='Cost Calc 1-Vehicle Uptake'!H13 -> 2030 | B89: =(C89+D89)-((C89+D89)*'Mobility Data'!$E$30) -> 4680440.98 | C89: ='Cost Calc 3-Vehicle Maintenance'!E52 -> 2808375.108 | D89: ='Cost Calc 3-Vehicle Maintenance'!E14 -> 2012479.101 | F89: ='Emission Calc'!$D$7 -> 0.2289137 | G89: ='Emission Calc'!$D$20 -> 0.0421296 | I89: 1071417.062 | J89: 642875.537 | K89: 84784.93953 | L89: 343756.5858 | M89: 125471153.8 | N89: =M89*'Benefit Default'!$D$13 -> 48933749.99 | Q89: ='Emission Calc'!$D$10 -> 2.734e-06 | R89: ='Emission Calc'!$D$23 -> 1.356e-05 | T89: 12.79632564 | U89: 7.678097545 | V89: 27.28921661 | W89: -22.17098852 | X89: -8092.410809 | Y89: =X89*'Benefit Default'!$D$14 -> -4618905.317 | AC89: ='Emission Calc'!$D$13 -> 6.598294e-06 | AD89: ='Emission Calc'!$D$26 -> 5.5944e-07 | AF89: 30.88292563 | AG89: 18.53048462 | AH89: 1.125861308 | AI89: 11.2265797 | AJ89: 4097.70159 | AK89: =AJ89*'Benefit Default'!$D$15 -> 1347938.938 | AO89: ='Emission Calc'!$D$16 -> 0.0004306 | AP89: ='Emission Calc'!$D$29 -> 6.48e-05 | AR89: 2015.397886 | AS89: 1209.286322 | AT89: 130.4086457 | AU89: 675.7029186 | AV89: 246631.5653 | AW89: =AV89*'Benefit Default'!$D$16 -> 3186479.823 | AZ89: 47501324.49
A90: ='Cost Calc 1-Vehicle Uptake'!H14 -> 2031 | B90: =(C90+D90)-((C90+D90)*'Mobility Data'!$E$30) -> 4680386.447 | C90: ='Cost Calc 3-Vehicle Maintenance'!E53 -> 2426968.875 | D90: ='Cost Calc 3-Vehicle Maintenance'!E15 -> 2393829.165 | F90: ='Emission Calc'!$D$7 -> 0.2289137 | G90: ='Emission Calc'!$D$20 -> 0.0421296 | I90: 1071404.579 | J90: 555566.425 | K90: 100851.0652 | L90: 414987.0888 | M90: 151470287.4 | N90: =M90*'Benefit Default'!$D$13 -> 59073412.09 | Q90: ='Emission Calc'!$D$10 -> 2.734e-06 | R90: ='Emission Calc'!$D$23 -> 1.356e-05 | T90: 12.79617655 | U90: 6.635332904 | V90: 32.46032348 | W90: -26.29947984 | X90: -9599.31014 | Y90: =X90*'Benefit Default'!$D$14 -> -5478998.249 | AC90: ='Emission Calc'!$D$13 -> 6.598294e-06 | AD90: ='Emission Calc'!$D$26 -> 5.5944e-07 | AF90: 30.88256581 | AG90: 16.01385417 | AH90: 1.339203788 | AI90: 13.52950785 | AJ90: 4938.270367 | AK90: =AJ90*'Benefit Default'!$D$15 -> 1624444.037 | AO90: ='Emission Calc'!$D$16 -> 0.0004306 | AP90: ='Emission Calc'!$D$29 -> 6.48e-05 | AR90: 2015.374404 | AS90: 1045.052798 | AT90: 155.1201299 | AU90: 815.2014764 | AV90: 297548.5389 | AW90: =AV90*'Benefit Default'!$D$16 -> 3844327.123 | AZ90: 57438740.96
A91: ='Cost Calc 1-Vehicle Uptake'!H15 -> 2032 | B91: =(C91+D91)-((C91+D91)*'Mobility Data'!$E$30) -> 4680331.914 | C91: ='Cost Calc 3-Vehicle Maintenance'!E54 -> 2010887.646 | D91: ='Cost Calc 3-Vehicle Maintenance'!E16 -> 2809854.225 | F91: ='Emission Calc'!$D$7 -> 0.2289137 | G91: ='Emission Calc'!$D$20 -> 0.0421296 | I91: 1071392.096 | J91: 460319.7313 | K91: 118378.0346 | L91: 492694.3297 | M91: 179833430.3 | N91: =M91*'Benefit Default'!$D$13 -> 70135037.83 | Q91: ='Emission Calc'!$D$10 -> 2.734e-06 | R91: ='Emission Calc'!$D$23 -> 1.356e-05 | T91: 12.79602745 | U91: 5.497766824 | V91: 38.10162329 | W91: -30.80336266 | X91: -11243.22737 | Y91: =X91*'Benefit Default'!$D$14 -> -6417296.887 | AC91: ='Emission Calc'!$D$13 -> 6.598294e-06 | AD91: ='Emission Calc'!$D$26 -> 5.5944e-07 | AF91: 30.88220598 | AG91: 13.26842789 | AH91: 1.571944848 | AI91: 16.04183325 | AJ91: 5855.269135 | AK91: =AJ91*'Benefit Default'!$D$15 -> 1926090.782 | AO91: ='Emission Calc'!$D$16 -> 0.0004306 | AP91: ='Emission Calc'!$D$29 -> 6.48e-05 | AR91: 2015.350922 | AS91: 865.8882204 | AT91: 182.0785538 | AU91: 967.3841478 | AV91: 353095.214 | AW91: =AV91*'Benefit Default'!$D$16 -> 4561990.164 | AZ91: 68279731.11
A92: ='Cost Calc 1-Vehicle Uptake'!H16 -> 2033 | B92: =(C92+D92)-((C92+D92)*'Mobility Data'!$E$30) -> 4680277.381 | C92: ='Cost Calc 3-Vehicle Maintenance'!E55 -> 1560131.421 | D92: ='Cost Calc 3-Vehicle Maintenance'!E17 -> 3260554.281 | F92: ='Emission Calc'!$D$7 -> 0.2289137 | G92: ='Emission Calc'!$D$20 -> 0.0421296 | I92: 1071379.612 | J92: 357135.4561 | K92: 137365.8476 | L92: 576878.3085 | M92: 210560582.6 | N92: =M92*'Benefit Default'!$D$13 -> 82118627.22 | Q92: ='Emission Calc'!$D$10 -> 2.734e-06 | R92: ='Emission Calc'!$D$23 -> 1.356e-05 | T92: 12.79587836 | U92: 4.265399305 | V92: 44.21311605 | W92: -35.682637 | X92: -13024.1625 | Y92: =X92*'Benefit Default'!$D$14 -> -7433801.232 | AC92: ='Emission Calc'!$D$13 -> 6.598294e-06 | AD92: ='Emission Calc'!$D$26 -> 5.5944e-07 | AF92: 30.88184616 | AG92: 10.29420579 | AH92: 1.824084487 | AI92: 18.76355588 | AJ92: 6848.697895 | AK92: =AJ92*'Benefit Default'!$D$15 -> 2252879.173 | AO92: ='Emission Calc'!$D$16 -> 0.0004306 | AP92: ='Emission Calc'!$D$29 -> 6.48e-05 | AR92: 2015.32744 | AS92: 671.7925899 | AT92: 211.2839174 | AU92: 1132.250933 | AV92: 413271.5905 | AW92: =AV92*'Benefit Default'!$D$16 -> 5339468.949 | AZ92: 80024294.93
A93: ='Cost Calc 1-Vehicle Uptake'!H17 -> 2034 | B93: =(C93+D93)-((C93+D93)*'Mobility Data'!$E$30) -> 4680222.848 | C93: ='Cost Calc 3-Vehicle Maintenance'!E56 -> 1074718.923 | D93: ='Cost Calc 3-Vehicle Maintenance'!E18 -> 3745910.61 | F93: ='Emission Calc'!$D$7 -> 0.2289137 | G93: ='Emission Calc'!$D$20 -> 0.0421296 | I93: 1071367.129 | J93: 246017.8851 | K93: 157813.7156 | L93: 667535.5281 | M93: 243650467.8 | N93: =M93*'Benefit Default'!$D$13 -> 95023682.43 | Q93: ='Emission Calc'!$D$10 -> 2.734e-06 | R93: ='Emission Calc'!$D$23 -> 1.356e-05 | T93: 12.79572927 | U93: 2.938281535 | V93: 50.79454787 | W93: -40.93710014 | X93: -14942.04155 | Y93: =X93*'Benefit Default'!$D$14 -> -8528469.057 | AC93: ='Emission Calc'!$D$13 -> 6.598294e-06 | AD93: ='Emission Calc'!$D$26 -> 5.5944e-07 | AF93: 30.88148633 | AG93: 7.091311421 | AH93: 2.095612232 | AI93: 21.69456268 | AJ93: 7918.515379 | AK93: =AJ93*'Benefit Default'!$D$15 -> 2604795.634 | AO93: ='Emission Calc'!$D$16 -> 0.0004306 | AP93: ='Emission Calc'!$D$29 -> 6.48e-05 | AR93: 2015.303958 | AS93: 462.7739682 | AT93: 242.7350075 | AU93: 1309.794982 | AV93: 478075.1686 | AW93: =AV93*'Benefit Default'!$D$16 -> 6176731.178 | AZ93: 92671944.55
A94: ='Cost Calc 1-Vehicle Uptake'!H18 -> 2035 | B94: =(C94+D94)-((C94+D94)*'Mobility Data'!$E$30) -> 4714030.792 | C94: ='Cost Calc 3-Vehicle Maintenance'!E57 -> 0 | D94: ='Cost Calc 3-Vehicle Maintenance'!E19 -> 4855451.716 | F94: ='Emission Calc'!$D$7 -> 0.2289137 | G94: ='Emission Calc'!$D$20 -> 0.0421296 | I94: 1079106.231 | J94: 0 | K94: 204558.2386 | L94: 874547.992 | M94: 319210017.1 | N94: =M94*'Benefit Default'!$D$13 -> 124491906.7 | Q94: ='Emission Calc'!$D$10 -> 2.734e-06 | R94: ='Emission Calc'!$D$23 -> 1.356e-05 | T94: 12.88816019 | U94: 0 | V94: 65.83992527 | W94: -52.95176508 | X94: -19327.39426 | Y94: =X94*'Benefit Default'!$D$14 -> -11031496.82 | AC94: ='Emission Calc'!$D$13 -> 6.598294e-06 | AD94: ='Emission Calc'!$D$26 -> 5.5944e-07 | AF94: 31.10456109 | AG94: 0 | AH94: 2.716333908 | AI94: 28.38822718 | AJ94: 10361.70292 | AK94: =AJ94*'Benefit Default'!$D$15 -> 3408482.176 | AO94: ='Emission Calc'!$D$16 -> 0.0004306 | AP94: ='Emission Calc'!$D$29 -> 6.48e-05 | AR94: 2029.861659 | AS94: 0 | AT94: 314.6332712 | AU94: 1715.228388 | AV94: 626058.3616 | AW94: =AV94*'Benefit Default'!$D$16 -> 8088674.032 | AZ94: 121549083.9
A95: ='Cost Calc 1-Vehicle Uptake'!H19 -> 2036 | B95: =(C95+D95)-((C95+D95)*'Mobility Data'!$E$30) -> 4714030.792 | C95: ='Cost Calc 3-Vehicle Maintenance'!E58 -> 0 | D95: ='Cost Calc 3-Vehicle Maintenance'!E20 -> 4855451.716 | F95: ='Emission Calc'!$D$7 -> 0.2289137 | G95: ='Emission Calc'!$D$20 -> 0.0421296 | I95: 1079106.231 | J95: 0 | K95: 204558.2386 | L95: 874547.992 | M95: 319210017.1 | N95: =M95*'Benefit Default'!$D$13 -> 124491906.7 | Q95: ='Emission Calc'!$D$10 -> 2.734e-06 | R95: ='Emission Calc'!$D$23 -> 1.356e-05 | T95: 12.88816019 | U95: 0 | V95: 65.83992527 | W95: -52.95176508 | X95: -19327.39426 | Y95: =X95*'Benefit Default'!$D$14 -> -11031496.82 | AC95: ='Emission Calc'!$D$13 -> 6.598294e-06 | AD95: ='Emission Calc'!$D$26 -> 5.5944e-07 | AF95: 31.10456109 | AG95: 0 | AH95: 2.716333908 | AI95: 28.38822718 | AJ95: 10361.70292 | AK95: =AJ95*'Benefit Default'!$D$15 -> 3408482.176 | AO95: ='Emission Calc'!$D$16 -> 0.0004306 | AP95: ='Emission Calc'!$D$29 -> 6.48e-05 | AR95: 2029.861659 | AS95: 0 | AT95: 314.6332712 | AU95: 1715.228388 | AV95: 626058.3616 | AW95: =AV95*'Benefit Default'!$D$16 -> 8088674.032 | AZ95: 121549083.9
A96: ='Cost Calc 1-Vehicle Uptake'!H20 -> 2037 | B96: =(C96+D96)-((C96+D96)*'Mobility Data'!$E$30) -> 4801865.293 | C96: ='Cost Calc 3-Vehicle Maintenance'!E59 -> 0 | D96: ='Cost Calc 3-Vehicle Maintenance'!E21 -> 4945921.252 | F96: ='Emission Calc'!$E$7 -> 0.2289137 | G96: ='Emission Calc'!$E$20 -> 0.0210648 | I96: 1099212.751 | J96: 0 | K96: 104184.842 | L96: 995027.9092 | M96: 363185186.9 | N96: =M96*'Benefit Default'!$D$13 -> 141642222.9 | O96: =SUM(N81:N95) -> 725686019.2 | Q96: ='Emission Calc'!$E$10 -> 2.734e-06 | R96: ='Emission Calc'!$E$23 -> 6.78e-06 | T96: 13.12829971 | U96: 0 | V96: 33.53334609 | W96: -20.40504638 | X96: -7447.841928 | Y96: =X96*'Benefit Default'!$D$14 -> -4251004.737 | Z96: =SUM(Y81:Y95) -> -68581236.07 | AC96: ='Emission Calc'!$E$13 -> 6.598294e-06 | AD96: ='Emission Calc'!$E$26 -> 1.53414e-06 | AF96: 31.68411895 | AG96: 0 | AH96: 7.58773563 | AI96: 24.09638332 | AJ96: 8795.179913 | AK96: =AJ96*'Benefit Default'!$D$15 -> 2893174.432 | AL96: =SUM(AK81:AK95) -> 19992293.02 | AO96: ='Emission Calc'!$E$16 -> 0.0004306 | AP96: ='Emission Calc'!$E$29 -> 3.24e-05 | AR96: 2067.683195 | AS96: 0 | AT96: 160.2478486 | AU96: 1907.435347 | AV96: 696213.9016 | AW96: =AV96*'Benefit Default'!$D$16 -> 8995083.608 | AX96: =SUM(AW81:AW95) -> 47257477.84 | AZ96: 146386301.7
A97: ='Cost Calc 1-Vehicle Uptake'!H21 -> 2038 | B97: =(C97+D97)-((C97+D97)*'Mobility Data'!$E$30) -> 4894862.253 | C97: ='Cost Calc 3-Vehicle Maintenance'!E60 -> 0 | D97: ='Cost Calc 3-Vehicle Maintenance'!E22 -> 5041708.12 | F97: ='Emission Calc'!$E$7 -> 0.2289137 | G97: ='Emission Calc'!$E$20 -> 0.0210648 | I97: 1120501.029 | J97: 0 | K97: 106202.5732 | L97: 1014298.456 | M97: 370218936.4 | N97: =M97*'Benefit Default'!$D$13 -> 144385385.2 | Q97: ='Emission Calc'!$E$10 -> 2.734e-06 | R97: ='Emission Calc'!$E$23 -> 6.78e-06 | T97: 13.3825534 | U97: 0 | V97: 34.18278105 | W97: -20.80022766 | X97: -7592.083094 | Y97: =X97*'Benefit Default'!$D$14 -> -4333333.268 | AC97: ='Emission Calc'!$E$13 -> 6.598294e-06 | AD97: ='Emission Calc'!$E$26 -> 1.53414e-06 | AF97: 32.29774023 | AG97: 0 | AH97: 7.734686095 | AI97: 24.56305414 | AJ97: 8965.51476 | AK97: =AJ97*'Benefit Default'!$D$15 -> 2949206.08 | AO97: ='Emission Calc'!$E$16 -> 0.0004306 | AP97: ='Emission Calc'!$E$29 -> 3.24e-05 | AR97: 2107.727686 | AS97: 0 | AT97: 163.3513431 | AU97: 1944.376343 | AV97: 709697.3651 | AW97: =AV97*'Benefit Default'!$D$16 -> 9169289.958 | AZ97: 149221341.9
A98: ='Cost Calc 1-Vehicle Uptake'!H22 -> 2039 | B98: =(C98+D98)-((C98+D98)*'Mobility Data'!$E$30) -> 4993021.67 | C98: ='Cost Calc 3-Vehicle Maintenance'!E61 -> 0 | D98: ='Cost Calc 3-Vehicle Maintenance'!E23 -> 5142812.32 | F98: ='Emission Calc'!$E$7 -> 0.2289137 | G98: ='Emission Calc'!$E$20 -> 0.0210648 | I98: 1142971.065 | J98: 0 | K98: 108332.313 | L98: 1034638.752 | M98: 377643144.4 | N98: =M98*'Benefit Default'!$D$13 -> 147280826.3 | Q98: ='Emission Calc'!$E$10 -> 2.734e-06 | R98: ='Emission Calc'!$E$23 -> 6.78e-06 | T98: 13.65092125 | U98: 0 | V98: 34.86826753 | W98: -21.21734628 | X98: -7744.331394 | Y98: =X98*'Benefit Default'!$D$14 -> -4420232.03 | AC98: ='Emission Calc'!$E$13 -> 6.598294e-06 | AD98: ='Emission Calc'!$E$26 -> 1.53414e-06 | AF98: 32.94542493 | AG98: 0 | AH98: 7.889794093 | AI98: 25.05563083 | AJ98: 9145.305255 | AK98: =AJ98*'Benefit Default'!$D$15 -> 3008348.163 | AO98: ='Emission Calc'!$E$16 -> 0.0004306 | AP98: ='Emission Calc'!$E$29 -> 3.24e-05 | AR98: 2149.995131 | AS98: 0 | AT98: 166.6271192 | AU98: 1983.368012 | AV98: 723929.3244 | AW98: =AV98*'Benefit Default'!$D$16 -> 9353166.871 | AZ98: 152213761.1
A99: ='Cost Calc 1-Vehicle Uptake'!H23 -> 2040 | B99: =(C99+D99)-((C99+D99)*'Mobility Data'!$E$30) -> 5096361.723 | C99: ='Cost Calc 3-Vehicle Maintenance'!E62 -> 0 | D99: ='Cost Calc 3-Vehicle Maintenance'!E24 -> 5249252.575 | F99: ='Emission Calc'!$E$7 -> 0.2289137 | G99: ='Emission Calc'!$E$20 -> 0.0210648 | I99: 1166627.019 | J99: 0 | K99: 110574.4556 | L99: 1056052.563 | M99: 385459185.5 | N99: =M99*'Benefit Default'!$D$13 -> 150329082.3 | Q99: ='Emission Calc'!$E$10 -> 2.734e-06 | R99: ='Emission Calc'!$E$23 -> 6.78e-06 | T99: 13.93345295 | U99: 0 | V99: 35.58993246 | W99: -21.65647951 | X99: -7904.61502 | Y99: =X99*'Benefit Default'!$D$14 -> -4511717.115 | AC99: ='Emission Calc'!$E$13 -> 6.598294e-06 | AD99: ='Emission Calc'!$E$26 -> 1.53414e-06 | AF99: 33.62729298 | AG99: 0 | AH99: 8.053088346 | AI99: 25.57420464 | AJ99: 9334.584692 | AK99: =AJ99*'Benefit Default'!$D$15 -> 3070611.634 | AO99: ='Emission Calc'!$E$16 -> 0.0004306 | AP99: ='Emission Calc'!$E$29 -> 3.24e-05 | AR99: 2194.493358 | AS99: 0 | AT99: 170.0757834 | AU99: 2024.417575 | AV99: 738912.4148 | AW99: =AV99*'Benefit Default'!$D$16 -> 9546748.399 | AZ99: 155364113.6
A100: ='Cost Calc 1-Vehicle Uptake'!H24 -> 2041 | B100: =(C100+D100)-((C100+D100)*'Mobility Data'!$E$30) -> 5204864.235 | C100: ='Cost Calc 3-Vehicle Maintenance'!E63 -> 0 | D100: ='Cost Calc 3-Vehicle Maintenance'!E25 -> 5361010.162 | F100: ='Emission Calc'!$E$7 -> 0.2289137 | G100: ='Emission Calc'!$E$20 -> 0.0210648 | I100: 1191464.73 | J100: 0 | K100: 112928.6069 | L100: 1078536.123 | M100: 393665685 | N100: =M100*'Benefit Default'!$D$13 -> 153529617.1 | Q100: ='Emission Calc'!$E$10 -> 2.734e-06 | R100: ='Emission Calc'!$E$23 -> 6.78e-06 | T100: 14.23009882 | U100: 0 | V100: 36.3476489 | W100: -22.11755008 | X100: -8072.905779 | Y100: =X100*'Benefit Default'!$D$14 -> -4607772.432 | AC100: ='Emission Calc'!$E$13 -> 6.598294e-06 | AD100: ='Emission Calc'!$E$26 -> 1.53414e-06 | AF100: 34.34322445 | AG100: 0 | AH100: 8.22454013 | AI100: 26.11868432 | AJ100: 9533.319778 | AK100: =AJ100*'Benefit Default'!$D$15 -> 3135985.541 | AO100: ='Emission Calc'!$E$16 -> 0.0004306 | AP100: ='Emission Calc'!$E$29 -> 3.24e-05 | AR100: 2241.21454 | AS100: 0 | AT100: 173.6967293 | AU100: 2067.51781 | AV100: 754644.0008 | AW100: =AV100*'Benefit Default'!$D$16 -> 9750000.49 | AZ100: 158671845.2
A101: ='Cost Calc 1-Vehicle Uptake'!H25 -> 2042 | B101: =(C101+D101)-((C101+D101)*'Mobility Data'!$E$30) -> 5318529.205 | C101: ='Cost Calc 3-Vehicle Maintenance'!E64 -> 0 | D101: ='Cost Calc 3-Vehicle Maintenance'!E26 -> 5478085.081 | F101: ='Emission Calc'!$E$7 -> 0.2289137 | G101: ='Emission Calc'!$E$20 -> 0.0210648 | I101: 1217484.199 | J101: 0 | K101: 115394.7666 | L101: 1102089.432 | M101: 402262642.8 | N101: =M101*'Benefit Default'!$D$13 -> 156882430.7 | Q101: ='Emission Calc'!$E$10 -> 2.734e-06 | R101: ='Emission Calc'!$E$23 -> 6.78e-06 | T101: 14.54085885 | U101: 0 | V101: 37.14141685 | W101: -22.600558 | X101: -8249.203671 | Y101: =X101*'Benefit Default'!$D$14 -> -4708397.979 | AC101: ='Emission Calc'!$E$13 -> 6.598294e-06 | AD101: ='Emission Calc'!$E$26 -> 1.53414e-06 | AF101: 35.09321934 | AG101: 0 | AH101: 8.404149446 | AI101: 26.6890699 | AJ101: 9741.510512 | AK101: =AJ101*'Benefit Default'!$D$15 -> 3204469.883 | AO101: ='Emission Calc'!$E$16 -> 0.0004306 | AP101: ='Emission Calc'!$E$29 -> 3.24e-05 | AR101: 2290.158676 | AS101: 0 | AT101: 177.4899566 | AU101: 2112.668719 | AV101: 771124.0824 | AW101: =AV101*'Benefit Default'!$D$16 -> 9962923.145 | AZ101: 162136955.8
A102: ='Cost Calc 1-Vehicle Uptake'!H26 -> 2043 | B102: =(C102+D102)-((C102+D102)*'Mobility Data'!$E$30) -> 5437374.811 | C102: ='Cost Calc 3-Vehicle Maintenance'!E65 -> 0 | D102: ='Cost Calc 3-Vehicle Maintenance'!E27 -> 5600496.055 | F102: ='Emission Calc'!$E$7 -> 0.2289137 | G102: ='Emission Calc'!$E$20 -> 0.0210648 | I102: 1244689.586 | J102: 0 | K102: 117973.3293 | L102: 1126716.257 | M102: 411251433.8 | N102: =M102*'Benefit Default'!$D$13 -> 160388059.2 | Q102: ='Emission Calc'!$E$10 -> 2.734e-06 | R102: ='Emission Calc'!$E$23 -> 6.78e-06 | T102: 14.86578273 | U102: 0 | V102: 37.97136325 | W102: -23.10558052 | X102: -8433.53689 | Y102: =X102*'Benefit Default'!$D$14 -> -4813609.851 | AC102: ='Emission Calc'!$E$13 -> 6.598294e-06 | AD102: ='Emission Calc'!$E$26 -> 1.53414e-06 | AF102: 35.87739759 | AG102: 0 | AH102: 8.591945018 | AI102: 27.28545257 | AJ102: 9959.190189 | AK102: =AJ102*'Benefit Default'!$D$15 -> 3276075.613 | AO102: ='Emission Calc'!$E$16 -> 0.0004306 | AP102: ='Emission Calc'!$E$29 -> 3.24e-05 | AR102: 2341.333594 | AS102: 0 | AT102: 181.4560722 | AU102: 2159.877521 | AV102: 788355.2953 | AW102: =AV102*'Benefit Default'!$D$16 -> 10185550.42 | AZ102: 165759999.7
A103: ='Cost Calc 1-Vehicle Uptake'!H27 -> 2044 | B103: =(C103+D103)-((C103+D103)*'Mobility Data'!$E$30) -> 5561382.875 | C103: ='Cost Calc 3-Vehicle Maintenance'!E66 -> 0 | D103: ='Cost Calc 3-Vehicle Maintenance'!E28 -> 5728224.361 | F103: ='Emission Calc'!$E$7 -> 0.2289137 | G103: ='Emission Calc'!$E$20 -> 0.0210648 | I103: 1273076.731 | J103: 0 | K103: 120663.9005 | L103: 1152412.83 | M103: 420630683.1 | N103: =M103*'Benefit Default'!$D$13 -> 164045966.4 | Q103: ='Emission Calc'!$E$10 -> 2.734e-06 | R103: ='Emission Calc'!$E$23 -> 6.78e-06 | T103: 15.20482078 | U103: 0 | V103: 38.83736117 | W103: -23.63254039 | X103: -8625.877242 | Y103: =X103*'Benefit Default'!$D$14 -> -4923391.953 | AC103: ='Emission Calc'!$E$13 -> 6.598294e-06 | AD103: ='Emission Calc'!$E$26 -> 1.53414e-06 | AF103: 36.69563926 | AG103: 0 | AH103: 8.787898121 | AI103: 27.90774113 | AJ103: 10186.32551 | AK103: =AJ103*'Benefit Default'!$D$15 -> 3350791.778 | AO103: ='Emission Calc'!$E$16 -> 0.0004306 | AP103: ='Emission Calc'!$E$29 -> 3.24e-05 | AR103: 2394.731466 | AS103: 0 | AT103: 185.5944693 | AU103: 2209.136997 | AV103: 806335.0038 | AW103: =AV103*'Benefit Default'!$D$16 -> 10417848.25 | AZ103: 169540422.7
A104: ='Cost Calc 1-Vehicle Uptake'!H28 -> 2045 | B104: =(C104+D104)-((C104+D104)*'Mobility Data'!$E$30) -> 5690553.397 | C104: ='Cost Calc 3-Vehicle Maintenance'!E67 -> 0 | D104: ='Cost Calc 3-Vehicle Maintenance'!E29 -> 5861269.999 | F104: ='Emission Calc'!$E$7 -> 0.2289137 | G104: ='Emission Calc'!$E$20 -> 0.0210648 | I104: 1302645.633 | J104: 0 | K104: 123466.4803 | L104: 1179179.153 | M104: 430400390.8 | N104: =M104*'Benefit Default'!$D$13 -> 167856152.4 | Q104: ='Emission Calc'!$E$10 -> 2.734e-06 | R104: ='Emission Calc'!$E$23 -> 6.78e-06 | T104: 15.55797299 | U104: 0 | V104: 39.73941059 | W104: -24.18143761 | X104: -8826.224726 | Y104: =X104*'Benefit Default'!$D$14 -> -5037744.287 | AC104: ='Emission Calc'!$E$13 -> 6.598294e-06 | AD104: ='Emission Calc'!$E$26 -> 1.53414e-06 | AF104: 37.54794434 | AG104: 0 | AH104: 8.992008756 | AI104: 28.55593558 | AJ104: 10422.91649 | AK104: =AJ104*'Benefit Default'!$D$15 -> 3428618.378 | AO104: ='Emission Calc'!$E$16 -> 0.0004306 | AP104: ='Emission Calc'!$E$29 -> 3.24e-05 | AR104: 2450.352293 | AS104: 0 | AT104: 189.905148 | AU104: 2260.447145 | AV104: 825063.2079 | AW104: =AV104*'Benefit Default'!$D$16 -> 10659816.65 | AZ104: 173478224.8
A105: ='Cost Calc 1-Vehicle Uptake'!H29 -> 2046 | B105: =(C105+D105)-((C105+D105)*'Mobility Data'!$E$30) -> 5824886.378 | C105: ='Cost Calc 3-Vehicle Maintenance'!E68 -> 0 | D105: ='Cost Calc 3-Vehicle Maintenance'!E30 -> 5999632.969 | F105: ='Emission Calc'!$E$7 -> 0.2289137 | G105: ='Emission Calc'!$E$20 -> 0.0210648 | I105: 1333396.293 | J105: 0 | K105: 126381.0686 | L105: 1207015.224 | M105: 440560556.9 | N105: =M105*'Benefit Default'!$D$13 -> 171818617.2 | Q105: ='Emission Calc'!$E$10 -> 2.734e-06 | R105: ='Emission Calc'!$E$23 -> 6.78e-06 | T105: 15.92523936 | U105: 0 | V105: 40.67751153 | W105: -24.75227217 | X105: -9034.579343 | Y105: =X105*'Benefit Default'!$D$14 -> -5156666.852 | AC105: ='Emission Calc'!$E$13 -> 6.598294e-06 | AD105: ='Emission Calc'!$E$26 -> 1.53414e-06 | AF105: 38.43431284 | AG105: 0 | AH105: 9.204276923 | AI105: 29.23003591 | AJ105: 10668.96311 | AK105: =AJ105*'Benefit Default'!$D$15 -> 3509555.415 | AO105: ='Emission Calc'!$E$16 -> 0.0004306 | AP105: ='Emission Calc'!$E$29 -> 3.24e-05 | AR105: 2508.196074 | AS105: 0 | AT105: 194.3881082 | AU105: 2313.807966 | AV105: 844539.9076 | AW105: =AV105*'Benefit Default'!$D$16 -> 10911455.61 | AZ105: 177573405.9
A106: ='Cost Calc 1-Vehicle Uptake'!H30 -> 2047 | B106: =(C106+D106)-((C106+D106)*'Mobility Data'!$E$30) -> 5964399.994 | C106: ='Cost Calc 3-Vehicle Maintenance'!E69 -> 0 | D106: ='Cost Calc 3-Vehicle Maintenance'!E31 -> 6143331.994 | F106: ='Emission Calc'!$E$7 -> 0.2289137 | G106: ='Emission Calc'!$E$20 -> 0.0210648 | I106: 1365332.871 | J106: 0 | K106: 129408.0598 | L106: 1235924.811 | M106: 451112556.1 | N106: =M106*'Benefit Default'!$D$13 -> 175933896.9 | Q106: ='Emission Calc'!$E$10 -> 2.734e-06 | R106: ='Emission Calc'!$E$23 -> 6.78e-06 | T106: 16.30666958 | U106: 0 | V106: 41.65179092 | W106: -25.34512134 | X106: -9250.969288 | Y106: =X106*'Benefit Default'!$D$14 -> -5280175.74 | AC106: ='Emission Calc'!$E$13 -> 6.598294e-06 | AD106: ='Emission Calc'!$E$26 -> 1.53414e-06 | AF106: 39.3548647 | AG106: 0 | AH106: 9.424731345 | AI106: 29.93013335 | AJ106: 10924.49867 | AK106: =AJ106*'Benefit Default'!$D$15 -> 3593613.838 | AO106: ='Emission Calc'!$E$16 -> 0.0004306 | AP106: ='Emission Calc'!$E$29 -> 3.24e-05 | AR106: 2568.270638 | AS106: 0 | AT106: 199.0439566 | AU106: 2369.226681 | AV106: 864767.7385 | AW106: =AV106*'Benefit Default'!$D$16 -> 11172799.18 | AZ106: 181826520.3
A107: ='Cost Calc 1-Vehicle Uptake'!H31 -> 2048 | B107: =(C107+D107)-((C107+D107)*'Mobility Data'!$E$30) -> 6109076.069 | C107: ='Cost Calc 3-Vehicle Maintenance'!E70 -> 0 | D107: ='Cost Calc 3-Vehicle Maintenance'!E32 -> 6292348.351 | F107: ='Emission Calc'!$E$7 -> 0.2289137 | G107: ='Emission Calc'!$E$20 -> 0.0210648 | I107: 1398451.207 | J107: 0 | K107: 132547.0595 | L107: 1265904.147 | M107: 462055013.7 | N107: =M107*'Benefit Default'!$D$13 -> 180201455.3 | Q107: ='Emission Calc'!$E$10 -> 2.734e-06 | R107: ='Emission Calc'!$E$23 -> 6.78e-06 | T107: 16.70221397 | U107: 0 | V107: 42.66212182 | W107: -25.95990785 | X107: -9475.366364 | Y107: =X107*'Benefit Default'!$D$14 -> -5408254.86 | AC107: ='Emission Calc'!$E$13 -> 6.598294e-06 | AD107: ='Emission Calc'!$E$26 -> 1.53414e-06 | AF107: 40.30947997 | AG107: 0 | AH107: 9.653343299 | AI107: 30.65613667 | AJ107: 11189.48989 | AK107: =AJ107*'Benefit Default'!$D$15 -> 3680782.698 | AO107: ='Emission Calc'!$E$16 -> 0.0004306 | AP107: ='Emission Calc'!$E$29 -> 3.24e-05 | AR107: 2630.568155 | AS107: 0 | AT107: 203.8720866 | AU107: 2426.696069 | AV107: 885744.0651 | AW107: =AV107*'Benefit Default'!$D$16 -> 11443813.32 | AZ107: 186237013.8
A108: ='Cost Calc 1-Vehicle Uptake'!H32 -> 2049 | B108: =(C108+D108)-((C108+D108)*'Mobility Data'!$E$30) -> 6258914.602 | C108: ='Cost Calc 3-Vehicle Maintenance'!E71 -> 0 | D108: ='Cost Calc 3-Vehicle Maintenance'!E33 -> 6446682.04 | F108: ='Emission Calc'!$E$7 -> 0.2289137 | G108: ='Emission Calc'!$E$20 -> 0.0210648 | I108: 1432751.3 | J108: 0 | K108: 135798.0678 | L108: 1296953.232 | M108: 473387929.6 | N108: =M108*'Benefit Default'!$D$13 -> 184621292.5 | Q108: ='Emission Calc'!$E$10 -> 2.734e-06 | R108: ='Emission Calc'!$E$23 -> 6.78e-06 | T108: 17.11187252 | U108: 0 | V108: 43.70850423 | W108: -26.59663171 | X108: -9707.770574 | Y108: =X108*'Benefit Default'!$D$14 -> -5540904.211 | AC108: ='Emission Calc'!$E$13 -> 6.598294e-06 | AD108: ='Emission Calc'!$E$26 -> 1.53414e-06 | AF108: 41.29815867 | AG108: 0 | AH108: 9.890112785 | AI108: 31.40804588 | AJ108: 11463.93675 | AK108: =AJ108*'Benefit Default'!$D$15 -> 3771061.993 | AO108: ='Emission Calc'!$E$16 -> 0.0004306 | AP108: ='Emission Calc'!$E$29 -> 3.24e-05 | AR108: 2695.088628 | AS108: 0 | AT108: 208.8724981 | AU108: 2486.21613 | AV108: 907468.8873 | AW108: =AV108*'Benefit Default'!$D$16 -> 11724498.02 | AZ108: 190804886.3
A109: ='Cost Calc 1-Vehicle Uptake'!H33 -> 2050 | B109: =(C109+D109)-((C109+D109)*'Mobility Data'!$E$30) -> 6574233.832 | C109: ='Cost Calc 3-Vehicle Maintenance'!E72 -> 0 | D109: ='Cost Calc 3-Vehicle Maintenance'!E34 -> 6771460.846 | F109: ='Emission Calc'!$E$7 -> 0.2289137 | G109: ='Emission Calc'!$E$20 -> 0.0210648 | I109: 1504932.191 | J109: 0 | K109: 142639.4684 | L109: 1362292.723 | M109: 497236843.7 | N109: =M109*'Benefit Default'!$D$13 -> 193922369.1 | Q109: ='Emission Calc'!$E$10 -> 2.734e-06 | R109: ='Emission Calc'!$E$23 -> 6.78e-06 | T109: 17.9739553 | U109: 0 | V109: 45.91050454 | W109: -27.93654924 | X109: -10196.84047 | Y109: =X109*'Benefit Default'!$D$14 -> -5820050.637 | AC109: ='Emission Calc'!$E$13 -> 6.598294e-06 | AD109: ='Emission Calc'!$E$26 -> 1.53414e-06 | AF109: 43.37872765 | AG109: 0 | AH109: 10.38836894 | AI109: 32.9903587 | AJ109: 12041.48093 | AK109: =AJ109*'Benefit Default'!$D$15 -> 3961045.151 | AO109: ='Emission Calc'!$E$16 -> 0.0004306 | AP109: ='Emission Calc'!$E$29 -> 3.24e-05 | AR109: 2830.865088 | AS109: 0 | AT109: 219.3953314 | AU109: 2611.469756 | AV109: 953186.4611 | AW109: =AV109*'Benefit Default'!$D$16 -> 12315169.08 | AZ109: 200417487.5
A110: ='Cost Calc 1-Vehicle Uptake'!H34 -> 2051 | B110: =(C110+D110)-((C110+D110)*'Mobility Data'!$E$30) -> 6574233.832 | C110: ='Cost Calc 3-Vehicle Maintenance'!E73 -> 0 | D110: ='Cost Calc 3-Vehicle Maintenance'!E35 -> 6771460.846 | F110: ='Emission Calc'!$E$7 -> 0.2289137 | G110: ='Emission Calc'!$E$20 -> 0.0210648 | I110: 1504932.191 | J110: 0 | K110: 142639.4684 | L110: 1362292.723 | M110: 497236843.7 | N110: =M110*'Benefit Default'!$D$13 -> 193922369.1 | Q110: ='Emission Calc'!$E$10 -> 2.734e-06 | R110: ='Emission Calc'!$E$23 -> 6.78e-06 | T110: 17.9739553 | U110: 0 | V110: 45.91050454 | W110: -27.93654924 | X110: -10196.84047 | Y110: =X110*'Benefit Default'!$D$14 -> -5820050.637 | AC110: ='Emission Calc'!$E$13 -> 6.598294e-06 | AD110: ='Emission Calc'!$E$26 -> 1.53414e-06 | AF110: 43.37872765 | AG110: 0 | AH110: 10.38836894 | AI110: 32.9903587 | AJ110: 12041.48093 | AK110: =AJ110*'Benefit Default'!$D$15 -> 3961045.151 | AO110: ='Emission Calc'!$E$16 -> 0.0004306 | AP110: ='Emission Calc'!$E$29 -> 3.24e-05 | AR110: 2830.865088 | AS110: 0 | AT110: 219.3953314 | AU110: 2611.469756 | AV110: 953186.4611 | AW110: =AV110*'Benefit Default'!$D$16 -> 12315169.08 | AZ110: 200417487.5
A111: 2050 | B111: =(C111+D111)-((C111+D111)*'Mobility Data'!$E$30) -> 6739577.917 | C111: ='Cost Calc 3-Vehicle Maintenance'!E74 -> 0 | D111: ='Cost Calc 3-Vehicle Maintenance'!E36 -> 6941765.254 | F111: ='Emission Calc'!$E$7 -> 0.2289137 | G111: ='Emission Calc'!$E$20 -> 0.0210648 | I111: 1542781.717 | J111: 0 | K111: 146226.8967 | L111: 1396554.821 | M111: 509742509.5 | N111: =M111*'Benefit Default'!$D$13 -> 198799578.7 | O111: =SUM(N96:N110) -> 2482030782 | Q111: ='Emission Calc'!$E$10 -> 2.734e-06 | R111: ='Emission Calc'!$E$23 -> 6.78e-06 | T111: 18.42600602 | U111: 0 | V111: 47.06516843 | W111: -28.6391624 | X111: -10453.29428 | Y111: =X111*'Benefit Default'!$D$14 -> -5966426.774 | Z111: =SUM(Y96:Y110) -> -74491379.74 | AC111: ='Emission Calc'!$E$13 -> 6.598294e-06 | AD111: ='Emission Calc'!$E$26 -> 1.53414e-06 | AF111: =B111*AC111 -> 44.46971653 | AG111: =C111*AC111 -> 0 | AH111: =D111*AD111 -> 10.64963975 | AI111: 33.82007678 | AJ111: 12344.32803 | AK111: =AJ111*'Benefit Default'!$D$15 -> 4060666.704 | AL111: =SUM(AK96:AK110) -> 50697792.32 | AO111: ='Emission Calc'!$E$16 -> 0.0004306 | AP111: ='Emission Calc'!$E$29 -> 3.24e-05 | AR111: 2902.062251 | AS111: 0 | AT111: 224.9131942 | AU111: 2677.149057 | AV111: 977159.4057 | AW111: =AV111*'Benefit Default'!$D$16 -> 12624899.52 | AX111: =SUM(AW96:AW110) -> 157623016.3 | AZ111: 205458051.5
AW112: =AV112*'Benefit Default'!$D$16 -> 0
C115: KM by bus | F115: CO2/ KM by bus | Q115: PM10/ KM by bus | AC115: PM2.5/ KM by bus | AO115: NOx/ KM by bus | AZ115: Bus Benefits
A116: YEAR | B116: BASELINE ICE | C116: ICE | D116: EV | F116: ICE | G116: EV | I116: Baseline ICE | J116: Scenario ICE | K116: Scenario EV | L116: Reduction | M116: Annual CO2 kg reduction | N116: USD 2020 | Q116: ICE | R116: EV | T116: Baseline ICE | U116: Scenario ICE | V116: Scenario EV | W116: Reduction | X116: Annual PM10 kg reduction | Y116: USD 2020 | AC116: ICE | AD116: EV | AF116: Baseline ICE | AG116: Scenario ICE | AH116: Scenario EV | AI116: Reduction | AJ116: Annual PM2.5 kg reduction | AK116: USD 2020 | AO116: ICE | AP116: EV | AR116: Baseline ICE | AS116: Scenario ICE | AT116: Scenario EV | AU116: Reduction | AV116: Annual NOx kg reduction | AW116: USD 2020 | AZ116: USD 2020
A117: ='Cost Calc 1-Vehicle Uptake'!H4 -> 2021 | B117: =(C117+D117)-((C117+D117)*'Mobility Data'!$E$28) -> 315466.9306 | C117: ='Cost Calc 3-Vehicle Maintenance'!F43 -> 315466.9306 | D117: ='Cost Calc 3-Vehicle Maintenance'!F5 -> 7247.947859 | F117: ='Emission Calc'!C9 -> 1.25 | G117: ='Emission Calc'!C22 -> 0.4300692 | I117: =B117*F117 -> 394333.6632 | J117: =C117*F117 -> 394333.6632 | K117: =G117*D117 -> 3117.119138 | L117: =I117-(K117+J117) -> -3117.119138 | M117: =L117*365 -> -1137748.485 | N117: =M117*'Benefit Default'!$D$13 -> -443721.9092 | O117: =N117 -> -443721.9092 | Q117: ='Emission Calc'!C12 -> 0.000478 | R117: ='Emission Calc'!C25 -> 0.000117513 | T117: =B117*Q117 -> 150.7931928 | U117: =C117*Q117 -> 150.7931928 | V117: =D117*R117 -> 0.8517280968 | W117: =T117-(V117+U117) -> -0.8517280968 | X117: =W117*365 -> -310.8807553 | Y117: =X117*'Benefit Default'!$D$14 -> -177441.4087 | Z117: =Y117 -> -177441.4087 | AC117: ='Emission Calc'!C15 -> 4.4095916e-05 | AD117: ='Emission Calc'!C28 -> 5.62518e-06 | AF117: =B117*AC117 -> 13.91080327 | AG117: =C117*AC117 -> 13.91080327 | AH117: =D117*AD117 -> 0.04077101134 | AI117: =AF117-(AH117+AG117) -> -0.04077101134 | AJ117: =AI117*365 -> -14.88141914 | AK117: =AJ117*'Benefit Default'!$D$15 -> -4895.242826 | AL117: =AK117 -> -4895.242826 | AO117: ='Emission Calc'!C18 -> 0.008 | AP117: ='Emission Calc'!C31 -> 0.0006831 | AR117: =B117*AO117 -> 2523.735445 | AS117: =AO117*C117 -> 2523.735445 | AT117: =AP117*D117 -> 4.951073183 | AU117: =AR117-(AT117+AS117) -> -4.951073183 | AV117: =AU117*365 -> -1807.141712 | AW117: =AV117*'Benefit Default'!$D$16 -> -23348.27092 | AX117: =AW117 -> -23348.27092 | AZ117: =N117+Y117+AW117 -> -644511.5889
A118: ='Cost Calc 1-Vehicle Uptake'!H5 -> 2022 | B118: =(C118+D118)-((C118+D118)*'Mobility Data'!$E$28) -> 321489.32 | C118: ='Cost Calc 3-Vehicle Maintenance'!F44 -> 312930.1488 | D118: ='Cost Calc 3-Vehicle Maintenance'!F6 -> 15945.48529 | F118: ='Emission Calc'!$D$9 -> 1.25 | G118: ='Emission Calc'!$D$22 -> 0.1685184 | I118: 401861.6501 | J118: 391162.686 | K118: 2687.107668 | L118: =I118-(K118+J118) -> 8011.856353 | M118: =L118*365 -> 2924327.569 | N118: =M118*'Benefit Default'!$D$13 -> 1140487.752 | Q118: ='Emission Calc'!$D$12 -> 0.000478 | R118: ='Emission Calc'!$D$25 -> 5.424e-05 | T118: 153.671895 | U118: 149.5806111 | V118: 0.8648831222 | W118: =T118-(V118+U118) -> 3.22640072 | X118: =W118*365 -> 1177.636263 | Y118: =X118*'Benefit Default'!$D$14 -> 672159.4496 | AC118: ='Emission Calc'!$D$15 -> 4.4095916e-05 | AD118: ='Emission Calc'!$D$28 -> 2.23776e-06 | AF118: =B118*AC118 -> 14.17636605 | AG118: =C118*AC118 -> 13.79894156 | AH118: =D118*AD118 -> 0.03568216916 | AI118: =AF118-(AH118+AG118) -> 0.3417423259 | AJ118: =AI118*365 -> 124.7359489 | AK118: =AJ118*'Benefit Default'!$D$15 -> 41031.8904 | AO118: ='Emission Calc'!$D$18 -> 0.008 | AP118: ='Emission Calc'!$D$31 -> 0.0002592 | AR118: 2571.91456 | AS118: 2503.441191 | AT118: 4.133069787 | AU118: =AR118-(AT118+AS118) -> 64.34029995 | AV118: =AU118*365 -> 23484.20948 | AW118: =AV118*'Benefit Default'!$D$16 -> 303415.9865 | AZ118: 2116063.188
A119: ='Cost Calc 1-Vehicle Uptake'!H6 -> 2023 | B119: =(C119+D119)-((C119+D119)*'Mobility Data'!$E$28) -> 330877.1624 | C119: ='Cost Calc 3-Vehicle Maintenance'!F45 -> 309306.1749 | D119: ='Cost Calc 3-Vehicle Maintenance'!F7 -> 29172.99013 | F119: ='Emission Calc'!$D$9 -> 1.25 | G119: ='Emission Calc'!$D$22 -> 0.1685184 | I119: 413596.4531 | J119: 386632.7186 | K119: 4916.185621 | L119: 22047.54882 | M119: 8047355.318 | N119: =M119*'Benefit Default'!$D$13 -> 3138468.574 | Q119: ='Emission Calc'!$D$12 -> 0.000478 | R119: ='Emission Calc'!$D$25 -> 5.424e-05 | T119: 158.1592837 | U119: 147.8483516 | V119: 1.582342985 | W119: 8.728589064 | X119: 3185.935008 | Y119: =X119*'Benefit Default'!$D$14 -> 1818436.125 | AC119: ='Emission Calc'!$D$15 -> 4.4095916e-05 | AD119: ='Emission Calc'!$D$28 -> 2.23776e-06 | AF119: 14.59033156 | AG119: =C119*AC119 -> 13.63913911 | AH119: =D119*AD119 -> 0.0652821504 | AI119: 0.8859103047 | AJ119: 323.3572612 | AK119: =AJ119*'Benefit Default'!$D$15 -> 106368.3711 | AO119: ='Emission Calc'!$D$18 -> 0.008 | AP119: ='Emission Calc'!$D$31 -> 0.0002592 | AR119: 2647.0173 | AS119: 2474.449399 | AT119: 7.561639043 | AU119: 165.0062614 | AV119: 60227.2854 | AW119: =AV119*'Benefit Default'!$D$16 -> 778136.5273 | AZ119: 5735041.226
A120: ='Cost Calc 1-Vehicle Uptake'!H7 -> 2024 | B120: =(C120+D120)-((C120+D120)*'Mobility Data'!$E$28) -> 343276.1996 | C120: ='Cost Calc 3-Vehicle Maintenance'!F46 -> 304413.8101 | D120: ='Cost Calc 3-Vehicle Maintenance'!F8 -> 46749.26369 | F120: ='Emission Calc'!$D$9 -> 1.25 | G120: ='Emission Calc'!$D$22 -> 0.1685184 | I120: 429095.2495 | J120: 380517.2626 | K120: 7878.111119 | L120: 40699.87575 | M120: 14855454.65 | N120: =M120*'Benefit Default'!$D$13 -> 5793627.313 | Q120: ='Emission Calc'!$D$12 -> 0.000478 | R120: ='Emission Calc'!$D$25 -> 5.424e-05 | T120: 164.0860234 | U120: 145.5098012 | V120: 2.535680063 | W120: 16.04054211 | X120: 5854.797872 | Y120: =X120*'Benefit Default'!$D$14 -> 3341742.981 | AC120: ='Emission Calc'!$D$15 -> 4.4095916e-05 | AD120: ='Emission Calc'!$D$28 -> 2.23776e-06 | AF120: 15.13707846 | AG120: 13.4234058 | AH120: 0.1046136323 | AI120: 1.60905903 | AJ120: 587.3065461 | AK120: =AJ120*'Benefit Default'!$D$15 -> 193194.4883 | AO120: ='Emission Calc'!$D$18 -> 0.008 | AP120: ='Emission Calc'!$D$31 -> 0.0002592 | AR120: 2746.209597 | AS120: 2435.310481 | AT120: 12.11740915 | AU120: 298.7817068 | AV120: 109055.323 | AW120: =AV120*'Benefit Default'!$D$16 -> 1408994.773 | AZ120: 10544365.07
A121: ='Cost Calc 1-Vehicle Uptake'!H8 -> 2025 | B121: =(C121+D121)-((C121+D121)*'Mobility Data'!$E$28) -> 358863.5606 | C121: ='Cost Calc 3-Vehicle Maintenance'!F47 -> 298253.0544 | D121: ='Cost Calc 3-Vehicle Maintenance'!F9 -> 68855.50466 | F121: ='Emission Calc'!$D$9 -> 1.25 | G121: ='Emission Calc'!$D$22 -> 0.1685184 | I121: 448579.4507 | J121: 372816.318 | K121: 11603.41948 | L121: 64159.7132 | M121: 23418295.32 | N121: =M121*'Benefit Default'!$D$13 -> 9133135.175 | Q121: ='Emission Calc'!$D$12 -> 0.000478 | R121: ='Emission Calc'!$D$25 -> 5.424e-05 | T121: 171.5367819 | U121: 142.56496 | V121: 3.734722573 | W121: 25.23709936 | X121: 9211.541268 | Y121: =X121*'Benefit Default'!$D$14 -> 5257671.409 | AC121: ='Emission Calc'!$D$15 -> 4.4095916e-05 | AD121: ='Emission Calc'!$D$28 -> 2.23776e-06 | AF121: 15.82441742 | AG121: 13.15174163 | AH121: 0.1540820941 | AI121: 2.518593694 | AJ121: 919.2866981 | AK121: =AJ121*'Benefit Default'!$D$15 -> 302399.3594 | AO121: ='Emission Calc'!$D$18 -> 0.008 | AP121: ='Emission Calc'!$D$31 -> 0.0002592 | AR121: 2870.908484 | AS121: 2386.024435 | AT121: 17.84734681 | AU121: 467.0367023 | AV121: 170468.3964 | AW121: =AV121*'Benefit Default'!$D$16 -> 2202451.681 | AZ121: 16593258.26
A122: ='Cost Calc 1-Vehicle Uptake'!H9 -> 2026 | B122: =(C122+D122)-((C122+D122)*'Mobility Data'!$E$28) -> 377639.2454 | C122: ='Cost Calc 3-Vehicle Maintenance'!F48 -> 291005.1066 | D122: ='Cost Calc 3-Vehicle Maintenance'!F10 -> 95310.51435 | F122: ='Emission Calc'!$D$9 -> 1.25 | G122: ='Emission Calc'!$D$22 -> 0.1685184 | I122: 472049.0567 | J122: 363756.3832 | K122: 16061.57538 | L122: 92231.09813 | M122: 33664350.82 | N122: =M122*'Benefit Default'!$D$13 -> 13129096.82 | Q122: ='Emission Calc'!$D$12 -> 0.000478 | R122: ='Emission Calc'!$D$25 -> 5.424e-05 | T122: 180.5115593 | U122: 139.1004409 | V122: 5.169642298 | W122: 36.24147605 | X122: 13228.13876 | Y122: =X122*'Benefit Default'!$D$14 -> 7550224.76 | AC122: ='Emission Calc'!$D$15 -> 4.4095916e-05 | AD122: ='Emission Calc'!$D$28 -> 2.23776e-06 | AF122: 16.65234844 | AG122: 12.83213673 | AH122: 0.2132820566 | AI122: 3.606929651 | AJ122: 1316.529323 | AK122: =AJ122*'Benefit Default'!$D$15 -> 433072.3207 | AO122: ='Emission Calc'!$D$18 -> 0.008 | AP122: ='Emission Calc'!$D$31 -> 0.0002592 | AR122: 3021.113963 | AS122: 2328.040852 | AT122: 24.70448532 | AU122: 668.3686252 | AV122: 243954.5482 | AW122: =AV122*'Benefit Default'!$D$16 -> 3151892.763 | AZ122: 23831214.34
A123: ='Cost Calc 1-Vehicle Uptake'!H10 -> 2027 | B123: =(C123+D123)-((C123+D123)*'Mobility Data'!$E$28) -> 399426.1249 | C123: ='Cost Calc 3-Vehicle Maintenance'!F49 -> 282488.7678 | D123: ='Cost Calc 3-Vehicle Maintenance'!F11 -> 126114.2928 | F123: ='Emission Calc'!$D$9 -> 1.25 | G123: ='Emission Calc'!$D$22 -> 0.1685184 | I123: 499282.6561 | J123: 353110.9598 | K123: 21252.57883 | L123: 124919.1175 | M123: 45595477.9 | N123: =M123*'Benefit Default'!$D$13 -> 17782236.38 | Q123: ='Emission Calc'!$D$12 -> 0.000478 | R123: ='Emission Calc'!$D$25 -> 5.424e-05 | T123: 190.9256877 | U123: 135.029631 | V123: 6.840439239 | W123: 49.05561745 | X123: 17905.30037 | Y123: =X123*'Benefit Default'!$D$14 -> 10219808.29 | AC123: ='Emission Calc'!$D$15 -> 4.4095916e-05 | AD123: ='Emission Calc'!$D$28 -> 2.23776e-06 | AF123: 17.61306085 | AG123: 12.45660098 | AH123: 0.2822135198 | AI123: 4.874246356 | AJ123: 1779.09992 | AK123: =AJ123*'Benefit Default'!$D$15 -> 585234.9186 | AO123: ='Emission Calc'!$D$18 -> 0.008 | AP123: ='Emission Calc'!$D$31 -> 0.0002592 | AR123: 3195.408999 | AS123: 2259.910143 | AT123: 32.68882468 | AU123: 902.810032 | AV123: 329525.6617 | AW123: =AV123*'Benefit Default'!$D$16 -> 4257471.549 | AZ123: 32259516.22
A124: ='Cost Calc 1-Vehicle Uptake'!H11 -> 2028 | B124: =(C124+D124)-((C124+D124)*'Mobility Data'!$E$28) -> 424578.4574 | C124: ='Cost Calc 3-Vehicle Maintenance'!F50 -> 272885.2369 | D124: ='Cost Calc 3-Vehicle Maintenance'!F12 -> 161448.0386 | F124: ='Emission Calc'!$D$9 -> 1.25 | G124: ='Emission Calc'!$D$22 -> 0.1685184 | I124: 530723.0717 | J124: 341106.5461 | K124: 27206.96514 | L124: 162409.5605 | M124: 59279489.57 | N124: =M124*'Benefit Default'!$D$13 -> 23119000.93 | Q124: ='Emission Calc'!$D$12 -> 0.000478 | R124: ='Emission Calc'!$D$25 -> 5.424e-05 | T124: 202.9485026 | U124: 130.4391432 | V124: 8.756941612 | W124: 63.75241778 | X124: 23269.63249 | Y124: =X124*'Benefit Default'!$D$14 -> 13281608.14 | AC124: ='Emission Calc'!$D$15 -> 4.4095916e-05 | AD124: ='Emission Calc'!$D$28 -> 2.23776e-06 | AF124: 18.72217599 | AG124: 12.03312448 | AH124: 0.3612819628 | AI124: 6.327769545 | AJ124: 2309.635884 | AK124: =AJ124*'Benefit Default'!$D$15 -> 759754.724 | AO124: ='Emission Calc'!$D$18 -> 0.008 | AP124: ='Emission Calc'!$D$31 -> 0.0002592 | AR124: 3396.627659 | AS124: 2183.081895 | AT124: 41.8473316 | AU124: 1171.698432 | AV124: 427669.9278 | AW124: =AV124*'Benefit Default'!$D$16 -> 5525495.467 | AZ124: 41926104.53
A125: ='Cost Calc 1-Vehicle Uptake'!H12 -> 2029 | B125: =(C125+D125)-((C125+D125)*'Mobility Data'!$E$28) -> 452741.9846 | C125: ='Cost Calc 3-Vehicle Maintenance'!F51 -> 262013.3151 | D125: ='Cost Calc 3-Vehicle Maintenance'!F13 -> 201130.5531 | F125: ='Emission Calc'!$D$9 -> 1.25 | G125: ='Emission Calc'!$D$22 -> 0.1685184 | I125: 565927.4807 | J125: 327516.6439 | K125: 33894.199 | L125: 204516.6378 | M125: 74648572.81 | N125: =M125*'Benefit Default'!$D$13 -> 29112943.4 | Q125: ='Emission Calc'!$D$12 -> 0.000478 | R125: ='Emission Calc'!$D$25 -> 5.424e-05 | T125: 216.4106686 | U125: 125.2423646 | V125: 10.9093212 | W125: 80.25898281 | X125: 29294.52873 | Y125: =X125*'Benefit Default'!$D$14 -> 16720438.16 | AC125: ='Emission Calc'!$D$15 -> 4.4095916e-05 | AD125: ='Emission Calc'!$D$28 -> 2.23776e-06 | AF125: 19.96407252 | AG125: 11.55371713 | AH125: 0.4500819065 | AI125: 7.960273482 | AJ125: 2905.499821 | AK125: =AJ125*'Benefit Default'!$D$15 -> 955764.166 | AO125: ='Emission Calc'!$D$18 -> 0.008 | AP125: ='Emission Calc'!$D$31 -> 0.0002592 | AR125: 3621.935877 | AS125: 2096.106521 | AT125: 52.13303936 | AU125: 1473.696316 | AV125: 537899.1555 | AW125: =AV125*'Benefit Default'!$D$16 -> 6949657.089 | AZ125: 52783038.65
A126: ='Cost Calc 1-Vehicle Uptake'!H13 -> 2030 | B126: =(C126+D126)-((C126+D126)*'Mobility Data'!$E$28) -> 484093.8356 | C126: ='Cost Calc 3-Vehicle Maintenance'!F52 -> 249873.0025 | D126: ='Cost Calc 3-Vehicle Maintenance'!F14 -> 245343.035 | F126: ='Emission Calc'!$D$9 -> 1.25 | G126: ='Emission Calc'!$D$22 -> 0.1685184 | I126: 605117.2945 | J126: 312341.2531 | K126: 41344.81572 | L126: 251431.2258 | M126: 91772397.41 | N126: =M126*'Benefit Default'!$D$13 -> 35791234.99 | Q126: ='Emission Calc'!$D$12 -> 0.000478 | R126: ='Emission Calc'!$D$25 -> 5.424e-05 | T126: 231.3968534 | U126: 119.4392952 | V126: 13.30740622 | W126: 98.65015204 | X126: 36007.3055 | Y126: =X126*'Benefit Default'!$D$14 -> 20551889.76 | AC126: ='Emission Calc'!$D$15 -> 4.4095916e-05 | AD126: ='Emission Calc'!$D$28 -> 2.23776e-06 | AF126: 21.34656111 | AG126: 11.01837893 | AH126: 0.5490188301 | AI126: 9.779163356 | AJ126: 3569.394625 | AK126: =AJ126*'Benefit Default'!$D$15 -> 1174152.362 | AO126: ='Emission Calc'!$D$18 -> 0.008 | AP126: ='Emission Calc'!$D$31 -> 0.0002592 | AR126: 3872.750685 | AS126: 1998.98402 | AT126: 63.59291468 | AU126: 1810.173751 | AV126: 660713.419 | AW126: =AV126*'Benefit Default'!$D$16 -> 8536417.374 | AZ126: 64879542.12
A127: ='Cost Calc 1-Vehicle Uptake'!H14 -> 2031 | B127: =(C127+D127)-((C127+D127)*'Mobility Data'!$E$28) -> 518634.0105 | C127: ='Cost Calc 3-Vehicle Maintenance'!F53 -> 236645.4976 | D127: ='Cost Calc 3-Vehicle Maintenance'!F15 -> 293904.2857 | F127: ='Emission Calc'!$D$9 -> 1.25 | G127: ='Emission Calc'!$D$22 -> 0.1685184 | I127: 648292.5131 | J127: 295806.872 | K127: 49528.27998 | L127: 302957.3612 | M127: 110579436.8 | N127: =M127*'Benefit Default'!$D$13 -> 43125980.36 | Q127: ='Emission Calc'!$D$12 -> 0.000478 | R127: ='Emission Calc'!$D$25 -> 5.424e-05 | T127: 247.907057 | U127: 113.1165479 | V127: 15.94136846 | W127: 118.8491407 | X127: 43379.93636 | Y127: =X127*'Benefit Default'!$D$14 -> 24759966.28 | AC127: ='Emission Calc'!$D$15 -> 4.4095916e-05 | AD127: ='Emission Calc'!$D$28 -> 2.23776e-06 | AF127: 22.86964176 | AG127: 10.43509998 | AH127: 0.6576872544 | AI127: 11.77685452 | AJ127: 4298.551901 | AK127: =AJ127*'Benefit Default'!$D$15 -> 1414008.648 | AO127: ='Emission Calc'!$D$18 -> 0.008 | AP127: ='Emission Calc'!$D$31 -> 0.0002592 | AR127: 4149.072084 | AS127: 1893.163981 | AT127: 76.17999085 | AU127: 2179.728112 | AV127: 795600.761 | AW127: =AV127*'Benefit Default'!$D$16 -> 10279161.83 | AZ127: 78165108.47
A128: ='Cost Calc 1-Vehicle Uptake'!H15 -> 2032 | B128: =(C128+D128)-((C128+D128)*'Mobility Data'!$E$28) -> 556362.5092 | C128: ='Cost Calc 3-Vehicle Maintenance'!F54 -> 222149.6019 | D128: ='Cost Calc 3-Vehicle Maintenance'!F16 -> 346995.5038 | F128: ='Emission Calc'!$D$9 -> 1.25 | G128: ='Emission Calc'!$D$22 -> 0.1685184 | I128: 695453.1365 | J128: 277687.0024 | K128: 58475.1271 | L128: 359291.0071 | M128: 131141217.6 | N128: =M128*'Benefit Default'!$D$13 -> 51145074.86 | Q128: ='Emission Calc'!$D$12 -> 0.000478 | R128: ='Emission Calc'!$D$25 -> 5.424e-05 | T128: 265.9412794 | U128: 106.1875097 | V128: 18.82103612 | W128: 140.9327336 | X128: 51440.44776 | Y128: =X128*'Benefit Default'!$D$14 -> 29360664.37 | AC128: ='Emission Calc'!$D$15 -> 4.4095916e-05 | AD128: ='Emission Calc'!$D$28 -> 2.23776e-06 | AF128: 24.53331447 | AG128: 9.795890184 | AH128: 0.7764926585 | AI128: 13.96093163 | AJ128: 5095.740045 | AK128: =AJ128*'Benefit Default'!$D$15 -> 1676243.688 | AO128: ='Emission Calc'!$D$18 -> 0.008 | AP128: ='Emission Calc'!$D$31 -> 0.0002592 | AR128: 4450.900074 | AS128: 1777.196815 | AT128: 89.94123458 | AU128: 2583.762024 | AV128: 943073.1388 | AW128: =AV128*'Benefit Default'!$D$16 -> 12184504.95 | AZ128: 92690244.18
A129: ='Cost Calc 1-Vehicle Uptake'!H16 -> 2033 | B129: =(C129+D129)-((C129+D129)*'Mobility Data'!$E$28) -> 597102.2027 | C129: ='Cost Calc 3-Vehicle Maintenance'!F55 -> 206385.3153 | D129: ='Cost Calc 3-Vehicle Maintenance'!F17 -> 404435.4906 | F129: ='Emission Calc'!$D$9 -> 1.25 | G129: ='Emission Calc'!$D$22 -> 0.1685184 | I129: 746377.7534 | J129: 257981.6441 | K129: 68154.82177 | L129: 420241.2875 | M129: 153388069.9 | N129: =M129*'Benefit Default'!$D$13 -> 59821347.27 | Q129: ='Emission Calc'!$D$12 -> 0.000478 | R129: ='Emission Calc'!$D$25 -> 5.424e-05 | T129: 285.4148529 | U129: 98.65218071 | V129: 21.93658101 | W129: 164.8260912 | X129: 60161.52328 | Y129: =X129*'Benefit Default'!$D$14 -> 34338392.64 | AC129: ='Emission Calc'!$D$15 -> 4.4095916e-05 | AD129: ='Emission Calc'!$D$28 -> 2.23776e-06 | AF129: 26.32976857 | AG129: 9.100749527 | AH129: 0.9050295633 | AI129: 16.32398948 | AJ129: 5958.256161 | AK129: =AJ129*'Benefit Default'!$D$15 -> 1959968.364 | AO129: ='Emission Calc'!$D$18 -> 0.008 | AP129: ='Emission Calc'!$D$31 -> 0.0002592 | AR129: 4776.817621 | AS129: 1651.082522 | AT129: 104.8296792 | AU129: 3020.90542 | AV129: 1102630.478 | AW129: =AV129*'Benefit Default'!$D$16 -> 14245985.78 | AZ129: 108405725.7
A130: ='Cost Calc 1-Vehicle Uptake'!H17 -> 2034 | B130: =(C130+D130)-((C130+D130)*'Mobility Data'!$E$28) -> 641030.22 | C130: ='Cost Calc 3-Vehicle Maintenance'!F56 -> 189533.8365 | D130: ='Cost Calc 3-Vehicle Maintenance'!F18 -> 466224.2461 | F130: ='Emission Calc'!$D$9 -> 1.25 | G130: ='Emission Calc'!$D$22 -> 0.1685184 | I130: 801287.775 | J130: 236917.2957 | K130: 78567.36399 | L130: 485803.1153 | M130: 177318137.1 | N130: =M130*'Benefit Default'!$D$13 -> 69154073.47 | Q130: ='Emission Calc'!$D$12 -> 0.000478 | R130: ='Emission Calc'!$D$25 -> 5.424e-05 | T130: 306.4124451 | U130: 90.59717386 | V130: 25.28800311 | W130: 190.5272682 | X130: 69542.45289 | Y130: =X130*'Benefit Default'!$D$14 -> 39692745.83 | AC130: ='Emission Calc'!$D$15 -> 4.4095916e-05 | AD130: ='Emission Calc'!$D$28 -> 2.23776e-06 | AF130: 28.26681473 | AG130: 8.357668134 | AH130: 1.043297969 | AI130: 18.86584863 | AJ130: 6886.03475 | AK130: =AJ130*'Benefit Default'!$D$15 -> 2265161.131 | AO130: ='Emission Calc'!$D$18 -> 0.008 | AP130: ='Emission Calc'!$D$31 -> 0.0002592 | AR130: 5128.24176 | AS130: 1516.270692 | AT130: 120.8453246 | AU130: 3491.125743 | AV130: 1274260.896 | AW130: =AV130*'Benefit Default'!$D$16 -> 16463450.78 | AZ130: 125310270.1
A131: ='Cost Calc 1-Vehicle Uptake'!H18 -> 2035 | B131: =(C131+D131)-((C131+D131)*'Mobility Data'!$E$28) -> 744408.3297 | C131: ='Cost Calc 3-Vehicle Maintenance'!F57 -> 152302.2671 | D131: ='Cost Calc 3-Vehicle Maintenance'!F19 -> 609209.0684 | F131: ='Emission Calc'!$D$9 -> 1.25 | G131: ='Emission Calc'!$D$22 -> 0.1685184 | I131: 930510.4121 | J131: 190377.8339 | K131: 102662.9375 | L131: 637469.6408 | M131: 232676418.9 | N131: =M131*'Benefit Default'!$D$13 -> 90743803.36 | Q131: ='Emission Calc'!$D$12 -> 0.000478 | R131: ='Emission Calc'!$D$25 -> 5.424e-05 | T131: 355.8271816 | U131: 72.80048368 | V131: 33.04349987 | W131: 249.983198 | X131: 91243.86729 | Y131: =X131*'Benefit Default'!$D$14 -> 52079262.13 | AC131: ='Emission Calc'!$D$15 -> 4.4095916e-05 | AD131: ='Emission Calc'!$D$28 -> 2.23776e-06 | AF131: 32.82536718 | AG131: 6.715907977 | AH131: 1.363263685 | AI131: 24.74619551 | AJ131: 9032.361363 | AK131: =AJ131*'Benefit Default'!$D$15 -> 2971195.27 | AO131: ='Emission Calc'!$D$18 -> 0.008 | AP131: ='Emission Calc'!$D$31 -> 0.0002592 | AR131: 5955.266638 | AS131: 1218.418137 | AT131: 157.9069905 | AU131: 4578.94151 | AV131: 1671313.651 | AW131: =AV131*'Benefit Default'!$D$16 -> 21593372.37 | AZ131: 164416437.9
A132: ='Cost Calc 1-Vehicle Uptake'!H19 -> 2036 | B132: =(C132+D132)-((C132+D132)*'Mobility Data'!$E$28) -> 744408.3297 | C132: ='Cost Calc 3-Vehicle Maintenance'!F58 -> 152302.2671 | D132: ='Cost Calc 3-Vehicle Maintenance'!F20 -> 609209.0684 | F132: ='Emission Calc'!$D$9 -> 1.25 | G132: ='Emission Calc'!$D$22 -> 0.1685184 | I132: 930510.4121 | J132: 190377.8339 | K132: 102662.9375 | L132: =I132-(K132+J132) -> 637469.6408 | M132: =L132*365 -> 232676418.9 | N132: =M132*'Benefit Default'!$D$13 -> 90743803.36 | Q132: ='Emission Calc'!$D$12 -> 0.000478 | R132: ='Emission Calc'!$D$25 -> 5.424e-05 | T132: 355.8271816 | U132: 72.80048368 | V132: 33.04349987 | W132: 249.983198 | X132: 91243.86729 | Y132: =X132*'Benefit Default'!$D$14 -> 52079262.13 | AC132: ='Emission Calc'!$D$15 -> 4.4095916e-05 | AD132: ='Emission Calc'!$D$28 -> 2.23776e-06 | AF132: 32.82536718 | AG132: 6.715907977 | AH132: 1.363263685 | AI132: 24.74619551 | AJ132: 9032.361363 | AK132: =AJ132*'Benefit Default'!$D$15 -> 2971195.27 | AO132: ='Emission Calc'!$D$18 -> 0.008 | AP132: ='Emission Calc'!$D$31 -> 0.0002592 | AR132: 5955.266638 | AS132: 1218.418137 | AT132: 157.9069905 | AU132: 4578.94151 | AV132: 1671313.651 | AW132: =AV132*'Benefit Default'!$D$16 -> 21593372.37 | AZ132: 164416437.9
A133: ='Cost Calc 1-Vehicle Uptake'!H20 -> 2037 | B133: =(C133+D133)-((C133+D133)*'Mobility Data'!$E$28) -> 756984.4959 | C133: ='Cost Calc 3-Vehicle Maintenance'!F59 -> 145054.3193 | D133: ='Cost Calc 3-Vehicle Maintenance'!F21 -> 629322.1237 | F133: ='Emission Calc'!$E$9 -> 1.25 | G133: ='Emission Calc'!$E$22 -> 0.0772376 | I133: 946230.6199 | J133: 181317.8991 | K133: 48607.33047 | L133: 716305.3904 | M133: 261451467.5 | N133: =M133*'Benefit Default'!$D$13 -> 101966072.3 | O133: =SUM(N118:N132) -> 531301659.4 | Q133: ='Emission Calc'!$E$12 -> 0.000478 | R133: ='Emission Calc'!$E$25 -> 1.937142857e-05 | T133: 361.8385891 | U133: 69.3359646 | V133: 12.19086857 | W133: 280.3117559 | X133: 102313.7909 | Y133: =X133*'Benefit Default'!$D$14 -> 58397642.43 | Z133: =SUM(Y118:Y132) -> 305084730.9 | AC133: ='Emission Calc'!$E$15 -> 4.4095916e-05 | AD133: ='Emission Calc'!$E$28 -> 7.992e-07 | AF133: 33.37992475 | AG133: 6.396303077 | AH133: 0.5029542413 | AI133: 26.48066743 | AJ133: 9665.443611 | AK133: =AJ133*'Benefit Default'!$D$15 -> 3179447.676 | AL133: =SUM(AK118:AK132) -> 17430282.35 | AO133: ='Emission Calc'!$E$18 -> 0.008 | AP133: ='Emission Calc'!$E$31 -> 9.257142857e-05 | AR133: 6055.875967 | AS133: 1160.434554 | AT133: 58.25724803 | AU133: 4837.184165 | AV133: 1765572.22 | AW133: =AV133*'Benefit Default'!$D$16 -> 22811193.09 | AX133: =SUM(AW118:AW132) -> 126723923.4 | AZ133: 183174907.8
A134: ='Cost Calc 1-Vehicle Uptake'!H21 -> 2038 | B134: =(C134+D134)-((C134+D134)*'Mobility Data'!$E$28) -> 770092.0495 | C134: ='Cost Calc 3-Vehicle Maintenance'!F60 -> 137262.7753 | D134: ='Cost Calc 3-Vehicle Maintenance'!F22 -> 650522.3712 | F134: ='Emission Calc'!$E$9 -> 1.25 | G134: ='Emission Calc'!$E$22 -> 0.0772376 | I134: 962615.0618 | J134: 171578.4691 | K134: 50244.7867 | L134: 740791.806 | M134: 270389009.2 | N134: =M134*'Benefit Default'!$D$13 -> 105451713.6 | Q134: ='Emission Calc'!$E$12 -> 0.000478 | R134: ='Emission Calc'!$E$25 -> 1.937142857e-05 | T134: 368.1039997 | U134: 65.61160659 | V134: 12.60154765 | W134: 289.8908454 | X134: 105810.1586 | Y134: =X134*'Benefit Default'!$D$14 -> 60393264.21 | AC134: ='Emission Calc'!$E$15 -> 4.4095916e-05 | AD134: ='Emission Calc'!$E$28 -> 7.992e-07 | AF134: 33.95791433 | AG134: 6.05272781 | AH134: 0.5198974791 | AI134: 27.38528904 | AJ134: 9995.630499 | AK134: =AJ134*'Benefit Default'!$D$15 -> 3288062.653 | AO134: ='Emission Calc'!$E$18 -> 0.008 | AP134: ='Emission Calc'!$E$31 -> 9.257142857e-05 | AR134: 6160.736396 | AS134: 1098.102202 | AT134: 60.21978522 | AU134: 5002.414408 | AV134: 1825881.259 | AW134: =AV134*'Benefit Default'!$D$16 -> 23590385.87 | AZ134: 189435363.7
A135: ='Cost Calc 1-Vehicle Uptake'!H22 -> 2039 | B135: =(C135+D135)-((C135+D135)*'Mobility Data'!$E$28) -> 784085.2485 | C135: ='Cost Calc 3-Vehicle Maintenance'!F61 -> 129108.834 | D135: ='Cost Calc 3-Vehicle Maintenance'!F23 -> 672991.0096 | F135: ='Emission Calc'!$E$9 -> 1.25 | G135: ='Emission Calc'!$E$22 -> 0.0772376 | I135: 980106.5607 | J135: 161386.0424 | K135: 51980.2104 | L135: 766740.3078 | M135: 279860212.4 | N135: =M135*'Benefit Default'!$D$13 -> 109145482.8 | Q135: ='Emission Calc'!$E$12 -> 0.000478 | R135: ='Emission Calc'!$E$25 -> 1.937142857e-05 | T135: 374.7927488 | U135: 61.71402263 | V135: 13.03679727 | W135: 300.0419289 | X135: 109515.304 | Y135: =X135*'Benefit Default'!$D$14 -> 62508050.09 | AC135: ='Emission Calc'!$E$15 -> 4.4095916e-05 | AD135: ='Emission Calc'!$E$28 -> 7.992e-07 | AF135: 34.57495726 | AG135: 5.693172297 | AH135: 0.5378544149 | AI135: 28.34393054 | AJ135: 10345.53465 | AK135: =AJ135*'Benefit Default'!$D$15 -> 3403163.623 | AO135: ='Emission Calc'!$E$18 -> 0.008 | AP135: ='Emission Calc'!$E$31 -> 9.257142857e-05 | AR135: 6272.681988 | AS135: 1032.870672 | AT135: 62.29973917 | AU135: 5177.511577 | AV135: 1889791.726 | AW135: =AV135*'Benefit Default'!$D$16 -> 24416109.1 | AZ135: 196069642
A136: ='Cost Calc 1-Vehicle Uptake'!H23 -> 2040 | B136: =(C136+D136)-((C136+D136)*'Mobility Data'!$E$28) -> 798786.964 | C136: ='Cost Calc 3-Vehicle Maintenance'!F62 -> 120592.4952 | D136: ='Cost Calc 3-Vehicle Maintenance'!F24 -> 696546.8401 | F136: ='Emission Calc'!$E$9 -> 1.25 | G136: ='Emission Calc'!$E$22 -> 0.0772376 | I136: 998483.705 | J136: 150740.619 | K136: 53799.60622 | L136: 793943.4797 | M136: 289789370.1 | N136: =M136*'Benefit Default'!$D$13 -> 113017854.3 | Q136: ='Emission Calc'!$E$12 -> 0.000478 | R136: ='Emission Calc'!$E$25 -> 1.937142857e-05 | T136: 381.8201688 | U136: 57.64321272 | V136: 13.49310736 | W136: 310.6838487 | X136: 113399.6048 | Y136: =X136*'Benefit Default'!$D$14 -> 64725092.42 | AC136: ='Emission Calc'!$E$15 -> 4.4095916e-05 | AD136: ='Emission Calc'!$E$28 -> 7.992e-07 | AF136: 35.22324287 | AG136: 5.31763654 | AH136: 0.5566802346 | AI136: 29.34892609 | AJ136: 10712.35802 | AK136: =AJ136*'Benefit Default'!$D$15 -> 3523830.172 | AO136: ='Emission Calc'!$E$18 -> 0.008 | AP136: ='Emission Calc'!$E$31 -> 9.257142857e-05 | AR136: 6390.295712 | AS136: 964.7399618 | AT136: 64.48033606 | AU136: 5361.075414 | AV136: 1956792.526 | AW136: =AV136*'Benefit Default'!$D$16 -> 25281759.44 | AZ136: 203024706.2
A137: ='Cost Calc 1-Vehicle Uptake'!H24 -> 2041 | B137: =(C137+D137)-((C137+D137)*'Mobility Data'!$E$28) -> 814197.1959 | C137: ='Cost Calc 3-Vehicle Maintenance'!F63 -> 111532.5604 | D137: ='Cost Calc 3-Vehicle Maintenance'!F25 -> 721371.0616 | F137: ='Emission Calc'!$E$9 -> 1.25 | G137: ='Emission Calc'!$E$22 -> 0.0772376 | I137: 1017746.495 | J137: 139415.7005 | K137: 55716.9695 | L137: 822613.8248 | M137: 300254046.1 | N137: =M137*'Benefit Default'!$D$13 -> 117099078 | Q137: ='Emission Calc'!$E$12 -> 0.000478 | R137: ='Emission Calc'!$E$25 -> 1.937142857e-05 | T137: 389.1862596 | U137: 53.31256387 | V137: 13.97398799 | W137: 321.8997078 | X137: 117493.3933 | Y137: =X137*'Benefit Default'!$D$14 -> 67061704.11 | AC137: ='Emission Calc'!$E$15 -> 4.4095916e-05 | AD137: ='Emission Calc'!$E$28 -> 7.992e-07 | AF137: 35.90277116 | AG137: 4.918130415 | AH137: 0.5765197524 | AI137: 30.40812099 | AJ137: 11098.96416 | AK137: =AJ137*'Benefit Default'!$D$15 -> 3651004.261 | AO137: ='Emission Calc'!$E$18 -> 0.008 | AP137: ='Emission Calc'!$E$31 -> 9.257142857e-05 | AR137: 6513.577567 | AS137: 892.2604832 | AT137: 66.7783497 | AU137: 5554.538734 | AV137: 2027406.638 | AW137: =AV137*'Benefit Default'!$D$16 -> 26194093.76 | AZ137: 210354875.8
A138: ='Cost Calc 1-Vehicle Uptake'!H25 -> 2042 | B138: =(C138+D138)-((C138+D138)*'Mobility Data'!$E$28) -> 830315.9441 | C138: ='Cost Calc 3-Vehicle Maintenance'!F64 -> 102110.2282 | D138: ='Cost Calc 3-Vehicle Maintenance'!F26 -> 747282.4752 | F138: ='Emission Calc'!$E$9 -> 1.25 | G138: ='Emission Calc'!$E$22 -> 0.0772376 | I138: 1037894.93 | J138: 127637.7852 | K138: 57718.3049 | L138: 852538.84 | M138: 311176676.6 | N138: =M138*'Benefit Default'!$D$13 -> 121358903.9 | Q138: ='Emission Calc'!$E$12 -> 0.000478 | R138: ='Emission Calc'!$E$25 -> 1.937142857e-05 | T138: 396.8910213 | U138: 48.80868907 | V138: 14.47592909 | W138: 333.6064031 | X138: 121766.3371 | Y138: =X138*'Benefit Default'!$D$14 -> 69500572.25 | AC138: ='Emission Calc'!$E$15 -> 4.4095916e-05 | AD138: ='Emission Calc'!$E$28 -> 7.992e-07 | AF138: 36.61354213 | AG138: 4.502644045 | AH138: 0.5972281541 | AI138: 31.51366993 | AJ138: 11502.48952 | AK138: =AJ138*'Benefit Default'!$D$15 -> 3783743.929 | AO138: ='Emission Calc'!$E$18 -> 0.008 | AP138: ='Emission Calc'!$E$31 -> 9.257142857e-05 | AR138: 6642.527553 | AS138: 816.8818255 | AT138: 69.17700627 | AU138: 5756.468721 | AV138: 2101111.083 | AW138: =AV138*'Benefit Default'!$D$16 -> 27146355.2 | AZ138: 218005831.3
A139: ='Cost Calc 1-Vehicle Uptake'!H26 -> 2043 | B139: =(C139+D139)-((C139+D139)*'Mobility Data'!$E$28) -> 847320.3379 | C139: ='Cost Calc 3-Vehicle Maintenance'!F65 -> 92325.49857 | D139: ='Cost Calc 3-Vehicle Maintenance'!F27 -> 774462.2796 | F139: ='Emission Calc'!$E$9 -> 1.25 | G139: ='Emission Calc'!$E$22 -> 0.0772376 | I139: 1059150.422 | J139: 115406.8732 | K139: 59817.60777 | L139: 883925.9414 | M139: 322632968.6 | N139: =M139*'Benefit Default'!$D$13 -> 125826857.8 | Q139: ='Emission Calc'!$E$12 -> 0.000478 | R139: ='Emission Calc'!$E$25 -> 1.937142857e-05 | T139: 405.0191215 | U139: 44.13158832 | V139: 15.00244073 | W139: 345.8850925 | X139: 126248.0588 | Y139: =X139*'Benefit Default'!$D$14 -> 72058604.5 | AC139: ='Emission Calc'!$E$15 -> 4.4095916e-05 | AD139: ='Emission Calc'!$E$28 -> 7.992e-07 | AF139: 37.36336645 | AG139: 4.07117743 | AH139: 0.6189502539 | AI139: 32.67323876 | AJ139: 11925.73215 | AK139: =AJ139*'Benefit Default'!$D$15 -> 3922969.59 | AO139: ='Emission Calc'!$E$18 -> 0.008 | AP139: ='Emission Calc'!$E$31 -> 9.257142857e-05 | AR139: 6778.562703 | AS139: 738.6039886 | AT139: 71.6930796 | AU139: 5968.265635 | AV139: 2178416.957 | AW139: =AV139*'Benefit Default'!$D$16 -> 28145147.08 | AZ139: 226030609.3
A140: ='Cost Calc 1-Vehicle Uptake'!H27 -> 2044 | B140: =(C140+D140)-((C140+D140)*'Mobility Data'!$E$28) -> 864856.119 | C140: ='Cost Calc 3-Vehicle Maintenance'!F66 -> 81997.17287 | D140: ='Cost Calc 3-Vehicle Maintenance'!F28 -> 802729.2763 | F140: ='Emission Calc'!$E$9 -> 1.25 | G140: ='Emission Calc'!$E$22 -> 0.0772376 | I140: 1081070.149 | J140: 102496.4661 | K140: 62000.88275 | L140: 916572.7999 | M140: 334549072 | N140: =M140*'Benefit Default'!$D$13 -> 130474138.1 | Q140: ='Emission Calc'!$E$12 -> 0.000478 | R140: ='Emission Calc'!$E$25 -> 1.937142857e-05 | T140: 413.4012249 | U140: 39.19464863 | V140: 15.55001284 | W140: 358.6565634 | X140: 130909.6456 | Y140: =X140*'Benefit Default'!$D$14 -> 74719298.45 | AC140: ='Emission Calc'!$E$15 -> 4.4095916e-05 | AD140: ='Emission Calc'!$E$28 -> 7.992e-07 | AF140: 38.13662278 | AG140: 3.615740447 | AH140: 0.6415412376 | AI140: 33.87934109 | AJ140: 12365.9595 | AK140: =AJ140*'Benefit Default'!$D$15 -> 4067782.377 | AO140: ='Emission Calc'!$E$18 -> 0.008 | AP140: ='Emission Calc'!$E$31 -> 9.257142857e-05 | AR140: 6918.848952 | AS140: 655.977383 | AT140: 74.30979586 | AU140: 6188.561773 | AV140: 2258825.047 | AW140: =AV140*'Benefit Default'!$D$16 -> 29184019.61 | AZ140: 234377456.1
A141: ='Cost Calc 1-Vehicle Uptake'!H28 -> 2045 | B141: =(C141+D141)-((C141+D141)*'Mobility Data'!$E$28) -> 883277.5456 | C141: ='Cost Calc 3-Vehicle Maintenance'!F67 -> 71306.44978 | D141: ='Cost Calc 3-Vehicle Maintenance'!F29 -> 832264.6638 | F141: ='Emission Calc'!$E$9 -> 1.25 | G141: ='Emission Calc'!$E$22 -> 0.0772376 | I141: 1104096.932 | J141: 89133.06223 | K141: 64282.1252 | L141: 950681.7446 | M141: 346998836.8 | N141: =M141*'Benefit Default'!$D$13 -> 135329546.3 | Q141: ='Emission Calc'!$E$12 -> 0.000478 | R141: ='Emission Calc'!$E$25 -> 1.937142857e-05 | T141: 422.2066668 | U141: 34.084483 | V141: 16.12215549 | W141: 372.0000283 | X141: 135780.0103 | Y141: =X141*'Benefit Default'!$D$14 -> 77499156.5 | AC141: ='Emission Calc'!$E$15 -> 4.4095916e-05 | AD141: ='Emission Calc'!$E$28 -> 7.992e-07 | AF141: 38.94893246 | AG141: 3.14432322 | AH141: 0.6651459193 | AI141: 35.13946332 | AJ141: 12825.90411 | AK141: =AJ141*'Benefit Default'!$D$15 -> 4219081.157 | AO141: ='Emission Calc'!$E$18 -> 0.008 | AP141: ='Emission Calc'!$E$31 -> 9.257142857e-05 | AR141: 7066.220365 | AS141: 570.4515982 | AT141: 77.04392888 | AU141: 6418.724838 | AV141: 2342834.566 | AW141: =AV141*'Benefit Default'!$D$16 -> 30269422.59 | AZ141: 243098125.4
A142: ='Cost Calc 1-Vehicle Uptake'!H29 -> 2046 | B142: =(C142+D142)-((C142+D142)*'Mobility Data'!$E$28) -> 902407.4886 | C142: ='Cost Calc 3-Vehicle Maintenance'!F68 -> 60253.3293 | D142: ='Cost Calc 3-Vehicle Maintenance'!F30 -> 862887.2435 | F142: ='Emission Calc'!$E$9 -> 1.25 | G142: ='Emission Calc'!$E$22 -> 0.0772376 | I142: 1128009.361 | J142: 75316.66162 | K142: 66647.33976 | L142: 986045.3594 | M142: 359906556.2 | N142: =M142*'Benefit Default'!$D$13 -> 140363556.9 | Q142: ='Emission Calc'!$E$12 -> 0.000478 | R142: ='Emission Calc'!$E$25 -> 1.937142857e-05 | T142: 431.3507796 | U142: 28.8010914 | V142: 16.7153586 | W142: 385.8343296 | X142: 140829.5303 | Y142: =X142*'Benefit Default'!$D$14 -> 80381271 | AC142: ='Emission Calc'!$E$15 -> 4.4095916e-05 | AD142: ='Emission Calc'!$E$28 -> 7.992e-07 | AF142: 39.79248482 | AG142: 2.656925747 | AH142: 0.689619485 | AI142: 36.44593958 | AJ142: 13302.76795 | AK142: =AJ142*'Benefit Default'!$D$15 -> 4375945.517 | AO142: ='Emission Calc'!$E$18 -> 0.008 | AP142: ='Emission Calc'!$E$31 -> 9.257142857e-05 | AR142: 7219.259909 | AS142: 482.0266344 | AT142: 79.87870483 | AU142: 6657.35457 | AV142: 2429934.418 | AW142: =AV142*'Benefit Default'!$D$16 -> 31394752.68 | AZ142: 252139580.6
A143: ='Cost Calc 1-Vehicle Uptake'!H30 -> 2047 | B143: =(C143+D143)-((C143+D143)*'Mobility Data'!$E$28) -> 922245.9481 | C143: ='Cost Calc 3-Vehicle Maintenance'!F69 -> 48656.61272 | D143: ='Cost Calc 3-Vehicle Maintenance'!F31 -> 894778.2141 | F143: ='Emission Calc'!$E$9 -> 1.25 | G143: ='Emission Calc'!$E$22 -> 0.0772376 | I143: 1152807.435 | J143: 60820.7659 | K143: 69110.52179 | L143: 1022876.147 | M143: 373349793.8 | N143: =M143*'Benefit Default'!$D$13 -> 145606419.6 | Q143: ='Emission Calc'!$E$12 -> 0.000478 | R143: ='Emission Calc'!$E$25 -> 1.937142857e-05 | T143: 440.8335632 | U143: 23.25786088 | V143: 17.33313226 | W143: 400.24257 | X143: 146088.5381 | Y143: =X143*'Benefit Default'!$D$14 -> 83382954.87 | AC143: ='Emission Calc'!$E$15 -> 4.4095916e-05 | AD143: ='Emission Calc'!$E$28 -> 7.992e-07 | AF143: 40.66727986 | AG143: 2.145557907 | AH143: 0.7151067487 | AI143: 37.8066152 | AJ143: 13799.41455 | AK143: =AJ143*'Benefit Default'!$D$15 -> 4539317.416 | AO143: ='Emission Calc'!$E$18 -> 0.008 | AP143: ='Emission Calc'!$E$31 -> 9.257142857e-05 | AR143: 7377.967584 | AS143: 389.2529018 | AT143: 82.83089753 | AU143: 6905.883785 | AV143: 2520647.582 | AW143: =AV143*'Benefit Default'!$D$16 -> 32566766.75 | AZ143: 261556141.2
A144: ='Cost Calc 1-Vehicle Uptake'!H31 -> 2048 | B144: =(C144+D144)-((C144+D144)*'Mobility Data'!$E$28) -> 942792.9239 | C144: ='Cost Calc 3-Vehicle Maintenance'!F70 -> 36697.49875 | D144: ='Cost Calc 3-Vehicle Maintenance'!F32 -> 927756.3769 | F144: ='Emission Calc'!$E$9 -> 1.25 | G144: ='Emission Calc'!$E$22 -> 0.0772376 | I144: 1178491.155 | J144: 45871.87344 | K144: 71657.67593 | L144: 1060961.605 | M144: 387250986 | N144: =M144*'Benefit Default'!$D$13 -> 151027884.5 | Q144: ='Emission Calc'!$E$12 -> 0.000478 | R144: ='Emission Calc'!$E$25 -> 1.937142857e-05 | T144: 450.6550176 | U144: 17.5414044 | V144: 17.97196639 | W144: 415.1416468 | X144: 151526.7011 | Y144: =X144*'Benefit Default'!$D$14 -> 86486895.18 | AC144: ='Emission Calc'!$E$15 -> 4.4095916e-05 | AD144: ='Emission Calc'!$E$28 -> 7.992e-07 | AF144: 41.57331758 | AG144: 1.618209822 | AH144: 0.7414628964 | AI144: 39.21364486 | AJ144: 14312.98037 | AK144: =AJ144*'Benefit Default'!$D$15 -> 4708254.894 | AO144: ='Emission Calc'!$E$18 -> 0.008 | AP144: ='Emission Calc'!$E$31 -> 9.257142857e-05 | AR144: 7542.343391 | AS144: 293.57999 | AT144: 85.88373317 | AU144: 7162.879668 | AV144: 2614451.079 | AW144: =AV144*'Benefit Default'!$D$16 -> 33778707.94 | AZ144: 271293487.7
A145: ='Cost Calc 1-Vehicle Uptake'!H32 -> 2049 | B145: =(C145+D145)-((C145+D145)*'Mobility Data'!$E$28) -> 964225.5452 | C145: ='Cost Calc 3-Vehicle Maintenance'!F71 -> 24375.98739 | D145: ='Cost Calc 3-Vehicle Maintenance'!F33 -> 962002.9305 | F145: ='Emission Calc'!$E$9 -> 1.25 | G145: ='Emission Calc'!$E$22 -> 0.0772376 | I145: 1205281.932 | J145: 30469.98424 | K145: 74302.79754 | L145: 1100509.15 | M145: 401685839.7 | N145: =M145*'Benefit Default'!$D$13 -> 156657477.5 | Q145: ='Emission Calc'!$E$12 -> 0.000478 | R145: ='Emission Calc'!$E$25 -> 1.937142857e-05 | T145: 460.8998106 | U145: 11.65172197 | V145: 18.63537105 | W145: 430.6127176 | X145: 157173.6419 | Y145: =X145*'Benefit Default'!$D$14 -> 89709999.6 | AC145: ='Emission Calc'!$E$15 -> 4.4095916e-05 | AD145: ='Emission Calc'!$E$28 -> 7.992e-07 | AF145: 42.51840865 | AG145: 1.074881492 | AH145: 0.768832742 | AI145: 40.67469441 | AJ145: 14846.26346 | AK145: =AJ145*'Benefit Default'!$D$15 -> 4883678.365 | AO145: ='Emission Calc'!$E$18 -> 0.008 | AP145: ='Emission Calc'!$E$31 -> 9.257142857e-05 | AR145: 7713.804362 | AS145: 195.0078991 | AT145: 89.05398557 | AU145: 7429.742477 | AV145: 2711856.004 | AW145: =AV145*'Benefit Default'!$D$16 -> 35037179.57 | AZ145: 281404656.6
A146: ='Cost Calc 1-Vehicle Uptake'!H33 -> 2050 | B146: =(C146+D146)-((C146+D146)*'Mobility Data'!$E$28) -> 1012205.218 | C146: ='Cost Calc 3-Vehicle Maintenance'!F72 -> 0 | D146: ='Cost Calc 3-Vehicle Maintenance'!F34 -> 1035460.938 | F146: ='Emission Calc'!$E$9 -> 1.25 | G146: ='Emission Calc'!$E$22 -> 0.0772376 | I146: 1265256.522 | J146: 0 | K146: 79976.51774 | L146: 1185280.005 | M146: 432627201.6 | N146: =M146*'Benefit Default'!$D$13 -> 168724608.6 | Q146: ='Emission Calc'!$E$12 -> 0.000478 | R146: ='Emission Calc'!$E$25 -> 1.937142857e-05 | T146: 483.8340941 | U146: 0 | V146: 20.0583576 | W146: 463.7757365 | X146: 169278.1438 | Y146: =X146*'Benefit Default'!$D$14 -> 96618886.15 | AC146: ='Emission Calc'!$E$15 -> 4.4095916e-05 | AD146: ='Emission Calc'!$E$28 -> 7.992e-07 | AF146: 44.63411626 | AG146: 0 | AH146: 0.8275403816 | AI146: 43.80657588 | AJ146: 15989.4002 | AK146: =AJ146*'Benefit Default'!$D$15 -> 5259713.194 | AO146: ='Emission Calc'!$E$18 -> 0.008 | AP146: ='Emission Calc'!$E$31 -> 9.257142857e-05 | AR146: 8097.641742 | AS146: 0 | AT146: 95.85409825 | AU146: 8001.787644 | AV146: 2920652.49 | AW146: =AV146*'Benefit Default'!$D$16 -> 37734830.17 | AZ146: 303078325
A147: ='Cost Calc 1-Vehicle Uptake'!H34 -> 2051 | B147: =(C147+D147)-((C147+D147)*'Mobility Data'!$E$28) -> 1012205.218 | C147: ='Cost Calc 3-Vehicle Maintenance'!F73 -> 0 | D147: ='Cost Calc 3-Vehicle Maintenance'!F35 -> 1035460.938 | F147: ='Emission Calc'!$E$9 -> 1.25 | G147: ='Emission Calc'!$E$22 -> 0.0772376 | I147: 1265256.522 | J147: 0 | K147: 79976.51774 | L147: 1185280.005 | M147: 432627201.6 | N147: =M147*'Benefit Default'!$D$13 -> 168724608.6 | Q147: ='Emission Calc'!$E$12 -> 0.000478 | R147: ='Emission Calc'!$E$25 -> 1.937142857e-05 | T147: 483.8340941 | U147: 0 | V147: 20.0583576 | W147: 463.7757365 | X147: 169278.1438 | Y147: =X147*'Benefit Default'!$D$14 -> 96618886.15 | AC147: ='Emission Calc'!$E$15 -> 4.4095916e-05 | AD147: ='Emission Calc'!$E$28 -> 7.992e-07 | AF147: 44.63411626 | AG147: 0 | AH147: 0.8275403816 | AI147: 43.80657588 | AJ147: 15989.4002 | AK147: =AJ147*'Benefit Default'!$D$15 -> 5259713.194 | AO147: ='Emission Calc'!$E$18 -> 0.008 | AP147: ='Emission Calc'!$E$31 -> 9.257142857e-05 | AR147: 8097.641742 | AS147: 0 | AT147: 95.85409825 | AU147: 8001.787644 | AV147: 2920652.49 | AW147: =AV147*'Benefit Default'!$D$16 -> 37734830.17 | AZ147: 303078325
A148: 2050 | B148: =C148+D148 -> 361665.3766 | C148: ='Mobility Calc'!E95 -> 0 | D148: ='Mobility Calc'!E89 -> 361665.3766 | F148: ='Emission Calc'!$E$9 -> 1.25 | G148: ='Emission Calc'!$E$22 -> 0.0772376 | I148: 452081.7208 | J148: 0 | K148: 27934.16569 | L148: 424147.5551 | M148: 154813857.6 | N148: =M148*'Benefit Default'!$D$13 -> 60377404.47 | O148: =SUM(N133:N147) -> 1984545517 | Q148: ='Emission Calc'!$E$12 -> 0.000478 | R148: ='Emission Calc'!$E$25 -> 1.937142857e-05 | T148: 172.87605 | U148: 0 | V148: 7.00597501 | W148: 165.870075 | X148: 60542.57738 | Y148: =X148*'Benefit Default'!$D$14 -> 34555886.89 | Z148: =SUM(Y133:Y147) -> 1136496065 | AC148: ='Emission Calc'!$E$15 -> 4.4095916e-05 | AD148: ='Emission Calc'!$E$228 -> 0 | AF148: =B148*AC148 -> 15.94796607 | AG148: 0 | AH148: =D148*AD148 -> 0 | AI148: 15.94796607 | AJ148: 5821.007615 | AK148: =AJ148*'Benefit Default'!$D$15 -> 1914820.455 | AL148: =SUM(AK133:AK147) -> 61871604.2 | AO148: ='Emission Calc'!$E$18 -> 0.008 | AP148: ='Emission Calc'!$E$31 -> 9.257142857e-05 | AR148: 2893.323013 | AS148: 0 | AT148: 33.47988058 | AU148: 2859.843132 | AV148: 1043842.743 | AW148: =AV148*'Benefit Default'!$D$16 -> 13486448.24 | AX148: =SUM(AW133:AW147) -> 443893058 | AZ148: 108419739.6
K152: Social cost avoided (USD 2020) accumulated | L152: Today | M152: 2035 | N152: 2050 | O152: =SUM(M80,M117,M43,M6) -> -43932206.99
K154: CO2 | L154: =O6+O43+O80+O117 -> -17133560.72 | M154: =O22+O59+O96+O133 -> 2.303904651e+10 | N154: =O37+O74+O111+O148 -> 6.963821532e+10
K155: PM10 | L155: =Z6+Z43+Z80+Z117 -> -6851595.759 | M155: =Z22+Z59+Z96+Z133 -> 1565249220 | N155: =Z37+Z74+Z111+Z148 -> 1.078928341e+10
K156: PM 2.5 | M156: =AL22+AL59+AL96+AL133 -> 1698342432 | N156: =AL37+AL74+AL111+AL148 -> 5225272522
K157: NOx | L157: =AX6+AX43+AX80+AX117 -> -901553.4487 | M157: =AX22+AX59+AX96+AX133 -> 1599065638 | N157: =AX37+AX74+AX111+AX148 -> 4771548244
K158: Total | L158: =SUM(L154:L157) -> -24886709.93 | M158: =SUM(M154:M157) -> 2.79017038e+10 | N158: 9.04243195e+10

Sheet Mobility Data
C1: Mobility Data
E4: Manual Input | H4: Default Input
E5: 2020 (Baseline) | F5: 2035 | G5: 2050 | H5: 2020 (Baseline) | I5: 2035 | J5: 2050
B6: Category | C6: Data Point | D6: Unit | E6: ='City Data'!E6:G6 -> Developed Economy - High Density | H6: ='City Data'!H6:J6 -> Developed Economy - High Density | K6: ='City Data'!K6 -> 3 | M6: Information box
B7: Modal Split | C7: Private car | D7: % | E7: ='Mobility Calc'!H55 -> 0.8585742863 | F7: 0.76 | G7: 0.66 | I7: =IF($K$6='Mobility Default'!$F$5,'Mobility Default'!F7,IF($K$6='Mobility Default'!$I$5,'Mobility Default'!I7,IF($K$6='Mobility Default'!$L$5,'Mobility Default'!L7,IF($K$6='Mobility Default'!$O$5,'Mobility Default'!O7)))) -> 0.8585742863 | J7: =IF($K$6='Mobility Default'!$G$5,'Mobility Default'!G7,IF($K$6='Mobility Default'!$J$5,'Mobility Default'!J7,IF($K$6='Mobility Default'!$M$5,'Mobility Default'!M7,IF($K$6='Mobility Default'!$P$5,'Mobility Default'!P7)))) -> 0.8585742863 | M7: The breakdown of travel between different modes including private cars, public buses, shared fleets, and rail. Can be measured as vehicle distance traveled, passenger distance traveled, or number of trips. For 2020, modal split is calculated based on vehicle inputs. The default will be the same as the modal split for 2020.
C8: Private two-wheeler | D8: % | E8: ='Mobility Calc'!H56 -> 0.0173990391 | F8: 0.04 | G8: 0.05 | I8: =IF($K$6='Mobility Default'!$F$5,'Mobility Default'!F8,IF($K$6='Mobility Default'!$I$5,'Mobility Default'!I8,IF($K$6='Mobility Default'!$L$5,'Mobility Default'!L8,IF($K$6='Mobility Default'!$O$5,'Mobility Default'!O8)))) -> 0.0173990391 | J8: =IF($K$6='Mobility Default'!$G$5,'Mobility Default'!G8,IF($K$6='Mobility Default'!$J$5,'Mobility Default'!J8,IF($K$6='Mobility Default'!$M$5,'Mobility Default'!M8,IF($K$6='Mobility Default'!$P$5,'Mobility Default'!P8)))) -> 0.0173990391
C9: Public bus | D9: % | E9: ='Mobility Calc'!H57 -> 0.06231437975 | F9: 0.1 | G9: 0.13 | I9: =IF($K$6='Mobility Default'!$F$5,'Mobility Default'!F9,IF($K$6='Mobility Default'!$I$5,'Mobility Default'!I9,IF($K$6='Mobility Default'!$L$5,'Mobility Default'!L9,IF($K$6='Mobility Default'!$O$5,'Mobility Default'!O9)))) -> 0.06231437975 | J9: =IF($K$6='Mobility Default'!$G$5,'Mobility Default'!G9,IF($K$6='Mobility Default'!$J$5,'Mobility Default'!J9,IF($K$6='Mobility Default'!$M$5,'Mobility Default'!M9,IF($K$6='Mobility Default'!$P$5,'Mobility Default'!P9)))) -> 0.06231437975
C10: Shared fleet | D10: % | E10: ='Mobility Calc'!H58 -> 0.04432580294 | F10: 0.06 | G10: 0.08 | I10: =IF($K$6='Mobility Default'!$F$5,'Mobility Default'!F10,IF($K$6='Mobility Default'!$I$5,'Mobility Default'!I10,IF($K$6='Mobility Default'!$L$5,'Mobility Default'!L10,IF($K$6='Mobility Default'!$O$5,'Mobility Default'!O10)))) -> 0.04432580294 | J10: =IF($K$6='Mobility Default'!$G$5,'Mobility Default'!G10,IF($K$6='Mobility Default'!$J$5,'Mobility Default'!J10,IF($K$6='Mobility Default'!$M$5,'Mobility Default'!M10,IF($K$6='Mobility Default'!$P$5,'Mobility Default'!P10)))) -> 0.04432580294
C11: Rail | D11: % | E11: ='Mobility Calc'!H59 -> 0.01738649185 | F11: 0.04 | G11: 0.08 | I11: =IF($K$6='Mobility Default'!$F$5,'Mobility Default'!F11,IF($K$6='Mobility Default'!$I$5,'Mobility Default'!I11,IF($K$6='Mobility Default'!$L$5,'Mobility Default'!L11,IF($K$6='Mobility Default'!$O$5,'Mobility Default'!O11)))) -> 0.01738649185 | J11: =IF($K$6='Mobility Default'!$G$5,'Mobility Default'!G11,IF($K$6='Mobility Default'!$J$5,'Mobility Default'!J11,IF($K$6='Mobility Default'!$M$5,'Mobility Default'!M11,IF($K$6='Mobility Default'!$P$5,'Mobility Default'!P11)))) -> 0.01738649185
C12: Values must add up to 100% | E12: =SUM(E7:E11) -> 1 | F12: =SUM(F7:F11) -> 1 | G12: 1 | I12: 1 | J12: 1
B14: Total ICE Vehicles 2020 | C14: Private car | D14: # vehicles | E14: 6490537 | M14: Total number of registered ICE vehicles in 2020. Alternatively users can input only the number of vehicles which are used on a daily basis. This is NOT the total number of vehicles in your city. Please make sure to subtract any EVs from vehicle registration numbers.
C15: Private two-wheelers | D15: # vehicles | E15: 162874
C16: Public bus | D16: # vehicles | E16: 1741
C17: Shared fleet | D17: # vehicles | E17: 250000
B19: Total EVs 2020 | C19: Private car | D19: # vehicles | E19: 45000 | M19: Total number of battery electric vehicles. Alternatively users can input only the number of vehicles which are used on a daily basis.
C20: Private two-wheelers | D20: # vehicles | E20: 4887
C21: Public bus | D21: # vehicles | E21: 40
C22: Shared fleet | D22: # vehicles | E22: 7500
B24: Uptake of Electric Vehicles | C24: Private car | D24: % EVs | E24: =E19/(E14+E19) -> 0.006885432674 | F24: 0.8 | G24: 1 | I24: =IF($K$6='Mobility Default'!$E$5,'Mobility Default'!F34,IF($K$6='Mobility Default'!$H$5,'Mobility Default'!I34,IF($K$6='Mobility Default'!$K$5,'Mobility Default'!L34,IF($K$6='Mobility Default'!$N$5,'Mobility Default'!O34)))) -> 0.2 | J24: =IF($K$6='Mobility Default'!$E$5,'Mobility Default'!G34,IF($K$6='Mobility Default'!$H$5,'Mobility Default'!J34,IF($K$6='Mobility Default'!$K$5,'Mobility Default'!M34,IF($K$6='Mobility Default'!$N$5,'Mobility Default'!P34)))) -> 0.6 | M24: For each mode, the percentage of total registered vehicles targeted to be electric in 2035 and 2050. For 2020 % electrification is calculated based on vehicle inputs.
C25: Required private car rate of electrification | D25: % Growth | F25: ='Cost Calc 1-Vehicle Uptake'!T19 -> 106.5742832 | G25: ='Cost Calc 1-Vehicle Uptake'!T34 -> 0.08552631579
C26: Private two-wheelers | D26: % EVs | E26: =E20/(E15+E20) -> 0.02913072764 | F26: 0.8 | G26: 1 | I26: =IF($K$6='Mobility Default'!$E$5,'Mobility Default'!F35,IF($K$6='Mobility Default'!$H$5,'Mobility Default'!I35,IF($K$6='Mobility Default'!$K$5,'Mobility Default'!L35,IF($K$6='Mobility Default'!$N$5,'Mobility Default'!O35)))) -> 0.3 | J26: =IF($K$6='Mobility Default'!$E$5,'Mobility Default'!G35,IF($K$6='Mobility Default'!$H$5,'Mobility Default'!J35,IF($K$6='Mobility Default'!$K$5,'Mobility Default'!M35,IF($K$6='Mobility Default'!$N$5,'Mobility Default'!P35)))) -> 0.5
C27: Required two-wheeler rate of electrification | D27: % Growth | F27: ='Cost Calc 1-Vehicle Uptake'!T54 -> 65.03700627 | G27: ='Cost Calc 1-Vehicle Uptake'!T69 -> 0.6343084317
C28: Public bus | D28: % EVs | E28: =E21/(E16+E21) -> 0.02245929253 | F28: 0.8 | G28: 1 | I28: =IF($K$6='Mobility Default'!$E$5,'Mobility Default'!F36,IF($K$6='Mobility Default'!$H$5,'Mobility Default'!I36,IF($K$6='Mobility Default'!$K$5,'Mobility Default'!L36,IF($K$6='Mobility Default'!$N$5,'Mobility Default'!O36)))) -> 0.2 | J28: =IF($K$6='Mobility Default'!$E$5,'Mobility Default'!G36,IF($K$6='Mobility Default'!$H$5,'Mobility Default'!J36,IF($K$6='Mobility Default'!$K$5,'Mobility Default'!M36,IF($K$6='Mobility Default'!$N$5,'Mobility Default'!P36)))) -> 1 | M28: Growth rate is calculated as the total growth in electric vehicles over 15 years.
C29: Required public bus rate of electrification | D29: % Growth | F29: ='Cost Calc 1-Vehicle Uptake'!T89 -> 83.05262845 | G29: ='Cost Calc 1-Vehicle Uptake'!T104 -> 0.699680769
C30: Shared fleet | D30: % EVs | E30: =E22/(E22+E17) -> 0.02912621359 | F30: 1 | G30: 1 | I30: =IF($K$6='Mobility Default'!$E$5,'Mobility Default'!F37,IF($K$6='Mobility Default'!$H$5,'Mobility Default'!I37,IF($K$6='Mobility Default'!$K$5,'Mobility Default'!L37,IF($K$6='Mobility Default'!$N$5,'Mobility Default'!O37)))) -> 0.5 | J30: =IF($K$6='Mobility Default'!$E$5,'Mobility Default'!G37,IF($K$6='Mobility Default'!$H$5,'Mobility Default'!J37,IF($K$6='Mobility Default'!$K$5,'Mobility Default'!M37,IF($K$6='Mobility Default'!$N$5,'Mobility Default'!P37)))) -> 1
C31: Required shared fleet rate of electrification | D31: % Growth | F31: ='Cost Calc 1-Vehicle Uptake'!T123 -> 33.57744817 | G31: ='Cost Calc 1-Vehicle Uptake'!T138 -> 0.3946098617
B33: Average Trip Length and Number of Vehicle Trips | C33: Private car | D33: km/trip | H33: =IF($K$6='Mobility Default'!$E$5,'Mobility Default'!E13,IF($K$6='Mobility Default'!$H$5,'Mobility Default'!H13,IF($K$6='Mobility Default'!$K$5,'Mobility Default'!K13,IF($K$6='Mobility Default'!$N$5,'Mobility Default'!N13)))) -> 12.5 | I33: =IF($K$6='Mobility Default'!$E$5,'Mobility Default'!F13,IF($K$6='Mobility Default'!$H$5,'Mobility Default'!I13,IF($K$6='Mobility Default'!$K$5,'Mobility Default'!L13,IF($K$6='Mobility Default'!$N$5,'Mobility Default'!O13)))) -> 12.5 | J33: =IF($K$6='Mobility Default'!$E$5,'Mobility Default'!G13,IF($K$6='Mobility Default'!$H$5,'Mobility Default'!J13,IF($K$6='Mobility Default'!$K$5,'Mobility Default'!M13,IF($K$6='Mobility Default'!$N$5,'Mobility Default'!P13)))) -> 12.5 | M33: Average trip length per type of vehicle
C34: Private two-wheelers | D34: km/trip | H34: =IF($K$6='Mobility Default'!$E$5,'Mobility Default'!E14,IF($K$6='Mobility Default'!$H$5,'Mobility Default'!H14,IF($K$6='Mobility Default'!$K$5,'Mobility Default'!K14,IF($K$6='Mobility Default'!$N$5,'Mobility Default'!N14)))) -> 12.5 | I34: =IF($K$6='Mobility Default'!$E$5,'Mobility Default'!F14,IF($K$6='Mobility Default'!$H$5,'Mobility Default'!I14,IF($K$6='Mobility Default'!$K$5,'Mobility Default'!L14,IF($K$6='Mobility Default'!$N$5,'Mobility Default'!O14)))) -> 12.5 | J34: =IF($K$6='Mobility Default'!$E$5,'Mobility Default'!G14,IF($K$6='Mobility Default'!$H$5,'Mobility Default'!J14,IF($K$6='Mobility Default'!$K$5,'Mobility Default'!M14,IF($K$6='Mobility Default'!$N$5,'Mobility Default'!P14)))) -> 12.5
C35: Shared fleet vehicle | D35: km/trip | H35: =IF($K$6='Mobility Default'!$E$5,'Mobility Default'!E15,IF($K$6='Mobility Default'!$H$5,'Mobility Default'!H15,IF($K$6='Mobility Default'!$K$5,'Mobility Default'!K15,IF($K$6='Mobility Default'!$N$5,'Mobility Default'!N15)))) -> 7.9 | I35: =IF($K$6='Mobility Default'!$E$5,'Mobility Default'!F15,IF($K$6='Mobility Default'!$H$5,'Mobility Default'!I15,IF($K$6='Mobility Default'!$K$5,'Mobility Default'!L15,IF($K$6='Mobility Default'!$N$5,'Mobility Default'!O15)))) -> 7.9 | J35: =IF($K$6='Mobility Default'!$E$5,'Mobility Default'!G15,IF($K$6='Mobility Default'!$H$5,'Mobility Default'!J15,IF($K$6='Mobility Default'!$K$5,'Mobility Default'!M15,IF($K$6='Mobility Default'!$N$5,'Mobility Default'!P15)))) -> 7.9
C36: Private car | D36: trips/day | H36: =IF($K$6='Mobility Default'!$E$5,'Mobility Default'!E16,IF($K$6='Mobility Default'!$H$5,'Mobility Default'!H16,IF($K$6='Mobility Default'!$K$5,'Mobility Default'!K16,IF($K$6='Mobility Default'!$N$5,'Mobility Default'!N16)))) -> 2.3 | I36: =IF($K$6='Mobility Default'!$E$5,'Mobility Default'!F16,IF($K$6='Mobility Default'!$H$5,'Mobility Default'!I16,IF($K$6='Mobility Default'!$K$5,'Mobility Default'!L16,IF($K$6='Mobility Default'!$N$5,'Mobility Default'!O16)))) -> 2.3 | J36: =IF($K$6='Mobility Default'!$E$5,'Mobility Default'!G16,IF($K$6='Mobility Default'!$H$5,'Mobility Default'!J16,IF($K$6='Mobility Default'!$K$5,'Mobility Default'!M16,IF($K$6='Mobility Default'!$N$5,'Mobility Default'!P16)))) -> 2.3 | M36: Average vehicle trips per day per vehicle type
C37: Private two-wheelers | D37: trips/day | H37: =IF($K$6='Mobility Default'!$E$5,'Mobility Default'!E17,IF($K$6='Mobility Default'!$H$5,'Mobility Default'!H17,IF($K$6='Mobility Default'!$K$5,'Mobility Default'!K17,IF($K$6='Mobility Default'!$N$5,'Mobility Default'!N17)))) -> 2.3 | I37: =IF($K$6='Mobility Default'!$E$5,'Mobility Default'!F17,IF($K$6='Mobility Default'!$H$5,'Mobility Default'!I17,IF($K$6='Mobility Default'!$K$5,'Mobility Default'!L17,IF($K$6='Mobility Default'!$N$5,'Mobility Default'!O17)))) -> 2.3 | J37: =IF($K$6='Mobility Default'!$E$5,'Mobility Default'!G17,IF($K$6='Mobility Default'!$H$5,'Mobility Default'!J17,IF($K$6='Mobility Default'!$K$5,'Mobility Default'!M17,IF($K$6='Mobility Default'!$N$5,'Mobility Default'!P17)))) -> 2.3
C38: Shared fleet | D38: trips/day | H38: =IF($K$6='Mobility Default'!$E$5,'Mobility Default'!E18,IF($K$6='Mobility Default'!$H$5,'Mobility Default'!H18,IF($K$6='Mobility Default'!$K$5,'Mobility Default'!K18,IF($K$6='Mobility Default'!$N$5,'Mobility Default'!N18)))) -> 2.37 | I38: =IF($K$6='Mobility Default'!$E$5,'Mobility Default'!F18,IF($K$6='Mobility Default'!$H$5,'Mobility Default'!I18,IF($K$6='Mobility Default'!$K$5,'Mobility Default'!L18,IF($K$6='Mobility Default'!$N$5,'Mobility Default'!O18)))) -> 2.37 | J38: =IF($K$6='Mobility Default'!$E$5,'Mobility Default'!G18,IF($K$6='Mobility Default'!$H$5,'Mobility Default'!J18,IF($K$6='Mobility Default'!$K$5,'Mobility Default'!M18,IF($K$6='Mobility Default'!$N$5,'Mobility Default'!P18)))) -> 2.37
B40: Average Occupancy per Registered* Vehicle (see the information box for more details) | C40: Private car | D40: # of Users | H40: =IF($K$6='Mobility Default'!$E$5,'Mobility Default'!E20,IF($K$6='Mobility Default'!$H$5,'Mobility Default'!H20,IF($K$6='Mobility Default'!$K$5,'Mobility Default'!K20,IF($K$6='Mobility Default'!$N$5,'Mobility Default'!N20)))) -> 1.14 | I40: =IF($K$6='Mobility Default'!$E$5,'Mobility Default'!F20,IF($K$6='Mobility Default'!$H$5,'Mobility Default'!I20,IF($K$6='Mobility Default'!$K$5,'Mobility Default'!L20,IF($K$6='Mobility Default'!$N$5,'Mobility Default'!O20)))) -> 1.14 | J40: =IF($K$6='Mobility Default'!$E$5,'Mobility Default'!G20,IF($K$6='Mobility Default'!$H$5,'Mobility Default'!J20,IF($K$6='Mobility Default'!$K$5,'Mobility Default'!M20,IF($K$6='Mobility Default'!$N$5,'Mobility Default'!P20)))) -> 1.14 | M40: Average number of users occupying each vehicle type, which considers all registered* vehicles. *Users can also input the average occupancy per vehicle on the road, if they input the number of vehicles used daily above (as opposed to inputting the total number of registered vehicles above)
C41: Private two-wheelers | D41: # of Users | H41: =IF($K$6='Mobility Default'!$E$5,'Mobility Default'!E21,IF($K$6='Mobility Default'!$H$5,'Mobility Default'!H21,IF($K$6='Mobility Default'!$K$5,'Mobility Default'!K21,IF($K$6='Mobility Default'!$N$5,'Mobility Default'!N21)))) -> 0.9 | I41: =IF($K$6='Mobility Default'!$E$5,'Mobility Default'!F21,IF($K$6='Mobility Default'!$H$5,'Mobility Default'!I21,IF($K$6='Mobility Default'!$K$5,'Mobility Default'!L21,IF($K$6='Mobility Default'!$N$5,'Mobility Default'!O21)))) -> 0.9 | J41: =IF($K$6='Mobility Default'!$E$5,'Mobility Default'!G21,IF($K$6='Mobility Default'!$H$5,'Mobility Default'!J21,IF($K$6='Mobility Default'!$K$5,'Mobility Default'!M21,IF($K$6='Mobility Default'!$N$5,'Mobility Default'!P21)))) -> 0.9
C42: Shared fleet | D42: # of Users | H42: =IF($K$6='Mobility Default'!$E$5,'Mobility Default'!E22,IF($K$6='Mobility Default'!$H$5,'Mobility Default'!H22,IF($K$6='Mobility Default'!$K$5,'Mobility Default'!K22,IF($K$6='Mobility Default'!$N$5,'Mobility Default'!N22)))) -> 2.1 | I42: =IF($K$6='Mobility Default'!$E$5,'Mobility Default'!F22,IF($K$6='Mobility Default'!$H$5,'Mobility Default'!I22,IF($K$6='Mobility Default'!$K$5,'Mobility Default'!L22,IF($K$6='Mobility Default'!$N$5,'Mobility Default'!O22)))) -> 2.1 | J42: =IF($K$6='Mobility Default'!$E$5,'Mobility Default'!G22,IF($K$6='Mobility Default'!$H$5,'Mobility Default'!J22,IF($K$6='Mobility Default'!$K$5,'Mobility Default'!M22,IF($K$6='Mobility Default'!$N$5,'Mobility Default'!P22)))) -> 2.1
B44: Average lifespan of ICE vehicle | C44: Private car | D44: years | H44: =IF($K$6='Mobility Default'!$E$5,'Mobility Default'!E24,IF($K$6='Mobility Default'!$H$5,'Mobility Default'!H24,IF($K$6='Mobility Default'!$K$5,'Mobility Default'!K24,IF($K$6='Mobility Default'!$N$5,'Mobility Default'!N24)))) -> 10 | I44: =IF($K$6='Mobility Default'!$E$5,'Mobility Default'!F24,IF($K$6='Mobility Default'!$H$5,'Mobility Default'!I24,IF($K$6='Mobility Default'!$K$5,'Mobility Default'!L24,IF($K$6='Mobility Default'!$N$5,'Mobility Default'!O24)))) -> 10 | J44: =IF($K$6='Mobility Default'!$E$5,'Mobility Default'!G24,IF($K$6='Mobility Default'!$H$5,'Mobility Default'!J24,IF($K$6='Mobility Default'!$K$5,'Mobility Default'!M24,IF($K$6='Mobility Default'!$N$5,'Mobility Default'!P24)))) -> 10 | M44: Average ICE vehicle lifespan per vehicle mode
C45: Private two-wheelers | D45: years | H45: =IF($K$6='Mobility Default'!$E$5,'Mobility Default'!E25,IF($K$6='Mobility Default'!$H$5,'Mobility Default'!H25,IF($K$6='Mobility Default'!$K$5,'Mobility Default'!K25,IF($K$6='Mobility Default'!$N$5,'Mobility Default'!N25)))) -> 10 | I45: =IF($K$6='Mobility Default'!$E$5,'Mobility Default'!F25,IF($K$6='Mobility Default'!$H$5,'Mobility Default'!I25,IF($K$6='Mobility Default'!$K$5,'Mobility Default'!L25,IF($K$6='Mobility Default'!$N$5,'Mobility Default'!O25)))) -> 10 | J45: =IF($K$6='Mobility Default'!$E$5,'Mobility Default'!G25,IF($K$6='Mobility Default'!$H$5,'Mobility Default'!J25,IF($K$6='Mobility Default'!$K$5,'Mobility Default'!M25,IF($K$6='Mobility Default'!$N$5,'Mobility Default'!P25)))) -> 10
C46: Public bus | D46: years | H46: =IF($K$6='Mobility Default'!$E$5,'Mobility Default'!E26,IF($K$6='Mobility Default'!$H$5,'Mobility Default'!H26,IF($K$6='Mobility Default'!$K$5,'Mobility Default'!K26,IF($K$6='Mobility Default'!$N$5,'Mobility Default'!N26)))) -> 8 | I46: =IF($K$6='Mobility Default'!$E$5,'Mobility Default'!F26,IF($K$6='Mobility Default'!$H$5,'Mobility Default'!I26,IF($K$6='Mobility Default'!$K$5,'Mobility Default'!L26,IF($K$6='Mobility Default'!$N$5,'Mobility Default'!O26)))) -> 8 | J46: =IF($K$6='Mobility Default'!$E$5,'Mobility Default'!G26,IF($K$6='Mobility Default'!$H$5,'Mobility Default'!J26,IF($K$6='Mobility Default'!$K$5,'Mobility Default'!M26,IF($K$6='Mobility Default'!$N$5,'Mobility Default'!P26)))) -> 8
C47: Shared fleet | D47: years | H47: =IF($K$6='Mobility Default'!$E$5,'Mobility Default'!E27,IF($K$6='Mobility Default'!$H$5,'Mobility Default'!H27,IF($K$6='Mobility Default'!$K$5,'Mobility Default'!K27,IF($K$6='Mobility Default'!$N$5,'Mobility Default'!N27)))) -> 12 | I47: =IF($K$6='Mobility Default'!$E$5,'Mobility Default'!F27,IF($K$6='Mobility Default'!$H$5,'Mobility Default'!I27,IF($K$6='Mobility Default'!$K$5,'Mobility Default'!L27,IF($K$6='Mobility Default'!$N$5,'Mobility Default'!O27)))) -> 12 | J47: =IF($K$6='Mobility Default'!$E$5,'Mobility Default'!G27,IF($K$6='Mobility Default'!$H$5,'Mobility Default'!J27,IF($K$6='Mobility Default'!$K$5,'Mobility Default'!M27,IF($K$6='Mobility Default'!$N$5,'Mobility Default'!P27)))) -> 12
B49: Average lifespan of e-vehicle | C49: Private car | D49: years | H49: =IF($K$6='Mobility Default'!$E$5,'Mobility Default'!E29,IF($K$6='Mobility Default'!$H$5,'Mobility Default'!H29,IF($K$6='Mobility Default'!$K$5,'Mobility Default'!K29,IF($K$6='Mobility Default'!$N$5,'Mobility Default'!N29)))) -> 11 | I49: =IF($K$6='Mobility Default'!$E$5,'Mobility Default'!F29,IF($K$6='Mobility Default'!$H$5,'Mobility Default'!I29,IF($K$6='Mobility Default'!$K$5,'Mobility Default'!L29,IF($K$6='Mobility Default'!$N$5,'Mobility Default'!O29)))) -> 11 | J49: =IF($K$6='Mobility Default'!$E$5,'Mobility Default'!G29,IF($K$6='Mobility Default'!$H$5,'Mobility Default'!J29,IF($K$6='Mobility Default'!$K$5,'Mobility Default'!M29,IF($K$6='Mobility Default'!$N$5,'Mobility Default'!P29)))) -> 11 | M49: Average electric vehicle lifespan per vehicle mode
C50: Private two-wheelers | D50: years | H50: =IF($K$6='Mobility Default'!$E$5,'Mobility Default'!E30,IF($K$6='Mobility Default'!$H$5,'Mobility Default'!H30,IF($K$6='Mobility Default'!$K$5,'Mobility Default'!K30,IF($K$6='Mobility Default'!$N$5,'Mobility Default'!N30)))) -> 2 | I50: =IF($K$6='Mobility Default'!$E$5,'Mobility Default'!F30,IF($K$6='Mobility Default'!$H$5,'Mobility Default'!I30,IF($K$6='Mobility Default'!$K$5,'Mobility Default'!L30,IF($K$6='Mobility Default'!$N$5,'Mobility Default'!O30)))) -> 6 | J50: =IF($K$6='Mobility Default'!$E$5,'Mobility Default'!G30,IF($K$6='Mobility Default'!$H$5,'Mobility Default'!J30,IF($K$6='Mobility Default'!$K$5,'Mobility Default'!M30,IF($K$6='Mobility Default'!$N$5,'Mobility Default'!P30)))) -> 8
C51: Public bus | D51: years | H51: =IF($K$6='Mobility Default'!$E$5,'Mobility Default'!E31,IF($K$6='Mobility Default'!$H$5,'Mobility Default'!H31,IF($K$6='Mobility Default'!$K$5,'Mobility Default'!K31,IF($K$6='Mobility Default'!$N$5,'Mobility Default'!N31)))) -> 8 | I51: =IF($K$6='Mobility Default'!$E$5,'Mobility Default'!F31,IF($K$6='Mobility Default'!$H$5,'Mobility Default'!I31,IF($K$6='Mobility Default'!$K$5,'Mobility Default'!L31,IF($K$6='Mobility Default'!$N$5,'Mobility Default'!O31)))) -> 10 | J51: =IF($K$6='Mobility Default'!$E$5,'Mobility Default'!G31,IF($K$6='Mobility Default'!$H$5,'Mobility Default'!J31,IF($K$6='Mobility Default'!$K$5,'Mobility Default'!M31,IF($K$6='Mobility Default'!$N$5,'Mobility Default'!P31)))) -> 12
C52: Shared fleet | D52: years | H52: =IF($K$6='Mobility Default'!$E$5,'Mobility Default'!E32,IF($K$6='Mobility Default'!$H$5,'Mobility Default'!H32,IF($K$6='Mobility Default'!$K$5,'Mobility Default'!K32,IF($K$6='Mobility Default'!$N$5,'Mobility Default'!N32)))) -> 11 | I52: =IF($K$6='Mobility Default'!$E$5,'Mobility Default'!F32,IF($K$6='Mobility Default'!$H$5,'Mobility Default'!I32,IF($K$6='Mobility Default'!$K$5,'Mobility Default'!L32,IF($K$6='Mobility Default'!$N$5,'Mobility Default'!O32)))) -> 11 | J52: =IF($K$6='Mobility Default'!$E$5,'Mobility Default'!G32,IF($K$6='Mobility Default'!$H$5,'Mobility Default'!J32,IF($K$6='Mobility Default'!$K$5,'Mobility Default'!M32,IF($K$6='Mobility Default'!$N$5,'Mobility Default'!P32)))) -> 11
B54: Bus Additional Data | C54: Annual Vehicle Revenue Kilometers | D54: km | E54: 117790930.6 | M54: Annual vehicle revenue kilometers traveled for the fleet. Annual bus ridership for a fleet. All data collected from transit agency.
C55: Annual Ridership | D55: users | E55: =284222164-3428229 -> 280793935
B57: Rail Additional Data | C57: Annual Ridership | D57: users | E57: 110139493 | M57: Annual ridership for rail users. Collected from transit agency.

Sheet Mobility Default (hidden)
A1: Mobility Default Inputs
E4: Urban Typology 1: Emerging Economy - High Density | H4: Urban Typology 2: Developed Economy - Low Density | K4: Urban Typology 3: Developed Economy - High Density | N4: Urban Typology 4: Emerging Economy - Low Density
E5: 1 | F5: 1 | G5: 1 | H5: 2 | I5: 2 | J5: 2 | K5: 3 | L5: 3 | M5: 3 | N5: 4 | O5: 4 | P5: 4
B6: Category | C6: Data Point | D6: Unit | E6: 2020 (Baseline) | F6: 2035 | G6: 2050 | H6: 2020 (Baseline) | I6: 2035 | J6: 2050 | K6: 2020 (Baseline) | L6: 2035 | M6: 2050 | N6: 2020 (Baseline) | O6: 2035 | P6: 2050
B7: Modal Split | C7: Private car | D7: % of users | F7: ='Mobility Data'!$E$7 -> 0.8585742863 | G7: ='Mobility Data'!$E$7 -> 0.8585742863 | I7: ='Mobility Data'!$E$7 -> 0.8585742863 | J7: ='Mobility Data'!$E$7 -> 0.8585742863 | L7: ='Mobility Data'!$E$7 -> 0.8585742863 | M7: ='Mobility Data'!$E$7 -> 0.8585742863 | O7: ='Mobility Data'!$E$7 -> 0.8585742863 | P7: ='Mobility Data'!$E$7 -> 0.8585742863
C8: Private two-wheelers | D8: % of users | F8: ='Mobility Data'!$E$8 -> 0.0173990391 | G8: ='Mobility Data'!$E$8 -> 0.0173990391 | I8: ='Mobility Data'!$E$8 -> 0.0173990391 | J8: ='Mobility Data'!$E$8 -> 0.0173990391 | L8: ='Mobility Data'!$E$8 -> 0.0173990391 | M8: ='Mobility Data'!$E$8 -> 0.0173990391 | O8: ='Mobility Data'!$E$8 -> 0.0173990391 | P8: ='Mobility Data'!$E$8 -> 0.0173990391
C9: Public bus | D9: % of users | F9: ='Mobility Data'!$E$9 -> 0.06231437975 | G9: ='Mobility Data'!$E$9 -> 0.06231437975 | I9: ='Mobility Data'!$E$9 -> 0.06231437975 | J9: ='Mobility Data'!$E$9 -> 0.06231437975 | L9: ='Mobility Data'!$E$9 -> 0.06231437975 | M9: ='Mobility Data'!$E$9 -> 0.06231437975 | O9: ='Mobility Data'!$E$9 -> 0.06231437975 | P9: ='Mobility Data'!$E$9 -> 0.06231437975
C10: Shared fleet | D10: % of users | F10: ='Mobility Data'!$E$10 -> 0.04432580294 | G10: ='Mobility Data'!$E$10 -> 0.04432580294 | I10: ='Mobility Data'!$E$10 -> 0.04432580294 | J10: ='Mobility Data'!$E$10 -> 0.04432580294 | L10: ='Mobility Data'!$E$10 -> 0.04432580294 | M10: ='Mobility Data'!$E$10 -> 0.04432580294 | O10: ='Mobility Data'!$E$10 -> 0.04432580294 | P10: ='Mobility Data'!$E$10 -> 0.04432580294
C11: Rail | D11: % of users | F11: ='Mobility Data'!$E$11 -> 0.01738649185 | G11: ='Mobility Data'!$E$11 -> 0.01738649185 | I11: ='Mobility Data'!$E$11 -> 0.01738649185 | J11: ='Mobility Data'!$E$11 -> 0.01738649185 | L11: ='Mobility Data'!$E$11 -> 0.01738649185 | M11: ='Mobility Data'!$E$11 -> 0.01738649185 | O11: ='Mobility Data'!$E$11 -> 0.01738649185 | P11: ='Mobility Data'!$E$11 -> 0.01738649185
B13: Average Trip Length and Number of Trips | C13: Private car average trip length | D13: km | E13: 12.5 | F13: 12.5 | G13: 12.5 | H13: 15 | I13: 15 | J13: 15 | K13: 12.5 | L13: 12.5 | M13: 12.5 | N13: 15 | O13: 15 | P13: 15
C14: Private two-wheeler average trip length | D14: km | E14: 12.5 | F14: 12.5 | G14: 12.5 | H14: 15 | I14: 15 | J14: 15 | K14: 12.5 | L14: 12.5 | M14: 12.5 | N14: 15 | O14: 15 | P14: 15
C15: Shared fleet vehicle average trip length | D15: km | E15: 7.9 | F15: 7.9 | G15: 7.9 | H15: 9.6 | I15: 9.6 | J15: 9.6 | K15: 7.9 | L15: 7.9 | M15: 7.9 | N15: 9.6 | O15: 9.6 | P15: 9.6
C16: Private car - average vehicle trips per day | D16: Number of vehicle trips | E16: 2.3 | F16: 2.3 | G16: 2.3 | H16: 3 | I16: 3 | J16: 3 | K16: 2.3 | L16: 2.3 | M16: 2.3 | N16: 2.5 | O16: 2.5 | P16: 2.5
C17: Private two-wheeler - average vehicle trips per day | D17: Number of vehicle trips | E17: 2.3 | F17: 2.3 | G17: 2.3 | H17: 3 | I17: 3 | J17: 3 | K17: 2.3 | L17: 2.3 | M17: 2.3 | N17: 2.5 | O17: 2.5 | P17: 2.5
C18: Shared fleet - average vehicle trips per day | D18: Number of vehicle trips | E18: 2.37 | F18: 2.37 | G18: 2.37 | H18: 2.37 | I18: 2.37 | J18: 2.37 | K18: 2.37 | L18: 2.37 | M18: 2.37 | N18: 2.37 | O18: 2.37 | P18: 2.37
B20: Average Occupancy per Registered Vehicle | C20: Private Car | D20: # of users, including driver | E20: 1.14 | F20: 1.14 | G20: 1.14 | H20: 1.14 | I20: 1.14 | J20: 1.14 | K20: 1.14 | L20: 1.14 | M20: 1.14 | N20: 1.14 | O20: 1.14 | P20: 1.14
C21: Private two-wheeler | D21: # of users, including driver | E21: 1.14 | F21: 1.14 | G21: 1.14 | H21: 0.9 | I21: 0.9 | J21: 0.9 | K21: 0.9 | L21: 0.9 | M21: 0.9 | N21: 1.14 | O21: 1.14 | P21: 1.14
C22: Shared fleet | D22: # of users, including driver | E22: 2.1 | F22: 2.1 | G22: 2.1 | H22: 2.1 | I22: 2.1 | J22: 2.1 | K22: 2.1 | L22: 2.1 | M22: 2.1 | N22: 2.1 | O22: 2.1 | P22: 2.1
B24: Average lifespan of ICE vehicles | C24: Private car | D24: years | E24: 10 | F24: 10 | G24: 10 | H24: 10 | I24: 10 | J24: 10 | K24: 10 | L24: 10 | M24: 10 | N24: 10 | O24: 10 | P24: 10
C25: Private two-wheeler | D25: years | E25: 10 | F25: 10 | G25: 10 | H25: 10 | I25: 10 | J25: 10 | K25: 10 | L25: 10 | M25: 10 | N25: 10 | O25: 10 | P25: 10
C26: Public bus | D26: years | E26: 8 | F26: 8 | G26: 8 | H26: 8 | I26: 8 | J26: 8 | K26: 8 | L26: 8 | M26: 8 | N26: 8 | O26: 8 | P26: 8
C27: Shared fleet | D27: years | E27: 12 | F27: 12 | G27: 12 | H27: 12 | I27: 12 | J27: 12 | K27: 12 | L27: 12 | M27: 12 | N27: 12 | O27: 12 | P27: 12
B29: Average lifespan of e-vehicle usage | C29: Private car | D29: years | E29: 11 | F29: 11 | G29: 11 | H29: 11 | I29: 11 | J29: 11 | K29: 11 | L29: 11 | M29: 11 | N29: 11 | O29: 11 | P29: 11
C30: Private two-wheeler | D30: years | E30: 2 | F30: 6 | G30: 8 | H30: 2 | I30: 6 | J30: 8 | K30: 2 | L30: 6 | M30: 8 | N30: 2 | O30: 6 | P30: 8
C31: Public bus | D31: years | E31: 8 | F31: 10 | G31: 12 | H31: 8 | I31: 10 | J31: 12 | K31: 8 | L31: 10 | M31: 12 | N31: 8 | O31: 10 | P31: 12
C32: Shared fleet | D32: years | E32: 11 | F32: 11 | G32: 11 | H32: 11 | I32: 11 | J32: 11 | K32: 11 | L32: 11 | M32: 11 | N32: 11 | O32: 11 | P32: 11
B34: Uptake of Electric Vehicles | C34: Private car | D34: % EVs | F34: 0.3 | G34: 0.6 | I34: 0.2 | J34: 0.6 | L34: 0.2 | M34: 0.6 | O34: 0.3 | P34: 0.6
C35: Private two-wheelers | D35: % EVs | F35: 0.4 | G35: 0.85 | I35: 0.3 | J35: 0.5 | L35: 0.3 | M35: 0.5 | O35: 0.4 | P35: 0.85
C36: Public bus | D36: % EVs | F36: 0.1 | G36: 0.75 | I36: 0.2 | J36: 1 | L36: 0.2 | M36: 1 | O36: 0.1 | P36: 0.75
C37: Shared fleet | D37: % EVs | F37: 0.4 | G37: 0.75 | I37: 0.5 | J37: 1 | L37: 0.5 | M37: 1 | O37: 0.4 | P37: 0.75

Sheet Mobility Calc (hidden)
A1: Mobility Calculations
B5: Input | C5: 2020 | D5: 2035 | E5: 2050 | F5: Unit
B6: Number of Vehicles per Mode
B7: Number ICE private cars | C7: ='Mobility Data'!$E$14 -> 6490537 | D7: =D92 -> 1210210.686 | E7: =E92 -> 0 | F7: # vehicles
B8: Number ICE two-wheelers | C8: ='Mobility Data'!$E$15 -> 162874 | D8: =D93 -> 80680.7124 | E8: 0 | F8: # vehicles
B9: Number ICE public buses | C9: ='Mobility Data'!$E$16 -> 1741 | D9: =D95 -> 840.5262845 | E9: =E95 -> 0 | F9: # vehicles
B10: Number ICE shared fleets | C10: ='Mobility Data'!$E$17 -> 250000 | D10: =D94 -> 0 | E10: =E94 -> 0 | F10: # vehicles
B11: Number EV private cars | C11: ='Mobility Data'!$E$19 -> 45000 | D11: =D87 -> 4840842.744 | E11: =E87 -> 5254862.19 | F11: # vehicles
B12: Number EV two-wheeler | C12: ='Mobility Data'!$E$20 -> 4887 | D12: =D88 -> 322722.8496 | E12: =E88 -> 527428.6742 | F12: # vehicles
B13: Number EV public buses | C13: ='Mobility Data'!$E$21 -> 40 | D13: =D90 -> 3362.105138 | E13: =E90 -> 5714.505446 | F13: # vehicles
B14: Number EV shared fleets | C14: ='Mobility Data'!$E$22 -> 7500 | D14: =D89 -> 259330.8613 | E14: =E89 -> 361665.3766 | F14: # vehicles
B16: ICE VKT Per Day (private car, two-wheeler, and shared fleet)
B17: Avg. Trip Length private car | C17: =IF(ISBLANK('Mobility Data'!$E$33),'Mobility Data'!$H$33,'Mobility Data'!$E$33) -> 12.5 | D17: =IF(ISBLANK('Mobility Data'!$F$33),'Mobility Data'!$I$33,'Mobility Data'!$F$33) -> 12.5 | E17: =IF(ISBLANK('Mobility Data'!$G$33),'Mobility Data'!$J$33,'Mobility Data'!$G$33) -> 12.5 | F17: km
B18: Avg. Trip Length two-wheeler | C18: =IF(ISBLANK('Mobility Data'!$E$34),'Mobility Data'!$H$34,'Mobility Data'!$E$34) -> 12.5 | D18: =IF(ISBLANK('Mobility Data'!$F$34),'Mobility Data'!$I$34,'Mobility Data'!$F$34) -> 12.5 | E18: =IF(ISBLANK('Mobility Data'!$G$34),'Mobility Data'!$J$34,'Mobility Data'!$G$34) -> 12.5 | F18: km
B19: Avg. Trip Length shared fleet | C19: =IF(ISBLANK('Mobility Data'!$E$35),'Mobility Data'!$H$35,'Mobility Data'!$E$35) -> 7.9 | D19: =IF(ISBLANK('Mobility Data'!$F$35),'Mobility Data'!$I$35,'Mobility Data'!$F$35) -> 7.9 | E19: =IF(ISBLANK('Mobility Data'!$G$35),'Mobility Data'!$J$35,'Mobility Data'!$G$35) -> 7.9 | F19: km
B20: Avg. Trips per day private car | C20: =IF(ISBLANK('Mobility Data'!$E$36),'Mobility Data'!$H$36,'Mobility Data'!$E$36) -> 2.3 | D20: =IF(ISBLANK('Mobility Data'!$F$36),'Mobility Data'!$I$36,'Mobility Data'!$F$36) -> 2.3 | E20: =IF(ISBLANK('Mobility Data'!$G$36),'Mobility Data'!$J$36,'Mobility Data'!$G$36) -> 2.3 | F20: # trips/day
B21: Avg. Trips per day two-wheeler | C21: =IF(ISBLANK('Mobility Data'!$E$37),'Mobility Data'!$H$37,'Mobility Data'!$E$37) -> 2.3 | D21: =IF(ISBLANK('Mobility Data'!$F$37),'Mobility Data'!$I$37,'Mobility Data'!$F$37) -> 2.3 | E21: =IF(ISBLANK('Mobility Data'!$G$37),'Mobility Data'!$J$37,'Mobility Data'!$G$37) -> 2.3 | F21: # trips/day
B22: Avg. Trips per day shared fleet | C22: =IF(ISBLANK('Mobility Data'!$E$38),'Mobility Data'!$H$38,'Mobility Data'!$E$38) -> 2.37 | D22: =IF(ISBLANK('Mobility Data'!$F$38),'Mobility Data'!$I$38,'Mobility Data'!$F$38) -> 2.37 | E22: =IF(ISBLANK('Mobility Data'!$G$38),'Mobility Data'!$J$38,'Mobility Data'!$G$38) -> 2.37 | F22: # trips/day
B23: ICE VKT per day private car | C23: =C17*C20*C7 -> 186602938.7 | D23: =D17*D20*D7 -> 34793557.22 | E23: =E17*E20*E7 -> 0 | F23: km/day
B24: ICE VKT per day two-wheeler | C24: 4682627.5 | D24: 2319570.482 | E24: 0 | F24: km/day
B25: ICE VKT per day public bus | C25: =C9*$B$106 -> 315466.9306 | D25: =D9*$B$106 -> 152302.2671 | E25: =E9*$B$106 -> 0 | F25: km/day
B26: ICE VKT per day shared fleet | C26: =C19*C22*C9 -> 32596.743 | D26: =D19*D22*D9 -> 15737.17362 | E26: =E19*E22*E9 -> 0 | F26: km/day
B28: e-VKT Per Day (private car, two-wheeler, and shared fleet)
B29: Avg. Trip Length private car | C29: =IF(ISBLANK('Mobility Data'!$E$33),'Mobility Data'!$H$33,'Mobility Data'!$E$33) -> 12.5 | D29: =IF(ISBLANK('Mobility Data'!$F$33),'Mobility Data'!$I$33,'Mobility Data'!$F$33) -> 12.5 | E29: =IF(ISBLANK('Mobility Data'!$G$33),'Mobility Data'!$J$33,'Mobility Data'!$G$33) -> 12.5 | F29: km
B30: Avg. Trip Length two-wheeler | C30: =IF(ISBLANK('Mobility Data'!$E$34),'Mobility Data'!$H$34,'Mobility Data'!$E$34) -> 12.5 | D30: =IF(ISBLANK('Mobility Data'!$F$34),'Mobility Data'!$I$34,'Mobility Data'!$F$34) -> 12.5 | E30: =IF(ISBLANK('Mobility Data'!$G$34),'Mobility Data'!$J$34,'Mobility Data'!$G$34) -> 12.5 | F30: km
B31: Avg. Trip Length shared fleet | C31: =IF(ISBLANK('Mobility Data'!$E$35),'Mobility Data'!$H$35,'Mobility Data'!$E$35) -> 7.9 | D31: =IF(ISBLANK('Mobility Data'!$F$35),'Mobility Data'!$I$35,'Mobility Data'!$F$35) -> 7.9 | E31: =IF(ISBLANK('Mobility Data'!$G$35),'Mobility Data'!$J$35,'Mobility Data'!$G$35) -> 7.9 | F31: km
B32: Avg. Trips per day private car | C32: =IF(ISBLANK('Mobility Data'!$E$36),'Mobility Data'!$H$36,'Mobility Data'!$E$36) -> 2.3 | D32: =IF(ISBLANK('Mobility Data'!$F$36),'Mobility Data'!$I$36,'Mobility Data'!$F$36) -> 2.3 | E32: =IF(ISBLANK('Mobility Data'!$G$36),'Mobility Data'!$J$36,'Mobility Data'!$G$36) -> 2.3 | F32: # trips/day
B33: Avg. Trips per day two-wheeler | C33: =IF(ISBLANK('Mobility Data'!$E$37),'Mobility Data'!$H$37,'Mobility Data'!$E$37) -> 2.3 | D33: =IF(ISBLANK('Mobility Data'!$F$37),'Mobility Data'!$I$37,'Mobility Data'!$F$37) -> 2.3 | E33: =IF(ISBLANK('Mobility Data'!$G$37),'Mobility Data'!$J$37,'Mobility Data'!$G$37) -> 2.3 | F33: # trips/day
B34: Avg. Trips per day shared fleet | C34: =IF(ISBLANK('Mobility Data'!$E$38),'Mobility Data'!$H$38,'Mobility Data'!$E$38) -> 2.37 | D34: =IF(ISBLANK('Mobility Data'!$F$38),'Mobility Data'!$I$38,'Mobility Data'!$F$38) -> 2.37 | E34: =IF(ISBLANK('Mobility Data'!$G$38),'Mobility Data'!$J$38,'Mobility Data'!$G$38) -> 2.37 | F34: # trips/day
B35: eVKT per day private car | C35: =C29*C32*C11 -> 1293750 | D35: =D11*D29*D32 -> 139174228.9 | E35: =E11*E29*E32 -> 151077287.9 | F35: km/day
B36: eVKT per day two-wheeler | C36: =C30*C33*C12 -> 140501.25 | D36: =D12*D30*D33 -> 9278281.927 | E36: =E12*E30*E33 -> 15163574.38 | F36: km/day
B37: eVKT per day public bus | C37: =C13*$B$106 -> 7247.947859 | D37: =D13*$B$106 -> 609209.0684 | E37: =E13*$B$106 -> 1035460.938 | F37: km/day
B38: eVKT per day shared fleet | C38: =C31*C34*C14 -> 140422.5 | D38: =D14*D31*D34 -> 4855451.716 | E38: =E14*E31*E34 -> 6771460.846 | F38: km/day
B40: Total VKT Per Day
B41: Total VKT private car | C41: =C23+C35 -> 187896688.7 | D41: 173967786.1 | E41: 151077287.9 | F41: km
B42: Total VKT two-wheeler | C42: 4823128.75 | D42: 11597852.41 | E42: 15163574.38 | F42: km
B43: Total VKT public bus | C43: 322714.8784 | D43: 761511.3355 | E43: 1035460.938 | F43: km
B44: Total VKT shared fleet | C44: 173019.243 | D44: 4871188.89 | E44: 6771460.846 | F44: km
B46: Users per Vehicle
B47: Private cars | C47: =IF(ISBLANK('Mobility Data'!E40),'Mobility Data'!H40,'Mobility Data'!E40) -> 1.14 | D47: =IF(ISBLANK('Mobility Data'!F40),'Mobility Data'!I40,'Mobility Data'!F40) -> 1.14 | E47: =IF(ISBLANK('Mobility Data'!G40),'Mobility Data'!J40,'Mobility Data'!G40) -> 1.14 | F47: users per vehicle
B48: Private two-wheelers | C48: =IF(ISBLANK('Mobility Data'!E41),'Mobility Data'!H41,'Mobility Data'!E41) -> 0.9 | D48: =IF(ISBLANK('Mobility Data'!F41),'Mobility Data'!I41,'Mobility Data'!F41) -> 0.9 | E48: =IF(ISBLANK('Mobility Data'!G41),'Mobility Data'!J41,'Mobility Data'!G41) -> 0.9 | F48: users per vehicle
B49: Shared fleet | C49: =IF(ISBLANK('Mobility Data'!E42),'Mobility Data'!H42,'Mobility Data'!E42) -> 2.1 | D49: =IF(ISBLANK('Mobility Data'!F42),'Mobility Data'!I42,'Mobility Data'!F42) -> 2.1 | E49: =IF(ISBLANK('Mobility Data'!G42),'Mobility Data'!J42,'Mobility Data'!G42) -> 2.1 | F49: users per vehicle
B50: Public bus (users per transit vehicle) | C50: =C51/(C9+C13)/365/2 -> 215.9737372 | F50: users per vehicle
B51: Annual bus ridership | C51: =IF(ISBLANK('Mobility Data'!E55),'Mobility Data'!H55,'Mobility Data'!E55) -> 280793935 | F51: ridership/year
B52: Annual rail ridership | C52: =IF(ISBLANK('Mobility Data'!E57),'Mobility Data'!H57,'Mobility Data'!E57) -> 110139493 | F52: ridership/year
B54: Number of Users per Day 2020 | H54: Modal Split 2020
B55: # of users private car | C55: =(C$7+C$11)*C$47 -> 7450512.18 | F55: users/day | H55: =C55/$C$60 -> 0.8585742863 | I55: Car users
B56: # of users two-wheeler | C56: =(C$8+C$12)*C$48 -> 150984.9 | F56: users/day | H56: =C56/$C$60 -> 0.0173990391 | I56: Two-wheeler users
B57: # of users shared fleet | C57: =(C$10+C$14)*C$49 -> 540750 | F57: users/day | H57: 0.06231437975 | I57: Shared fleet users
B58: # of users public bus | C58: =C$51/365/2 -> 384649.226 | F58: users/day | H58: 0.04432580294 | I58: Bus users
B59: # of users rail | C59: =(C52/365)/2 -> 150876.0178 | F59: users/day | H59: =C59/$C$60 -> 0.01738649185 | I59: Rail users
B60: Total number of users all vehicle modes | C60: =SUM(C55:C59) -> 8677772.324 | F60: users/day
B65: Number of Users per Day 2035 and 2050
B66: # of users private car | D66: =$D$71*IF(ISBLANK('Mobility Data'!F7),'Mobility Data'!I7,'Mobility Data'!F7) -> 6898200.911 | E66: =$D$71*IF(ISBLANK('Mobility Data'!G7),'Mobility Data'!J7,'Mobility Data'!G7) -> 5990542.896 | F66: users/day
B67: # of users two-wheeler | D67: =$D$71*IF(ISBLANK('Mobility Data'!F8),'Mobility Data'!I8,'Mobility Data'!F8) -> 363063.2058 | E67: =$E$71*IF(ISBLANK('Mobility Data'!G8),'Mobility Data'!J8,'Mobility Data'!G8) -> 474685.8068 | F67: users/day
B68: # of users shared fleet | D68: =$D$71*IF(ISBLANK('Mobility Data'!F10),'Mobility Data'!I10,'Mobility Data'!F10) -> 544594.8087 | E68: =$E$71*IF(ISBLANK('Mobility Data'!G10),'Mobility Data'!J10,'Mobility Data'!G10) -> 759497.2909 | F68: users/day
B69: # of users public bus | D69: =$D$71*IF(ISBLANK('Mobility Data'!F9),'Mobility Data'!I9,'Mobility Data'!F9) -> 907658.0146 | E69: =$E$71*IF(ISBLANK('Mobility Data'!G9),'Mobility Data'!J9,'Mobility Data'!G9) -> 1234183.098 | F69: users/day
B70: # of users rail | D70: =$D$71*IF(ISBLANK('Mobility Data'!F11),'Mobility Data'!I11,'Mobility Data'!F11) -> 363063.2058 | E70: =$D$71*IF(ISBLANK('Mobility Data'!G11),'Mobility Data'!J11,'Mobility Data'!G11) -> 726126.4116 | F70: users/day
B71: Total number of users all vehicle modes | D71: =($C$60*((1+(IF(ISBLANK('City Data'!$F$9),'City Data'!$I$9,'City Data'!$F$9)))^15)) -> 9076580.146 | E71: =($D$71*((1+(IF(ISBLANK('City Data'!$G$9),'City Data'!$J$9,'City Data'!$G$9)))^15)) -> 9493716.136 | F71: users/day
B74: Projected Vehicles per Mode 2035 and 2050
B75: Number of cars | D75: =$D$66/$D$47 -> 6051053.43 | E75: =E$66/E$47 -> 5254862.19 | F75: # of vehicles
B76: Number of two-wheelers | D76: =D67/D48 -> 403403.562 | E76: =E67/E48 -> 527428.6742 | F76: # of vehicles
B77: Number of shared fleet vehicles | D77: =D68/D49 -> 259330.8613 | E77: =E68/E49 -> 361665.3766 | F77: # of vehicles
B78: Number of buses | D78: =D69/$C$50 -> 4202.631422 | E78: =E69/$C$50 -> 5714.505446 | F78: # of vehicles
B80: Levels of Vehicle Electrification
B81: % electric private car | C81: =IF(ISBLANK('Mobility Data'!E24),'Mobility Data'!H24,'Mobility Data'!E24) -> 0.006885432674 | D81: =IF(ISBLANK('Mobility Data'!F24),'Mobility Data'!I24,'Mobility Data'!F24) -> 0.8 | E81: =IF(ISBLANK('Mobility Data'!G24),'Mobility Data'!J24,'Mobility Data'!G24) -> 1 | F81: % of private cars that are electric
B82: % electric private two-wheelers | C82: =IF(ISBLANK('Mobility Data'!E26),'Mobility Data'!H25,'Mobility Data'!E26) -> 0.02913072764 | D82: =IF(ISBLANK('Mobility Data'!F26),'Mobility Data'!I25,'Mobility Data'!F26) -> 0.8 | E82: =IF(ISBLANK('Mobility Data'!G26),'Mobility Data'!J25,'Mobility Data'!G26) -> 1 | F82: % of private two-wheelers that are electric
B83: % electric public bus | C83: =IF(ISBLANK('Mobility Data'!E28),'Mobility Data'!H28,'Mobility Data'!E28) -> 0.02245929253 | D83: =IF(ISBLANK('Mobility Data'!F28),'Mobility Data'!I28,'Mobility Data'!F28) -> 0.8 | E83: =IF(ISBLANK('Mobility Data'!G28),'Mobility Data'!J28,'Mobility Data'!G28) -> 1 | F83: % of public buses that are electric
B84: % electirc shared fleet | C84: =IF(ISBLANK('Mobility Data'!E30),'Mobility Data'!H30,'Mobility Data'!E30) -> 0.02912621359 | D84: =IF(ISBLANK('Mobility Data'!F30),'Mobility Data'!I30,'Mobility Data'!F30) -> 1 | E84: =IF(ISBLANK('Mobility Data'!G30),'Mobility Data'!J30,'Mobility Data'!G30) -> 1 | F84: % of shared fleet vehicles that are electric
B86: EVs per Mode
B87: Electric Private Cars | C87: =C11 -> 45000 | D87: =D75*D81 -> 4840842.744 | E87: =E75*E81 -> 5254862.19 | F87: # of EVs
B88: Electric Private Two-Wheelers | C88: =C12 -> 4887 | D88: =D76*D82 -> 322722.8496 | E88: =E76*E82 -> 527428.6742 | F88: # of EVs
B89: Electric Shared Shared Fleet | C89: =C14 -> 7500 | D89: =D77*D84 -> 259330.8613 | E89: =E77*E84 -> 361665.3766 | F89: # of EVs
B90: Electric Buses | C90: =C13 -> 40 | D90: =D78*D83 -> 3362.105138 | E90: =E78*E84 -> 5714.505446 | F90: # of EVs
B91: ICE per Mode
B92: ICE Private cars | C92: =C7 -> 6490537 | D92: =D75-D87 -> 1210210.686 | E92: =E75-E87 -> 0 | F92: # of ICE
B93: ICE Private Two-Wheelers | C93: =C8 -> 162874 | D93: =D76-D88 -> 80680.7124 | E93: =E76-E88 -> 0 | F93: # of ICE
B94: ICE Shared Fleet Vehicles | C94: =C9 -> 1741 | D94: =D77-D89 -> 0 | E94: =E77-E89 -> 0 | F94: # of ICE
B95: ICE Buses | C95: =C10 -> 250000 | D95: =D78-D90 -> 840.5262845 | E95: =E78-E90 -> 0 | F95: # of ICE
B97: eVKT
B98: eVKT car | C98: =C87*C29*C32 -> 1293750 | D98: 139174228.9 | E98: =E75*E29*E32 -> 151077287.9 | F98: km
B99: eVKT two-wheeler | C99: 140501.25 | D99: 9278281.927 | E99: =E88*E30*E33 -> 15163574.38 | F99: km
B100: eVKT shared fleet | C100: 140422.5 | D100: 4855451.716 | E100: =E89*E31*E34 -> 6771460.846 | F100: km
B101: eVKT bus | C101: =C13*$B$106 -> 7247.947859 | D101: =D13*$B$106 -> 609209.0684 | E101: =E13*$B$106 -> 1035460.938 | F101: km
B103: Vehicle Revenue Kilometers Bus System 2020 (km)
B104: ='Mobility Data'!E54 -> 117790930.6
B105: Daily KM per Bus 2020
B106: =B104/(C9+C13)/365 -> 181.1986965 | E106: Constant bus km.

Sheet Charging Data
B1: Charging Infrastructure Data
F4: Manual Input | I4: Default Input
F5: ='City Data'!E6 -> Developed Economy - High Density | I5: ='City Data'!H6 -> Developed Economy - High Density | L5: ='City Data'!K6 -> 3
B6: Category | C6: Data Point | E6: Unit | F6: 2020 (Baseline) | G6: 2035 | H6: 2050 | I6: 2020 (Baseline) | J6: 2035 | K6: 2050 | N6: Information box
A7: 1 | B7: Battery Capacity | C7: Private / shared car | E7: kWh | I7: =IF($L$5='Charging Default'!$E$7,'Charging Default'!E9,IF($L$5='Charging Default'!$H$7,'Charging Default'!H9,IF($L$5='Charging Default'!$K$7,'Charging Default'!K9,IF($L$5='Charging Default'!$N$7,'Charging Default'!N9)))) -> 60 | J7: =IF($L$5='Charging Default'!$F$7,'Charging Default'!F9,IF($L$5='Charging Default'!$I$7,'Charging Default'!I9,IF($L$5='Charging Default'!$L$7,'Charging Default'!L9,IF($L$5='Charging Default'!$O$7,'Charging Default'!O9)))) -> 90 | K7: =IF($L$5='Charging Default'!$G$7,'Charging Default'!G9,IF($L$5='Charging Default'!$J$7,'Charging Default'!J9,IF($L$5='Charging Default'!$M$7,'Charging Default'!M9,IF($L$5='Charging Default'!$P$7,'Charging Default'!P9)))) -> 150 | N7: Average battery capacity for available for each vehicle type in the city
C8: Private two-wheeler | E8: kWh | I8: =IF($L$5='Charging Default'!$E$7,'Charging Default'!E10,IF($L$5='Charging Default'!$H$7,'Charging Default'!H10,IF($L$5='Charging Default'!$K$7,'Charging Default'!K10,IF($L$5='Charging Default'!$N$7,'Charging Default'!N10)))) -> 6.5 | J8: =IF($L$5='Charging Default'!$F$7,'Charging Default'!F10,IF($L$5='Charging Default'!$I$7,'Charging Default'!I10,IF($L$5='Charging Default'!$L$7,'Charging Default'!L10,IF($L$5='Charging Default'!$O$7,'Charging Default'!O10)))) -> 13.5 | K8: =IF($L$5='Charging Default'!$G$7,'Charging Default'!G10,IF($L$5='Charging Default'!$J$7,'Charging Default'!J10,IF($L$5='Charging Default'!$M$7,'Charging Default'!M10,IF($L$5='Charging Default'!$P$7,'Charging Default'!P10)))) -> 20
C9: Public buses | E9: kWh | I9: =IF($L$5='Charging Default'!$E$7,'Charging Default'!E11,IF($L$5='Charging Default'!$H$7,'Charging Default'!H11,IF($L$5='Charging Default'!$K$7,'Charging Default'!K11,IF($L$5='Charging Default'!$N$7,'Charging Default'!N11)))) -> 275 | J9: =IF($L$5='Charging Default'!$F$7,'Charging Default'!F11,IF($L$5='Charging Default'!$I$7,'Charging Default'!I11,IF($L$5='Charging Default'!$L$7,'Charging Default'!L11,IF($L$5='Charging Default'!$O$7,'Charging Default'!O11)))) -> 400 | K9: =IF($L$5='Charging Default'!$G$7,'Charging Default'!G11,IF($L$5='Charging Default'!$J$7,'Charging Default'!J11,IF($L$5='Charging Default'!$M$7,'Charging Default'!M11,IF($L$5='Charging Default'!$P$7,'Charging Default'!P11)))) -> 600
B11: Battery Range | C11: Private / shared car | E11: km | I11: =IF($L$5='Charging Default'!E$7,'Charging Default'!E12,IF($L$5='Charging Default'!H$7,'Charging Default'!H12,IF($L$5='Charging Default'!K$7,'Charging Default'!K12,IF($L$5='Charging Default'!N$7,'Charging Default'!N12)))) -> 300 | J11: =IF($L$5='Charging Default'!F$7,'Charging Default'!F12,IF($L$5='Charging Default'!I$7,'Charging Default'!I12,IF($L$5='Charging Default'!L$7,'Charging Default'!L12,IF($L$5='Charging Default'!O$7,'Charging Default'!O12)))) -> 450 | K11: =IF($L$5='Charging Default'!G$7,'Charging Default'!G12,IF($L$5='Charging Default'!J$7,'Charging Default'!J12,IF($L$5='Charging Default'!M$7,'Charging Default'!M12,IF($L$5='Charging Default'!P$7,'Charging Default'!P12)))) -> 500 | N11: Maximum number of km each type of vehicle can travel with battery size defined above
C12: ='Charging Default'!C13 -> Private two-wheeler | E12: km | I12: =IF($L$5='Charging Default'!E$7,'Charging Default'!E13,IF($L$5='Charging Default'!H$7,'Charging Default'!H13,IF($L$5='Charging Default'!K$7,'Charging Default'!K13,IF($L$5='Charging Default'!N$7,'Charging Default'!N13)))) -> 70 | J12: =IF($L$5='Charging Default'!F$7,'Charging Default'!F13,IF($L$5='Charging Default'!I$7,'Charging Default'!I13,IF($L$5='Charging Default'!L$7,'Charging Default'!L13,IF($L$5='Charging Default'!O$7,'Charging Default'!O13)))) -> 140 | K12: =IF($L$5='Charging Default'!G$7,'Charging Default'!G13,IF($L$5='Charging Default'!J$7,'Charging Default'!J13,IF($L$5='Charging Default'!M$7,'Charging Default'!M13,IF($L$5='Charging Default'!P$7,'Charging Default'!P13)))) -> 210
C13: Public bus | E13: km | I13: =IF($L$5='Charging Default'!E$7,'Charging Default'!E14,IF($L$5='Charging Default'!H$7,'Charging Default'!H14,IF($L$5='Charging Default'!K$7,'Charging Default'!K14,IF($L$5='Charging Default'!N$7,'Charging Default'!N14)))) -> 250 | J13: =IF($L$5='Charging Default'!F$7,'Charging Default'!F14,IF($L$5='Charging Default'!I$7,'Charging Default'!I14,IF($L$5='Charging Default'!L$7,'Charging Default'!L14,IF($L$5='Charging Default'!O$7,'Charging Default'!O14)))) -> 500 | K13: =IF($L$5='Charging Default'!G$7,'Charging Default'!G14,IF($L$5='Charging Default'!J$7,'Charging Default'!J14,IF($L$5='Charging Default'!M$7,'Charging Default'!M14,IF($L$5='Charging Default'!P$7,'Charging Default'!P14)))) -> 700
B15: Charger Power | C15: LDV - Level 1 | E15: kW | I15: =IF($L$5='Charging Default'!$E$7,'Charging Default'!E16,IF($L$5='Charging Default'!$H$7,'Charging Default'!H16,IF($L$5='Charging Default'!$K$7,'Charging Default'!K16,IF($L$5='Charging Default'!$N$7,'Charging Default'!N16)))) -> 2 | J15: =IF($L$5='Charging Default'!$F$7,'Charging Default'!F16,IF($L$5='Charging Default'!$I$7,'Charging Default'!I16,IF($L$5='Charging Default'!$L$7,'Charging Default'!L16,IF($L$5='Charging Default'!$O$7,'Charging Default'!O16)))) -> 2 | K15: =IF($L$5='Charging Default'!$G$7,'Charging Default'!G16,IF($L$5='Charging Default'!$J$7,'Charging Default'!J16,IF($L$5='Charging Default'!$M$7,'Charging Default'!M16,IF($L$5='Charging Default'!$P$7,'Charging Default'!P16)))) -> 2 | N15: The average power flow (kW) each EV charger type can supply to a vehicle in your city under normal circumstances
C16: LDV - Level 2 | E16: kW | I16: =IF($L$5='Charging Default'!$E$7,'Charging Default'!E17,IF($L$5='Charging Default'!$H$7,'Charging Default'!H17,IF($L$5='Charging Default'!$K$7,'Charging Default'!K17,IF($L$5='Charging Default'!$N$7,'Charging Default'!N17)))) -> 7.2 | J16: =IF($L$5='Charging Default'!$F$7,'Charging Default'!F17,IF($L$5='Charging Default'!$I$7,'Charging Default'!I17,IF($L$5='Charging Default'!$L$7,'Charging Default'!L17,IF($L$5='Charging Default'!$O$7,'Charging Default'!O17)))) -> 11 | K16: =IF($L$5='Charging Default'!$G$7,'Charging Default'!G17,IF($L$5='Charging Default'!$J$7,'Charging Default'!J17,IF($L$5='Charging Default'!$M$7,'Charging Default'!M17,IF($L$5='Charging Default'!$P$7,'Charging Default'!P17)))) -> 16.5
C17: LDV - Level 3 | E17: kW | I17: =IF($L$5='Charging Default'!$E$7,'Charging Default'!E18,IF($L$5='Charging Default'!$H$7,'Charging Default'!H18,IF($L$5='Charging Default'!$K$7,'Charging Default'!K18,IF($L$5='Charging Default'!$N$7,'Charging Default'!N18)))) -> 50 | J17: =IF($L$5='Charging Default'!$E$7,'Charging Default'!F18,IF($L$5='Charging Default'!$H$7,'Charging Default'!I18,IF($L$5='Charging Default'!$K$7,'Charging Default'!L18,IF($L$5='Charging Default'!$N$7,'Charging Default'!O18)))) -> 100 | K17: =IF($L$5='Charging Default'!$E$7,'Charging Default'!G18,IF($L$5='Charging Default'!$H$7,'Charging Default'!J18,IF($L$5='Charging Default'!$K$7,'Charging Default'!M18,IF($L$5='Charging Default'!$N$7,'Charging Default'!P18)))) -> 150
C18: HDV - Slow | E18: kW | I18: =IF($L$5='Charging Default'!$E$7,'Charging Default'!E19,IF($L$5='Charging Default'!$H$7,'Charging Default'!H19,IF($L$5='Charging Default'!$K$7,'Charging Default'!K19,IF($L$5='Charging Default'!$N$7,'Charging Default'!N19)))) -> 60 | J18: =IF($L$5='Charging Default'!$E$7,'Charging Default'!F19,IF($L$5='Charging Default'!$H$7,'Charging Default'!I19,IF($L$5='Charging Default'!$K$7,'Charging Default'!L19,IF($L$5='Charging Default'!$N$7,'Charging Default'!O19)))) -> 70 | K18: =IF($L$5='Charging Default'!$E$7,'Charging Default'!G19,IF($L$5='Charging Default'!$H$7,'Charging Default'!J19,IF($L$5='Charging Default'!$K$7,'Charging Default'!M19,IF($L$5='Charging Default'!$N$7,'Charging Default'!P19)))) -> 80
C19: HDV - Fast | E19: kW | I19: =IF($L$5='Charging Default'!$E$7,'Charging Default'!E20,IF($L$5='Charging Default'!$H$7,'Charging Default'!H20,IF($L$5='Charging Default'!$K$7,'Charging Default'!K20,IF($L$5='Charging Default'!$N$7,'Charging Default'!N20)))) -> 125 | J19: =IF($L$5='Charging Default'!$E$7,'Charging Default'!F20,IF($L$5='Charging Default'!$H$7,'Charging Default'!I20,IF($L$5='Charging Default'!$K$7,'Charging Default'!L20,IF($L$5='Charging Default'!$N$7,'Charging Default'!O20)))) -> 135 | K19: =IF($L$5='Charging Default'!$E$7,'Charging Default'!G20,IF($L$5='Charging Default'!$H$7,'Charging Default'!J20,IF($L$5='Charging Default'!$K$7,'Charging Default'!M20,IF($L$5='Charging Default'!$N$7,'Charging Default'!P20)))) -> 150
B21: Charging infrastructure lifespan | C21: Home | D21: Level 1 | E21: years | I21: =IF($L$5='Charging Default'!$E$7,'Charging Default'!E22,IF($L$5='Charging Default'!$H$7,'Charging Default'!H22,IF($L$5='Charging Default'!$K$7,'Charging Default'!K22,IF($L$5='Charging Default'!$N$7,'Charging Default'!N22)))) -> 25 | J21: =IF($L$5='Charging Default'!$E$7,'Charging Default'!F22,IF($L$5='Charging Default'!$H$7,'Charging Default'!I22,IF($L$5='Charging Default'!$K$7,'Charging Default'!L22,IF($L$5='Charging Default'!$N$7,'Charging Default'!O22)))) -> 25 | K21: =IF($L$5='Charging Default'!$E$7,'Charging Default'!G22,IF($L$5='Charging Default'!$H$7,'Charging Default'!J22,IF($L$5='Charging Default'!$K$7,'Charging Default'!M22,IF($L$5='Charging Default'!$N$7,'Charging Default'!P22)))) -> 25 | N21: Number of years each charger type will continue to function properly assuming regular maintenance and usage habits
D22: Level 2 | E22: years | I22: =IF($L$5='Charging Default'!$E$7,'Charging Default'!E23,IF($L$5='Charging Default'!$H$7,'Charging Default'!H23,IF($L$5='Charging Default'!$K$7,'Charging Default'!K23,IF($L$5='Charging Default'!$N$7,'Charging Default'!N23)))) -> 15 | J22: =IF($L$5='Charging Default'!$E$7,'Charging Default'!F23,IF($L$5='Charging Default'!$H$7,'Charging Default'!I23,IF($L$5='Charging Default'!$K$7,'Charging Default'!L23,IF($L$5='Charging Default'!$N$7,'Charging Default'!O23)))) -> 15 | K22: =IF($L$5='Charging Default'!$E$7,'Charging Default'!G23,IF($L$5='Charging Default'!$H$7,'Charging Default'!J23,IF($L$5='Charging Default'!$K$7,'Charging Default'!M23,IF($L$5='Charging Default'!$N$7,'Charging Default'!P23)))) -> 15
C23: Work | D23: Level 2 | E23: years | I23: =IF($L$5='Charging Default'!$E$7,'Charging Default'!E24,IF($L$5='Charging Default'!$H$7,'Charging Default'!H24,IF($L$5='Charging Default'!$K$7,'Charging Default'!K24,IF($L$5='Charging Default'!$N$7,'Charging Default'!N24)))) -> 15 | J23: =IF($L$5='Charging Default'!$E$7,'Charging Default'!F24,IF($L$5='Charging Default'!$H$7,'Charging Default'!I24,IF($L$5='Charging Default'!$K$7,'Charging Default'!L24,IF($L$5='Charging Default'!$N$7,'Charging Default'!O24)))) -> 15 | K23: =IF($L$5='Charging Default'!$E$7,'Charging Default'!G24,IF($L$5='Charging Default'!$H$7,'Charging Default'!J24,IF($L$5='Charging Default'!$K$7,'Charging Default'!M24,IF($L$5='Charging Default'!$N$7,'Charging Default'!P24)))) -> 15
